Workbook

Sheet Figure 1-A
E1: 1.75 | F1: =LOG(E1,2) -> 0.8073549221 | G1: CONTROL.MALE vs KP10.MALE | J1: CONTROL MALE | K1: CONTROL MALE | L1: CONTROL MALE | M1: CONTROL MALE | N1: CONTROL MALE | O1: CONTROL MALE | P1: KP10 MALE | Q1: KP10 MALE | R1: KP10 MALE | S1: KP10 MALE | T1: KP10 MALE | U1: KP10 MALE
A2: Row | B2: Index | C2: Peak Name | D2: Group | G2: FoldChange | H2: log2 FC | I2: T.Test | J2: 7 | K2: 8 | L2: 9 | M2: 10 | N2: 11 | O2: 12 | P2: 19 | Q2: 22 | R2: 23 | S2: 24 | T2: 31 | U2: 32
A3: 1995 | B3: 1995 | C3: sp|Q8CA95|PDE10_MOUSE | D3: cAMP and cAMP-inhibited cGMP 3',5'-cyclic phosphodiesterase 10A OS=Mus musculus GN=Pde10a PE=1 SV=2 | G3: =AVERAGE(P3:U3)/AVERAGE(J3:O3) -> 2.603345562 | H3: =LOG(G3,2) -> 1.380366824 | I3: =_xlfn.T.TEST(P3:U3,J3:O3,2,2) -> 3.400123288e-05 | J3: 10283.94297 | K3: 8046.323135 | L3: 5687.631249 | M3: 11518.95281 | N3: 4576.655513 | O3: 3669.079588 | P3: 17927.28735 | Q3: 21240.66636 | R3: 19368.1872 | S3: 16204.51178 | T3: 22511.22258 | U3: 16729.32375
A4: 105 | B4: 105 | C4: sp|P46660|AINX_MOUSE | D4: Alpha-internexin OS=Mus musculus GN=Ina PE=1 SV=3 | G4: 1.766349152 | H4: =LOG(G4,2) -> 0.820770547 | I4: 0.0001014858383 | J4: 2354820.629 | K4: 2098300.941 | L4: 1315936.131 | M4: 1633156.912 | N4: 2527843.159 | O4: 1946606.842 | P4: 3053869.492 | Q4: 3038998.013 | R4: 3578133.155 | S4: 3996411.33 | T4: 3472888.008 | U4: 3838036.477
A5: 1773 | B5: 1773 | C5: sp|P03930|ATP8_MOUSE | D5: ATP synthase protein 8 OS=Mus musculus GN=Mtatp8 PE=1 SV=1 | G5: 1.826709812 | H5: 0.8692474684 | I5: 0.0001216749289 | J5: 218903.4031 | K5: 214665.7576 | L5: 174071.7145 | M5: 153135.0281 | N5: 270589.6229 | O5: 182769.9113 | P5: 413527.4546 | Q5: 399696.6884 | R5: 367534.6115 | S5: 378590.3792 | T5: 266074.1016 | U5: 392449.8818
A6: 1562 | B6: 1562 | C6: sp|Q80UW2|FBX2_MOUSE | D6: F-box only protein 2 OS=Mus musculus GN=Fbxo2 PE=1 SV=1 | G6: 0.4517620845 | H6: -1.146364902 | I6: 0.0003726820699 | J6: 270598.255 | K6: 262843.0322 | L6: 340903.8565 | M6: 347897.4163 | N6: 417246.4451 | O6: 395732.9031 | P6: 114297.7818 | Q6: 97726.6677 | R6: 111363.7792 | S6: 141570.279 | T6: 239074.9651 | U6: 215402.6189
A7: 1497 | B7: 1497 | C7: sp|P84104|SRSF3_MOUSE | D7: Serine/arginine-rich splicing factor 3 OS=Mus musculus GN=Srsf3 PE=1 SV=1 | G7: 2.523944091 | H7: 1.335679953 | I7: 0.0005858643577 | J7: 119127.2539 | K7: 282528.2256 | L7: 54760.53872 | M7: 89581.71632 | N7: 122747.3157 | O7: 95627.29051 | P7: 324830.2671 | Q7: 345229.7118 | R7: 387961.9629 | S7: 342913.0088 | T7: 229450.2847 | U7: 298847.8178
A8: 2146 | B8: 2146 | C8: sp|Q9Z110|P5CS_MOUSE | D8: Delta-1-pyrroline-5-carboxylate synthase OS=Mus musculus GN=Aldh18a1 PE=1 SV=2 | G8: 2.116371533 | H8: 1.081592917 | I8: 0.0008466700885 | J8: 19681.29668 | K8: 25994.76527 | L8: 7435.182887 | M8: 10629.69664 | N8: 23160.03523 | O8: 14743.01889 | P8: 37412.07343 | Q8: 29123.03087 | R8: 39174.7869 | S8: 42455.44228 | T8: 26068.46216 | U8: 40882.66314
A9: 2034 | B9: 2034 | C9: sp|P17665|COX7C_MOUSE | D9: Cytochrome c oxidase subunit 7C, mitochondrial OS=Mus musculus GN=Cox7c PE=1 SV=1 | G9: 2.105638363 | H9: 1.074257679 | I9: 0.000920848137 | J9: 271138.4721 | K9: 298501.4673 | L9: 291393.8649 | M9: 260178.4717 | N9: 261196.3272 | O9: 260101.848 | P9: 621622.075 | Q9: 667513.398 | R9: 744262.8568 | S9: 666792.7994 | T9: 350417.4564 | U9: 407924.4315
A10: 2357 | B10: 2357 | C10: sp|P68372|TBB4B_MOUSE | D10: Tubulin beta-4B chain OS=Mus musculus GN=Tubb4b PE=1 SV=1 | G10: 0.1029177517 | H10: -3.280436249 | I10: 0.0009432344858 | J10: 34487.6355 | K10: 3931.850603 | L10: 37251.40389 | M10: 42763.91929 | N10: 45808.07189 | O10: 28554.68687 | P10: 2484.702412 | Q10: 2077.992157 | R10: 6627.30864 | S10: 5572.404433 | T10: 2196.808338 | U10: 883.0762482
A11: 114 | B11: 114 | C11: sp|P08551|NFL_MOUSE | D11: Neurofilament light polypeptide OS=Mus musculus GN=Nefl PE=1 SV=5 | G11: 2.37059281 | H11: 1.245247877 | I11: 0.00133694112 | J11: 883369.4823 | K11: 933382.2786 | L11: 295956.7526 | M11: 489596.6706 | N11: 592900.4336 | O11: 518154.956 | P11: 1178165.77 | Q11: 1112975.471 | R11: 1299500.679 | S11: 1830390.738 | T11: 1275222.083 | U11: 2106611.137
A12: 1142 | B12: 1142 | C12: sp|Q8CGP2|H2B1P_MOUSE | D12: Histone H2B type 1-P OS=Mus musculus GN=Hist1h2bp PE=1 SV=3 | G12: 0.558166365 | H12: -0.8412329044 | I12: 0.001356115323 | J12: 308698.783 | K12: 257135.4592 | L12: 252519.8309 | M12: 366508.5315 | N12: 194354.9132 | O12: 222932.2376 | P12: 134702.79 | Q12: 155605.8242 | R12: 182446.1993 | S12: 150505.6313 | T12: 115910.7558 | U12: 155094.9046
A13: 2423 | B13: 2423 | C13: sp|Q8BTM8|FLNA_MOUSE | D13: Filamin-A OS=Mus musculus GN=Flna PE=1 SV=5 | G13: 1.784352689 | H13: 0.8354008016 | I13: 0.001411218959 | J13: 761054.8432 | K13: 787040.7183 | L13: 482447.342 | M13: 618024.9383 | N13: 547521.5832 | O13: 910049.873 | P13: 1518819.756 | Q13: 1391327.837 | R13: 854078.2963 | S13: 1382532.317 | T13: 1020094.413 | U13: 1159948.079
A14: 1528 | B14: 1528 | C14: sp|P99024|TBB5_MOUSE | D14: Tubulin beta-5 chain OS=Mus musculus GN=Tubb5 PE=1 SV=1 | G14: 0.1549869237 | H14: -2.689781595 | I14: 0.001675936316 | J14: 73021.70726 | K14: 5729.957939 | L14: 58639.00234 | M14: 72723.50829 | N14: 82393.96755 | O14: 53407.74802 | P14: 4888.196169 | Q14: 4283.705761 | R14: 7723.526185 | S14: 5768.656774 | T14: 17347.66225 | U14: 13600.69272
A15: 2341 | B15: 2341 | C15: sp|Q8BMJ3|IF1AX_MOUSE | D15: Eukaryotic translation initiation factor 1A, X-chromosomal OS=Mus musculus GN=Eif1ax PE=2 SV=3 | G15: 0.5606990644 | H15: -0.8347014324 | I15: 0.0025528246 | J15: 25915.6744 | K15: 27918.2052 | L15: 41880.44068 | M15: 35807.20117 | N15: 23084.45149 | O15: 34132.61394 | P15: 16355.75632 | Q15: 15571.90728 | R15: 13274.94338 | S15: 13571.88472 | T15: 22935.573 | U15: 24115.48439
A16: 1537 | B16: 1537 | C16: sp|Q5M8N4|D39U1_MOUSE | D16: Epimerase family protein SDR39U1 OS=Mus musculus GN=Sdr39u1 PE=1 SV=1 | G16: 1.788540491 | H16: 0.8387827802 | I16: 0.002729359492 | J16: 77394.91765 | K16: 76358.89676 | L16: 27456.92287 | M16: 45386.66446 | N16: 97181.14931 | O16: 49916.69625 | P16: 135235.3145 | Q16: 119850.2476 | R16: 115050.3704 | S16: 112432.4293 | T16: 91631.48938 | U16: 94169.22995
A17: 469 | B17: 469 | C17: sp|Q99LC3|NDUAA_MOUSE | D17: NADH dehydrogenase [ubiquinone] 1 alpha subcomplex subunit 10, mitochondrial OS=Mus musculus GN=Ndufa10 PE=1 SV=1 | G17: 1.809583797 | H17: 0.8556579163 | I17: 0.003170172332 | J17: 457640.729 | K17: 611846.0116 | L17: 310742.548 | M17: 378886.1378 | N17: 570669.3762 | O17: 464691.4593 | P17: 1076314.83 | Q17: 932738.1423 | R17: 1063913.613 | S17: 745640.0266 | T17: 646870.9049 | U17: 591361.4461
A18: 243 | B18: 243 | C18: sp|Q02248|CTNB1_MOUSE | D18: Catenin beta-1 OS=Mus musculus GN=Ctnnb1 PE=1 SV=1 | G18: 1.777493168 | H18: 0.8298440149 | I18: 0.003649590778 | J18: 158703.9296 | K18: 209407.719 | L18: 136891.6147 | M18: 131083.9333 | N18: 270022.5625 | O18: 148861.6563 | P18: 368760.8516 | Q18: 358698.8984 | R18: 343170.895 | S18: 359954.2663 | T18: 215044.8598 | U18: 229574.7126
A19: 2115 | B19: 2115 | C19: sp|Q9CYN9|RENR_MOUSE | D19: Renin receptor OS=Mus musculus GN=Atp6ap2 PE=1 SV=2 | G19: 1.900645851 | H19: 0.9264897387 | I19: 0.004190805673 | J19: 23998.73374 | K19: 16567.14962 | L19: 32425.92857 | M19: 20103.94383 | N19: 26346.31276 | O19: 18191.62384 | P19: 50733.34759 | Q19: 54921.07232 | R19: 50094.41687 | S19: 50286.19477 | T19: 28485.65617 | U19: 27072.21869
A20: 1556 | B20: 1556 | C20: sp|Q99L45|IF2B_MOUSE | D20: Eukaryotic translation initiation factor 2 subunit 2 OS=Mus musculus GN=Eif2s2 PE=1 SV=1 | G20: 0.3892248097 | H20: -1.361324423 | I20: 0.004223154714 | J20: 51897.89733 | K20: 49959.87093 | L20: 80628.16246 | M20: 72934.14899 | N20: 67036.90577 | O20: 74810.31569 | P20: 20158.02103 | Q20: 13043.88296 | R20: 7487.947231 | S20: 3073.646248 | T20: 52492.25376 | U20: 58370.53846
A21: 307 | B21: 307 | C21: sp|P09405|NUCL_MOUSE | D21: Nucleolin OS=Mus musculus GN=Ncl PE=1 SV=2 | G21: 0.4363932732 | H21: -1.196299232 | I21: 0.004261653066 | J21: 914068.3001 | K21: 787707.8603 | L21: 1493629.639 | M21: 1447287.885 | N21: 891638.7875 | O21: 1189697.872 | P21: 249975.8279 | Q21: 384867.6255 | R21: 280816.4975 | S21: 319797.8508 | T21: 968787.3759 | U21: 730076.4333
A22: 1771 | B22: 1771 | C22: sp|Q91ZR1|RAB4B_MOUSE | D22: Ras-related protein Rab-4B OS=Mus musculus GN=Rab4b PE=1 SV=2 | G22: 1.929961143 | H22: 0.9485718013 | I22: 0.004300563958 | J22: 33244.72804 | K22: 51271.13393 | L22: 12579.49001 | M22: 19038.84929 | N22: 31018.78808 | O22: 26810.48708 | P22: 60829.61691 | Q22: 59171.33905 | R22: 70009.98889 | S22: 63246.7248 | T22: 39269.00974 | U22: 43216.07045
A23: 912 | B23: 912 | C23: sp|Q78ZA7|NP1L4_MOUSE | D23: Nucleosome assembly protein 1-like 4 OS=Mus musculus GN=Nap1l4 PE=1 SV=1 | G23: 0.4240584115 | H23: -1.237665094 | I23: 0.005057202927 | J23: 209616.356 | K23: 254702.2554 | L23: 392601.0865 | M23: 335837.9031 | N23: 206596.6012 | O23: 284149.2048 | P23: 113746.5994 | Q23: 72186.40952 | R23: 39255.96513 | S23: 58751.35365 | T23: 259064.8 | U23: 170898.6528
A24: 1284 | B24: 1284 | C24: sp|Q9CPQ1|COX6C_MOUSE | D24: Cytochrome c oxidase subunit 6C OS=Mus musculus GN=Cox6c PE=1 SV=3 | G24: 2.26834668 | H24: 1.18164115 | I24: 0.005685617037 | J24: 431182.8957 | K24: 971897.6496 | L24: 338530.126 | M24: 501346.6574 | N24: 451662.5999 | O24: 467535.6336 | P24: 1412064.977 | Q24: 1423108.551 | R24: 1638208.235 | S24: 1326247.153 | T24: 618151.0788 | U24: 755085.0769
A25: 827 | B25: 827 | C25: sp|O35381|AN32A_MOUSE | D25: Acidic leucine-rich nuclear phosphoprotein 32 family member A OS=Mus musculus GN=Anp32a PE=1 SV=1 | G25: 0.3026703606 | H25: -1.724180691 | I25: 0.006756610273 | J25: 51498.65972 | K25: 45661.84958 | L25: 112761.2178 | M25: 80478.66548 | N25: 54516.42795 | O25: 59072.59259 | P25: 12766.81677 | Q25: 5471.21977 | R25: 3961.273093 | S25: 2163.584377 | T25: 51459.45688 | U25: 46453.27045
A26: 1553 | B26: 1553 | C26: sp|Q9JJF0|NP1L5_MOUSE | D26: Nucleosome assembly protein 1-like 5 OS=Mus musculus GN=Nap1l5 PE=1 SV=1 | G26: 0.4128551812 | H26: -1.276292284 | I26: 0.006911012778 | J26: 59837.25926 | K26: 48457.57819 | L26: 113634.1426 | M26: 78771.67971 | N26: 44501.44742 | O26: 85218.51047 | P26: 25002.96076 | Q26: 22875.00759 | R26: 13349.49721 | S26: 18352.14184 | T26: 51389.14692 | U26: 46732.6278
A27: 2097 | B27: 2097 | C27: sp|P23927|CRYAB_MOUSE | D27: Alpha-crystallin B chain OS=Mus musculus GN=Cryab PE=1 SV=2 | G27: 1.854444736 | H27: 0.890987275 | I27: 0.007003120547 | J27: 57684.10441 | K27: 70491.74722 | L27: 45920.0757 | M27: 57063.30307 | N27: 75091.61005 | O27: 16669.53046 | P27: 101482.8267 | Q27: 59421.46574 | R27: 141188.9119 | S27: 98452.73032 | T27: 100869.2149 | U27: 97422.83241
A28: 1566 | B28: 1566 | C28: sp|Q6ZWN5|RS9_MOUSE | D28: 40S ribosomal protein S9 OS=Mus musculus GN=Rps9 PE=1 SV=3 | G28: 2.36999538 | H28: 1.244884247 | I28: 0.007090029905 | J28: 74782.16863 | K28: 121243.6489 | L28: 35179.28113 | M28: 64571.66387 | N28: 75880.87566 | O28: 51024.45808 | P28: 263621.1695 | Q28: 172005.3177 | R28: 201983.6625 | S28: 160202.7162 | T28: 77534.46645 | U28: 126407.2831
A29: 1978 | B29: 1978 | C29: sp|Q8VE70|PDC10_MOUSE | D29: Programmed cell death protein 10 OS=Mus musculus GN=Pdcd10 PE=1 SV=1 | G29: 0.5245279415 | H29: -0.930908468 | I29: 0.007314858726 | J29: 37369.18899 | K29: 34045.19288 | L29: 60442.92523 | M29: 59776.57224 | N29: 27389.13763 | O29: 49034.83479 | P29: 20391.12135 | Q29: 12825.97434 | R29: 26505.16465 | S29: 20037.73455 | T29: 29413.82929 | U29: 31430.00901
A30: 2080 | B30: 2080 | C30: sp|Q59J78|MIMIT_MOUSE | D30: Mimitin, mitochondrial OS=Mus musculus GN=Ndufaf2 PE=1 SV=1 | G30: 0.5606961792 | H30: -0.8347088562 | I30: 0.007566665419 | J30: 66604.25474 | K30: 66968.33376 | L30: 125042.0982 | M30: 101804.8516 | N30: 64764.07689 | O30: 96191.7626 | P30: 34307.79758 | Q30: 50827.80451 | R30: 57149.65904 | S30: 33771.86923 | T30: 67791.92807 | U30: 48484.1238
A31: 891 | B31: 891 | C31: sp|P25444|RS2_MOUSE | D31: 40S ribosomal protein S2 OS=Mus musculus GN=Rps2 PE=1 SV=3 | G31: 1.983650908 | H31: 0.9881581563 | I31: 0.008021719175 | J31: 209374.9575 | K31: 294544.4151 | L31: 88272.02839 | M31: 146424.1146 | N31: 208713.0458 | O31: 160092.2973 | P31: 479889.1188 | Q31: 399674.854 | R31: 434372.9184 | S31: 432186.6604 | T31: 183674.8715 | U31: 266937.9692
A32: 1137 | B32: 1137 | C32: sp|P41216|ACSL1_MOUSE | D32: Long-chain-fatty-acid--CoA ligase 1 OS=Mus musculus GN=Acsl1 PE=1 SV=2 | G32: 1.971104825 | H32: 0.9790045023 | I32: 0.008223018578 | J32: 517534.3116 | K32: 1211614.4 | L32: 175484.2836 | M32: 272583.6646 | N32: 484591.8409 | O32: 577569.848 | P32: 1137712.777 | Q32: 964619.5746 | R32: 1229025.741 | S32: 1130128.512 | T32: 827493.0272 | U32: 1096174.663
A33: 2250 | B33: 2250 | C33: sp|Q8BGX2|CS052_MOUSE | D33: Uncharacterized protein C19orf52 homolog OS=Mus musculus PE=1 SV=1 | G33: 1.798952263 | H33: 0.8471569037 | I33: 0.008243159043 | J33: 45762.7824 | K33: 42059.43916 | L33: 55420.98446 | M33: 16863.96164 | N33: 47015.1282 | O33: 20860.11846 | P33: 73652.67555 | Q33: 69977.31264 | R33: 93708.81829 | S33: 64036.85758 | T33: 42548.47127 | U33: 66205.34484
A34: 2302 | B34: 2302 | C34: sp|Q9EST5|AN32B_MOUSE | D34: Acidic leucine-rich nuclear phosphoprotein 32 family member B OS=Mus musculus GN=Anp32b PE=1 SV=1 | G34: 0.534454119 | H34: -0.9038619918 | I34: 0.008531500949 | J34: 40517.28523 | K34: 36832.41862 | L34: 34964.37726 | M34: 56378.29548 | N34: 32693.12595 | O34: 46146.0278 | P34: 18649.17803 | Q34: 8728.039007 | R34: 17233.96386 | S34: 15589.8819 | T34: 38048.02293 | U34: 34045.16025
A35: 695 | B35: 695 | C35: sp|P28656|NP1L1_MOUSE | D35: Nucleosome assembly protein 1-like 1 OS=Mus musculus GN=Nap1l1 PE=1 SV=2 | G35: =AVERAGE(P35:U35)/AVERAGE(J35:O35) -> 0.400219781 | H35: =LOG(G35,2) -> -1.32113562 | I35: =_xlfn.T.TEST(P35:U35,J35:O35,2,2) -> 0.009136527188 | J35: 207968.8286 | K35: 202942.5451 | L35: 454384.2604 | M35: 397682.0738 | N35: 283729.0804 | O35: 347271.8749 | P35: 49986.4895 | Q35: 57274.88929 | R35: 72640.43325 | S35: 89885.94955 | T35: 310100.0883 | U35: 178119.876
A36: 457 | B36: 457 | C36: sp|P68040|RACK1_MOUSE | D36: Receptor of activated protein C kinase 1 OS=Mus musculus GN=Rack1 PE=1 SV=3 | G36: 1.95369657 | H36: 0.966206419 | I36: 0.009411659898 | J36: 241441.0177 | K36: 378800.2963 | L36: 126309.9354 | M36: 199396.7477 | N36: 263414.802 | O36: 204020.8843 | P36: 584777.6242 | Q36: 509500.6683 | R36: 556133.8254 | S36: 565762.7242 | T36: 232998.3266 | U36: 312149.6865
A37: 1645 | B37: 1645 | C37: sp|Q91YS8|KCC1A_MOUSE | D37: Calcium/calmodulin-dependent protein kinase type 1 OS=Mus musculus GN=Camk1 PE=1 SV=1 | G37: 0.4167078933 | H37: -1.262891667 | I37: 0.00947989779 | J37: 34025.35916 | K37: 43599.46506 | L37: 34424.66335 | M37: 35316.41933 | N37: 31140.15778 | O37: 78808.37975 | P37: 10846.26221 | Q37: 17492.45278 | R37: 25898.44465 | S37: 10529.23472 | T37: 19538.47055 | U37: 22920.09514
A38: 2451 | B38: 2451 | C38: sp|Q6GQS1|SCMC3_MOUSE | D38: Calcium-binding mitochondrial carrier protein SCaMC-3 OS=Mus musculus GN=Slc25a23 PE=1 SV=1 | G38: 4.261810079 | H38: 2.091466303 | I38: 0.00981606477 | J38: 2035.100076 | K38: 8071.707516 | L38: 54197.38433 | M38: 1257.676863 | N38: 175998.9932 | O38: 12353.77404 | P38: 233739.5538 | Q38: 194191.8574 | R38: 235397.3813 | S38: 215238.8894 | T38: 19643.31245 | U38: 183924.9605
A39: 2099 | B39: 2099 | C39: sp|Q71M36|CSPG5_MOUSE | D39: Chondroitin sulfate proteoglycan 5 OS=Mus musculus GN=Cspg5 PE=1 SV=2 | G39: 0.5004836118 | H39: -0.9986052656 | I39: 0.01060654249 | J39: 74121.12323 | K39: 52752.84923 | L39: 149877.5305 | M39: 111935.2008 | N39: 77675.87956 | O39: 88412.31604 | P39: 35638.11782 | Q39: 51751.2677 | R39: 31931.44508 | S39: 44428.72222 | T39: 64323.69421 | U39: 49582.49831
A40: 1877 | B40: 1877 | C40: sp|P67984|RL22_MOUSE | D40: 60S ribosomal protein L22 OS=Mus musculus GN=Rpl22 PE=1 SV=2 | G40: 0.5158011462 | H40: -0.9551131158 | I40: 0.01096117862 | J40: 100381.0578 | K40: 108876.8968 | L40: 53492.89222 | M40: 82838.50628 | N40: 88850.74788 | O40: 56409.97936 | P40: 37477.25438 | Q40: 32071.79251 | R40: 29915.56417 | S40: 19430.41149 | T40: 56268.18883 | U40: 78017.82269
A41: 2167 | B41: 2167 | C41: sp|P56382|ATP5E_MOUSE | D41: ATP synthase subunit epsilon, mitochondrial OS=Mus musculus GN=Atp5e PE=1 SV=2 | G41: 1.849473793 | H41: 0.887114858 | I41: 0.01173276812 | J41: 325505.0117 | K41: 523087.2659 | L41: 167045.8761 | M41: 233529.0023 | N41: 342717.9318 | O41: 283138.2427 | P41: 676368.1365 | Q41: 623206.3493 | R41: 723995.3748 | S41: 720646.1669 | T41: 323236.0605 | U41: 400354.4239
A42: 2183 | B42: 2183 | C42: sp|Q5XG69|F169A_MOUSE | D42: Soluble lamin-associated protein of 75 kDa OS=Mus musculus GN=Fam169a PE=1 SV=3 | G42: 0.4934355799 | H42: -1.019066348 | I42: 0.01269461069 | J42: 21811.57557 | K42: 17236.06208 | L42: 22655.76922 | M42: 18444.48928 | N42: 22279.20614 | O42: 24444.73043 | P42: 10156.38425 | Q42: 8093.445339 | R42: 2278.207203 | S42: 2000.457618 | T42: 17801.45701 | U42: 22273.12492
A43: 2292 | B43: 2292 | C43: sp|Q8VE09|TT39C_MOUSE | D43: Tetratricopeptide repeat protein 39C OS=Mus musculus GN=Ttc39c PE=1 SV=2 | G43: 1.768146266 | H43: 0.8222376238 | I43: 0.0132823329 | J43: 19491.09845 | K43: 37647.66563 | L43: 8624.625645 | M43: 5584.222644 | N43: 27669.61668 | O43: 28499.678 | P43: 40548.79302 | Q43: 39506.57113 | R43: 36497.20472 | S43: 34241.9686 | T43: 44092.21831 | U43: 30581.78731
A44: 1336 | B44: 1336 | C44: sp|P59325|IF5_MOUSE | D44: Eukaryotic translation initiation factor 5 OS=Mus musculus GN=Eif5 PE=1 SV=1 | G44: 0.4339837299 | H44: -1.204287138 | I44: 0.01357448604 | J44: 181932.7924 | K44: 205781.2863 | L44: 317658.1294 | M44: 243794.0623 | N44: 184529.6075 | O44: 180878.7204 | P44: 49035.05333 | Q44: 37475.31805 | R44: 32942.08577 | S44: 44605.82937 | T44: 233492.8456 | U44: 172952.8553
A45: 2232 | B45: 2232 | C45: sp|Q9D7S7|RL22L_MOUSE | D45: 60S ribosomal protein L22-like 1 OS=Mus musculus GN=Rpl22l1 PE=1 SV=1 | G45: 0.4417391638 | H45: -1.17873335 | I45: 0.0142999762 | J45: 44926.07603 | K45: 50038.32928 | L45: 21346.20684 | M45: 55903.86636 | N45: 43616.96962 | O45: 50296.31022 | P45: 10343.40124 | Q45: 10816.61475 | R45: 11105.03392 | S45: 3977.461284 | T45: 39464.54313 | U45: 41851.99911
A46: 2151 | B46: 2151 | C46: sp|Q9R0P4|SMAP_MOUSE | D46: Small acidic protein OS=Mus musculus GN=Smap PE=1 SV=1 | G46: 0.4405153177 | H46: -1.182735909 | I46: 0.01438240596 | J46: 14194.54842 | K46: 12403.47206 | L46: 26338.37985 | M46: 15392.13231 | N46: 9597.198572 | O46: 17904.42209 | P46: 1913.335511 | Q46: 13916.22783 | R46: 4080.939528 | S46: 5052.995738 | T46: 11342.30088 | U46: 5908.850939
A47: 1763 | B47: 1763 | C47: sp|Q6ZWY8|TYB10_MOUSE | D47: Thymosin beta-10 OS=Mus musculus GN=Tmsb10 PE=1 SV=3 | G47: 0.5210202404 | H47: -0.940588676 | I47: 0.01446849857 | J47: 33844.94585 | K47: 32456.10926 | L47: 66772.38109 | M47: 78335.91948 | N47: 45922.11676 | O47: 69035.06226 | P47: 29663.08466 | Q47: 29546.31158 | R47: 22464.43704 | S47: 16674.38876 | T47: 27688.43638 | U47: 44006.91193
A48: 1258 | B48: 1258 | C48: sp|P14131|RS16_MOUSE | D48: 40S ribosomal protein S16 OS=Mus musculus GN=Rps16 PE=1 SV=4 | G48: 2.298312451 | H48: 1.200574943 | I48: 0.01468819508 | J48: 226141.2097 | K48: 256629.4982 | L48: 126139.4943 | M48: 163822.6499 | N48: 236025.3917 | O48: 213122.8344 | P48: 699983.032 | Q48: 533116.6078 | R48: 622066.6986 | S48: 539661.4764 | T48: 149784.4343 | U48: 263652.2469
A49: 1903 | B49: 1903 | C49: sp|P0DN34|NDUB1_MOUSE | D49: NADH dehydrogenase [ubiquinone] 1 beta subcomplex subunit 1 OS=Mus musculus GN=Ndufb1 PE=3 SV=1 | G49: 1.956658963 | H49: 0.9683923222 | I49: 0.01494844907 | J49: 76455.89353 | K49: 93903.76382 | L49: 85372.90706 | M49: 124651.2135 | N49: 60143.45618 | O49: 124651.0445 | P49: 166009.3737 | Q49: 295002.2805 | R49: 210186.6783 | S49: 125303.0459 | T49: 211272.0794 | U49: 98087.68636
A50: 1800 | B50: 1800 | C50: sp|Q99KN9|EPN4_MOUSE | D50: Clathrin interactor 1 OS=Mus musculus GN=Clint1 PE=1 SV=2 | G50: 0.4914089735 | H50: -1.025003892 | I50: 0.01496406364 | J50: 81503.39559 | K50: 95915.26101 | L50: 180796.2957 | M50: 137831.5851 | N50: 69496.08416 | O50: 109700.9039 | P50: 36204.48044 | Q50: 66157.84227 | R50: 35033.60816 | S50: 48438.42467 | T50: 100007.0766 | U50: 45979.29556
A51: 1013 | B51: 1013 | C51: sp|Q3THE2|ML12B_MOUSE | D51: Myosin regulatory light chain 12B OS=Mus musculus GN=Myl12b PE=1 SV=2 | G51: 0.5548441754 | H51: -0.8498454386 | I51: 0.01635194495 | J51: 264351.8983 | K51: 222084.1432 | L51: 498925.8694 | M51: 392358.9086 | N51: 220057.123 | O51: 337319.4246 | P51: 148028.6665 | Q51: 201552.1295 | R51: 126713.9059 | S51: 135197.9236 | T51: 268228.8086 | U51: 193956.0689
A52: 1926 | B52: 1926 | C52: sp|P62855|RS26_MOUSE | D52: 40S ribosomal protein S26 OS=Mus musculus GN=Rps26 PE=1 SV=3 | G52: 1.91383232 | H52: 0.9364644341 | I52: 0.01732330311 | J52: 76660.13909 | K52: 77909.3216 | L52: 51798.32297 | M52: 74620.1566 | N52: 80854.12957 | O52: 89415.27353 | P52: 188983.8831 | Q52: 162944.3918 | R52: 193039.8835 | S52: 176266.4442 | T52: 59868.61754 | U52: 82527.66825
A53: 808 | B53: 808 | C53: sp|Q9CQI6|COTL1_MOUSE | D53: Coactosin-like protein OS=Mus musculus GN=Cotl1 PE=1 SV=3 | G53: 2.248095883 | H53: 1.168703569 | I53: 0.0181327339 | J53: 134586.9352 | K53: 521921.9342 | L53: 151494.2525 | M53: 182953.3969 | N53: 124052.9405 | O53: 180062.7575 | P53: 603067.6704 | Q53: 565395.306 | R53: 669383.1963 | S53: 549039.8236 | T53: 243803.0409 | U53: 280757.4812
A54: 1815 | B54: 1815 | C54: sp|O35382|EXOC4_MOUSE | D54: Exocyst complex component 4 OS=Mus musculus GN=Exoc4 PE=1 SV=2 | G54: 2.212789935 | H54: 1.145866499 | I54: 0.01848553943 | J54: 15212.89669 | K54: 17501.8176 | L54: 6403.394547 | M54: 964.1694265 | N54: 652.8033604 | O54: 2374.777501 | P54: 16560.78497 | Q54: 15253.77641 | R54: 15575.09144 | S54: 13839.46027 | T54: 18591.56547 | U54: 15572.38382
A55: 2049 | B55: 2049 | C55: sp|Q6PGL7|FAM21_MOUSE | D55: WASH complex subunit FAM21 OS=Mus musculus GN=Fam21 PE=1 SV=1 | G55: 0.5252647684 | H55: -0.9288832743 | I55: 0.01856475444 | J55: 13810.93557 | K55: 8673.689955 | L55: 27733.03944 | M55: 26762.71332 | N55: 15621.82323 | O55: 21024.90662 | P55: 6175.515966 | Q55: 9619.042141 | R55: 9464.56947 | S55: 12091.48372 | T55: 11142.6571 | U55: 11191.04826
A56: 1758 | B56: 1758 | C56: sp|P43274|H14_MOUSE | D56: Histone H1.4 OS=Mus musculus GN=Hist1h1e PE=1 SV=2 | G56: 0.4706543713 | H56: -1.087260101 | I56: 0.01927750776 | J56: 679118.8192 | K56: 432110.643 | L56: 1354213.122 | M56: 1064529.024 | N56: 498534.4559 | O56: 752383.2711 | P56: 285779.5774 | Q56: 323699.9657 | R56: 327597.2289 | S56: 269549.6832 | T56: 541878.9172 | U56: 501641.0916
A57: 2127 | B57: 2127 | C57: sp|Q9JL35|HMGN5_MOUSE | D57: High mobility group nucleosome-binding domain-containing protein 5 OS=Mus musculus GN=Hmgn5 PE=1 SV=2 | G57: 0.4306136971 | H57: -1.215533885 | I57: 0.0207431782 | J57: 13404.78261 | K57: 13590.0766 | L57: 34211.65457 | M57: 29512.6042 | N57: 9030.074937 | O57: 21755.7256 | P57: 8194.959917 | Q57: 7923.778494 | R57: 4680.683559 | S57: 9145.191839 | T57: 11745.23461 | U57: 10631.83376
A58: 1173 | B58: 1173 | C58: sp|O08795|GLU2B_MOUSE | D58: Glucosidase 2 subunit beta OS=Mus musculus GN=Prkcsh PE=1 SV=1 | G58: 0.5054486401 | H58: -0.9843635913 | I58: 0.02160025148 | J58: 178634.8918 | K58: 130192.313 | L58: 367504.6208 | M58: 277882.7458 | N58: 125627.2876 | O58: 248054.6085 | P58: 86046.67009 | Q58: 96413.75158 | R58: 94971.11985 | S58: 100149.6543 | T58: 158617.2973 | U58: 134984.9706
A59: 1708 | B59: 1708 | C59: sp|P62264|RS14_MOUSE | D59: 40S ribosomal protein S14 OS=Mus musculus GN=Rps14 PE=1 SV=3 | G59: 1.798701973 | H59: 0.8469561659 | I59: 0.02259374114 | J59: 98760.12452 | K59: 98229.02266 | L59: 26300.60928 | M59: 64762.66145 | N59: 97459.89044 | O59: 75551.34134 | P59: 168310.9672 | Q59: 148810.0683 | R59: 169523.9105 | S59: 181974.4842 | T59: 59011.71024 | U59: 101684.9558
A60: 1413 | B60: 1413 | C60: sp|P62301|RS13_MOUSE | D60: 40S ribosomal protein S13 OS=Mus musculus GN=Rps13 PE=1 SV=2 | G60: 2.121134122 | H60: 1.084835847 | I60: 0.02292153119 | J60: 134379.4586 | K60: 216554.7421 | L60: 85527.22796 | M60: 193422.5252 | N60: 123665.304 | O60: 181481.6867 | P60: 458621.4378 | Q60: 453746.3938 | R60: 440174.934 | S60: 345856.1312 | T60: 130015.5024 | U60: 154911.6422
A61: 2373 | B61: 2373 | C61: sp|P62267|RS23_MOUSE | D61: 40S ribosomal protein S23 OS=Mus musculus GN=Rps23 PE=1 SV=3 | G61: 1.940921704 | H61: 0.9567419218 | I61: 0.02321962406 | J61: 34865.26557 | K61: 38590.00166 | L61: 20094.52142 | M61: 32337.33119 | N61: 38362.39523 | O61: 34484.15211 | P61: 94437.63145 | Q61: 70109.77594 | R61: 86229.65334 | S61: 73943.15812 | T61: 26400.99018 | U61: 34605.27897
A62: 895 | B62: 895 | C62: sp|P12023|A4_MOUSE | D62: Amyloid beta A4 protein OS=Mus musculus GN=App PE=1 SV=3 | G62: 0.5145107888 | H62: -0.9587267656 | I62: 0.02470455497 | J62: 326718.0685 | K62: 277213.2755 | L62: 680593.7714 | M62: 540268.4315 | N62: 273106.9026 | O62: 432883.2031 | P62: 181763.6213 | Q62: 163813.1598 | R62: 148802.3656 | S62: 133931.6309 | T62: 374613.2106 | U62: 299191.505
A63: 737 | B63: 737 | C63: sp|P63158|HMGB1_MOUSE | D63: High mobility group protein B1 OS=Mus musculus GN=Hmgb1 PE=1 SV=2 | G63: 0.5295795806 | H63: -0.9170805988 | I63: 0.02591084669 | J63: 478143.0479 | K63: 409138.0722 | L63: 958229.3414 | M63: 789681.9087 | N63: 370714.8182 | O63: 677180.8734 | P63: 217398.0879 | Q63: 265939.6309 | R63: 242607.4159 | S63: 276805.2509 | T63: 585545.836 | U63: 362192.0093
A64: 1784 | B64: 1784 | C64: sp|P60867|RS20_MOUSE | D64: 40S ribosomal protein S20 OS=Mus musculus GN=Rps20 PE=1 SV=1 | G64: 1.891171089 | H64: 0.9192798856 | I64: 0.02592943176 | J64: 184885.7622 | K64: 296660.9823 | L64: 124644.2538 | M64: 167721.61 | N64: 195543.4406 | O64: 198291.3966 | P64: 473149.6339 | Q64: 411783.9595 | R64: 460431.7272 | S64: 502902.3628 | T64: 126511.085 | U64: 233631.4395
A65: 2223 | B65: 2223 | C65: sp|Q9D8W7|OCAD2_MOUSE | D65: OCIA domain-containing protein 2 OS=Mus musculus GN=Ociad2 PE=1 SV=1 | G65: 1.767338129 | H65: 0.8215780839 | I65: 0.02698168872 | J65: 15891.63848 | K65: 23892.20636 | L65: 438.7729807 | M65: 19186.83843 | N65: 24325.77343 | O65: 30872.76771 | P65: 31056.43036 | Q65: 48373.52236 | R65: 36392.07231 | S65: 26772.16324 | T65: 37348.97394 | U65: 22607.92143
A66: 1435 | B66: 1435 | C66: sp|P62748|HPCL1_MOUSE | D66: Hippocalcin-like protein 1 OS=Mus musculus GN=Hpcal1 PE=1 SV=2 | G66: 0.5441262127 | H66: -0.8779867647 | I66: 0.02835651737 | J66: 834248.4196 | K66: 841434.364 | L66: 1895390.793 | M66: 1399084.495 | N66: 653406.6884 | O66: 1295065.515 | P66: 465355.4563 | Q66: 634679.9553 | R66: 520080.3348 | S66: 474686.0764 | T66: 971244.7285 | U66: 698561.5369
A67: 1214 | B67: 1214 | C67: sp|Q9EQU5|SET_MOUSE | D67: Protein SET OS=Mus musculus GN=Set PE=1 SV=1 | G67: =AVERAGE(P67:U67)/AVERAGE(J67:O67) -> 0.2649274691 | H67: =LOG(G67,2) -> -1.916330657 | I67: =_xlfn.T.TEST(P67:U67,J67:O67,2,2) -> 0.02864365047 | J67: 434883.3362 | K67: 325847.6145 | L67: 1543152.693 | M67: 936511.3052 | N67: 295164.5088 | O67: 757135.358 | P67: 70405.2332 | Q67: 150363.4386 | R67: 72454.38577 | S67: 103965.628 | T67: 485800.0405 | U67: 254264.0473
A68: 2175 | B68: 2175 | C68: sp|P62281|RS11_MOUSE | D68: 40S ribosomal protein S11 OS=Mus musculus GN=Rps11 PE=1 SV=3 | G68: 2.04350156 | H68: 1.031043344 | I68: 0.03145011348 | J68: 21348.88562 | K68: 29318.66004 | L68: 11033.02138 | M68: 14002.88205 | N68: 22721.30743 | O68: 20914.62968 | P68: 61228.50135 | Q68: 44563.45893 | R68: 44622.98189 | S68: 57021.14356 | T68: 10293.548 | U68: 26140.5881
A69: 2398 | B69: 2398 | C69: sp|P58404|STRN4_MOUSE | D69: Striatin-4 OS=Mus musculus GN=Strn4 PE=1 SV=2 | G69: 0.5317473966 | H69: -0.91118703 | I69: 0.0321372691 | J69: 77345.58525 | K69: 20754.95776 | L69: 60604.33249 | M69: 70712.32727 | N69: 77338.36306 | O69: 73765.3972 | P69: 30576.29296 | Q69: 72616.56328 | R69: 28516.50863 | S69: 20989.21552 | T69: 20954.23457 | U69: 28688.2165
A70: 2388 | B70: 2388 | C70: sp|Q6NVE9|PPTC7_MOUSE | D70: Protein phosphatase PTC7 homolog OS=Mus musculus GN=Pptc7 PE=1 SV=1 | G70: 1.83072584 | H70: 0.8724157568 | I70: 0.03225346457 | J70: 1268.974552 | K70: 6709.478468 | L70: 5041.724874 | M70: 9363.717105 | N70: 8012.418762 | O70: 6560.482566 | P70: 17845.72113 | Q70: 11041.9649 | R70: 13786.20188 | S70: 10111.07612 | T70: 5502.037398 | U70: 9370.760576
A71: 716 | B71: 716 | C71: sp|P70663|SPRL1_MOUSE | D71: SPARC-like protein 1 OS=Mus musculus GN=Sparcl1 PE=1 SV=3 | G71: 0.4509270447 | H71: -1.149034056 | I71: 0.03333324501 | J71: 216931.2394 | K71: 179120.4391 | L71: 550770.3341 | M71: 424327.1652 | N71: 143102.8169 | O71: 339882.9656 | P71: 103814.5271 | Q71: 126070.9204 | R71: 65626.64916 | S71: 140771.3607 | T71: 233421.5963 | U71: 166374.5443
A72: 1302 | B72: 1302 | C72: sp|Q66JS6|EI3JB_MOUSE | D72: Eukaryotic translation initiation factor 3 subunit J-B OS=Mus musculus GN=Eif3j2 PE=1 SV=1 | G72: 0.5310766055 | H72: -0.9130081163 | I72: 0.03528197792 | J72: 145712.4998 | K72: 116144.9944 | L72: 351409.2245 | M72: 258381.3587 | N72: 130774.0609 | O72: 215177.6577 | P72: 86929.58806 | Q72: 100398.7767 | R72: 76247.62891 | S72: 98516.65107 | T72: 160570.7194 | U72: 123975.4023
A73: 2343 | B73: 2343 | C73: sp|F6ZDS4|TPR_MOUSE | D73: Nucleoprotein TPR OS=Mus musculus GN=Tpr PE=1 SV=1 | G73: 0.4438317951 | H73: -1.171915072 | I73: 0.03557965333 | J73: 9855.44158 | K73: 10295.57376 | L73: 11224.39316 | M73: 20300.00147 | N73: 4100.56971 | O73: 16170.22832 | P73: 1848.943858 | Q73: 6291.951953 | R73: 5753.17614 | S73: 12040.30597 | T73: 2523.196412 | U73: 3474.440316
A74: 1616 | B74: 1616 | C74: sp|P28184|MT3_MOUSE | D74: Metallothionein-3 OS=Mus musculus GN=Mt3 PE=1 SV=1 | G74: 0.4316881291 | H74: -1.211938674 | I74: 0.03671782128 | J74: 190658.2338 | K74: 113438.3 | L74: 531541.3155 | M74: 371577.0495 | N74: 168408.9833 | O74: 322941.3039 | P74: 83753.0237 | Q74: 128126.083 | R74: 67928.54599 | S74: 100398.0472 | T74: 202009.4926 | U74: 151035.2349
A75: 2114 | B75: 2114 | C75: sp|P56565|S10A1_MOUSE | D75: Protein S100-A1 OS=Mus musculus GN=S100a1 PE=1 SV=2 | G75: 0.3805185065 | H75: -1.393961474 | I75: 0.0387943747 | J75: 88560.80423 | K75: 98788.793 | L75: 315944.5581 | M75: 200835.8609 | N75: 76495.09281 | O75: 157680.6699 | P75: 41681.17436 | Q75: 44806.61823 | R75: 33595.24661 | S75: 33391.81919 | T75: 137997.0272 | U75: 65570.82803
A76: 2336 | B76: 2336 | C76: sp|Q80ST9|LCA5_MOUSE | D76: Lebercilin OS=Mus musculus GN=Lca5 PE=1 SV=1 | G76: 0.2330079597 | H76: -2.101548856 | I76: 0.04107577934 | J76: 433241.8787 | K76: 47414.83827 | L76: 132749.3125 | M76: 72156.78723 | N76: 526111.1775 | O76: 289021.9107 | P76: 57326.42664 | Q76: 50505.79486 | R76: 43035.99634 | S76: 28344.73244 | T76: 68094.9628 | U76: 102366.1779
A77: 443 | B77: 443 | C77: sp|P62761|VISL1_MOUSE | D77: Visinin-like protein 1 OS=Mus musculus GN=Vsnl1 PE=1 SV=2 | G77: 0.4826189945 | H77: -1.051043398 | I77: 0.04449106348 | J77: 3445287.988 | K77: 2817844.989 | L77: 9713761.673 | M77: 6618648.78 | N77: 2818443.001 | O77: 5595591.447 | P77: 1714973.641 | Q77: 2391108.895 | R77: 2214822.4 | S77: 1939116.793 | T77: 4133317.534 | U77: 2572472.034
A78: 968 | B78: 968 | C78: sp|P51859|HDGF_MOUSE | D78: Hepatoma-derived growth factor OS=Mus musculus GN=Hdgf PE=1 SV=2 | G78: 0.5563442535 | H78: -0.845950228 | I78: 0.04460862892 | J78: 168550.6419 | K78: 86241.05217 | L78: 317951.8508 | M78: 225592.9 | N78: 103016.229 | O78: 203037.9073 | P78: 83661.61844 | Q78: 95979.62797 | R78: 101061.4287 | S78: 96302.7386 | T78: 136317.7496 | U78: 101098.1901
A79: 1082 | B79: 1082 | C79: sp|P26350|PTMA_MOUSE | D79: Prothymosin alpha OS=Mus musculus GN=Ptma PE=1 SV=2 | G79: 0.3572056939 | H79: -1.485173018 | I79: 0.04754513359 | J79: 171054.9535 | K79: 118512.2923 | L79: 598493.735 | M79: 450159.6488 | N79: 110467.9953 | O79: 332329.3369 | P79: 54373.68428 | Q79: 107201.5511 | R79: 62961.26868 | S79: 86465.1069 | T79: 211722.376 | U79: 113465.77
A80: 93 | B80: 93 | C80: sp|P03995|GFAP_MOUSE | D80: Glial fibrillary acidic protein OS=Mus musculus GN=Gfap PE=1 SV=4 | G80: 2.010097541 | H80: 1.007265511 | I80: 0.04822365975 | J80: 2320834.744 | K80: 2850093.926 | L80: 812538.1187 | M80: 2437062.355 | N80: 1755992.843 | O80: 1442742.641 | P80: 4694539.146 | Q80: 2402146.227 | R80: 2113088.429 | S80: 7460400.875 | T80: 2819463.575 | U80: 3866217.005
A81: 1221 | B81: 1221 | C81: sp|Q9D1X0|NOL3_MOUSE | D81: Nucleolar protein 3 OS=Mus musculus GN=Nol3 PE=1 SV=1 | G81: 0.4100306577 | H81: -1.286196312 | I81: 0.05005510123 | J81: 96609.19296 | K81: 98153.74225 | L81: 356652.4339 | M81: 262095.8025 | N81: 83431.49861 | O81: 244222.3946 | P81: 40311.22179 | Q81: 81722.25964 | R81: 74823.24484 | S81: 46133.59027 | T81: 171060.2735 | U81: 53862.07201
A82: 1865 | B82: 1865 | C82: sp|Q80XU3|NUCKS_MOUSE | D82: Nuclear ubiquitous casein and cyclin-dependent kinase substrate 1 OS=Mus musculus GN=Nucks1 PE=1 SV=1 | G82: 0.2966888689 | H82: -1.752977294 | I82: 0.05256569609 | J82: 16390.10072 | K82: 9570.243423 | L82: 61861.00906 | M82: 40484.10854 | N82: 5532.372793 | O82: 32573.98356 | P82: 7991.25789 | Q82: 7630.271599 | R82: 4244.852241 | S82: 6731.455727 | T82: 14617.77055 | U82: 8156.926083
A83: 2267 | B83: 2267 | C83: sp|Q5SXY1|CYTSB_MOUSE | D83: Cytospin-B OS=Mus musculus GN=Specc1 PE=1 SV=2 | G83: 1.778583437 | H83: 0.8307286557 | I83: 0.0539970281 | J83: 8396.687128 | K83: 10634.33419 | L83: 6403.668365 | M83: 679.6003336 | N83: 8457.934296 | O83: 10206.5278 | P83: 17496.88633 | Q83: 17002.55891 | R83: 15700.65388 | S83: 7463.099581 | T83: 16655.43421 | U83: 5324.113933
A84: 2380 | B84: 2380 | C84: sp|Q3URU2|PEG3_MOUSE | D84: Paternally-expressed gene 3 protein OS=Mus musculus GN=Peg3 PE=1 SV=1 | G84: 0.4642810838 | H84: -1.106929593 | I84: 0.05419772397 | J84: 22331.42763 | K84: 15214.33365 | L84: 62414.44876 | M84: 33869.70766 | N84: 19229.36777 | O84: 31023.05431 | P84: 11980.28318 | Q84: 16113.79779 | R84: 9102.995759 | S84: 17995.3904 | T84: 25046.5965 | U84: 5226.88458
A85: 2263 | B85: 2263 | C85: sp|Q8R3Q6|CCD58_MOUSE | D85: Coiled-coil domain-containing protein 58 OS=Mus musculus GN=Ccdc58 PE=1 SV=1 | G85: 0.5473745748 | H85: -0.8693996709 | I85: 0.05477866076 | J85: 11575.96132 | K85: 9421.484481 | L85: 30820.94991 | M85: 22442.10878 | N85: 9652.367743 | O85: 19650.17119 | P85: 6815.095698 | Q85: 11926.01891 | R85: 10254.02691 | S85: 8364.687767 | T85: 11124.49171 | U85: 8203.455867
A86: 1441 | B86: 1441 | C86: sp|Q9CXI5|MANF_MOUSE | D86: Mesencephalic astrocyte-derived neurotrophic factor OS=Mus musculus GN=Manf PE=1 SV=1 | G86: 0.4642909703 | H86: -1.106898872 | I86: 0.05502242787 | J86: 155358.3994 | K86: 132718.1575 | L86: 442478.4459 | M86: 332110.2649 | N86: 89314.46411 | O86: 275634.4744 | P86: 102891.8013 | Q86: 128103.3373 | R86: 85893.47084 | S86: 122967.0759 | T86: 182626.1922 | U86: 40346.50754
A87: 1972 | B87: 1972 | C87: sp|P62311|LSM3_MOUSE | D87: U6 snRNA-associated Sm-like protein LSm3 OS=Mus musculus GN=Lsm3 PE=1 SV=2 | G87: 0.5676260653 | H87: -0.8169872557 | I87: 0.05999706552 | J87: 127825.162 | K87: 97595.19373 | L87: 321609.0691 | M87: 238719.0346 | N87: 105329.023 | O87: 207193.9666 | P87: 75437.19731 | Q87: 118758.5216 | R87: 100574.795 | S87: 106908.7966 | T87: 137119.4966 | U87: 84608.69409
A88: 2379 | B88: 2379 | C88: sp|Q99JP4|CDC26_MOUSE | D88: Anaphase-promoting complex subunit CDC26 OS=Mus musculus GN=Cdc26 PE=1 SV=1 | G88: 0.4803390351 | H88: -1.05787504 | I88: 0.06275798291 | J88: 35080.08725 | K88: 19695.42075 | L88: 107738.5512 | M88: 83965.46292 | N88: 36818.58634 | O88: 62158.21243 | P88: 15800.71631 | Q88: 37380.39129 | R88: 26338.48577 | S88: 26717.65235 | T88: 41570.42671 | U88: 18128.4834
A89: 2018 | B89: 2018 | C89: sp|P97822|AN32E_MOUSE | D89: Acidic leucine-rich nuclear phosphoprotein 32 family member E OS=Mus musculus GN=Anp32e PE=1 SV=2 | G89: 0.4436433523 | H89: -1.172527744 | I89: 0.06621164491 | J89: 43767.77634 | K89: 52913.56328 | L89: 140511.1205 | M89: 110848.2999 | N89: 38884.06135 | O89: 112082.5745 | P89: 13690.3904 | Q89: 29639.92593 | R89: 17087.38373 | S89: 27522.17066 | T89: 105080.1772 | U89: 28361.26606
A90: 1596 | B90: 1596 | C90: sp|Q64288|OMP_MOUSE | D90: Olfactory marker protein OS=Mus musculus GN=Omp PE=1 SV=3 | G90: 0.2390935927 | H90: -2.064352626 | I90: 0.06653801548 | J90: 189682.682 | K90: 87732.5068 | L90: 149149.0191 | M90: 40080.65922 | N90: 13924.78174 | O90: 12899.83239 | P90: 16760.66337 | Q90: 13168.98773 | R90: 35965.70121 | S90: 24729.84251 | T90: 15400.09348 | U90: 11960.10287
A91: 1747 | B91: 1747 | C91: sp|P21460|CYTC_MOUSE | D91: Cystatin-C OS=Mus musculus GN=Cst3 PE=1 SV=2 | G91: 0.501579478 | H91: -0.995449773 | I91: 0.06690802787 | J91: 91657.40901 | K91: 83636.8773 | L91: 313392.4678 | M91: 231380.4199 | N91: 76274.01456 | O91: 198984.8421 | P91: 66731.42123 | Q91: 94228.84887 | R91: 74770.2719 | S91: 83019.14426 | T91: 106630.0663 | U91: 73855.35839
A92: 865 | B92: 865 | C92: sp|Q63810|CANB1_MOUSE | D92: Calcineurin subunit B type 1 OS=Mus musculus GN=Ppp3r1 PE=1 SV=3 | G92: 0.4768933129 | H92: -1.068261542 | I92: 0.06807250056 | J92: 646258.3271 | K92: 545623.0853 | L92: 2085506.461 | M92: 1508649.246 | N92: 471856.0852 | O92: 1179846.092 | P92: 350093.837 | Q92: 615618.0947 | R92: 476115.8914 | S92: 286999.4189 | T92: 861178.1427 | U92: 480109.4357
A93: 1953 | B93: 1953 | C93: sp|Q8K1L5|PP1RB_MOUSE | D93: Protein phosphatase 1 regulatory subunit 11 OS=Mus musculus GN=Ppp1r11 PE=1 SV=1 | G93: 0.5206792848 | H93: -0.9415330847 | I93: 0.06906015857 | J93: 73309.48985 | K93: 51815.83823 | L93: 193123.9559 | M93: 141276.9744 | N93: 45359.19836 | O93: 110055.2213 | P93: 47452.60495 | Q93: 67225.22007 | R93: 48101.92376 | S93: 34051.75556 | T93: 72470.89133 | U93: 50884.47674
A94: 1586 | B94: 1586 | C94: sp|O89106|FHIT_MOUSE | D94: Bis(5'-adenosyl)-triphosphatase OS=Mus musculus GN=Fhit PE=1 SV=3 | G94: 0.4171788491 | H94: -1.26126208 | I94: 0.06915234155 | J94: 143996.4332 | K94: 90291.93903 | L94: 421657.2331 | M94: 497967.284 | N94: 82204.47657 | O94: 450918.4865 | P94: 78780.6139 | Q94: 154102.1124 | R94: 116116.9069 | S94: 104934.2026 | T94: 146410.4944 | U94: 103451.3451
A95: 1536 | B95: 1536 | C95: sp|Q8VDP6|CDIPT_MOUSE | D95: CDP-diacylglycerol--inositol 3-phosphatidyltransferase OS=Mus musculus GN=Cdipt PE=1 SV=1 | G95: 1.815065172 | H95: 0.8600213507 | I95: 0.0722839935 | J95: 69636.45131 | K95: 78498.84161 | L95: 5760.117049 | M95: 31717.70078 | N95: 60048.99941 | O95: 39555.03285 | P95: 118017.2747 | Q95: 67849.48994 | R95: 78833.58908 | S95: 29679.48026 | T95: 139944.1029 | U95: 83363.7658
A96: 2420 | B96: 2420 | C96: sp|Q8R010|AIMP2_MOUSE | D96: Aminoacyl tRNA synthase complex-interacting multifunctional protein 2 OS=Mus musculus GN=Aimp2 PE=1 SV=2 | G96: 1.780537884 | H96: 0.832313132 | I96: 0.07245166005 | J96: 14624.68262 | K96: 26874.71187 | L96: 444.7842427 | M96: 9878.194999 | N96: 16005.68353 | O96: 12870.34693 | P96: 29500.41346 | Q96: 29420.17331 | R96: 27709.38285 | S96: 5321.796739 | T96: 29080.20349 | U96: 22654.596
A97: 2496 | B97: 2496 | C97: sp|P62843|RS15_MOUSE | D97: 40S ribosomal protein S15 OS=Mus musculus GN=Rps15 PE=1 SV=2 | G97: 0.5677944209 | H97: -0.8165594216 | I97: 0.0726775838 | J97: 2303.685399 | K97: 4010.978744 | L97: 3370.179574 | M97: 4638.023786 | N97: 4237.261659 | O97: 8546.534155 | P97: 1764.618535 | Q97: 867.0568876 | R97: 3334.784092 | S97: 3649.768091 | T97: 2634.311859 | U97: 3140.472736
A98: 1968 | B98: 1968 | C98: sp|Q9DAU1|CNPY3_MOUSE | D98: Protein canopy homolog 3 OS=Mus musculus GN=Cnpy3 PE=1 SV=1 | G98: 0.4722834904 | H98: -1.082274991 | I98: 0.07346024904 | J98: 19800.49051 | K98: 18113.35866 | L98: 72651.88303 | M98: 47588.47177 | N98: 17083.40719 | O98: 41330.2151 | P98: 15322.64322 | Q98: 27229.5816 | R98: 16439.51162 | S98: 5053.14982 | T98: 22039.25703 | U98: 16197.2656
A99: 2166 | B99: 2166 | C99: sp|P62077|TIM8B_MOUSE | D99: Mitochondrial import inner membrane translocase subunit Tim8 B OS=Mus musculus GN=Timm8b PE=1 SV=1 | G99: =AVERAGE(P99:U99)/AVERAGE(J99:O99) -> 0.4778495335 | H99: =LOG(G99,2) -> -1.065371685 | I99: =_xlfn.T.TEST(P99:U99,J99:O99,2,2) -> 0.07466633134 | J99: 13513.74461 | K99: 12706.89951 | L99: 48760.75869 | M99: 31911.09693 | N99: 13298.73079 | O99: 25064.95632 | P99: 9663.3431 | Q99: 13645.09764 | R99: 16693.09956 | S99: 676.8729944 | T99: 17004.53424 | U99: 11727.65359
A100: 266 | B100: 266 | C100: sp|P26645|MARCS_MOUSE | D100: Myristoylated alanine-rich C-kinase substrate OS=Mus musculus GN=Marcks PE=1 SV=2 | G100: 0.4876633893 | H100: -1.036042427 | I100: 0.0756070863 | J100: 2318815.57 | K100: 1703944.805 | L100: 7611872.131 | M100: 4736866.413 | N100: 1756774.172 | O100: 3967473.974 | P100: 1236708.766 | Q100: 2196387.928 | R100: 1592845.538 | S100: 1815929.464 | T100: 2463705.257 | U100: 1469709.951
A101: 1296 | B101: 1296 | C101: sp|Q05186|RCN1_MOUSE | D101: Reticulocalbin-1 OS=Mus musculus GN=Rcn1 PE=1 SV=1 | G101: 0.4855761076 | H101: -1.042230658 | I101: 0.07808795277 | J101: 40203.12031 | K101: 65997.12981 | L101: 202445.4628 | M101: 128525.2577 | N101: 52033.64985 | O101: 99155.10934 | P101: 26876.48686 | Q101: 60359.56479 | R101: 46199.41244 | S101: 31888.81155 | T101: 73224.8398 | U101: 47144.31201
A102: 1703 | B102: 1703 | C102: sp|O88271|CFDP1_MOUSE | D102: Craniofacial development protein 1 OS=Mus musculus GN=Cfdp1 PE=1 SV=1 | G102: 0.5237547517 | H102: -0.9330366674 | I102: 0.07883828511 | J102: 60186.55622 | K102: 46367.3438 | L102: 181471.2078 | M102: 115445.449 | N102: 45070.93308 | O102: 101925.4295 | P102: 37336.34915 | Q102: 59410.15633 | R102: 41150.84944 | S102: 35678.74748 | T102: 71287.76189 | U102: 43445.80044
A103: 2014 | B103: 2014 | C103: sp|P02798|MT2_MOUSE | D103: Metallothionein-2 OS=Mus musculus GN=Mt2 PE=1 SV=2 | G103: 0.4904756071 | H103: -1.027746706 | I103: 0.07888654576 | J103: 31163.36337 | K103: 15494.91264 | L103: 86964.8213 | M103: 46519.618 | N103: 24499.62937 | O103: 47799.90901 | P103: 12727.49599 | Q103: 25004.84861 | R103: 10255.76086 | S103: 18245.26131 | T103: 34764.53812 | U103: 22818.86275
A104: 688 | B104: 688 | C104: sp|O35143|ATIF1_MOUSE | D104: ATPase inhibitor, mitochondrial OS=Mus musculus GN=Atpif1 PE=1 SV=2 | G104: 0.5073852704 | H104: -0.9788464569 | I104: 0.08034051728 | J104: 316508.4876 | K104: 248852.3046 | L104: 1085740.385 | M104: 702210.9698 | N104: 290711.4605 | O104: 564175.0792 | P104: 168282.2738 | Q104: 337115.0723 | R104: 240649.5104 | S104: 237094.9525 | T104: 378046.2327 | U104: 266604.7162
A105: 1824 | B105: 1824 | C105: sp|P00416|COX3_MOUSE | D105: Cytochrome c oxidase subunit 3 OS=Mus musculus GN=mt-Co3 PE=1 SV=2 | G105: 1.978637699 | H105: 0.9845074699 | I105: 0.0814842142 | J105: 1629.778845 | K105: 2107.395777 | L105: 1190.489238 | M105: 339.2350371 | N105: 4081.114611 | O105: 652.158265 | P105: 3473.131764 | Q105: 2594.442695 | R105: 6329.85417 | S105: 2866.408856 | T105: 2558.25508 | U105: 1964.624299
A106: 523 | B106: 523 | C106: sp|P12787|COX5A_MOUSE | D106: Cytochrome c oxidase subunit 5A, mitochondrial OS=Mus musculus GN=Cox5a PE=1 SV=2 | G106: 0.5663844699 | H106: -0.8201463871 | I106: 0.08374831531 | J106: 2690431.275 | K106: 2287333.334 | L106: 8318855.273 | M106: 5181394.401 | N106: 2720445.762 | O106: 4150214.422 | P106: 2042031.835 | Q106: 2765683.201 | R106: 2377539.978 | S106: 2039596.038 | T106: 3197888.495 | U106: 1934356.005
A107: 1410 | B107: 1410 | C107: sp|Q5PR73|DIRA2_MOUSE | D107: GTP-binding protein Di-Ras2 OS=Mus musculus GN=Diras2 PE=1 SV=1 | G107: 0.4063215852 | H107: -1.299306087 | I107: 0.08394226803 | J107: 211924.4995 | K107: 56076.93111 | L107: 50840.32889 | M107: 130827.2173 | N107: 267392.4057 | O107: 141685.2508 | P107: 36805.6867 | Q107: 31258.67525 | R107: 33063.94378 | S107: 5954.53556 | T107: 191556.7035 | U107: 50287.74858
A108: 1612 | B108: 1612 | C108: sp|Q9CQH7|BT3L4_MOUSE | D108: Transcription factor BTF3 homolog 4 OS=Mus musculus GN=Btf3l4 PE=1 SV=1 | G108: 0.5114164557 | H108: -0.9674295124 | I108: 0.08532473747 | J108: 130993.5034 | K108: 115997.8791 | L108: 407094.6589 | M108: 252051.4039 | N108: 65689.12232 | O108: 225218.4369 | P108: 82581.88986 | Q108: 120239.6131 | R108: 100521.409 | S108: 78691.42996 | T108: 131180.7869 | U108: 98973.38471
A109: 1761 | B109: 1761 | C109: sp|Q9D0J8|PTMS_MOUSE | D109: Parathymosin OS=Mus musculus GN=Ptms PE=1 SV=3 | G109: 0.4289787281 | H109: -1.221021985 | I109: 0.08694686748 | J109: 482301.5362 | K109: 362709.499 | L109: 1917606.53 | M109: 1282607.972 | N109: 288733.2345 | O109: 945912.3702 | P109: 200890.5121 | Q109: 527116.202 | R109: 342708.437 | S109: 352162.4023 | T109: 534304.2336 | U109: 307770.6197
A110: 1424 | B110: 1424 | C110: sp|P56812|PDCD5_MOUSE | D110: Programmed cell death protein 5 OS=Mus musculus GN=Pdcd5 PE=1 SV=3 | G110: 0.4827210271 | H110: -1.050738424 | I110: 0.08761955737 | J110: 92324.4974 | K110: 60589.42745 | L110: 252692.3854 | M110: 183487.8216 | N110: 46704.79948 | O110: 161282.4575 | P110: 51973.44742 | Q110: 97830.75303 | R110: 10120.09025 | S110: 52246.09671 | T110: 119369.5582 | U110: 53228.00105
A111: 1636 | B111: 1636 | C111: sp|P28667|MRP_MOUSE | D111: MARCKS-related protein OS=Mus musculus GN=Marcksl1 PE=1 SV=2 | G111: 0.5551187721 | H111: -0.8491316143 | I111: 0.0889342336 | J111: 99772.96535 | K111: 78819.75332 | L111: 306281.1951 | M111: 208293.9499 | N111: 84239.55298 | O111: 180585.298 | P111: 59603.59907 | Q111: 119459.6703 | R111: 79346.30927 | S111: 84244.90889 | T111: 111375.8001 | U111: 77769.45181
A112: 1509 | B112: 1509 | C112: sp|P63044|VAMP2_MOUSE | D112: Vesicle-associated membrane protein 2 OS=Mus musculus GN=Vamp2 PE=1 SV=2 | G112: 0.5470066918 | H112: -0.8703696126 | I112: 0.09010219185 | J112: 1108818.74 | K112: 1259321.711 | L112: 3941689.093 | M112: 2500019.668 | N112: 976977.5085 | O112: 2051670.259 | P112: 806447.0915 | Q112: 1470403.29 | R112: 992107.4058 | S112: 956939.878 | T112: 1396108.239 | U112: 853731.1647
A113: 603 | B113: 603 | C113: sp|Q61207|SAP_MOUSE | D113: Prosaposin OS=Mus musculus GN=Psap PE=1 SV=2 | G113: 0.3778319699 | H113: -1.404183316 | I113: 0.09116627163 | J113: 2372274.308 | K113: 1745250.419 | L113: 11220522.96 | M113: 6355828.532 | N113: 1781702.744 | O113: 4182807.672 | P113: 1124647.866 | Q113: 1674694.334 | R113: 1528990.769 | S113: 1564014.58 | T113: 3134849.48 | U113: 1423025.677
A114: 1009 | B114: 1009 | C114: sp|Q8BGZ1|HPCL4_MOUSE | D114: Hippocalcin-like protein 4 OS=Mus musculus GN=Hpcal4 PE=1 SV=3 | G114: 0.5472037334 | H114: -0.8698500217 | I114: 0.09384729636 | J114: 229678.3037 | K114: 227293.4726 | L114: 820695.9197 | M114: 510305.6846 | N114: 236725.2876 | O114: 445760.6808 | P114: 163936.8168 | Q114: 268820.8377 | R114: 217231.9844 | S114: 147841.3759 | T114: 352059.4887 | U114: 201954.0755
A115: 1240 | B115: 1240 | C115: sp|P97450|ATP5J_MOUSE | D115: ATP synthase-coupling factor 6, mitochondrial OS=Mus musculus GN=Atp5j PE=1 SV=1 | G115: 0.4348100366 | H115: -1.201542853 | I115: 0.09503995507 | J115: 2399640.573 | K115: 1978480.602 | L115: 10892917.44 | M115: 6969208.55 | N115: 1743218.106 | O115: 5402632.16 | P115: 1317880.035 | Q115: 2751134.299 | R115: 1827398.587 | S115: 2092191.546 | T115: 3154216.778 | U115: 1634548.853
A116: 1131 | B116: 1131 | C116: sp|Q8BNY6|NCS1_MOUSE | D116: Neuronal calcium sensor 1 OS=Mus musculus GN=Ncs1 PE=1 SV=3 | G116: 0.5252596688 | H116: -0.928897281 | I116: 0.09574426898 | J116: 319016.9478 | K116: 314211.8878 | L116: 1161970.439 | M116: 729699.9215 | N116: 264017.372 | O116: 584587.57 | P116: 232471.0544 | Q116: 303249.7048 | R116: 256605.8696 | S116: 230295.5175 | T116: 451504.2746 | U116: 297839.2455
A117: 1840 | B117: 1840 | C117: sp|Q8VEA4|MIA40_MOUSE | D117: Mitochondrial intermembrane space import and assembly protein 40 OS=Mus musculus GN=Chchd4 PE=1 SV=1 | G117: 0.553606898 | H117: -0.8530661756 | I117: 0.096015845 | J117: 95913.38298 | K117: 74761.51768 | L117: 295920.6841 | M117: 197866.9329 | N117: 76007.8997 | O117: 156898.5461 | P117: 59692.17918 | Q117: 94917.95249 | R117: 73239.87735 | S117: 86170.90745 | T117: 113617.0766 | U117: 69151.65517
A118: 2081 | B118: 2081 | C118: sp|Q9D6N5|NC2A_MOUSE | D118: Dr1-associated corepressor OS=Mus musculus GN=Drap1 PE=1 SV=3 | G118: 0.5290276049 | H118: -0.91858509 | I118: 0.0970378498 | J118: 57749.0718 | K118: 48605.30656 | L118: 174912.2319 | M118: 110824.6492 | N118: 38237.76811 | O118: 89116.96077 | P118: 32023.20772 | Q118: 55611.47718 | R118: 38079.52218 | S118: 28765.13505 | T118: 80454.51427 | U118: 39867.41073
A119: 1439 | B119: 1439 | C119: sp|Q8BK30|NDUV3_MOUSE | D119: NADH dehydrogenase [ubiquinone] flavoprotein 3, mitochondrial OS=Mus musculus GN=Ndufv3 PE=1 SV=1 | G119: 0.5240617175 | H119: -0.9321913704 | I119: 0.09738166197 | J119: 418091.8921 | K119: 278115.4665 | L119: 1459399.419 | M119: 998997.913 | N119: 385472.5056 | O119: 837582.9777 | P119: 252947.4809 | Q119: 461959.0511 | R119: 396641.0516 | S119: 361001.8961 | T119: 511355.3241 | U119: 310259.3057
A120: 2198 | B120: 2198 | C120: sp|Q8BM72|HSP13_MOUSE | D120: Heat shock 70 kDa protein 13 OS=Mus musculus GN=Hspa13 PE=1 SV=1 | G120: 1.856430424 | H120: 0.8925312464 | I120: 0.09743272579 | J120: 29903.52184 | K120: 26131.16117 | L120: 22398.69481 | M120: 19980.25306 | N120: 29584.0604 | O120: 16814.34663 | P120: 25662.53986 | Q120: 31140.7804 | R120: 61976.72162 | S120: 29987.86788 | T120: 92911.85633 | U120: 27153.70687
A121: 1642 | B121: 1642 | C121: sp|O89086|RBM3_MOUSE | D121: RNA-binding protein 3 OS=Mus musculus GN=Rbm3 PE=1 SV=1 | G121: 0.5552556435 | H121: -0.8487759438 | I121: 0.0981000008 | J121: 92605.68718 | K121: 73818.35205 | L121: 227140.071 | M121: 173044.6 | N121: 38607.35885 | O121: 120114.2334 | P121: 44126.32477 | Q121: 90859.00503 | R121: 58511.16035 | S121: 51684.66732 | T121: 95908.94063 | U121: 61653.64573
A122: 1422 | B122: 1422 | C122: sp|P02535|K1C10_MOUSE | D122: Keratin, type I cytoskeletal 10 OS=Mus musculus GN=Krt10 PE=1 SV=3 | G122: 0.5431647566 | H122: -0.8805382218 | I122: 0.09815722281 | J122: 116597.5141 | K122: 238190.1031 | L122: 101589.6395 | M122: 96561.52185 | N122: 179065.2237 | O122: 102677.8653 | P122: 23966.30441 | Q122: 68606.72784 | R122: 44841.70394 | S122: 198575.1691 | T122: 41315.68531 | U122: 76064.18285
A123: 2384 | B123: 2384 | C123: sp|P47915|RL29_MOUSE | D123: 60S ribosomal protein L29 OS=Mus musculus GN=Rpl29 PE=2 SV=2 | G123: 0.4726905729 | H123: -1.081032002 | I123: 0.09965418091 | J123: 76970.73468 | K123: 32246.4342 | L123: 30627.95304 | M123: 48148.55714 | N123: 16745.63762 | O123: 47498.63791 | P123: 52507.48612 | Q123: 17820.38431 | R123: 1691.859388 | S123: 39585.64862 | T123: 662.8099366 | U123: 6962.314907
A124: 1518 | B124: 1518 | C124: sp|P61022|CHP1_MOUSE | D124: Calcineurin B homologous protein 1 OS=Mus musculus GN=Chp1 PE=1 SV=2 | G124: 0.5700365338 | H124: -0.8108737099 | I124: 0.1005134878 | J124: 165664.2296 | K124: 137667.3164 | L124: 529690.9285 | M124: 361711.1913 | N124: 150406.5609 | O124: 279548.5471 | P124: 108580.1978 | Q124: 186331.7914 | R124: 173073.3875 | S124: 159412.048 | T124: 181288.4615 | U124: 117446.071
A125: 1451 | B125: 1451 | C125: sp|Q9CQX2|CYB5B_MOUSE | D125: Cytochrome b5 type B OS=Mus musculus GN=Cyb5b PE=1 SV=1 | G125: 0.457270913 | H125: -1.128878943 | I125: 0.1010980006 | J125: 186978.5838 | K125: 163064.6352 | L125: 836366.5633 | M125: 469489.0218 | N125: 159937.4653 | O125: 366205.5619 | P125: 139639.9309 | Q125: 208912.7771 | R125: 139706.0051 | S125: 136948.4148 | T125: 240634.9039 | U125: 131942.2287
A126: 751 | B126: 751 | C126: sp|Q64433|CH10_MOUSE | D126: 10 kDa heat shock protein, mitochondrial OS=Mus musculus GN=Hspe1 PE=1 SV=2 | G126: 0.5316595855 | H126: -0.9114252918 | I126: 0.1010989878 | J126: 3464492.666 | K126: 2804222.069 | L126: 12065639.12 | M126: 8318513.282 | N126: 2773917.539 | O126: 6502937 | P126: 2344225.422 | Q126: 4060088.646 | R126: 3099671.633 | S126: 3224635.275 | T126: 4027924.234 | U126: 2345835.722
A127: 1989 | B127: 1989 | C127: sp|Q8R0A5|TCAL3_MOUSE | D127: Transcription elongation factor A protein-like 3 OS=Mus musculus GN=Tceal3 PE=1 SV=2 | G127: 0.5554771701 | H127: -0.8482004763 | I127: 0.1015627005 | J127: 9138.215638 | K127: 8960.994136 | L127: 31244.14235 | M127: 20947.74357 | N127: 8176.75957 | O127: 18853.20419 | P127: 7160.003042 | Q127: 12918.25933 | R127: 4398.125119 | S127: 8979.770927 | T127: 12941.64658 | U127: 7661.821694
A128: 1067 | B128: 1067 | C128: sp|P99028|QCR6_MOUSE | D128: Cytochrome b-c1 complex subunit 6, mitochondrial OS=Mus musculus GN=Uqcrh PE=1 SV=2 | G128: 0.5095960218 | H128: -0.9725740797 | I128: 0.1020003422 | J128: 1191461.247 | K128: 959609.8244 | L128: 4326288.032 | M128: 2654466.836 | N128: 890706.497 | O128: 2183143.034 | P128: 740341.5527 | Q128: 1200253.773 | R128: 1050639.887 | S128: 950926.4301 | T128: 1482327.455 | U128: 795474.5649
A129: 1538 | B129: 1538 | C129: sp|Q9CPW2|ADXL_MOUSE | D129: Adrenodoxin-like protein, mitochondrial OS=Mus musculus GN=Fdx1l PE=1 SV=1 | G129: 0.5564865099 | H129: -0.8455813801 | I129: 0.1031721514 | J129: 58932.27427 | K129: 48744.70754 | L129: 175395.3636 | M129: 106187.8326 | N129: 44521.39083 | O129: 76912.04406 | P129: 34370.20813 | Q129: 50405.95544 | R129: 49198.7532 | S129: 58353.07043 | T129: 64228.01031 | U129: 27638.10875
A130: 482 | B130: 482 | C130: sp|P08228|SODC_MOUSE | D130: Superoxide dismutase [Cu-Zn] OS=Mus musculus GN=Sod1 PE=1 SV=2 | G130: 0.5272235812 | H130: -0.9235131956 | I130: 0.1042085723 | J130: 6435342.034 | K130: 5549415.383 | L130: 22445456.13 | M130: 17417417.45 | N130: 4642189.01 | O130: 13295879.35 | P130: 4207222.805 | Q130: 8273202.32 | R130: 5388224.738 | S130: 6003704.061 | T130: 8570695.993 | U130: 4349616.415
A131: 2059 | B131: 2059 | C131: sp|P70445|4EBP2_MOUSE | D131: Eukaryotic translation initiation factor 4E-binding protein 2 OS=Mus musculus GN=Eif4ebp2 PE=1 SV=1 | G131: =AVERAGE(P131:U131)/AVERAGE(J131:O131) -> 0.4534511367 | H131: =LOG(G131,2) -> -1.140980999 | I131: =_xlfn.T.TEST(P131:U131,J131:O131,2,2) -> 0.1043737853 | J131: 13761.86896 | K131: 13191.64754 | L131: 61171.14148 | M131: 40116.70551 | N131: 7962.742962 | O131: 45017.14448 | P131: 9494.754772 | Q131: 21984.56964 | R131: 10321.14044 | S131: 22872.00498 | T131: 9230.247036 | U131: 8272.265351
A132: 449 | B132: 449 | C132: sp|P16014|SCG1_MOUSE | D132: Secretogranin-1 OS=Mus musculus GN=Chgb PE=1 SV=2 | G132: 0.5617078877 | H132: -0.8321080329 | I132: 0.105087748 | J132: 187666.7284 | K132: 154167.2555 | L132: 598864.7904 | M132: 494296.0463 | N132: 167385.7475 | O132: 359031.5571 | P132: 135516.0774 | Q132: 195074.1877 | R132: 164728.7804 | S132: 158665.7103 | T132: 293130.1568 | U132: 154625.7492
A133: 1164 | B133: 1164 | C133: sp|Q3UHX2|HAP28_MOUSE | D133: 28 kDa heat- and acid-stable phosphoprotein OS=Mus musculus GN=Pdap1 PE=1 SV=1 | G133: 0.5040645778 | H133: -0.9883195197 | I133: 0.1088735799 | J133: 258543.5787 | K133: 234151.8506 | L133: 1022845.532 | M133: 646712.9212 | N133: 188329.2921 | O133: 521393.5299 | P133: 152357.9459 | Q133: 317170.5458 | R133: 210427.8364 | S133: 256801.2922 | T133: 331822.3184 | U133: 179081.7863
A134: 1316 | B134: 1316 | C134: sp|Q9DB15|RM12_MOUSE | D134: 39S ribosomal protein L12, mitochondrial OS=Mus musculus GN=Mrpl12 PE=1 SV=2 | G134: 0.5483215556 | H134: -0.866905905 | I134: 0.1127962677 | J134: 127334.3451 | K134: 112639.8012 | L134: 473518.4034 | M134: 300972.6243 | N134: 120681.4643 | O134: 237343.5915 | P134: 83174.80821 | Q134: 163143.9081 | R134: 117494.7881 | S134: 115633.5605 | T134: 165932.5905 | U134: 107186.3223
A135: 2140 | B135: 2140 | C135: sp|Q9CY50|SSRA_MOUSE | D135: Translocon-associated protein subunit alpha OS=Mus musculus GN=Ssr1 PE=1 SV=1 | G135: 0.4240925976 | H135: -1.237548794 | I135: 0.1130292362 | J135: 15271.14896 | K135: 16728.91714 | L135: 65927.24694 | M135: 53589.99921 | N135: 4155.107586 | O135: 53829.83885 | P135: 3913.074206 | Q135: 8317.449077 | R135: 28901.05106 | S135: 16443.16197 | T135: 28405.90264 | U135: 2867.718146
A136: 1381 | B136: 1381 | C136: sp|P63040|CPLX1_MOUSE | D136: Complexin-1 OS=Mus musculus GN=Cplx1 PE=1 SV=1 | G136: 0.477856739 | H136: -1.065349931 | I136: 0.1145683456 | J136: 257634.0215 | K136: 222851.7864 | L136: 1171902.697 | M136: 719265.3845 | N136: 206597.9208 | O136: 536254.1237 | P136: 182313.3795 | Q136: 301387.698 | R136: 247015.1017 | S136: 222449.8035 | T136: 333284.0387 | U136: 201837.6278
A137: 1867 | B137: 1867 | C137: sp|P62073|TIM10_MOUSE | D137: Mitochondrial import inner membrane translocase subunit Tim10 OS=Mus musculus GN=Timm10 PE=1 SV=1 | G137: 0.3821277412 | H137: -1.387873099 | I137: 0.1146295958 | J137: 66809.32385 | K137: 57094.5456 | L137: 417463.9875 | M137: 246475.3498 | N137: 55913.31991 | O137: 157460.5124 | P137: 37682.51134 | Q137: 87366.15847 | R137: 50039.98273 | S137: 58833.12374 | T137: 101687.9247 | U137: 46983.10454
A138: 1153 | B138: 1153 | C138: sp|P99027|RLA2_MOUSE | D138: 60S acidic ribosomal protein P2 OS=Mus musculus GN=Rplp2 PE=1 SV=3 | G138: 0.5138887567 | H138: -0.960472007 | I138: 0.1152341976 | J138: 515917.8932 | K138: 460735.3744 | L138: 2002935.212 | M138: 1261372.944 | N138: 375496.198 | O138: 978141.4039 | P138: 359458.9366 | Q138: 676209.26 | R138: 431129.1101 | S138: 434092.7152 | T138: 647066.3262 | U138: 327045.189
A139: 1028 | B139: 1028 | C139: sp|P11404|FABPH_MOUSE | D139: Fatty acid-binding protein, heart OS=Mus musculus GN=Fabp3 PE=1 SV=5 | G139: 0.5222613846 | H139: -0.9371560584 | I139: 0.1165223528 | J139: 613347.9462 | K139: 580773.2063 | L139: 2311281.006 | M139: 1509974.562 | N139: 434269.155 | O139: 1084784.93 | P139: 376640.0284 | Q139: 759278.4633 | R139: 448553.085 | S139: 539253.7042 | T139: 827040.5076 | U139: 461915.0915
A140: 2372 | B140: 2372 | C140: sp|Q8VD63|TSYL4_MOUSE | D140: Testis-specific Y-encoded-like protein 4 OS=Mus musculus GN=Tspyl4 PE=1 SV=1 | G140: 1.774008657 | H140: 0.8270130495 | I140: 0.1178769158 | J140: 7943.480202 | K140: 5715.381593 | L140: 2483.732491 | M140: 2794.699101 | N140: 5172.463927 | O140: 222.1999 | P140: 10172.31072 | Q140: 7280.741463 | R140: 11103.09461 | S140: 3075.561892 | T140: 8758.454047 | U140: 2774.939989
A141: 427 | B141: 427 | C141: sp|P62204|CALM_MOUSE | D141: Calmodulin OS=Mus musculus GN=Calm1 PE=1 SV=2 | G141: 0.4958702485 | H141: -1.011965427 | I141: 0.1184988437 | J141: 7464637.417 | K141: 5324737.19 | L141: 29743805.74 | M141: 22585757.54 | N141: 5390487.476 | O141: 16328756.53 | P141: 4528643.765 | Q141: 9607094.33 | R141: 6867912.942 | S141: 6022880.082 | T141: 10676607.8 | U141: 5357331.919
A142: 2135 | B142: 2135 | C142: sp|P62500|T22D1_MOUSE | D142: TSC22 domain family protein 1 OS=Mus musculus GN=Tsc22d1 PE=1 SV=2 | G142: 0.5371960273 | H142: -0.8964794592 | I142: 0.1199404556 | J142: 51647.27125 | K142: 39404.3425 | L142: 185555.4679 | M142: 139882.5674 | N142: 40049.47124 | O142: 97233.33113 | P142: 35429.18823 | Q142: 64799.18577 | R142: 45131.11153 | S142: 48258.07848 | T142: 64309.62849 | U142: 39557.16845
A143: 2402 | B143: 2402 | C143: sp|P41539|TKN1_MOUSE | D143: Protachykinin-1 OS=Mus musculus GN=Tac1 PE=2 SV=1 | G143: 0.4833396715 | H143: -1.048890682 | I143: 0.1203220588 | J143: 41029.71573 | K143: 52259.94186 | L143: 169391.5445 | M143: 262428.8597 | N143: 62641.64543 | O143: 136970.5765 | P143: 50552.10798 | Q143: 63130.45982 | R143: 45142.93429 | S143: 44204.13035 | T143: 108732.308 | U143: 38525.09017
A144: 1365 | B144: 1365 | C144: sp|Q8C8T8|TSR2_MOUSE | D144: Pre-rRNA-processing protein TSR2 homolog OS=Mus musculus GN=Tsr2 PE=1 SV=1 | G144: 0.5089901047 | H144: -0.9742904858 | I144: 0.1205837951 | J144: 26303.62627 | K144: 27595.23526 | L144: 92824.91767 | M144: 53971.97545 | N144: 15014.09947 | O144: 37657.93046 | P144: 13036.52555 | Q144: 31855.45441 | R144: 15237.9226 | S144: 21045.68718 | T144: 36594.03046 | U144: 11192.07501
A145: 574 | B145: 574 | C145: sp|Q91ZZ3|SYUB_MOUSE | D145: Beta-synuclein OS=Mus musculus GN=Sncb PE=1 SV=1 | G145: 0.521575182 | H145: -0.939052871 | I145: 0.1216807349 | J145: 1112643.783 | K145: 934322.5036 | L145: 4572564.645 | M145: 3174913.929 | N145: 950137.0103 | O145: 2430423.826 | P145: 727262.8089 | Q145: 1488331.373 | R145: 1169575.525 | S145: 1088273.866 | T145: 1583437.577 | U145: 814874.8442
A146: 2001 | B146: 2001 | C146: sp|P09602|HMGN2_MOUSE | D146: Non-histone chromosomal protein HMG-17 OS=Mus musculus GN=Hmgn2 PE=1 SV=2 | G146: 0.4299128335 | H146: -1.217883917 | I146: 0.1217273028 | J146: 8556.325731 | K146: 9078.324424 | L146: 48314.26639 | M146: 46728.84156 | N146: 7068.94555 | O146: 32704.85707 | P146: 6412.163323 | Q146: 26079.05552 | R146: 7081.990454 | S146: 7607.649508 | T146: 8941.341899 | U146: 9418.681744
A147: 1826 | B147: 1826 | C147: sp|Q6W8Q3|PC4L1_MOUSE | D147: Purkinje cell protein 4-like protein 1 OS=Mus musculus GN=Pcp4l1 PE=1 SV=1 | G147: 0.4381173281 | H147: -1.190610819 | I147: 0.1231686416 | J147: 140395.8501 | K147: 81784.48226 | L147: 693796.2907 | M147: 445579.7105 | N147: 112315.7491 | O147: 309802.5877 | P147: 70706.88079 | Q147: 179077.9611 | R147: 122569.433 | S147: 112084.943 | T147: 191413.906 | U147: 105605.6569
A148: 168 | B148: 168 | C148: sp|Q91XV3|BASP1_MOUSE | D148: Brain acid soluble protein 1 OS=Mus musculus GN=Basp1 PE=1 SV=3 | G148: 0.4963881984 | H148: -1.010459279 | I148: 0.1251896839 | J148: 11102582.84 | K148: 7397263.802 | L148: 43577036.37 | M148: 21947680.45 | N148: 8274818.934 | O148: 21215004.34 | P148: 6032544.949 | Q148: 12346376.96 | R148: 8786101.184 | S148: 8452185.053 | T148: 13508726.87 | U148: 7221266.911
A149: 1977 | B149: 1977 | C149: sp|P46935|NEDD4_MOUSE | D149: E3 ubiquitin-protein ligase NEDD4 OS=Mus musculus GN=Nedd4 PE=1 SV=3 | G149: 1.935963022 | H149: 0.9530513966 | I149: 0.1265726325 | J149: 21172.31202 | K149: 31048.30175 | L149: 14807.41873 | M149: 15365.29745 | N149: 26202.49137 | O149: 22671.96448 | P149: 72799.14165 | Q149: 81530.35856 | R149: 16760.66012 | S149: 13083.24468 | T149: 23785.32313 | U149: 46170.85116
A150: 1216 | B150: 1216 | C150: sp|Q9WUC3|LY6H_MOUSE | D150: Lymphocyte antigen 6H OS=Mus musculus GN=Ly6h PE=1 SV=2 | G150: 0.51021052 | H150: -0.9708354488 | I150: 0.1269933643 | J150: 601039.0462 | K150: 512914.1366 | L150: 2423320.853 | M150: 1249240.375 | N150: 454216.4759 | O150: 1069690.056 | P150: 388058.8814 | Q150: 642459.5435 | R150: 499755.3654 | S150: 495727.7321 | T150: 768359.7429 | U150: 425281.8853
A151: 505 | B151: 505 | C151: sp|P84075|HPCA_MOUSE | D151: Neuron-specific calcium-binding protein hippocalcin OS=Mus musculus GN=Hpca PE=1 SV=2 | G151: 0.5530022577 | H151: -0.8546427245 | I151: 0.127963966 | J151: 284550.566 | K151: 70936.31475 | L151: 490752.8749 | M151: 309374.6798 | N151: 131430.5074 | O151: 259253.6309 | P151: 80621.63098 | Q151: 143458.6404 | R151: 141581.5246 | S151: 66676.95978 | T151: 303387.1504 | U151: 119380.6962
A152: 403 | B152: 403 | C152: sp|Q9QZM0|UBQL2_MOUSE | D152: Ubiquilin-2 OS=Mus musculus GN=Ubqln2 PE=1 SV=2 | G152: 0.5660778571 | H152: -0.820927603 | I152: 0.1302992689 | J152: 604223.9234 | K152: 521804.6086 | L152: 2026543.247 | M152: 1325840.914 | N152: 389100.0585 | O152: 1126816.393 | P152: 422441.6313 | Q152: 737565.5067 | R152: 525712.7972 | S152: 455219.8146 | T152: 812327.9162 | U152: 439989.3312
A153: 699 | B153: 699 | C153: sp|Q6IRU5|CLCB_MOUSE | D153: Clathrin light chain B OS=Mus musculus GN=Cltb PE=1 SV=1 | G153: 0.5504896345 | H153: -0.8612126962 | I153: 0.1304006401 | J153: 1361800.101 | K153: 1201154.456 | L153: 4953974.062 | M153: 3521045.243 | N153: 919210.2281 | O153: 2482708.83 | P153: 1058825.211 | Q153: 1684758.094 | R153: 1242611.301 | S153: 1313042.519 | T153: 1662911.756 | U153: 986862.4943
A154: 2024 | B154: 2024 | C154: sp|Q91YP2|NEUL_MOUSE | D154: Neurolysin, mitochondrial OS=Mus musculus GN=Nln PE=1 SV=1 | G154: 0.3244747737 | H154: -1.623821775 | I154: 0.1307288314 | J154: 88759.00118 | K154: 94701.71822 | L154: 14224.52417 | M154: 13769.33209 | N154: 19577.75951 | O154: 9988.43071 | P154: 7032.461024 | Q154: 16901.10756 | R154: 19727.34805 | S154: 13283.39092 | T154: 9259.903788 | U154: 12000.94713
A155: 960 | B155: 960 | C155: sp|Q8R317|UBQL1_MOUSE | D155: Ubiquilin-1 OS=Mus musculus GN=Ubqln1 PE=1 SV=1 | G155: 0.516623674 | H155: -0.9528143391 | I155: 0.1317750928 | J155: 181549.4657 | K155: 136092.4376 | L155: 735845.1627 | M155: 446285.6386 | N155: 152186.4189 | O155: 347220.2103 | P155: 93088.48399 | Q155: 209241.5506 | R155: 171663.9562 | S155: 160694.1162 | T155: 269638.6819 | U155: 128496.5836
A156: 2260 | B156: 2260 | C156: sp|Q8BGD8|COA6_MOUSE | D156: Cytochrome c oxidase assembly factor 6 homolog OS=Mus musculus GN=Coa6 PE=1 SV=1 | G156: 0.4875867537 | H156: -1.036269162 | I156: 0.132879419 | J156: 16390.83179 | K156: 14078.07988 | L156: 51884.1254 | M156: 42893.8701 | N156: 16505.93465 | O156: 6030.218722 | P156: 6026.341859 | Q156: 18054.66719 | R156: 10720.94903 | S156: 10233.8602 | T156: 17764.36178 | U156: 9256.882684
A157: 518 | B157: 518 | C157: sp|P54227|STMN1_MOUSE | D157: Stathmin OS=Mus musculus GN=Stmn1 PE=1 SV=2 | G157: 0.5096301081 | H157: -0.9724775826 | I157: 0.1332068136 | J157: 1531617.948 | K157: 986874.7935 | L157: 5664242.514 | M157: 3257458.455 | N157: 1044547.69 | O157: 2488289.63 | P157: 758728.1441 | Q157: 1610458.607 | R157: 1270968.676 | S157: 1181247.015 | T157: 1885839.42 | U157: 923465.5611
A158: 664 | B158: 664 | C158: sp|Q9D3D9|ATPD_MOUSE | D158: ATP synthase subunit delta, mitochondrial OS=Mus musculus GN=Atp5d PE=1 SV=1 | G158: 0.5251148067 | H158: -0.9292952188 | I158: 0.1334471909 | J158: 884404.2523 | K158: 777233.6434 | L158: 3762231.442 | M158: 2422045.644 | N158: 696602.8552 | O158: 1992133.702 | P158: 660319.84 | Q158: 1235845.143 | R158: 933015.862 | S158: 769294.1318 | T158: 1326632.647 | U158: 606793.8835
A159: 2169 | B159: 2169 | C159: sp|Q9D8Z2|TRIA1_MOUSE | D159: TP53-regulated inhibitor of apoptosis 1 OS=Mus musculus GN=Triap1 PE=1 SV=1 | G159: 0.2806775915 | H159: -1.833014207 | I159: 0.1370381276 | J159: 8845.561987 | K159: 52651.46183 | L159: 149765.471 | M159: 51879.4182 | N159: 2411.106465 | O159: 36584.6624 | P159: 453.5627319 | Q159: 7362.433403 | R159: 13437.73336 | S159: 40091.07552 | T159: 16288.30254 | U159: 7170.169304
A160: 2215 | B160: 2215 | C160: sp|P54726|RD23A_MOUSE | D160: UV excision repair protein RAD23 homolog A OS=Mus musculus GN=Rad23a PE=1 SV=2 | G160: 0.5145770655 | H160: -0.9585409369 | I160: 0.1371074388 | J160: 12412.92265 | K160: 1627.818031 | L160: 34808.46231 | M160: 21507.77378 | N160: 10135.32597 | O160: 19834.21505 | P160: 14453.52407 | Q160: 11609.16533 | R160: 6125.028976 | S160: 4870.744808 | T160: 2796.032546 | U160: 11771.22938
A161: 1719 | B161: 1719 | C161: sp|P97825|HN1_MOUSE | D161: Hematological and neurological expressed 1 protein OS=Mus musculus GN=Hn1 PE=1 SV=3 | G161: 0.5082921996 | H161: -0.9762700041 | I161: 0.1398772187 | J161: 119407.4683 | K161: 116967.3474 | L161: 495006.5323 | M161: 354774.6495 | N161: 46508.91366 | O161: 296558.8619 | P161: 87161.53971 | Q161: 176202.755 | R161: 105336.6276 | S161: 91338.39881 | T161: 187633.0863 | U161: 78790.88781
A162: 1026 | B162: 1026 | C162: sp|P22005|PENK_MOUSE | D162: Proenkephalin-A OS=Mus musculus GN=Penk PE=1 SV=2 | G162: 0.5552662697 | H162: -0.8487483345 | I162: 0.1435731036 | J162: 198967.6811 | K162: 169324.677 | L162: 758402.1004 | M162: 689278.7305 | N162: 182349.9592 | O162: 461036.6509 | P162: 168164.1567 | Q162: 300043.9124 | R162: 208955.6542 | S162: 170311.2208 | T162: 371134.3497 | U162: 146990.2476
A163: 1184 | B163: 1184 | C163: sp|Q9JMG7|HDGR3_MOUSE | D163: Hepatoma-derived growth factor-related protein 3 OS=Mus musculus GN=Hdgfrp3 PE=1 SV=2 | G163: =AVERAGE(P163:U163)/AVERAGE(J163:O163) -> 0.5536921048 | H163: =LOG(G163,2) -> -0.8528441446 | I163: =_xlfn.T.TEST(P163:U163,J163:O163,2,2) -> 0.1447896961 | J163: 283478.6379 | K163: 349906.3367 | L163: 1270628.045 | M163: 857588.673 | N163: 202503.102 | O163: 686020.6154 | P163: 252107.8165 | Q163: 383335.4362 | R163: 280298.7604 | S163: 338968.8004 | T163: 491127.6309 | U163: 275207.1763
A164: 1547 | B164: 1547 | C164: sp|Q9CQZ1|HSBP1_MOUSE | D164: Heat shock factor-binding protein 1 OS=Mus musculus GN=Hsbp1 PE=1 SV=1 | G164: 0.5488044114 | H164: -0.8656360166 | I164: 0.1468767746 | J164: 129972.8879 | K164: 86816.1373 | L164: 468349.683 | M164: 332825.4974 | N164: 89473.32701 | O164: 254374.0287 | P164: 83876.88865 | Q164: 177152.7587 | R164: 126655.0282 | S164: 97000.53124 | T164: 174676.305 | U164: 88006.68059
A165: 2448 | B165: 2448 | C165: sp|Q9EQS3|MYCBP_MOUSE | D165: C-Myc-binding protein OS=Mus musculus GN=Mycbp PE=1 SV=5 | G165: 0.5567224236 | H165: -0.8449699017 | I165: 0.1469468286 | J165: 17761.35605 | K165: 8668.204273 | L165: 41544.46244 | M165: 28036.23041 | N165: 7730.089351 | O165: 19624.90917 | P165: 19003.33681 | Q165: 17497.55179 | R165: 4942.193037 | S165: 12270.89704 | T165: 11285.25269 | U165: 3680.970545
A166: 1807 | B166: 1807 | C166: sp|Q8VHL1|SETD7_MOUSE | D166: Histone-lysine N-methyltransferase SETD7 OS=Mus musculus GN=Setd7 PE=1 SV=2 | G166: 0.5501462338 | H166: -0.8621129441 | I166: 0.1513535422 | J166: 40258.0033 | K166: 17448.55836 | L166: 18948.43398 | M166: 109553.4722 | N166: 81511.40624 | O166: 66749.48972 | P166: 19112.73071 | Q166: 46467.73129 | R166: 41055.30498 | S166: 11115.21777 | T166: 42898.25489 | U166: 23357.82114
A167: 2291 | B167: 2291 | C167: sp|Q9CQY2|RAM_MOUSE | D167: RNMT-activating mini protein OS=Mus musculus GN=Fam103a1 PE=3 SV=1 | G167: 0.5156751126 | H167: -0.9554656746 | I167: 0.1519948221 | J167: 28791.8343 | K167: 24012.1442 | L167: 98796.71442 | M167: 56310.03523 | N167: 9803.606247 | O167: 45114.4219 | P167: 17653.11318 | Q167: 36367.56305 | R167: 23806.56718 | S167: 16946.4006 | T167: 34557.37516 | U167: 6203.229343
A168: 901 | B168: 901 | C168: sp|P84086|CPLX2_MOUSE | D168: Complexin-2 OS=Mus musculus GN=Cplx2 PE=1 SV=1 | G168: 0.5507996466 | H168: -0.860400461 | I168: 0.1530219274 | J168: 554884.0636 | K168: 491270.7911 | L168: 2418731.101 | M168: 1769456.071 | N168: 468720.9902 | O168: 1264023.652 | P168: 451405.9105 | Q168: 859563.136 | R168: 680383.9304 | S168: 562531.218 | T168: 819907.8779 | U168: 463676.8022
A169: 1757 | B169: 1757 | C169: sp|P63054|PCP4_MOUSE | D169: Purkinje cell protein 4 OS=Mus musculus GN=Pcp4 PE=3 SV=2 | G169: 0.4662784982 | H169: -1.100736191 | I169: 0.1623524157 | J169: 1158845.044 | K169: 1035570.226 | L169: 6032318.229 | M169: 3220160.043 | N169: 581288.4456 | O169: 2336165.468 | P169: 649603.6743 | Q169: 1535843.439 | R169: 884901.3892 | S169: 885334.571 | T169: 1767041.844 | U169: 975061.4419
A170: 1136 | B170: 1136 | C170: sp|P60840|ENSA_MOUSE | D170: Alpha-endosulfine OS=Mus musculus GN=Ensa PE=1 SV=1 | G170: 0.5471960402 | H170: -0.8698703047 | I170: 0.1670761213 | J170: 332431.1826 | K170: 291394.1022 | L170: 1359376.629 | M170: 833762.8341 | N170: 168338.7432 | O170: 676254.1384 | P170: 228177.5904 | Q170: 464087.2877 | R170: 310067.6237 | S170: 319824.8561 | T170: 421935.2416 | U170: 259497.2363
A171: 2098 | B171: 2098 | C171: sp|P56212|ARP19_MOUSE | D171: cAMP-regulated phosphoprotein 19 OS=Mus musculus GN=Arpp19 PE=1 SV=2 | G171: 0.4661397151 | H171: -1.101165659 | I171: 0.1748048445 | J171: 6884.121751 | K171: 23203.45725 | L171: 142309.176 | M171: 89792.19016 | N171: 22312.90226 | O171: 81639.10784 | P171: 31862.08525 | Q171: 45964.96578 | R171: 23689.47786 | S171: 6283.346322 | T171: 44730.01554 | U171: 18142.94987
A172: 1093 | B172: 1093 | C172: sp|Q9R1K9|CETN2_MOUSE | D172: Centrin-2 OS=Mus musculus GN=Cetn2 PE=1 SV=1 | G172: 0.5381200721 | H172: -0.893999974 | I172: 0.1836629508 | J172: 68217.08549 | K172: 101370.7115 | L172: 370727.8483 | M172: 233317.1207 | N172: 56233.35811 | O172: 177104.9279 | P172: 48062.07265 | Q172: 161057.8138 | R172: 75614.46714 | S172: 57978.90528 | T172: 162008.7883 | U172: 37149.28793
A173: 1587 | B173: 1587 | C173: sp|P31786|ACBP_MOUSE | D173: Acyl-CoA-binding protein OS=Mus musculus GN=Dbi PE=1 SV=2 | G173: 0.5412006401 | H173: -0.8857645494 | I173: 0.1837475659 | J173: 953807.6564 | K173: 1065046.585 | L173: 4782240.485 | M173: 2691401.279 | N173: 630864.0052 | O173: 2222926.761 | P173: 705302.8288 | Q173: 1453665.902 | R173: 836560.3481 | S173: 1081620.229 | T173: 1844456.3 | U173: 760212.6953
A174: 379 | B174: 379 | C174: sp|P21107|TPM3_MOUSE | D174: Tropomyosin alpha-3 chain OS=Mus musculus GN=Tpm3 PE=1 SV=3 | G174: 0.5657761164 | H174: -0.8216968187 | I174: 0.1904719593 | J174: 656159.0373 | K174: 543115.4996 | L174: 2779925.716 | M174: 1536777.351 | N174: 462104.3181 | O174: 1230709.093 | P174: 466763.8688 | Q174: 956507.1196 | R174: 643445.0978 | S174: 644935.224 | T174: 941096.6816 | U174: 425813.7923
A175: 1792 | B175: 1792 | C175: sp|P18052|PTPRA_MOUSE | D175: Receptor-type tyrosine-protein phosphatase alpha OS=Mus musculus GN=Ptpra PE=1 SV=3 | G175: 1.850663703 | H175: 0.8880427565 | I175: 0.1970460017 | J175: 6854.043553 | K175: 7309.536529 | L175: 4428.983237 | M175: 3859.23378 | N175: 18848.77312 | O175: 6634.272972 | P175: 4141.57466 | Q175: 27220.73701 | R175: 23033.03603 | S175: 23117.70235 | T175: 5693.773021 | U175: 5504.45131
A176: 1166 | B176: 1166 | C176: sp|Q91X97|NCALD_MOUSE | D176: Neurocalcin-delta OS=Mus musculus GN=Ncald PE=1 SV=4 | G176: 0.3903803529 | H176: -1.357047648 | I176: 0.2015299714 | J176: 52379.35708 | K176: 73862.67062 | L176: 568295.7829 | M176: 210817.3579 | N176: 49086.4809 | O176: 193503.5878 | P176: 33043.27324 | Q176: 84474.76824 | R176: 54530.47511 | S176: 37649.91404 | T176: 205689.9677 | U176: 32746.8685
A177: 250 | B177: 250 | C177: sp|P01942|HBA_MOUSE | D177: Hemoglobin subunit alpha OS=Mus musculus GN=Hba PE=1 SV=2 | G177: 0.4975396409 | H177: -1.007116619 | I177: 0.2082141356 | J177: 8718116.856 | K177: 3334527.139 | L177: 42222019.04 | M177: 27405562.66 | N177: 6231370.224 | O177: 38379808.91 | P177: 8024574.346 | Q177: 22886931.8 | R177: 4969735.49 | S177: 2153701.05 | T177: 19895590.59 | U177: 4904446.939
A178: 1760 | B178: 1760 | C178: sp|P60761|NEUG_MOUSE | D178: Neurogranin OS=Mus musculus GN=Nrgn PE=1 SV=1 | G178: 0.561979228 | H178: -0.8314112886 | I178: 0.2134336408 | J178: 48736.35432 | K178: 28071.96466 | L178: 164760.236 | M178: 85462.43038 | N178: 12318.10417 | O178: 77002.78844 | P178: 26399.26573 | Q178: 55409.95714 | R178: 38368.58573 | S178: 28862.2796 | T178: 55480.12844 | U178: 29460.89031
A179: 1507 | B179: 1507 | C179: sp|P58771|TPM1_MOUSE | D179: Tropomyosin alpha-1 chain OS=Mus musculus GN=Tpm1 PE=1 SV=1 | G179: 0.5313287875 | H179: -0.9123232143 | I179: 0.2209974222 | J179: 127252.2981 | K179: 109657.6258 | L179: 659808.2493 | M179: 382415.3125 | N179: 68840.14645 | O179: 230681.9469 | P179: 123254.8619 | Q179: 233533.9225 | R179: 105204.2769 | S179: 139258.7369 | T179: 164384.467 | U179: 73148.88953
A180: 1924 | B180: 1924 | C180: sp|Q99KH8|STK24_MOUSE | D180: Serine/threonine-protein kinase 24 OS=Mus musculus GN=Stk24 PE=1 SV=1 | G180: 0.5110014213 | H180: -0.9686007911 | I180: 0.2271638285 | J180: 55103.27488 | K180: 65636.36438 | L180: 14649.14305 | M180: 1023.766011 | N180: 50292.58841 | O180: 37890.29729 | P180: 7147.971548 | Q180: 2919.60987 | R180: 2798.933235 | S180: 54343.06986 | T180: 46100.14824 | U180: 1458.853239
A181: 2369 | B181: 2369 | C181: sp|Q9JIX0|ENY2_MOUSE | D181: Transcription and mRNA export factor ENY2 OS=Mus musculus GN=Eny2 PE=1 SV=1 | G181: 0.5458044115 | H181: -0.8735440396 | I181: 0.2302927762 | J181: 6296.617057 | K181: 13651.2345 | L181: 70336.40277 | M181: 46718.53724 | N181: 8780.92978 | O181: 36631.80474 | P181: 14591.67628 | Q181: 9221.01639 | R181: 24258.53504 | S181: 13783.94394 | T181: 27253.25996 | U181: 10454.76725
A182: 1116 | B182: 1116 | C182: sp|P58774|TPM2_MOUSE | D182: Tropomyosin beta chain OS=Mus musculus GN=Tpm2 PE=1 SV=1 | G182: 0.503732174 | H182: -0.9892712143 | I182: 0.2359163228 | J182: 105679.9295 | K182: 47760.82021 | L182: 255821.9555 | M182: 379187.2494 | N182: 34562.78977 | O182: 72785.82948 | P182: 132552.6928 | Q182: 104395.5097 | R182: 25057.42899 | S182: 38766.93382 | T182: 83987.90358 | U182: 66482.09416
A183: 1734 | B183: 1734 | C183: sp|P29595|NEDD8_MOUSE | D183: NEDD8 OS=Mus musculus GN=Nedd8 PE=1 SV=2 | G183: 0.5599166185 | H183: -0.8367160945 | I183: 0.2482426437 | J183: 154485.0943 | K183: 251037.3356 | L183: 993918.0879 | M183: 440137.2829 | N183: 123805.7582 | O183: 386619.5935 | P183: 86197.69925 | Q183: 318817.8218 | R183: 152180.6892 | S183: 316760.9157 | T183: 359449.3114 | U183: 82399.38123
A184: 2301 | B184: 2301 | C184: sp|Q9CQ19|MYL9_MOUSE | D184: Myosin regulatory light polypeptide 9 OS=Mus musculus GN=Myl9 PE=1 SV=3 | G184: 0.531416056 | H184: -0.9120862774 | I184: 0.2515975979 | J184: 31364.24558 | K184: 9504.00909 | L184: 15184.06794 | M184: 55945.14123 | N184: 1909.0292 | O184: 23588.72262 | P184: 25979.30653 | Q184: 18617.97637 | R184: 4046.125712 | S184: 4752.571286 | T184: 17841.74892 | U184: 1829.436402
A185: 2498 | B185: 2498 | C185: sp|Q8BMS4|COQ3_MOUSE | D185: Ubiquinone biosynthesis O-methyltransferase, mitochondrial OS=Mus musculus GN=Coq3 PE=1 SV=1 | G185: 2.165342169 | H185: 1.114595019 | I185: 0.2606127159 | J185: 65525.37026 | K185: 11064.38264 | L185: 5886.066896 | M185: 6753.699167 | N185: 12013.35566 | O185: 16104.39628 | P185: 13680.42916 | Q185: 2613.110474 | R185: 61610.17747 | S185: 109011.4575 | T185: 55789.70427 | U185: 11392.11528
A186: 2255 | B186: 2255 | C186: sp|Q99LS3|SERB_MOUSE | D186: Phosphoserine phosphatase OS=Mus musculus GN=Psph PE=1 SV=1 | G186: 0.5650255048 | H186: -0.8236121037 | I186: 0.2733188892 | J186: 78550.57495 | K186: 7834.166478 | L186: 39954.02339 | M186: 60176.86453 | N186: 6239.720898 | O186: 84096.10091 | P186: 15639.9694 | Q186: 9566.166939 | R186: 56694.60519 | S186: 7739.449545 | T186: 6507.011127 | U186: 60280.92875
A187: 12 | B187: 12 | C187: sp|Q7TMM9|TBB2A_MOUSE | D187: Tubulin beta-2A chain OS=Mus musculus GN=Tubb2a PE=1 SV=1 | G187: 0.2330902076 | H187: -2.101039699 | I187: 0.282936484 | J187: 111522.1725 | K187: 123187.7392 | L187: 314882.8706 | M187: 152871.2794 | N187: 2515408.8 | O187: 243313.1437 | P187: 98444.89258 | Q187: 142266.8644 | R187: 164395.783 | S187: 234799.3537 | T187: 116449.6629 | U187: 50412.00783
A188: 1236 | B188: 1236 | C188: sp|P15949|K1KB9_MOUSE | D188: Kallikrein 1-related peptidase b9 OS=Mus musculus GN=Klk1b9 PE=2 SV=1 | G188: 0.1841228537 | H188: -2.441259387 | I188: 0.2870374577 | J188: 20045.4007 | K188: 32293.56936 | L188: 43540.84108 | M188: 17811.64881 | N188: 636325.5832 | O188: 78805.00027 | P188: 43595.89453 | Q188: 13070.47144 | R188: 13466.38438 | S188: 13021.34809 | T188: 28816.482 | U188: 40634.49942
A189: 2203 | B189: 2203 | C189: sp|P15948|K1B22_MOUSE | D189: Kallikrein 1-related peptidase b22 OS=Mus musculus GN=Klk1b22 PE=1 SV=1 | G189: 0.3787247077 | H189: -1.40077855 | I189: 0.3157592034 | J189: 1470.399561 | K189: 15662.24902 | L189: 5026.787742 | M189: 18734.35985 | N189: 109792.4565 | O189: 21145.2708 | P189: 2413.394534 | Q189: 9493.270134 | R189: 747.9184333 | S189: 19017.27303 | T189: 16950.38557 | U189: 16454.60182
A190: 2365 | B190: 2365 | C190: sp|Q61754|K1B24_MOUSE | D190: Kallikrein 1-related peptidase b24 OS=Mus musculus GN=Klk1b24 PE=2 SV=3 | G190: 0.3026529 | H190: -1.72426392 | I190: 0.3344858227 | J190: 3670.133046 | K190: 4673.89835 | L190: 6495.514813 | M190: 8164.849178 | N190: 80207.00409 | O190: 5752.013723 | P190: 3983.81936 | Q190: 4621.31345 | R190: 9579.934298 | S190: 5039.290849 | T190: 1189.400803 | U190: 8564.334235
A191: 668 | B191: 668 | C191: sp|P50580|PA2G4_MOUSE | D191: Proliferation-associated protein 2G4 OS=Mus musculus GN=Pa2g4 PE=1 SV=3 | G191: 0.5049726986 | H191: -0.9857227043 | I191: 0.4268136941 | J191: 287954.3877 | K191: 325810.9746 | L191: 2698676.769 | M191: 245384.0013 | N191: 314266.0694 | O191: 262635.1096 | P191: 327204.8778 | Q191: 202764.8618 | R191: 782025.6411 | S191: 245865.5749 | T191: 222566.0565 | U191: 307497.3964

Sheet Figure 1-B
A1: 1,75_male P<0.05 | C1: Peak name
A2: sp | B2: Q8CA95 | C2: PDE10_MOUSE
A3: sp | B3: P46660 | C3: AINX_MOUSE
A4: sp | B4: P03930 | C4: ATP8_MOUSE
A5: sp | B5: Q80UW2 | C5: FBX2_MOUSE
A6: sp | B6: P84104 | C6: SRSF3_MOUSE
A7: sp | B7: Q9Z110 | C7: P5CS_MOUSE
A8: sp | B8: P17665 | C8: COX7C_MOUSE
A9: sp | B9: P68372 | C9: TBB4B_MOUSE
A10: sp | B10: P08551 | C10: NFL_MOUSE
A11: sp | B11: Q8CGP2 | C11: H2B1P_MOUSE
A12: sp | B12: Q8BTM8 | C12: FLNA_MOUSE
A13: sp | B13: P99024 | C13: TBB5_MOUSE
A14: sp | B14: Q8BMJ3 | C14: IF1AX_MOUSE
A15: sp | B15: Q5M8N4 | C15: D39U1_MOUSE
A16: sp | B16: Q99LC3 | C16: NDUAA_MOUSE
A17: sp | B17: Q02248 | C17: CTNB1_MOUSE
A18: sp | B18: Q9CYN9 | C18: RENR_MOUSE
A19: sp | B19: Q99L45 | C19: IF2B_MOUSE
A20: sp | B20: P09405 | C20: NUCL_MOUSE
A21: sp | B21: Q91ZR1 | C21: RAB4B_MOUSE
A22: sp | B22: Q78ZA7 | C22: NP1L4_MOUSE
A23: sp | B23: Q9CPQ1 | C23: COX6C_MOUSE
A24: sp | B24: O35381 | C24: AN32A_MOUSE
A25: sp | B25: Q9JJF0 | C25: NP1L5_MOUSE
A26: sp | B26: P23927 | C26: CRYAB_MOUSE
A27: sp | B27: Q6ZWN5 | C27: RS9_MOUSE
A28: sp | B28: Q8VE70 | C28: PDC10_MOUSE
A29: sp | B29: Q59J78 | C29: MIMIT_MOUSE
A30: sp | B30: P25444 | C30: RS2_MOUSE
A31: sp | B31: P41216 | C31: ACSL1_MOUSE
A32: sp | B32: Q8BGX2 | C32: CS052_MOUSE
A33: sp | B33: Q9EST5 | C33: AN32B_MOUSE
A34: sp | B34: P28656 | C34: NP1L1_MOUSE
A35: sp | B35: P68040 | C35: RACK1_MOUSE
A36: sp | B36: Q91YS8 | C36: KCC1A_MOUSE
A37: sp | B37: Q6GQS1 | C37: SCMC3_MOUSE
A38: sp | B38: Q71M36 | C38: CSPG5_MOUSE
A39: sp | B39: P67984 | C39: RL22_MOUSE
A40: sp | B40: P56382 | C40: ATP5E_MOUSE
A41: sp | B41: Q5XG69 | C41: F169A_MOUSE
A42: sp | B42: Q8VE09 | C42: TT39C_MOUSE
A43: sp | B43: P59325 | C43: IF5_MOUSE
A44: sp | B44: Q9D7S7 | C44: RL22L_MOUSE
A45: sp | B45: Q9R0P4 | C45: SMAP_MOUSE
A46: sp | B46: Q6ZWY8 | C46: TYB10_MOUSE
A47: sp | B47: P14131 | C47: RS16_MOUSE
A48: sp | B48: P0DN34 | C48: NDUB1_MOUSE
A49: sp | B49: Q99KN9 | C49: EPN4_MOUSE
A50: sp | B50: Q3THE2 | C50: ML12B_MOUSE
A51: sp | B51: P62855 | C51: RS26_MOUSE
A52: sp | B52: Q9CQI6 | C52: COTL1_MOUSE
A53: sp | B53: O35382 | C53: EXOC4_MOUSE
A54: sp | B54: Q6PGL7 | C54: FAM21_MOUSE
A55: sp | B55: P43274 | C55: H14_MOUSE
A56: sp | B56: Q9JL35 | C56: HMGN5_MOUSE
A57: sp | B57: O08795 | C57: GLU2B_MOUSE
A58: sp | B58: P62264 | C58: RS14_MOUSE
A59: sp | B59: P62301 | C59: RS13_MOUSE
A60: sp | B60: P62267 | C60: RS23_MOUSE
A61: sp | B61: P12023 | C61: A4_MOUSE
A62: sp | B62: P63158 | C62: HMGB1_MOUSE
A63: sp | B63: P60867 | C63: RS20_MOUSE
A64: sp | B64: Q9D8W7 | C64: OCAD2_MOUSE
A65: sp | B65: P62748 | C65: HPCL1_MOUSE
A66: sp | B66: Q9EQU5 | C66: SET_MOUSE
A67: sp | B67: P62281 | C67: RS11_MOUSE
A68: sp | B68: P58404 | C68: STRN4_MOUSE
A69: sp | B69: Q6NVE9 | C69: PPTC7_MOUSE
A70: sp | B70: P70663 | C70: SPRL1_MOUSE
A71: sp | B71: Q66JS6 | C71: EI3JB_MOUSE
A72: sp | B72: F6ZDS4 | C72: TPR_MOUSE
A73: sp | B73: P28184 | C73: MT3_MOUSE
A74: sp | B74: P56565 | C74: S10A1_MOUSE
A75: sp | B75: Q80ST9 | C75: LCA5_MOUSE
A76: sp | B76: P62761 | C76: VISL1_MOUSE
A77: sp | B77: P51859 | C77: HDGF_MOUSE
A78: sp | B78: P26350 | C78: PTMA_MOUSE
A79: sp | B79: P03995 | C79: GFAP_MOUSE

Sheet Figure 1-C
A1: ID | B1: Term | C1: Ontology Source | D1: GOLevels | E1: GOGroups | F1: % Associated Genes | G1: Nr. Genes | H1: Associated Genes Found
A2: GO:0014002 | B2: astrocyte development | C2: GO_BiologicalProcess-EBI-UniProt-GOA-ACAP-ARAP_13.05.2021_00h00 | D2: [5, 6, 7, 8, 9, 10] | E2: Group0 | F2: 7.317073345 | G2: 3 | H2: [App, Gfap, Mt3]
A3: GO:0042274 | B3: ribosomal small subunit biogenesis | C3: GO_BiologicalProcess-EBI-UniProt-GOA-ACAP-ARAP_13.05.2021_00h00 | D3: [5, 6] | E3: Group1 | F3: 4.05405426 | G3: 3 | H3: [Rps14, Rps16, Rps2]
A4: GO:0006119 | B4: oxidative phosphorylation | C4: GO_BiologicalProcess-EBI-UniProt-GOA-ACAP-ARAP_13.05.2021_00h00 | D4: [3, 7] | E4: Group2 | F4: 4.38596487 | G4: 5 | H4: [Atp5e, Cox6c, Cox7c, Ndufa10, Slc25a23]
A5: GO:0010257 | B5: NADH dehydrogenase complex assembly | C5: GO_BiologicalProcess-EBI-UniProt-GOA-ACAP-ARAP_13.05.2021_00h00 | D5: [7] | E5: Group3 | F5: 5.454545498 | G5: 3 | H5: [Ndufa10, Ndufaf2, Ndufb1-ps]
A6: GO:0032981 | B6: mitochondrial respiratory chain complex I assembly | C6: GO_BiologicalProcess-EBI-UniProt-GOA-ACAP-ARAP_13.05.2021_00h00 | D6: [7, 8] | E6: Group3 | F6: 5.454545498 | G6: 3 | H6: [Ndufa10, Ndufaf2, Ndufb1-ps]
A7: GO:0045104 | B7: intermediate filament cytoskeleton organization | C7: GO_BiologicalProcess-EBI-UniProt-GOA-ACAP-ARAP_13.05.2021_00h00 | D7: [3, 6] | E7: Group4 | F7: 5.454545498 | G7: 3 | H7: [Gfap, Ina, Nefl]
A8: GO:0005200 | B8: structural constituent of cytoskeleton | C8: GO_BiologicalProcess-EBI-UniProt-GOA-ACAP-ARAP_13.05.2021_00h00 | D8: [6] | E8: Group4 | F8: 7.042253494 | G8: 5 | H8: [Gfap, Ina, Nefl, Tubb4b, Tubb5]
A9: GO:0036475 | B9: neuron death in response to oxidative stress | C9: GO_BiologicalProcess-EBI-UniProt-GOA-ACAP-ARAP_13.05.2021_00h00 | D9: [4, 6, 7] | E9: Group5 | F9: 7.5 | G9: 3 | H9: [App, Ctnnb1, Rack1]
A10: GO:1903203 | B10: regulation of oxidative stress-induced neuron death | C10: GO_BiologicalProcess-EBI-UniProt-GOA-ACAP-ARAP_13.05.2021_00h00 | D10: [5, 6, 7, 8] | E10: Group5 | F10: 8.108108521 | G10: 3 | H10: [App, Ctnnb1, Rack1]
A11: GO:0046824 | B11: positive regulation of nucleocytoplasmic transport | C11: GO_BiologicalProcess-EBI-UniProt-GOA-ACAP-ARAP_13.05.2021_00h00 | D11: [4, 5, 6, 7, 8] | E11: Group6 | F11: 4.938271523 | G11: 4 | H11: [Anp32b, Camk1, Flna, Tpr]
A12: GO:1904591 | B12: positive regulation of protein import | C12: GO_BiologicalProcess-EBI-UniProt-GOA-ACAP-ARAP_13.05.2021_00h00 | D12: [4, 5, 6, 7, 8] | E12: Group6 | F12: 4.6875 | G12: 3 | H12: [App, Flna, Tpr]
A13: GO:0006611 | B13: protein export from nucleus | C13: GO_BiologicalProcess-EBI-UniProt-GOA-ACAP-ARAP_13.05.2021_00h00 | D13: [5, 6, 7, 8] | E13: Group6 | F13: 4.347826004 | G13: 3 | H13: [Anp32b, Camk1, Tpr]
A14: GO:0046825 | B14: regulation of protein export from nucleus | C14: GO_BiologicalProcess-EBI-UniProt-GOA-ACAP-ARAP_13.05.2021_00h00 | D14: [6, 7, 8, 9] | E14: Group6 | F14: 8.108108521 | G14: 3 | H14: [Anp32b, Camk1, Tpr]
A15: GO:0046827 | B15: positive regulation of protein export from nucleus | C15: GO_BiologicalProcess-EBI-UniProt-GOA-ACAP-ARAP_13.05.2021_00h00 | D15: [5, 6, 7, 8, 9, 10] | E15: Group6 | F15: 15 | G15: 3 | H15: [Anp32b, Camk1, Tpr]
A16: GO:0006333 | B16: chromatin assembly or disassembly | C16: GO_BiologicalProcess-EBI-UniProt-GOA-ACAP-ARAP_13.05.2021_00h00 | D16: [5, 7] | E16: Group7 | F16: 5 | G16: 9 | H16: [Anp32b, H1f4, H2bc22, Hmgb1, Nap1l1, Nap1l4, Nap1l5, Set, Tpr]
A17: GO:0034728 | B17: nucleosome organization | C17: GO_BiologicalProcess-EBI-UniProt-GOA-ACAP-ARAP_13.05.2021_00h00 | D17: [5, 6, 7] | E17: Group7 | F17: 5.673758984 | G17: 8 | H17: [Anp32b, H1f4, H2bc22, Nap1l1, Nap1l4, Nap1l5, Ptma, Set]
A18: GO:0031497 | B18: chromatin assembly | C18: GO_BiologicalProcess-EBI-UniProt-GOA-ACAP-ARAP_13.05.2021_00h00 | D18: [5, 6, 8] | E18: Group7 | F18: 5.732483864 | G18: 9 | H18: [Anp32b, H1f4, H2bc22, Hmgb1, Nap1l1, Nap1l4, Nap1l5, Set, Tpr]
A19: GO:0065004 | B19: protein-DNA complex assembly | C19: GO_BiologicalProcess-EBI-UniProt-GOA-ACAP-ARAP_13.05.2021_00h00 | D19: [6, 7] | E19: Group7 | F19: 4.255319118 | G19: 8 | H19: [Anp32b, H1f4, H2bc22, Hmgb1, Nap1l1, Nap1l4, Nap1l5, Set]
A20: GO:0006323 | B20: DNA packaging | C20: GO_BiologicalProcess-EBI-UniProt-GOA-ACAP-ARAP_13.05.2021_00h00 | D20: [7] | E20: Group7 | F20: 4.411764622 | G20: 9 | H20: [Anp32b, H1f4, H2bc22, Hmgb1, Nap1l1, Nap1l4, Nap1l5, Set, Tpr]
A21: GO:0006334 | B21: nucleosome assembly | C21: GO_BiologicalProcess-EBI-UniProt-GOA-ACAP-ARAP_13.05.2021_00h00 | D21: [6, 7, 8, 9] | E21: Group7 | F21: 6.796116352 | G21: 7 | H21: [Anp32b, H1f4, H2bc22, Nap1l1, Nap1l4, Nap1l5, Set]
A22: GO:0006413 | B22: translational initiation | C22: GO_BiologicalProcess-EBI-UniProt-GOA-ACAP-ARAP_13.05.2021_00h00 | D22: [3, 6, 7, 8] | E22: Group8 | F22: 5.309734344 | G22: 6 | H22: [Eif1ax, Eif2s2, Eif3j2, Eif5, Rps2, Tpr]
A23: GO:0002181 | B23: cytoplasmic translation | C23: GO_BiologicalProcess-EBI-UniProt-GOA-ACAP-ARAP_13.05.2021_00h00 | D23: [6, 7, 8] | E23: Group8 | F23: 7.476635456 | G23: 8 | H23: [Eif2s2, Eif3j2, Eif5, Rpl22, Rpl22l1, Rps2, Rps23, Rps26]
A24: GO:0002183 | B24: cytoplasmic translational initiation | C24: GO_BiologicalProcess-EBI-UniProt-GOA-ACAP-ARAP_13.05.2021_00h00 | D24: [4, 7, 8, 9] | E24: Group8 | F24: 11.4285717 | G24: 4 | H24: [Eif2s2, Eif3j2, Eif5, Rps2]
A25: GO:0001731 | B25: formation of translation preinitiation complex | C25: GO_BiologicalProcess-EBI-UniProt-GOA-ACAP-ARAP_13.05.2021_00h00 | D25: [5, 6, 7, 8, 9, 10] | E25: Group8 | F25: 23.07692337 | G25: 3 | H25: [Eif2s2, Eif5, Rps2]
A26: GO:0001732 | B26: formation of cytoplasmic translation initiation complex | C26: GO_BiologicalProcess-EBI-UniProt-GOA-ACAP-ARAP_13.05.2021_00h00 | D26: [5, 6, 7, 8, 9, 10] | E26: Group8 | F26: 18.75 | G26: 3 | H26: [Eif2s2, Eif3j2, Eif5]
A27: GO:0045182 | B27: translation regulator activity | C27: GO_BiologicalProcess-EBI-UniProt-GOA-ACAP-ARAP_13.05.2021_00h00 | D27: [6, 7, 8, 9] | E27: Group8 | F27: 5.109488964 | G27: 7 | H27: [Eif1ax, Eif2s2, Eif3j2, Eif5, Rpl22, Rps14, Rps9]
A28: GO:0008135 | B28: translation factor activity, RNA binding | C28: GO_BiologicalProcess-EBI-UniProt-GOA-ACAP-ARAP_13.05.2021_00h00 | D28: [6, 7, 8, 9, 10, 11] | E28: Group8 | F28: 4.761904716 | G28: 4 | H28: [Eif1ax, Eif2s2, Eif3j2, Eif5]
A29: GO:0003743 | B29: translation initiation factor activity | C29: GO_BiologicalProcess-EBI-UniProt-GOA-ACAP-ARAP_13.05.2021_00h00 | D29: [4, 7, 8, 9, 10, 11, 12] | E29: Group8 | F29: 7.547169685 | G29: 4 | H29: [Eif1ax, Eif2s2, Eif3j2, Eif5]

Sheet Figure 1-D
A1: enrichment.Component_GO
A2: term.description | B2: observed.gene.count | C2: background.gene.count | D2: FDR
A3: GO:0022627-cytosolic small ribosomal subunit | B3: 9 | C3: 41 | D3: 3.25e-11
A4: GO:0015935-small ribosomal subunit | B4: 10 | C4: 71 | D4: 3.45e-11
A5: GO:0022626-cytosolic ribosome | B5: 11 | C5: 107 | D5: 3.45e-11
A6: GO:0005737-cytoplasm | B6: 65 | C6: 9909 | D6: 7.59e-11
A7: GO:0005840-ribosome | B7: 13 | C7: 215 | D7: 7.59e-11
A8: GO:0044391-ribosomal subunit | B8: 12 | C8: 181 | D8: 1.62e-10
A9: GO:0005622-intracellular | B9: 69 | C9: 12462 | D9: 1.20e-08
A10: GO:0043232-intracellular non-membrane-bounded organelle | B10: 36 | C10: 3809 | D10: 9.61e-08
A11: GO:0032991-protein-containing complex | B11: 40 | C11: 4701 | D11: 1.16e-07
A12: GO:0043226-organelle | B12: 63 | C12: 10897 | D12: 1.21e-07
A13: GO:0043229-intracellular organelle | B13: 62 | C13: 10645 | D13: 1.57e-07
A14: GO:1990904-ribonucleoprotein complex | B14: 16 | C14: 765 | D14: 2.21e-07
A15: GO:0005623-cell | B15: 70 | C15: 14044 | D15: 1.10e-06
A16: GO:0031967-organelle envelope | B16: 16 | C16: 1015 | D16: 8.67e-06
A17: GO:0005829-cytosol | B17: 28 | C17: 3326 | D17: 7.15e-05
A18: GO:0019866-organelle inner membrane | B18: 9 | C18: 373 | D18: 0.00012
A19: GO:0043231-intracellular membrane-bounded organelle | B19: 51 | C19: 9088 | D19: 0.00014
A20: GO:0043209-myelin sheath | B20: 7 | C20: 212 | D20: 0.00018
A21: GO:0043227-membrane-bounded organelle | B21: 53 | C21: 9775 | D21: 0.00019
A22: GO:0005743-mitochondrial inner membrane | B22: 8 | C22: 321 | D22: 0.00027
A23: GO:0031966-mitochondrial membrane | B23: 10 | C23: 539 | D23: 0.00028
A24: GO:0097449-astrocyte projection | B24: 3 | C24: 15 | D24: 0.00042
A25: GO:0030018-Z disc | B25: 5 | C25: 127 | D25: 0.0012
A26: GO:0043005-neuron projection | B26: 15 | C26: 1429 | D26: 0.0012
A27: GO:0043198-dendritic shaft | B27: 4 | C27: 67 | D27: 0.0012
A28: GO:0045298-tubulin complex | B28: 2 | C28: 3 | D28: 0.0012
A29: GO:0098800-inner mitochondrial membrane protein complex | B29: 5 | C29: 131 | D29: 0.0012
A30: GO:0099512-supramolecular fiber | B30: 11 | C30: 809 | D30: 0.0012
A31: GO:0030425-dendrite | B31: 10 | C31: 694 | D31: 0.0014
A32: GO:0097450-astrocyte end-foot | B32: 2 | C32: 5 | D32: 0.0021
A33: GO:0005739-mitochondrion | B33: 13 | C33: 1312 | D33: 0.0049
A34: GO:0005791-rough endoplasmic reticulum | B34: 4 | C34: 110 | D34: 0.0050
A35: GO:0036477-somatodendritic compartment | B35: 11 | C35: 990 | D35: 0.0050
A36: GO:0043197-dendritic spine | B36: 5 | C36: 193 | D36: 0.0050
A37: GO:0005883-neurofilament | B37: 2 | C37: 10 | D37: 0.0054
A38: GO:0099568-cytoplasmic region | B38: 7 | C38: 439 | D38: 0.0063
A39: GO:0031090-organelle membrane | B39: 20 | C39: 2740 | D39: 0.0065
A40: GO:0048471-perinuclear region of cytoplasm | B40: 9 | C40: 730 | D40: 0.0069
A41: GO:0005641-nuclear envelope lumen | B41: 2 | C41: 13 | D41: 0.0075
A42: GO:0012505-endomembrane system | B42: 24 | C42: 3670 | D42: 0.0075
A43: GO:0070013-intracellular organelle lumen | B43: 25 | C43: 3882 | D43: 0.0075
A44: GO:0120025-plasma membrane bounded cell projection | B44: 17 | C44: 2172 | D44: 0.0075
A45: GO:0005634-nucleus | B45: 34 | C45: 6086 | D45: 0.0077
A46: GO:0044297-cell body | B46: 9 | C46: 776 | D46: 0.0086
A47: GO:0032432-actin filament bundle | B47: 3 | C47: 72 | D47: 0.0118
A48: GO:0005938-cell cortex | B48: 5 | C48: 261 | D48: 0.0120
A49: GO:0005856-cytoskeleton | B49: 15 | C49: 1933 | D49: 0.0132
A50: GO:0005753-mitochondrial ATP synthase complex | B50: 2 | C50: 21 | D50: 0.0142
A51: GO:0099513-polymeric cytoskeletal fiber | B51: 7 | C51: 581 | D51: 0.0208
A52: GO:0005635-nuclear envelope | B52: 6 | C52: 441 | D52: 0.0219
A53: GO:0031970-organelle envelope lumen | B53: 3 | C53: 96 | D53: 0.0232
A54: GO:0031430-M band | B54: 2 | C54: 29 | D54: 0.0238
A55: GO:0031981-nuclear lumen | B55: 21 | C55: 3386 | D55: 0.0238
A56: GO:0042788-polysomal ribosome | B56: 2 | C56: 30 | D56: 0.0246
A57: GO:0030426-growth cone | B57: 4 | C57: 209 | D57: 0.0286
A58: GO:0005882-intermediate filament | B58: 3 | C58: 120 | D58: 0.0387
A59: GO:0098794-postsynapse | B59: 6 | C59: 514 | D59: 0.0400

Sheet Figure 1-E
E1: CONTROL.MALE vs KP10.MALE | H1: CONTROL vs KP10 | K1: CONTROL MALE | L1: CONTROL MALE | M1: CONTROL MALE | N1: CONTROL MALE | O1: CONTROL MALE | P1: CONTROL MALE | Q1: KP10 MALE | R1: KP10 MALE | S1: KP10 MALE | T1: KP10 MALE | U1: KP10 MALE | V1: KP10 MALE
A2: Row | B2: Index | C2: Peak Name | D2: Group | E2: FoldChange | F2: log2 FC | G2: T.Test | H2: FoldChange | I2: log2 FC | J2: T.Test | K2: 7 | L2: 8 | M2: 9 | N2: 10 | O2: 11 | P2: 12 | Q2: 19 | R2: 22 | S2: 23 | T2: 24 | U2: 31 | V2: 32
A4: 93 | B4: 93 | C4: sp|P03995|GFAP_MOUSE | D4: Glial fibrillary acidic protein OS=Mus musculus GN=Gfap PE=1 SV=4 | E4: =AVERAGE(Q4:V4)/AVERAGE(K4:P4) -> 2.010097541 | F4: =LOG(E4,2) -> 1.007265511 | G4: =_xlfn.T.TEST(Q4:V4,K4:P4,2,2) -> 0.04822365975 | H4: =AVERAGE(Q4:V4)/AVERAGE(K4:P4) -> 2.010097541 | I4: =LOG(H4,2) -> 1.007265511 | J4: =_xlfn.T.TEST(Q4:V4,K4:P4,2,2) -> 0.04822365975 | K4: 2320834.744 | L4: 2850093.926 | M4: 812538.1187 | N4: 2437062.355 | O4: 1755992.843 | P4: 1442742.641 | Q4: 4694539.146 | R4: 2402146.227 | S4: 2113088.429 | T4: 7460400.875 | U4: 2819463.575 | V4: 3866217.005
A5: 895 | B5: 895 | C5: sp|P12023|A4_MOUSE | D5: Amyloid beta A4 protein OS=Mus musculus GN=App PE=1 SV=3 | E5: =AVERAGE(Q5:V5)/AVERAGE(K5:P5) -> 0.5145107888 | F5: -0.9587267656 | G5: =_xlfn.T.TEST(Q5:V5,K5:P5,2,2) -> 0.02470455497 | H5: =AVERAGE(Q5:V5)/AVERAGE(K5:P5) -> 0.5145107888 | I5: =LOG(H5,2) -> -0.9587267656 | J5: =_xlfn.T.TEST(Q5:V5,K5:P5,2,2) -> 0.02470455497 | K5: 326718.0685 | L5: 277213.2755 | M5: 680593.7714 | N5: 540268.4315 | O5: 273106.9026 | P5: 432883.2031 | Q5: 181763.6213 | R5: 163813.1598 | S5: 148802.3656 | T5: 133931.6309 | U5: 374613.2106 | V5: 299191.505
A6: 1616 | B6: 1616 | C6: sp|P28184|MT3_MOUSE | D6: Metallothionein-3 OS=Mus musculus GN=Mt3 PE=1 SV=1 | E6: =AVERAGE(Q6:V6)/AVERAGE(K6:P6) -> 0.4316881291 | F6: -1.211938674 | G6: =_xlfn.T.TEST(Q6:V6,K6:P6,2,2) -> 0.03671782128 | H6: =AVERAGE(Q6:V6)/AVERAGE(K6:P6) -> 0.4316881291 | I6: -1.211938674 | J6: =_xlfn.T.TEST(Q6:V6,K6:P6,2,2) -> 0.03671782128 | K6: 190658.2338 | L6: 113438.3 | M6: 531541.3155 | N6: 371577.0495 | O6: 168408.9833 | P6: 322941.3039 | Q6: 83753.0237 | R6: 128126.083 | S6: 67928.54599 | T6: 100398.0472 | U6: 202009.4926 | V6: 151035.2349
J8: Log2 | K8: CONTROL MALE | L8: CONTROL MALE | M8: CONTROL MALE | N8: CONTROL MALE | O8: CONTROL MALE | P8: CONTROL MALE | Q8: KP10 MALE | R8: KP10 MALE | S8: KP10 MALE | T8: KP10 MALE | U8: KP10 MALE | V8: KP10 MALE
J9: GFAP | K9: =LOG(K4,2) -> 21.14621237 | L9: 21.44257803 | M9: 19.63207597 | N9: 21.21671173 | O9: 20.74385553 | P9: 20.46038254 | Q9: 22.16255211 | R9: 21.19589255 | S9: 21.01092171 | T9: 22.83082172 | U9: 21.42698927 | V9: 21.88249119
J10: APP | K10: =LOG(K5,2) -> 18.31768672 | L10: 18.08063682 | M10: 19.37643442 | N10: 19.04331686 | O10: 18.05910625 | P10: 18.7236183 | Q10: 17.47170396 | R10: 17.32169173 | S10: 17.18303794 | T10: 17.0311372 | U10: 18.51504225 | V10: 18.19070969
J11: MT3 | K11: =LOG(K6,2) -> 17.54062931 | L11: 16.79154829 | M11: 19.01982231 | N11: 18.50330187 | O11: 17.36160957 | P11: 18.30091245 | Q11: 16.35385366 | R11: 16.96720467 | S11: 16.05173035 | T11: 16.61537168 | U11: 17.62406356 | V11: 17.20452563

Sheet Figure 1-F
A1: Spot nº | B1: ID MGI | C1: Name | D1: Av. Fold | E1: T-test | F1: BIOLOGICAL PROCESS-GO
A2: 1 | B2: MGI:97520 | C2: pyruvate carboxylase | D2: 1.50 | E2: 0.01 | F2: Metabolic Process-Gluconeogénesis
A3: 2 | B3: MGI:97555 | C3: phosphoglycerate kinase 1 | D3: 1.43 | E3: 0.001 | F3: Metabolic Process-Gluconeogenesis-Glycolisis
A4: 3 | B4: MGI:97050 | C4: malate dehydrogenase 2, NAD (mitochondrial) | D4: -2.52 | E4: 0.0004 | F4: Metabolic Process-Tricarboxylic Acid Cycle
A5: 4 | B5: MGI:96413 | C5: isocitrate dehydrogenase 1 (NADP+), soluble | D5: -1.26 | E5: 0.003 | F5: Metabolic Process-Tricarboxylic Acid Cycle
A6: 5 | B6: MGI:96103 | C6: hexokinase 1 | D6: 1.71 | E6: 0.001 | F6: Metabolic Process-Glycolisis
A7: 6 | B7: MGI:95678 | C7: guanine deaminase | D7: -1.21 | E7: 0.007 | F7: Metabolic Process-Guanine Catabolic Process
A8: 7 | B8: MGI:97828 | C8: brain glycogen phosphorylase | D8: 1.66 | E8: 0.03 | F8: Metabolic Process-Glycogen Catabolic Process
A9: 8 | B9: MGI:95753 | C9: glutamate dehydrogenase 1 | D9: -1.33 | E9: 0.02 | F9: Metabolic Process-Glutamate Catabolic Process,
A10: 9 | B10: MGI:1919082 | C10: citrate synthase-like | D10: 1.46 | E10: 0.007 | F10: Metabolic Process-Tricarboxylic Acid Cycle
A11: 10 | B11: MGI:88115 | C11: ATP synthase, H+ transporting, mitochondrial F1 complex, alpha subunit 1 | D11: -1.33 | E11: 0.008 | F11: Metabolic Process-Ion Transport
A12: 11 | B12: MGI:87994 | C12: aldolase A, fructose-bisphosphate | D12: 1.43 | E12: 0.009 | F12: Metabolic Process-Glycolisis
A13: 12 | B13: MGI:99600 | C13: aldehyde dehydrogenase 2, mitochondrial | D13: -1.26 | E13: 0.05 | F13: Metabolic Process-Oxidation Reduction Process
A14: 13 | B14: MGI:87880 | C14: aconitase 2, mitochondrial | D14: 1.41 | E14: 0.01 | F14: Metabolic Process-Tricarboxylic Acid Cycle
A15: 14 | B15: MGI:95393 | C15: 2-phospho-D-glycerate hydrolase | D15: 1.42 | E15: 0.04 | F15: Metabolic Process-Positive Regulation of Binding
A16: 15 | B16: MGI:1927664 | C16: sirtuin 1 (silent mating type information regulation 2, homolog) 1 | D16: 1.46 | E16: 0.02 | F16: Regulation of Glucose Metabolic Process-Cell Glucose Homeostasis
A17: 16 | B17: MGI:107363 | C17: syntaxin binding protein 1 | D17: 1.21 | E17: 0.009 | F17: Neurotransmitter Secretion-Synaptic Vesicle Maturation
A18: 17 | B18: MGI:98460 | C18: synapsin-1 | D18: -1.38 | E18: 0.04 | F18: Neurotransmitter Secretion-Synaptic Vesicle Maturation
A19: 18 | B19: MGI:95697 | C19: glial fibrillary acidic protein | D19: -1.36 | E19: 0.03 | F19: Neurotransmitter Uptake-Regulation of Glial Cell Proliferation
A20: 19 | B20: MGI:104652 | C20: capping protein (actin filament) muscle Z-line, beta | D20: -1.30 | E20: 0.009 | F20: Neuron Projection Development-Cell Projection Organization
A21: 20 | B21: MGI:107384 | C21: dynamin 1 | D21: 1.36 | E21: 0.04 | F21: Endocytosis-receptor internalization-Microtubule
A22: 21 | B22: MGI:107733 | C22: dynactin 2 | D22: 1.25 | E22: 0.02 | F22: Cell Proliferation-Microtubule Based Proces-Cell Proliferation
A23: 22 | B23: MGI:2140967 | C23: microtubule-associated protein, RP/EB family, member 3 | D23: 1.27 | E23: 0.04 | F23: Cell Cycle-Micortubule Binding
A24: 23 | B24: MGI:87907 | C24: gamma-actin | D24: -2.58 | E24: 0.02 | F24: Sarcomere Organization
A25: 31 | B25: MGI:104560 | C25: n-ethylmaleimide sensitive fusion protein | D25: -1.26 | E25: 0.003 | F25: Vesicle Mediated Transport-Regulation of Exocitosis
A26: 24 | B26: MGI:98869 | C26: tubulin, alpha 1A | D26: -2.41 | E26: 0.03 | F26: Microtubule Based Process
A27: 25 | B27: MGI:1346858 | C27: mitogen-activated protein kinase 1 | D27: 1.36 | E27: 0.04 | F27: Intracellular Signal Transduction-ERK1 and ERK2 cascade
A28: 26 | B28: MGI:1351869 | C28: pyridoxal (pyridoxine, vitamin B6) kinase | D28: -1.34 | E28: 0.03 | F28: Cell Proliferation-Phosphorylation
A29: 32 | B29: MGI:99441 | C29: Creatine kinase, mitochondrial1, ubiquitous | D29: 1.20 | E29: 0.005 | F29: Phosphorilation
A30: 27 | B30: MGI:97572 | C30: prohibitin | D30: 1.20 | E30: 0.04 | F30: Intracellular Signaling Pathaway-Cell Proliferation
A31: 28 | B31: MGI:96250 | C31: heat shock protein 90, alpha (cytosolic), class A member 1 | D31: 1.45 | E31: 0.004 | F31: Protein Folding-Neuron Migration
A32: 29 | B32: MGI:105384 | C32: Heat shock cognate 71 kDa protein | D32: -1.83 | E32: 0.02 | F32: Protein Folding-Regulation of Cell Cycle
A33: 30 | B33: MGI:1913495 | C33: HSPA (heat shock 70kDa) binding protein, cytoplasmic cochaperone 1 | D33: -1.49 | E33: 0.04 | F33: Protein Folding-Protein Ubiquitination

Sheet Figure 2-A
A1: Kiss1KO qPCR GFAP | D1: Kiss1KO western GFAP | G1: Kiss1KO qPCR Vimentin | J1: Kiss1KO western Vimentin
A2: Veh | B2: Kp-10 | D2: Veh | E2: Kp-10 | G2: Veh | H2: Kp-10 | J2: Veh | K2: Kp-10
A3: 1 | B3: 3.304 | D3: 0.736 | E3: 2.584 | G3: 1 | H3: 2.7513 | J3: 0.871 | K3: 0.987
A4: 1.6386 | B4: 2.4718 | D4: 0.94 | E4: 1.944 | G4: 1.0899 | H4: 1.9762 | J4: 0.764 | K4: 1.088
A5: 1.8128 | B5: 3.6924 | D5: 1.742 | E5: 2.327 | G5: 1.0181 | H5: 1.6082 | J5: 0.851 | K5: 0.978
H6: 1.6771
D7: Name gel: GFAP/bactin gel 1 | J7: Name gel: Vimentin/bactin gel 2

Sheet Figure 2-B
B3: Mouse | F3: Human
B4: Cortical astrocytes | C4: Hypothalamic astrocytes | F4: Cortical astrocytes | G4: Hypothalamic astrocytes
B5: 33.32326 | C5: 29.21868 | F5: 32.329 | G5: 32.318
B6: 27.08682 | C6: 28.9155 | F6: 34.014 | G6: 30.478
B7: 28.41729 | C7: 27.69217 | F7: 32.829 | G7: 31.777
B8: 28.11625 | C8: 27.59641 | F8: 30.459 | G8: 33.841
F9: 28.464 | G9: 32.329
F10: 31.393

Sheet Figure 2-C
A2: pERK | I2: pAKT
A3: Time | B3: Control | E3: Kp-10 | I3: Time | J3: Control | M3: Kp-10
A4: 1 | B4: 0.63 | C4: 0.64 | D4: 1.73 | E4: 2.74 | F4: 1.81 | G4: 2 | I4: 1 | J4: 0.48 | K4: 0.6 | L4: 1.92 | M4: 2.01 | N4: 1.7 | O4: 1.82
A5: 10 | B5: 0.86 | C5: 1.11 | D5: 1.03 | E5: 1.71 | F5: 1.55 | G5: 1.43 | I5: 10 | J5: 1.23 | K5: 0.93 | L5: 0.83 | M5: 1.86 | N5: 2.28 | O5: 1.76
A6: 30 | B6: 1 | C6: 1.07 | D6: 0.92 | E6: 1 | F6: 0.96 | G6: 0.95 | I6: 30 | J6: 0.85 | K6: 0.87 | L6: 1.28 | M6: 1.34 | N6: 0.76 | O6: 0.67
A14: Data analysis & gels
A16: pAKT | B16: RAT Culture
A17: 30' | C17: Name gel: pAKT 30' & 10' Kp-10 treatment | N17: 10' | O17: Name gel: pAKT 30' & 10' Kp-10 treatment | AA17: 1' | AB17: Name gel: pAKT 1' Kp-10 treatment
A18: pAKT | F18: Loading control | I18: 30' pAKT | N18: pAKT | S18: Loading control | V18: pAKT | AA18: P-Akt | AE18: Loading control | AI18: P-Akt
B19: DENSIDAD | C19: NETO | F19: DENSIDAD | G19: NETO | J19: DENSIDAD | K19: Average | L19: Normalization | O19: DENSIDAD | P19: NETO | S19: DENSIDAD | T19: NETO | W19: DENSIDAD | X19: Average | Y19: Normalization | AB19: DENSIDAD | AC19: NETO | AF19: DENSIDAD | AG19: NETO | AJ19: DENSIDAD | AK19: Average | AL19: Normalization
A20: BACKGROUND | B20: 139240 | C20: 0 | E20: BACKGROUND | F20: 92372 | G20: =F20-F20 -> 0 | I20: BACKGROUND | N20: BACKGROUND | O20: 107 | P20: 0 | R20: BACKGROUND | S20: 141139 | T20: =S20-S20 -> 0 | V20: BACKGROUND | AA20: BACKGROUND | AB20: 167639 | AC20: =AB20-AB20 -> 0 | AE20: BACKGROUND | AF20: 191847 | AG20: =AF20-AF20 -> 0 | AI20: BACKGROUND
A21: CONTROL | B21: 61383 | C21: -78 | E21: CONTROL | F21: 20834 | G21: =(F21-F20)/1000 -> -71.538 | I21: CONTROL | J21: =C21/G21 -> 1.090329615 | L21: =J21/K$23 -> 0.8539154598 | N21: CONTROL | O21: 66 | P21: -0.041 | R21: CONTROL | S21: 89888 | T21: =(S21-S20)/1000 -> -51.251 | V21: CONTROL | W21: =P21/T21 -> 0.0007999843905 | Y21: =W21/X$23 -> 1.233750134 | AA21: CONTROL | AB21: 155390 | AC21: =(AB21-AB20)/1000 -> -12.249 | AE21: CONTROL | AF21: 151323 | AG21: =(AF21-AF20)/1000 -> -40.524 | AI21: CONTROL | AJ21: =AC21/AG21 -> 0.3022653243 | AL21: =AJ21/AK$23 -> 0.4822426751
A22: CONTROL | B22: 76264 | C22: -63 | E22: CONTROL | F22: 35699 | G22: =(F22-F20)/1000 -> -56.673 | I22: CONTROL | J22: 1.111640464 | L22: 0.8706055166 | N22: CONTROL | O22: 57 | P22: -0.05 | R22: CONTROL | S22: 58540 | T22: =(S22-S20)/1000 -> -82.599 | V22: CONTROL | W22: =P22/T22 -> 0.000605334205 | Y22: 0.9335571607 | AA22: CONTROL | AB22: 153872 | AC22: =(AB22-AB20)/1000 -> -13.767 | AE22: CONTROL | AF22: 155385 | AG22: =(AF22-AF20)/1000 -> -36.462 | AI22: CONTROL | AJ22: 0.37757117 | AL22: 0.6023877582
A23: CONTROL | B23: 47379 | C23: -92 | E23: CONTROL | F23: 35882 | G23: =(F23-F20)/1000 -> -56.49 | I23: CONTROL | J23: 1.628606833 | K23: =AVERAGE(J21:J23) -> 1.276858971 | L23: 1.275479024 | N23: CONTROL | O23: 60 | P23: -0.047 | R23: CONTROL | S23: 54091 | T23: =(S23-S20)/1000 -> -87.048 | V23: CONTROL | W23: =P23/T23 -> 0.0005399319915 | X23: =AVERAGE(W21:W23) -> 0.0006484168624 | Y23: 0.8326927057 | AA23: CONTROL | AB23: 150176 | AC23: =(AB23-AB20)/1000 -> -17.463 | AE23: CONTROL | AF23: 177301 | AG23: =(AF23-AF20)/1000 -> -14.546 | AI23: CONTROL | AJ23: 1.20053623 | AK23: =AVERAGE(AJ21:AJ23) -> 0.626790908 | AL23: 1.915369567
A24: Kp10 | B24: 46734 | C24: -93 | E24: Kp10 | F24: 37824 | G24: =(F24-F20)/1000 -> -54.548 | I24: Kp10 | J24: 1.704920437 | L24: 1.33524569 | N24: Kp10 | O24: 25 | P24: -0.082 | R24: Kp10 | S24: 73322 | T24: =(S24-S20)/1000 -> -67.817 | V24: Kp10 | W24: 0.001209136352 | Y24: 1.864751555 | AA24: Kp10 | AB24: 136207 | AC24: =(AB24-AB20)/1000 -> -31.432 | AE24: Kp10 | AF24: 166856 | AG24: =(AF24-AF20)/1000 -> -24.991 | AI24: Kp10 | AJ24: 1.257732784 | AL24: 2.006622572
A25: Kp10 | B25: 84377 | C25: -55 | E25: Kp10 | F25: 35511 | G25: =(F25-F20)/1000 -> -56.861 | I25: Kp10 | J25: 0.9672710645 | L25: 0.7575394674 | N25: Kp10 | O25: 15 | P25: -0.092 | R25: Kp10 | S25: 78975 | T25: =(S25-S20)/1000 -> -62.164 | V25: Kp10 | W25: 0.001479956245 | Y25: 2.282414802 | AA25: Kp10 | AB25: 150392 | AC25: =(AB25-AB20)/1000 -> -17.247 | AE25: Kp10 | AF25: 175688 | AG25: =(AF25-AF20)/1000 -> -16.159 | AI25: Kp10 | AJ25: 1.067330899 | AL25: 1.702850002
A26: Kp10 | B26: 94835 | C26: -44 | E26: Kp10 | F26: 41203 | G26: =(F26-F20)/1000 -> -51.169 | I26: Kp10 | J26: 0.8598956399 | K26: =AVERAGE(J24:J26) -> 1.177362381 | L26: 0.6734460577 | N26: Kp10 | O26: 45 | P26: -0.062 | R26: Kp10 | S26: 86902 | T26: =(S26-S20)/1000 -> -54.237 | V26: Kp10 | W26: 0.001143131073 | X26: =AVERAGE(W24:W26) -> 0.00127740789 | Y26: 1.762957041 | AA26: Kp10 | AB26: 134995 | AC26: =(AB26-AB20)/1000 -> -32.644 | AE26: Kp10 | AF26: 163232 | AG26: =(AF26-AF20)/1000 -> -28.615 | AI26: Kp10 | AJ26: 1.14080028 | AK26: =AVERAGE(AJ24:AJ26) -> 1.155287988 | AL26: 1.820065136
A30: 30' | C30: Name gel: pERK 30' & 10' Kp-10 treatment | N30: 10' | O30: Name gel: pERK 30' & 10' Kp-10 treatment | AA30: 1' | AC30: Name gel: pERK 1' Kp-10 treatment
A31: P-ERK | F31: Loading control | I31: P-ERK | N31: P-ERK | S31: Loading control | V31: P-ERK | AA31: P-ERK | AF31: Loading control | AI31: P-ERK
B32: DENSIDAD | C32: NETO | F32: DENSIDAD | G32: NETO | J32: DENSIDAD | K32: Average | L32: Normalization | O32: DENSIDAD | P32: NETO | S32: DENSIDAD | T32: NETO | W32: DENSIDAD | X32: Average | Y32: Normalization | AB32: DENSIDAD | AC32: NETO | AF32: DENSIDAD | AG32: NETO | AJ32: DENSIDAD | AK32: Average | AL32: Normalization
A33: BACKGROUND | B33: 115769 | C33: 0 | E33: BACKGROUND | F33: 92372 | G33: =F33-F33 -> 0 | I33: BACKGROUND | N33: BACKGROUND | O33: 109286 | P33: =O33-O33 -> 0 | R33: BACKGROUND | S33: 141139 | T33: =S33-S33 -> 0 | V33: BACKGROUND | AA33: BACKGROUND | AB33: 163718 | AC33: =AB33-AB33 -> 0 | AE33: BACKGROUND | AF33: 192618 | AG33: =AF33-AF33 -> 0 | AI33: BACKGROUND
A34: CONTROL | B34: 36290 | C34: -79.479 | E34: CONTROL | F34: 20834 | G34: =(F34-F33)/1000 -> -71.538 | I34: CONTROL | J34: =C34/G34 -> 1.111003942 | L34: =J34/K$36 -> 1.004352938 | N34: CONTROL | O34: 80337 | P34: =(O34-O33)/1000 -> -28.949 | R34: CONTROL | S34: 89888 | T34: =(S34-S33)/1000 -> -51.251 | V34: CONTROL | W34: =P34/T34 -> 0.5648475152 | Y34: =W34/X$36 -> 0.856807961 | AA34: CONTROL | AB34: 149688 | AC34: =(AB34-AB33)/1000 -> -14.03 | AE34: CONTROL | AF34: 149371 | AG34: =(AF34-AF33)/1000 -> -43.247 | AI34: CONTROL | AJ34: =AC34/AG34 -> 0.3244155664 | AL34: =AJ34/AK$36 -> 0.6258416231
A35: CONTROL | B35: 48628 | C35: -67.141 | E35: CONTROL | F35: 35699 | G35: =(F35-F33)/1000 -> -56.673 | I35: CONTROL | J35: =C35/G35 -> 1.184708768 | L35: 1.070982457 | N35: CONTROL | O35: 48866 | P35: =(O35-O33)/1000 -> -60.42 | R35: CONTROL | S35: 58540 | T35: =(S35-S33)/1000 -> -82.599 | V35: CONTROL | W35: =P35/T35 -> 0.7314858533 | Y35: 1.109578932 | AA35: CONTROL | AB35: 150840 | AC35: =(AB35-AB33)/1000 -> -12.878 | AE35: CONTROL | AF35: 153971 | AG35: =(AF35-AF33)/1000 -> -38.647 | AI35: CONTROL | AJ35: =AC35/AG35 -> 0.3332212073 | AL35: 0.6428288986
A36: CONTROL | B36: 57988 | C36: -57.781 | E36: CONTROL | F36: 35882 | G36: =(F36-F33)/1000 -> -56.49 | I36: CONTROL | J36: =C36/G36 -> 1.022853602 | K36: =AVERAGE(J34:J36) -> 1.106188771 | L36: 0.9246646047 | M36: =AVERAGE(L34:L36) -> 1 | N36: CONTROL | O36: 49971 | P36: =(O36-O33)/1000 -> -59.315 | R36: CONTROL | S36: 54091 | T36: =(S36-S33)/1000 -> -87.048 | V36: CONTROL | W36: =P36/T36 -> 0.6814056612 | X36: =AVERAGE(W34:W36) -> 0.6592463433 | Y36: 1.033613107 | AA36: CONTROL | AB36: 148077 | AC36: =(AB36-AB33)/1000 -> -15.641 | AE36: CONTROL | AF36: 175190 | AG36: =(AF36-AF33)/1000 -> -17.428 | AI36: CONTROL | AJ36: 0.8974638513 | AK36: =AVERAGE(AJ34:AJ36) -> 0.518366875 | AL36: 1.731329478
A37: Kp10 | B37: 55217 | C37: -60.552 | E37: Kp10 | F37: 37824 | G37: =(F37-F33)/1000 -> -54.548 | I37: Kp10 | J37: 1.110068197 | L37: 1.00350702 | N37: Kp10 | O37: 33039 | P37: =(O37-O33)/1000 -> -76.247 | R37: Kp10 | S37: 73322 | T37: =(S37-S33)/1000 -> -67.817 | V37: Kp10 | W37: 1.124305115 | Y37: 1.705440048 | AA37: Kp10 | AB37: 125206 | AC37: =(AB37-AB33)/1000 -> -38.512 | AE37: Kp10 | AF37: 165526 | AG37: =(AF37-AF33)/1000 -> -27.092 | AI37: Kp10 | AJ37: =AC37/AG37 -> 1.42152665 | AL37: 2.742317687
A38: Kp10 | B38: 55118 | C38: -60.651 | E38: Kp10 | F38: 35511 | G38: =(F38-F33)/1000 -> -56.861 | I38: Kp10 | J38: 1.06665377 | L38: 0.9642601678 | N38: Kp10 | O38: 45822 | P38: =(O38-O33)/1000 -> -63.464 | R38: Kp10 | S38: 78975 | T38: =(S38-S33)/1000 -> -62.164 | V38: Kp10 | W38: 1.020912425 | Y38: 1.548605367 | AA38: Kp10 | AB38: 146971 | AC38: =(AB38-AB33)/1000 -> -16.747 | AE38: Kp10 | AF38: 174725 | AG38: =(AF38-AF33)/1000 -> -17.893 | AI38: Kp10 | AJ38: 0.9359526072 | AL38: 1.805579508
A39: Kp10 | B39: 62027 | C39: -53.742 | E39: Kp10 | F39: 41203 | G39: =(F39-F33)/1000 -> -51.169 | I39: Kp10 | J39: 1.050284352 | K39: =AVERAGE(J37:J39) -> 1.075668773 | L39: 0.9494621349 | M39: =AVERAGE(L37:L39) -> 0.9724097742 | N39: Kp10 | O39: 58021 | P39: =(O39-O33)/1000 -> -51.265 | R39: Kp10 | S39: 86902 | T39: =(S39-S33)/1000 -> -54.237 | V39: Kp10 | W39: 0.9452034589 | X39: =AVERAGE(W37:W39) -> 1.030140333 | Y39: 1.433763674 | AA39: Kp10 | AB39: 130233 | AC39: =(AB39-AB33)/1000 -> -33.485 | AE39: Kp10 | AF39: 160355 | AG39: =(AF39-AF33)/1000 -> -32.263 | AI39: Kp10 | AJ39: 1.037876205 | AK39: =AVERAGE(AJ37:AJ39) -> 1.131785154 | AL39: 2.002203951
I43: Name gels loading control: 2014-01-21 astrocitos 1'_2; 2013-12-03 astrocitos 10' ; 2013-12-03 astrocitos 30'

Sheet Figure 2-D
A2: pERK/ERK
A3: Cortical astrocytes | D3: Hypothalamic astrocytes
A4: 100 | B4: 100 | C4: 100 | D4: 100 | E4: 100 | F4: 100 | G4: Control
A5: 81.42197 | B5: 92.00552 | C5: 86.20071 | D5: 186.7683 | E5: 194.105 | F5: 163.3611 | G5: Kp-10
A6: 3334.345 | B6: 9134.918 | C6: 8585.958 | D6: 1073.977 | E6: 269.2207 | F6: 397.5525 | G6: EGF
A8: Name gel: Western blots scans_Ctx Hyp astro
A10: pAKT/AKT
A11: Cortical astrocytes | D11: Hypothalamic astrocytes
A12: 100 | B12: 100 | C12: 100 | D12: 100 | E12: 100 | F12: 100 | G12: Control
A13: 73.97055 | B13: 88.90281 | C13: 103.026 | D13: 87.59039 | E13: 95.44238 | F13: 113.5006 | G13: Kp-10
A14: 864.8159 | B14: 911.4093 | C14: 759.2316 | D14: 195.8623 | E14: 144.2529 | F14: 140.5305 | G14: EGF
A16: Name gel: Western blots scans_Ctx Hyp astro

Sheet Figure 3-C
F1: Individual data
A2: %GFAP/S100β-positive cells co-expressing Kiss1r co-expressing Kiss1r | F2: ID Mouse | H2: 250x250mm
A3: CTX | B3: ARC | C3: AVPV | D3: OVLT | F3: H2932 | G3: Name file | H3: Area | I3: Total GFAP/S100b-positive cells | J3: Co-expression with Kiss1r | K3: % GFAP/S100b co-expressing Kiss1r
A4: 52.22 | B4: 81.46 | C4: 69.38 | D4: 75 | G4: 20221102_RNAscope_S100488_Kiss1R568_GFAP647_H2932_APO8_tiles_Maximum intensity projection.czi | H4: AVPV left | I4: 5 | J4: 5 | K4: =J4/I4*100 -> 100
A5: 11.11 | B5: 76.88 | C5: 58.33 | D5: 83.33 | G5: 20221102_RNAscope_S100488_Kiss1R568_GFAP647_H2932_APO8_tiles_Maximum intensity projection.czi | H5: AVPV left 2 | I5: 5 | J5: 5 | K5: =J5/I5*100 -> 100
A6: 56.94 | B6: 73.84 | C6: 73.13 | D6: 62.5 | G6: 20221102_RNAscope_S100488_Kiss1R568_GFAP647_H2932_APO8_tiles_Maximum intensity projection.czi | H6: AVPV right | I6: 5 | J6: 3 | K6: =J6/I6*100 -> 60
A7: 53.06 | B7: 58.91 | C7: 67.29 | G7: 20221102_RNAscope_S100488_Kiss1R568_GFAP647_H2932_APO8_tiles_Maximum intensity projection.czi | H7: AVPV right | I7: 3 | J7: 2 | K7: 66.66666667
G8: 20221102_RNAscope_S100488_Kiss1R568_GFAP647_H2932_APO8_tiles_Maximum intensity projection.czi | H8: OVLT | I8: 3 | J8: 2 | K8: =J8/I8*100 -> 66.66666667
G9: 20221102_RNAscope_S100488_Kiss1R568_GFAP647_H2932_APO9_tiles_Maximum intensity projection.czi | H9: AVPV left | I9: 3 | J9: 1 | K9: =J9/I9*100 -> 33.33333333
G10: 20221102_RNAscope_S100488_Kiss1R568_GFAP647_H2932_APO9_tiles_Maximum intensity projection.czi | H10: AVPV left 2 | I10: 4 | J10: 3 | K10: =J10/I10*100 -> 75
G11: 20221102_RNAscope_S100488_Kiss1R568_GFAP647_H2932_APO9_tiles_Maximum intensity projection.czi | H11: AVPV right | I11: 5 | J11: 2 | K11: =J11/I11*100 -> 40
G12: 20221102_RNAscope_S100488_Kiss1R568_GFAP647_H2932_APO9_tiles_Maximum intensity projection.czi | H12: AVPV right | I12: 5 | J12: 4 | K12: 80
G13: 20221102_RNAscope_S100488_Kiss1R568_GFAP647_H2932_APO9_tiles_Maximum intensity projection.czi | H13: OVLT | I13: 6 | J13: 5 | K13: 83.33333333
G14: 20221102_RNAscope_S100488_Kiss1R568_GFAP647_H2932_ME11_tiles_Cx_Maximum intensity projection.czi | H14: CTX | I14: 3 | J14: 2 | K14: 66.66666667
G15: 20221102_RNAscope_S100488_Kiss1R568_GFAP647_H2932_ME11_tiles_Cx_Maximum intensity projection.czi | H15: CTX 2 | I15: 4 | J15: 3 | K15: 75
G16: 20221102_RNAscope_S100488_Kiss1R568_GFAP647_H2932_ME11_tiles_Cx_Maximum intensity projection.czi | H16: CTX 3 | I16: 5 | J16: 2 | K16: 40
G17: 20221102_RNAscope_S100488_Kiss1R568_GFAP647_H2932_ME11_tiles_MBH_Maximum intensity projection.czi | H17: ARC left | I17: 6 | J17: 5 | K17: 83.33333333
G18: 20221102_RNAscope_S100488_Kiss1R568_GFAP647_H2932_ME11_tiles_MBH_Maximum intensity projection.czi | H18: ARC left 2 | I18: 6 | J18: 5 | K18: 83.33333333
G19: 20221102_RNAscope_S100488_Kiss1R568_GFAP647_H2932_ME11_tiles_MBH_Maximum intensity projection.czi | H19: ARC right | I19: 8 | J19: 6 | K19: 75
G20: 20221102_RNAscope_S100488_Kiss1R568_GFAP647_H2932_ME11_tiles_MBH_Maximum intensity projection.czi | H20: ARC right 2 | I20: 6 | J20: 5 | K20: 83.33333333
G21: 20221102_RNAscope_S100488_Kiss1R568_GFAP647_H2932_ME12_tiles_Cx_Maximum intensity projection.czi | H21: CTX | I21: 4 | J21: 1 | K21: 25
G22: 20221102_RNAscope_S100488_Kiss1R568_GFAP647_H2932_ME12_tiles_Cx_Maximum intensity projection.czi | H22: CTX 2 | I22: 5 | J22: 2 | K22: 40
G23: 20221102_RNAscope_S100488_Kiss1R568_GFAP647_H2932_ME12_tiles_Cx_Maximum intensity projection.czi | H23: CTX 3 | I23: 3 | J23: 2 | K23: 66.66666667
G24: 20221102_RNAscope_S100488_Kiss1R568_GFAP647_H2932_ME12_tiles_MBH_Maximum intensity projection.czi | H24: ARC left | I24: 10 | J24: 6 | K24: 60
G25: 20221102_RNAscope_S100488_Kiss1R568_GFAP647_H2932_ME12_tiles_MBH_Maximum intensity projection.czi | H25: ARC left 2 | I25: 6 | J25: 4 | K25: 66.66666667
G26: 20221102_RNAscope_S100488_Kiss1R568_GFAP647_H2932_ME12_tiles_MBH_Maximum intensity projection.czi | H26: ARC right | I26: 5 | J26: 5 | K26: 100
G27: 20221102_RNAscope_S100488_Kiss1R568_GFAP647_H2932_ME12_tiles_MBH_Maximum intensity projection.czi | H27: ARC right 2 | I27: 2 | J27: 2 | K27: 100
F29: H2940
G30: 20221102_RNAscope_S100488_Kiss1R568_GFAP647_H2940_APO9_tiles_Maximum intensity projection.czi | H30: OVLT | I30: 3 | J30: 3 | K30: =J30/I30*100 -> 100
G31: 20221102_RNAscope_S100488_Kiss1R568_GFAP647_H2940_APO13_tiles_Maximum intensity projection.czi | H31: OVLT | I31: 3 | J31: 2 | K31: 66.66666667
G32: 20221102_RNAscope_S100488_Kiss1R568_GFAP647_H2940_APO13_tiles_Maximum intensity projection.czi | H32: AVPV left | I32: 6 | J32: 4 | K32: 66.66666667
G33: 20221102_RNAscope_S100488_Kiss1R568_GFAP647_H2940_APO13_tiles_Maximum intensity projection.czi | H33: AVPV right | I33: 4 | J33: 2 | K33: 50
G34: 20221102_RNAscope_S100488_Kiss1R568_GFAP647_H2940_ME10_tiles_Cx_Maximum intensity projection.czi | H34: CTX | I34: 3 | J34: 1 | K34: 33.33333333
G35: 20221102_RNAscope_S100488_Kiss1R568_GFAP647_H2940_ME10_tiles_Cx_Maximum intensity projection.czi | H35: CTX 2 | I35: 3 | J35: 0 | K35: 0
G36: 20221102_RNAscope_S100488_Kiss1R568_GFAP647_H2940_ME10_tiles_Cx_Maximum intensity projection.czi | H36: CTX 3 | I36: 3 | J36: 0 | K36: 0
G37: 20221102_RNAscope_S100488_Kiss1R568_GFAP647_H2940_ME10_tiles_MBH_Maximum intensity projection.czi | H37: ARC left | I37: 5 | J37: 3 | K37: 60
G38: 20221102_RNAscope_S100488_Kiss1R568_GFAP647_H2940_ME10_tiles_MBH_Maximum intensity projection.czi | H38: ARC left 2 | I38: 4 | J38: 2 | K38: 50
G39: 20221102_RNAscope_S100488_Kiss1R568_GFAP647_H2940_ME10_tiles_MBH_Maximum intensity projection.czi | H39: ARC right | I39: 5 | J39: 5 | K39: 100
G40: 20221102_RNAscope_S100488_Kiss1R568_GFAP647_H2940_ME10_tiles_MBH_Maximum intensity projection.czi | H40: ARC right 2 | I40: 6 | J40: 5 | K40: 83.33333333
G41: 20221102_RNAscope_S100488_Kiss1R568_GFAP647_H2940_ME13_tiles_Cx_Maximum intensity projection.czi | H41: CTX | I41: 5 | J41: 3 | K41: 60
G42: 20221102_RNAscope_S100488_Kiss1R568_GFAP647_H2940_ME13_tiles_Cx_Maximum intensity projection.czi | H42: CTX 2 | I42: 4 | J42: 2 | K42: 50
G43: 20221102_RNAscope_S100488_Kiss1R568_GFAP647_H2940_ME13_tiles_Cx_Maximum intensity projection.czi | H43: CTX 3 | I43: 5 | J43: 2 | K43: 40
G44: 20221102_RNAscope_S100488_Kiss1R568_GFAP647_H2940_ME13_tiles_MBH_Maximum intensity projection.czi | H44: ARC left | I44: 3 | J44: 2 | K44: 66.66666667
G45: 20221102_RNAscope_S100488_Kiss1R568_GFAP647_H2940_ME13_tiles_MBH_Maximum intensity projection.czi | H45: ARC left 2 | I45: 4 | J45: 4 | K45: 100
G46: 20221102_RNAscope_S100488_Kiss1R568_GFAP647_H2940_ME13_tiles_MBH_Maximum intensity projection.czi | H46: ARC right | I46: 4 | J46: 3 | K46: 75
G47: 20221102_RNAscope_S100488_Kiss1R568_GFAP647_H2940_ME13_tiles_MBH_Maximum intensity projection.czi | H47: ARC right 2 | I47: 5 | J47: 4 | K47: 80
F49: H2997
G50: 20221102_RNAscope_S100488_Kiss1R568_GFAP647_H2997_APO10_tiles_Maximum intensity projection.czi | H50: AVPV left | I50: 5 | J50: 4 | K50: =J50/I50*100 -> 80
G51: 20221102_RNAscope_S100488_Kiss1R568_GFAP647_H2997_APO10_tiles_Maximum intensity projection.czi | H51: AVPV left 2 | I51: 4 | J51: 2 | K51: 50
G52: 20221102_RNAscope_S100488_Kiss1R568_GFAP647_H2997_APO10_tiles_Maximum intensity projection.czi | H52: AVPV right | I52: 3 | J52: 3 | K52: 100
G53: 20221102_RNAscope_S100488_Kiss1R568_GFAP647_H2997_APO10_tiles_Maximum intensity projection.czi | H53: AVPV right | I53: 3 | J53: 2 | K53: 66.66666667
G54: 20221102_RNAscope_S100488_Kiss1R568_GFAP647_H2997_APO10_tiles_Maximum intensity projection.czi | H54: OVLT | I54: 4 | J54: 2 | K54: 50
G55: 20221102_RNAscope_S100488_Kiss1R568_GFAP647_H2997_APO12_tiles_Maximum intensity projection.czi | H55: AVPV left | I55: 5 | J55: 4 | K55: 80
G56: 20221102_RNAscope_S100488_Kiss1R568_GFAP647_H2997_APO12_tiles_Maximum intensity projection.czi | H56: AVPV left 2 | I56: 3 | J56: 1 | K56: 33.33333333
G57: 20221102_RNAscope_S100488_Kiss1R568_GFAP647_H2997_APO12_tiles_Maximum intensity projection.czi | H57: AVPV right | I57: 4 | J57: 3 | K57: 75
G58: 20221102_RNAscope_S100488_Kiss1R568_GFAP647_H2997_APO12_tiles_Maximum intensity projection.czi | H58: AVPV right | I58: 3 | J58: 3 | K58: 100
G59: 20221102_RNAscope_S100488_Kiss1R568_GFAP647_H2997_APO12_tiles_Maximum intensity projection.czi | H59: OVLT | I59: 4 | J59: 3 | K59: 75
G60: 20221102_RNAscope_S100488_Kiss1R568_GFAP647_H2997_ME14_tiles_Cx_Maximum intensity projection.czi | H60: CTX | I60: 4 | J60: 2 | K60: 50
G61: 20221102_RNAscope_S100488_Kiss1R568_GFAP647_H2997_ME14_tiles_Cx_Maximum intensity projection.czi | H61: CTX 2 | I61: 3 | J61: 2 | K61: 66.66666667
G62: 20221102_RNAscope_S100488_Kiss1R568_GFAP647_H2997_ME14_tiles_Cx_Maximum intensity projection.czi | H62: CTX 3 | I62: 4 | J62: 2 | K62: 50
G63: 20221102_RNAscope_S100488_Kiss1R568_GFAP647_H2997_ME14_tiles_MBH_Maximum intensity projection.czi | H63: ARC left | I63: 5 | J63: 4 | K63: 80
G64: 20221102_RNAscope_S100488_Kiss1R568_GFAP647_H2997_ME14_tiles_MBH_Maximum intensity projection.czi | H64: ARC left 2 | I64: 3 | J64: 2 | K64: 66.66666667
G65: 20221102_RNAscope_S100488_Kiss1R568_GFAP647_H2997_ME14_tiles_MBH_Maximum intensity projection.czi | H65: ARC right | I65: 7 | J65: 6 | K65: 85.71428571
G66: 20221102_RNAscope_S100488_Kiss1R568_GFAP647_H2997_ME14_tiles_MBH_Maximum intensity projection.czi | H66: ARC right 2 | I66: 3 | J66: 2 | K66: 66.66666667
G67: 20221102_RNAscope_S100488_Kiss1R568_GFAP647_H2997_ME15_tiles_Cx_Maximum intensity projection.czi | H67: CTX | I67: 3 | J67: 2 | K67: 66.66666667
G68: 20221102_RNAscope_S100488_Kiss1R568_GFAP647_H2997_ME15_tiles_Cx_Maximum intensity projection.czi | H68: CTX 2 | I68: 4 | J68: 3 | K68: 75
G69: 20221102_RNAscope_S100488_Kiss1R568_GFAP647_H2997_ME15_tiles_Cx_Maximum intensity projection.czi | H69: CTX 3 | I69: 3 | J69: 1 | K69: 33.33333333
G70: 20221102_RNAscope_S100488_Kiss1R568_GFAP647_H2997_ME15_tiles_MBH_Maximum intensity projection.czi | H70: ARC left | I70: 4 | J70: 3 | K70: 75
G71: 20221102_RNAscope_S100488_Kiss1R568_GFAP647_H2997_ME15_tiles_MBH_Maximum intensity projection.czi | H71: ARC left 2 | I71: 4 | J71: 2 | K71: 50
G72: 20221102_RNAscope_S100488_Kiss1R568_GFAP647_H2997_ME15_tiles_MBH_Maximum intensity projection.czi | H72: ARC right | I72: 3 | J72: 2 | K72: 66.66666667
G73: 20221102_RNAscope_S100488_Kiss1R568_GFAP647_H2997_ME15_tiles_MBH_Maximum intensity projection.czi | H73: ARC right 2 | I73: 2 | J73: 2 | K73: 100
F76: H2949 | G76: 20221117_RNAscope_S100488_Kiss1R568_GFAP647_H2949_APO9_tiles_Maximum intensity projection.czi | H76: AVPV left | I76: 5 | J76: 4 | K76: =J76/I76*100 -> 80
G77: 20221117_RNAscope_S100488_Kiss1R568_GFAP647_H2949_APO9_tiles_Maximum intensity projection.czi | H77: AVPV left 2 | I77: 6 | J77: 3 | K77: 50
G78: 20221117_RNAscope_S100488_Kiss1R568_GFAP647_H2949_APO9_tiles_Maximum intensity projection.czi | H78: AVPV right | I78: 5 | J78: 5 | K78: 100
G79: 20221117_RNAscope_S100488_Kiss1R568_GFAP647_H2949_APO9_tiles_Maximum intensity projection.czi | H79: AVPV right | I79: 4 | J79: 3 | K79: 75
G80: 20221117_RNAscope_S100488_Kiss1R568_GFAP647_H2949_ME7_tiles_Cx_Maximum intensity projection.czi | H80: CTX | I80: 5 | J80: 2 | K80: 40
G81: 20221117_RNAscope_S100488_Kiss1R568_GFAP647_H2949_ME7_tiles_Cx_Maximum intensity projection.czi | H81: CTX 2 | I81: 4 | J81: 2 | K81: 50
G82: 20221117_RNAscope_S100488_Kiss1R568_GFAP647_H2949_ME7_tiles_Cx_Maximum intensity projection.czi | H82: CTX 3 | I82: 5 | J82: 2 | K82: 40
G83: 20221117_RNAscope_S100488_Kiss1R568_GFAP647_H2949_ME10_tiles_Cx_Maximum intensity projection.czi | H83: CTX | I83: 5 | J83: 4 | K83: 80
G84: 20221117_RNAscope_S100488_Kiss1R568_GFAP647_H2949_ME10_tiles_Cx_Maximum intensity projection.czi | H84: CTX 2 | I84: 6 | J84: 5 | K84: 83.33333333
G85: 20221117_RNAscope_S100488_Kiss1R568_GFAP647_H2949_ME10_tiles_Cx_Maximum intensity projection.czi | H85: CTX 3 | I85: 4 | J85: 1 | K85: 25
G86: 20221117_RNAscope_S100488_Kiss1R568_GFAP647_H2949_ME10_tiles_MBH_Maximum intensity projection.czi | H86: ARC left | I86: 7 | J86: 4 | K86: 57.14285714
G87: 20221117_RNAscope_S100488_Kiss1R568_GFAP647_H2949_ME10_tiles_MBH_Maximum intensity projection.czi | H87: ARC left 2 | I87: 5 | J87: 3 | K87: 60
G88: 20221117_RNAscope_S100488_Kiss1R568_GFAP647_H2949_ME10_tiles_MBH_Maximum intensity projection.czi | H88: ARC right | I88: 8 | J88: 7 | K88: 87.5
G89: 20221117_RNAscope_S100488_Kiss1R568_GFAP647_H2949_ME10_tiles_MBH_Maximum intensity projection.czi | H89: ARC right 2 | I89: 5 | J89: 3 | K89: 60
G90: 20221117_RNAscope_S100488_Kiss1R568_GFAP647_H2949_ME7_tiles_MBH.czi | H90: ARC left | I90: 5 | J90: 2 | K90: 40
G91: 20221117_RNAscope_S100488_Kiss1R568_GFAP647_H2949_ME7_tiles_MBH.czi | H91: ARC left 2 | I91: 4 | J91: 1 | K91: 25
G92: 20221117_RNAscope_S100488_Kiss1R568_GFAP647_H2949_ME7_tiles_MBH.czi | H92: ARC right | I92: 6 | J92: 4 | K92: 66.66666667
G93: 20221117_RNAscope_S100488_Kiss1R568_GFAP647_H2949_ME7_tiles_MBH.czi | H93: ARC right 2 | I93: 4 | J93: 3 | K93: 75
G94: 20221117_RNAscope_S100488_Kiss1R568_GFAP647_H2949_APO8_tiles_Maximum intensity projection.czi | H94: AVPV left | I94: 3 | J94: 3 | K94: 100
G95: 20221117_RNAscope_S100488_Kiss1R568_GFAP647_H2949_APO8_tiles_Maximum intensity projection.czi | H95: AVPV left 2 | I95: 3 | J95: 1 | K95: 33.33333333
G96: 20221117_RNAscope_S100488_Kiss1R568_GFAP647_H2949_APO8_tiles_Maximum intensity projection.czi | H96: AVPV right | I96: 4 | J96: 3 | K96: 75
G97: 20221117_RNAscope_S100488_Kiss1R568_GFAP647_H2949_APO8_tiles_Maximum intensity projection.czi | H97: AVPV right | I97: 4 | J97: 1 | K97: 25

Sheet Figure 4-B
A2: GFAP | D2: GLAST | G2: Cx43 | J2: Elavl3 | M2: RBFox3 | P2: Aif1 | S2: CD31
A3: Negative | B3: Positive | D3: Negative | E3: Positive | G3: Negative | H3: Positive | J3: Negative | K3: Positive | M3: Negative | N3: Positive | P3: Negative | Q3: Positive | S3: Negative | T3: Positive
A4: 0.877878 | B4: 5.87618 | D4: 1.4775 | E4: 4.2192 | G4: 1.820916 | H4: 10.97476 | J4: 1.948108 | K4: 0.603669 | M4: 1.356919 | N4: 0.627566 | P4: 2,792927* | Q4: 1,228515* | S4: 0.61555 | T4: 0.104358
A5: 0.687805 | B5: 7.187298 | D5: 0.8606 | E5: 5.7826 | G5: 0.686854 | H5: 9.737672 | J5: 0.657523 | K5: 0.254863 | M5: 1.591558 | N5: 0.562957 | P5: 1.01217 | Q5: 6.44e-06 | S5: 0.583338 | T5: 0,297753*
A6: 1.652732 | B6: 4.146885 | D6: 0.3572 | E6: 3.3907 | G6: 0.501214 | H6: 3.871387 | J6: 0.484215 | K6: 0.177603 | M6: 0.662507 | N6: 0.475584 | P6: 0.379553 | Q6: 0.140739 | S6: 0.104396 | T6: 0.01188
A7: 0.14461 | B7: 1.559992 | D7: 0.0867 | E7: 0.9581 | G7: 0.025217 | H7: 1.57359 | J7: 0.065393 | K7: 0.044211 | M7: 0.184798 | N7: 0.108716 | P7: 0.87477 | Q7: 0.087042 | S7: 0.186928 | T7: 0.006199
A8: 1.36576 | B8: 6.240818 | D8: 1.4442 | E8: 3.3618 | G8: 1.882563 | H8: 6.382964 | J8: 1.686895 | K8: 0 | M8: 1.5455 | N8: 29,32464* | P8: 0.496753 | Q8: 0.064048 | S8: 2.491377 | T8: 0
A9: 1.271215 | B9: 1.636773 | D9: 1.7738 | E9: 2.4227 | G9: 1.083235 | H9: 3.841166 | J9: 1.402816 | K9: 0.204111 | M9: 0.658718 | N9: 0.192273 | P9: 0.443826 | Q9: 0.132792 | S9: 2.018411 | T9: 0.047419
M11: *outlier | P11: *outlier | S11: *outlier

Sheet Figure 4-C
A2: Female | H2: Male | O2: All
A3: qPCR Kiss1r expression | H3: qPCR Kiss1r expression | O3: qPCR Kiss1r expression
A4: CTX neg | B4: CTX pos | C4: POA neg | D4: POA pos | E4: MBH neg | F4: MBH pos | H4: CTX neg | I4: CTX pos | J4: POA neg | K4: POA pos | L4: MBH neg | M4: MBH pos | O4: Ctx neg | P4: Ctx pos | Q4: POA neg | R4: POA pos | S4: MBH neg | T4: MBH pos
A5: 1.800701 | B5: 1.320994 | C5: 1.758157 | D5: 0.709563 | E5: 5.351728 | F5: 0.697477 | H5: 1.039917 | I5: 0.380264 | J5: 2.907862 | K5: 0.77744 | L5: 0 | M5: 0.536689 | O5: 1.800701 | P5: 1.320994 | Q5: 1.758157 | R5: 0.709563 | S5: 5.351728 | T5: 0.697477
A6: 0.6954 | B6: 0.729547 | C6: 1.500473 | D6: 2.552086 | E6: 0.884375 | F6: 3.609775 | H6: 1.379029 | I6: 0.326666 | J6: 1.482843 | K6: 0.500867 | L6: 0 | M6: 0.288912 | O6: 0.6954 | P6: 0.729547 | Q6: 1.500473 | R6: 2.552086 | S6: 0.884375 | T6: 3.609775
A7: 1.637561 | B7: 0.984269 | C7: 0.693519 | D7: 0.663195 | E7: 0.405797 | F7: 1.347399 | H7: 0 | I7: 1.873328 | J7: 4.515806 | K7: 0.516313 | L7: 2.90063 | M7: 0.534452 | O7: 1.637561 | P7: 0.984269 | Q7: 0.693519 | R7: 0.663195 | S7: 0.405797 | T7: 1.347399
A8: 1.821778 | B8: 0.653141 | C8: 1.018807 | D8: 0 | E8: 0.384422 | F8: 0.136906 | H8: 0.846525 | I8: 0.950687 | J8: 0.69335 | K8: 0.528593 | L8: 0.432931 | M8: 0.329291 | O8: 1.821778 | P8: 0.653141 | Q8: 1.018807 | R8: 0 | S8: 0.384422 | T8: 0.136906
A9: 1.405067 | B9: 1.239133 | C9: 1.477864 | D9: 0 | E9: 1.223481 | F9: 0 | H9: 1.482077 | I9: 0.899751 | J9: 7.019598 | K9: 0.738088 | L9: 0.483191 | M9: 0.102877 | O9: 1.405067 | P9: 1.239133 | Q9: 1.477864 | R9: 0 | S9: 1.223481 | T9: 0
A10: 2.623848 | B10: 0.919591 | C10: 1.236934 | D10: 1.738631 | E10: 1.107018 | F10: 0.797384 | H10: 1.342297 | I10: 1.008031 | J10: 4.036884 | K10: 0.165804 | L10: 0.183248 | M10: 0.183201 | O10: 2.623848 | P10: 0.919591 | Q10: 1.236934 | R10: 1.738631 | S10: 1.107018 | T10: 0.797384
O11: 1.039917 | P11: 0.380264 | Q11: 2.907862 | R11: 0.77744 | S11: 0 | T11: 0.536689
O12: 1.379029 | P12: 0.326666 | Q12: 1.482843 | R12: 0.500867 | S12: 0 | T12: 0.288912
O13: 0 | P13: 1.873328 | Q13: 4.515806 | R13: 0.516313 | S13: 2.90063 | T13: 0.534452
O14: 0.846525 | P14: 0.950687 | Q14: 0.69335 | R14: 0.528593 | S14: 0.432931 | T14: 0.329291
O15: 1.482077 | P15: 0.899751 | Q15: 7.019598 | R15: 0.738088 | S15: 0.483191 | T15: 0.102877
O16: 1.342297 | P16: 1.008031 | Q16: 4.036884 | R16: 0.165804 | S16: 0.183248 | T16: 0.183201

Sheet Figure 5-A
A1: Puberty
A2: CHOW | B2: VO% | E2: CHOW | F2: VO
A3: PND | B3: Control | C3: G-KiRKO | E3: Control | F3: G-KiRKO
A4: 27 | B4: 0 | C4: 0 | E4: 39 | F4: 34
A5: 28 | B5: 0 | C5: 0 | E5: 33 | F5: 36
A6: 29 | B6: 0 | C6: 0 | E6: 34 | F6: 35
A7: 30 | B7: 0 | C7: 0 | E7: 32 | F7: 36
A8: 31 | B8: 0 | C8: 0 | E8: 40 | F8: 35
A9: 32 | B9: 6.25 | C9: 0 | E9: 34 | F9: 42
A10: 33 | B10: 18.75 | C10: 12.5 | E10: 34 | F10: 41
A11: 34 | B11: 43.75 | C11: 25 | E11: 33 | F11: 37
A12: 35 | B12: 62.5 | C12: 50 | E12: 41 | F12: 33
A13: 36 | B13: 62.5 | C13: 68.75 | E13: 38 | F13: 35
A14: 37 | B14: 62.5 | C14: 81.25 | E14: 34 | F14: 40
A15: 38 | B15: 68.75 | C15: 81.25 | E15: 40 | F15: 36
A16: 39 | B16: 81.25 | C16: 81.25 | E16: 35 | F16: 35
A17: 40 | B17: 93.75 | C17: 87.5 | E17: 39 | F17: 34
A18: 41 | B18: 100 | C18: 93.75 | E18: 35 | F18: 33
A19: 42 | B19: 100 | C19: 100 | E19: 35 | F19: 37
A20: 43 | B20: 100 | C20: 100
A21: 44 | B21: 100 | C21: 100
A22: 45 | B22: 100 | C22: 100
V69: 5.2
V70: 4.8
V71: 4.833333
V72: 5

Sheet Figure 5-B
A1: Puberty
A2: HFD | F2: HFD | G2: VO
A3: PND | B3: Control HFD | C3: G-KiRKO HFD | D3: Control | F3: Control | G3: Control HFD | H3: G-KiRKO HFD
A4: 27 | B4: 0 | C4: 0 | D4: 0 | F4: 39 | G4: 33 | H4: 35
A5: 28 | B5: 0 | C5: 0 | D5: 0 | F5: 33 | G5: 29 | H5: 35
A6: 29 | B6: 10.5 | C6: 0 | D6: 0 | F6: 34 | G6: 31 | H6: 44
A7: 30 | B7: 15.8 | C7: 22.22222 | D7: 0 | F7: 32 | G7: 31 | H7: 39
A8: 31 | B8: 42.1 | C8: 22.22222 | D8: 0 | F8: 40 | G8: 31 | H8: 30
A9: 32 | B9: 57.9 | C9: 44.44444 | D9: 6.25 | F9: 34 | G9: 29 | H9: 30
A10: 33 | B10: 84.2 | C10: 55.55556 | D10: 18.75 | F10: 34 | G10: 32 | H10: 32
A11: 34 | B11: 84.2 | C11: 55.55556 | D11: 43.75 | F11: 33 | G11: 33 | H11: 32
A12: 35 | B12: 89.5 | C12: 77.77778 | D12: 62.5 | F12: 41 | G12: 31 | H12: 33
A13: 36 | B13: 94.7 | C13: 77.77778 | D13: 62.5 | F13: 38 | G13: 33
A14: 37 | B14: 94.7 | C14: 77.77778 | D14: 62.5 | F14: 34 | G14: 31
A15: 38 | B15: 94.7 | C15: 77.77778 | D15: 68.75 | F15: 40 | G15: 30
A16: 39 | B16: 100 | C16: 88.88889 | D16: 81.25 | F16: 35 | G16: 36
A17: 40 | B17: 100 | C17: 88.88889 | D17: 93.75 | F17: 39 | G17: 35
A18: 41 | B18: 100 | C18: 88.88889 | D18: 100 | F18: 35 | G18: 33
A19: 42 | B19: 100 | C19: 88.88889 | D19: 100 | F19: 35 | G19: 33
A20: 43 | B20: 100 | C20: 88.88889 | D20: 100 | G20: 32
A21: 44 | B21: 100 | C21: 100 | D21: 100 | G21: 32
A22: 45 | B22: 100 | C22: 100 | D22: 100

Sheet Figure 5-C
A2: icv Kp-10 | B2: CHOW | C2: Control | M2: G-KiRKO
B3: 0 | C3: 0.2916509 | D3: 0.217632 | E3: 0.3303433 | F3: 0.1980063 | G3: 0.3457818 | H3: 0.740203 | I3: 0.2254 | J3: 0.3726 | K3: 0.2277 | L3: 0.3217 | M3: 0.2605781 | N3: 0.4840631 | O3: 0.2231 | P3: 0.1796 | Q3: 0.3378
B4: 15 | C4: 0.6752264 | D4: 1.004716 | E4: 0.7937493 | F4: 0.9201876 | G4: 0.8090568 | H4: 1.228787 | I4: 0.8626062 | J4: 0.8342155 | K4: 0.8626062 | L4: 0.69296 | M4: 0.786097 | N4: 1.423702 | O4: 1.677705 | P4: 1.053103 | Q4: 1.101065
B5: 30 | C5: 0.4687416 | D5: 0.7593217 | E5: 0.7822713 | F5: 0.7784459 | G5: 0.6675841 | H5: 1.174518 | I5: 0.5481856 | J5: 0.5249444 | K5: 0.4970938 | L5: 0.8011522 | M5: 0.5758713 | N5: 1.089482 | O5: 1.524263 | P5: 0.6367779 | Q5: 0.61809
B6: 60 | C6: 0.403522 | D6: 0.4150457 | E6: 0.5223376 | F6: 0.4419088 | G6: 0.4917211 | H6: 0.8473458 | I6: 0.1841898 | J6: 0.4091749 | K6: 0.3216547 | L6: 0.5761148 | M6: 0.295527 | N6: 1.000869 | O6: 0.4045589 | P6: 0.3078702 | Q6: 0.3170589
A10: ∆AUC | B10: Control | C10: G-KiRKO
B11: 11.42 | C11: 15.5
B12: 26.96 | C12: 35.47
B13: 20 | C13: 53.82
B14: 27.55 | C14: 25.31
B15: 16.38 | C15: 17.49
B16: 18.71
B17: 16.34
B18: 10.9
B19: 16.99
B20: 20.17

Sheet Figure 5-D
A2: icv Kp-10
B3: HFD | C3: Control HFD | P3: G-KiRKO HFD
B4: 0 | C4: 0.1053 | D4: 0.2676 | E4: 0.08757 | F4: 0.3037 | G4: 0.05109 | H4: 0.3206 | I4: 0.1201 | J4: 0.3984 | K4: 0.2312 | L4: 0.05921 | M4: 0.1058 | N4: 0.1967 | O4: 0.5529 | P4: 0.2476 | Q4: 0.1941 | R4: 0.2394 | S4: 0.2167 | T4: 0.2747 | U4: 0.1405 | V4: 0.08345 | W4: 0.1181 | X4: 0.177 | Y4: 0.1556
B5: 15 | C5: 0.3795571 | D5: 0.4515852 | E5: 0.705943 | F5: 1.419522 | G5: 0.2518414 | H5: 0.4401847 | I5: 1.151854 | J5: 0.9045818 | K5: 0.4655388 | L5: 0.5291608 | M5: 0.5419253 | N5: 0.3983492 | O5: 0.5652688 | P5: 1.164479 | Q5: 0.5737794 | R5: 0.4106745 | S5: 0.9133377 | T5: 0.9659913 | U5: 1.085193 | V5: 0.2726029 | W5: 0.773913 | X5: 0.8317918 | Y5: 0.8317918
B6: 30 | C6: 0.2051574 | D6: 0.2274253 | E6: 0.2720407 | F6: 0.4741523 | G6: 0.1078558 | H6: 0.2021976 | I6: 0.524909 | J6: 0.524909 | K6: 0.2435491 | L6: 0.2187158 | M6: 0.3017414 | N6: 0.3287975 | O6: 0.357327 | P6: 0.6830877 | Q6: 0.2720407 | R6: 0.2063242 | S6: 0.6573964 | T6: 0.6531009 | U6: 0.9089592 | V6: 0.1569344 | W6: 0.4444066 | X6: 0.3778 | Y6: 0.4896219
B7: 60 | C7: 0.1695831 | D7: 0.1252075 | E7: 0.1340745 | F7: 0.1962576 | G7: 0.06319911 | H7: 0.2934076 | I7: 0.2601407 | J7: 0.524909 | K7: 0.3518833 | L7: 0.07534132 | M7: 0.1323531 | N7: 0.2402293 | O7: 0.5231394 | P7: 0.4335517 | Q7: 0.1740263 | R7: 0.2892433 | S7: 0.6788954 | T7: 0.3560723 | U7: 0.2021976 | V7: 0.1078558 | W7: 0.2063242 | X7: 0.5105507 | Y7: 0.228293
A10: ∆AUC | B10: Control HFD | C10: G-KiRKO HFD
B11: 7.325 | C11: 26.34
B12: 5.305 | C12: 7.271
B13: 14.12 | C13: 3.049
B14: 20.21 | C14: 27.3
B15: 4.47 | C15: 20.1
B16: 3.973 | C16: 32.39
B17: 26.69 | C17: 4.857
B18: 12.34 | C18: 18.5
B19: 5.603 | C19: 19.34
B20: 10.88 | C20: 18.75
B21: 11.35
B22: 6.65
B23: 4.858

Sheet Figure 5-E
A1: % Estrous phases
A3: CHOW | B3: Control | I3: G-KiRKO
A4: Proestrus | B4: 16.7 | C4: 20 | D4: 20 | E4: 6.7 | F4: 10 | G4: 16.7 | H4: 3.3 | I4: 20 | J4: 13.3 | K4: 3.3 | L4: 20 | M4: 16.7 | N4: 10 | O4: 6.7 | P4: 13.3 | Q4: 10 | R4: 3.3 | S4: 13.3
A5: Estrus | B5: 33.3 | C5: 43.3 | D5: 40 | E5: 30 | F5: 23.3 | G5: 40 | H5: 60 | I5: 36.7 | J5: 40 | K5: 43.3 | L5: 40 | M5: 43.3 | N5: 50 | O5: 36.7 | P5: 36.7 | Q5: 36.7 | R5: 56.7 | S5: 50
A6: Diestrus | B6: 50 | C6: 36.7 | D6: 40 | E6: 63.3 | F6: 66.7 | G6: 43.3 | H6: 36.7 | I6: 43.3 | J6: 46.7 | K6: 53.3 | L6: 40 | M6: 40 | N6: 40 | O6: 56.7 | P6: 50 | Q6: 53.3 | R6: 40 | S6: 36.7
B10: Lenght estrous cycle
B11: Control | C11: G-KiRKO
B12: 5.4 | C12: 4.6
B13: 5 | C13: 3.857143
B14: 5 | C14: 4.5
B15: 7.25 | C15: 5
B16: 6.25 | C16: 4.8
B17: 5 | C17: 4.6
B18: 5 | C18: 4.333333
C19: 5.2
C20: 4.8
C21: 4.833333
C22: 5

Sheet Figure 5-F
A1: % Estrous phases
A3: HFD | B3: Control HFD | I3: G-KiRKO HFD
A4: Proestrus | B4: 3.7 | C4: 14.8 | D4: 0 | E4: 14.8 | F4: 3.7 | G4: 7.4 | H4: 14.8 | I4: 0 | J4: 11.1 | K4: 3.7 | L4: 7.4 | M4: 7.4 | N4: 3.7 | O4: 7.4
A5: Estrus | B5: 44.4 | C5: 40.7 | D5: 63 | E5: 37 | F5: 51.9 | G5: 44.4 | H5: 37 | I5: 25.9 | J5: 22.2 | K5: 33.3 | L5: 44.4 | M5: 29.6 | N5: 44.4 | O5: 22.2
A6: Diestrus | B6: 51.9 | C6: 44.4 | D6: 37 | E6: 48.1 | F6: 44.4 | G6: 48.1 | H6: 48.1 | I6: 74.1 | J6: 66.7 | K6: 63 | L6: 48.1 | M6: 63 | N6: 51.9 | O6: 70.4
A9: Lenght estrous cycle
A10: Control HFD | B10: G-KiRKO HFD
A11: 4.166667 | B11: 7.666667
A12: 5.2 | B12: 5.5
A13: 4.75 | B13: 7.333333
A14: 5.2 | B14: 6
A15: 6.333333 | B15: 5.75
A16: 5 | B16: 7.333333
A17: 5.5 | B17: 7.666667

Sheet Figure 5-G
A1: CHOW
A2: Basal LH | D2: Peak LH | G2: Total LH secreted | J2: Peak LH secreted
A3: Control | B3: G-KiRKO | D3: Control | E3: G-KiRKO | G3: Control | H3: G-KiRKO | J3: Control | K3: G-KiRKO
A4: 0.27729 | B4: 0.1172 | D4: 4 | E4: 2 | G4: 110.3 | H4: 60.2 | J4: 25.06 | K4: 25.71
A5: 0.17736 | B5: 0.08445 | D5: 0 | E5: 2 | G5: 38.77 | H5: 21.1 | J5: 0 | K5: 0.04601
A6: 0.17251 | B6: 0.03982 | D6: 3 | E6: 4 | G6: 47.02 | H6: 15.94 | J6: 3.057 | K6: 3.432
A7: 0.12229 | B7: 0.05008 | D7: 1 | E7: 7 | G7: 34.98 | H7: 17.09 | J7: 0.8477 | K7: 1.571
A8: 0.19717 | B8: 0.07868 | D8: 0 | E8: 3 | G8: 38.98 | H8: 24.91 | J8: 9 | K8: 3.836
A9: 0.12771 | B9: 0.03407 | D9: 2 | E9: 7 | G9: 32.38 | H9: 17.36 | J9: 1.085 | K9: 5.883
A10: 0.23153 | D10: 0 | G10: 52.81 | J10: 0
A11: 0.15285 | D11: 4 | G11: 75.76 | J11: 21.29
A12: 0.04971 | D12: 4 | G12: 25.36 | J12: 9.883

Sheet Figure 5-H
A1: HFD
A2: Basal LH | D2: Peak LH | G2: Total LH secreted | J2: Peak LH secreted
A3: Control HFD | B3: G-KiRKO HFD | D3: Control HFD | E3: G-KiRKO HFD | G3: Control HFD | H3: G-KiRKO HFD | J3: Control HFD | K3: G-KiRKO HFD
A4: 0.1978 | B4: 0.078 | D4: 4 | E4: 4 | G4: 77.58 | H4: 23.31 | J4: 15.79 | K4: 0.9228
A5: 0.14231 | B5: 0.02645 | D5: 4 | E5: 5 | G5: 57.8 | H5: 9.833 | J5: 13.21 | K5: 1.513
A6: 0.05199 | B6: 0.01631 | D6: 2 | E6: 7 | G6: 14.02 | H6: 8.283 | J6: 0.5918 | K6: 2.778
A7: 0.11811 | B7: 0.07 | D7: 2 | E7: 1 | G7: 34.37 | H7: 16.7 | J7: 1.626 | K7: 0.01104
A8: 0.0721 | B8: 0.1232 | D8: 1 | E8: 4 | G8: 33.01 | H8: 52.82 | J8: 11.92 | K8: 17,55*
A9: 0.12303 | B9: 0.07373 | D9: 3 | E9: 1 | G9: 36.31 | H9: 18.8 | J9: 4.568 | K9: 0.2746
B10: 0.09879 | E10: 1 | H10: 29.34 | K10: 3.571
B11: 0.0064 | E11: 5 | H11: 1.835 | K11: 0.3653
J14: *outlier

Sheet Figure 6-A
T1: Genotype | U1: Average S11 | V1: Average SOX2 | W1: Relative S11 | X1: Relative SOX2 | Y1: SOX2/S11 | Z1: Normalization | AB1: Average WT
T2: WT C 11(3) | U2: 20.60057063 | V2: 27.03775859 | W2: =POWER(2,U$2-U2) -> 1 | X2: =POWER(2,V$2-V2) -> 1 | Y2: =X2/W2 -> 1 | Z2: =Y2/AB$2 -> 0.2379066649 | AB2: =AVERAGE(Y2,Y4,Y6,Y8,Y10,Y12,Y14,Y16) -> 4.203329067
B3: Control | J3: G-KiRKO | T3: KO C | U3: 20.71172921 | V3: 28.43781603 | W3: =POWER(2,U$2-U3) -> 0.925844247 | X3: =POWER(2,V$2-V3) -> 0.3789140565 | Y3: =X3/W3 -> 0.4092632834 | Z3: 0.09736646285
A4: Sox-2 | B4: 0.24 | C4: 0.61 | D4: 0.33 | E4: 0.9 | F4: 1.29 | G4: 1.48 | H4: 1.59 | I4: 1.55 | J4: 0.1 | K4: 0.39 | L4: 0.6 | M4: 0.7 | N4: 1.66 | O4: 1.29 | P4: 1.06 | Q4: 0.84 | T4: WT C* | U4: 20.4729532 | V4: 25.54008107 | W4: =POWER(2,U$2-U4) -> 1.092487998 | X4: 2.823877522 | Y4: =X4/W4 -> 2.584813313 | Z4: 0.6149443149
A5: Nanog | B5: 0.76 | C5: 0.61 | D5: 0.8 | E5: 1.13 | F5: 0.99 | G5: 1.24 | H5: 1.11 | I5: 1.36 | J5: 0.58 | K5: 0.58 | L5: 0.97 | M5: 1.09 | N5: 1.08 | O5: 1.26 | P5: 0.77 | Q5: 0.57 | T5: KO C | U5: 20.34302388 | V5: 26.05270407 | W5: 1.195444168 | X5: 1.979388111 | Y5: 1.655776292 | Z5: 0.3939202154 | AB5: SOX2
A6: Ki67 | B6: 0.79 | C6: 0.68 | D6: 1.03 | E6: 1.51 | F6: 1.62 | G6: 1.6 | H6: 1.71 | I6: 1.5 | J6: 0.68 | K6: 0.7 | L6: 0.94 | M6: 0.99 | N6: 1.64 | O6: 1.14 | P6: 1.61 | Q6: 1.34 | T6: WT C 11(9) | U6: 20.59265419 | V6: 26.55089214 | W6: 1.005502342 | X6: 1.401397721 | Y6: 1.393728948 | Z6: 0.3315774059 | AB6: Control | AC6: G-KiRKO
A7: Cdk2 | B7: 0.9 | C7: 0.85 | D7: 0.94 | E7: 1.3 | F7: 1.23 | G7: 1.35 | H7: 1.32 | I7: 1.04 | J7: 0.82 | K7: 1.01 | L7: 1.13 | M7: 1.07 | N7: 1.29 | O7: 1.26 | P7: 1.18 | Q7: 0.75 | T7: KO C | U7: 20.09777048 | V7: 25.20823835 | W7: 1.416961101 | X7: 3.554188605 | Y7: 2.508317697 | Z7: 0.596745498 | AB7: 0.24 | AC7: 0.1
A8: Tspo | B8: 1.19 | C8: 1.01 | D8: 0.77 | E8: 1.02 | F8: 0.9 | G8: 1.16 | H8: 1.06 | I8: 0.9 | J8: 1.06 | K8: 0.85 | L8: 1.09 | M8: 1.12 | N8: 1.19 | O8: 1.07 | P8: 0.87 | Q8: 0.66 | T8: WT C* | U8: 20.2466054 | V8: 24.75778477 | W8: 1.278068561 | X8: 4.856691404 | Y8: 3.800024156 | Z8: 0.9040510738 | AB8: 0.61 | AC8: 0.39
A9: Star | B9: 0.56 | C9: 0.37 | D9: 0.7 | E9: 0.66 | F9: 0.97 | G9: 1.32 | H9: 2.14 | I9: 1.26 | J9: 0.58 | K9: 0.29 | L9: 0.91 | M9: 1.04 | N9: 2.04 | O9: 1.23 | P9: 1.47 | Q9: 1.03 | T9: KO C | U9: 20.29146226 | V9: 25.17438245 | W9: 1.238941756 | X9: 3.638581529 | Y9: 2.936846313 | Z9: 0.6986953118 | AB9: 0.33 | AC9: 0.6
A10: Hsd3b1 | B10: 0.47 | C10: 0.37 | D10: 0.57 | E10: 0.64 | F10: 1.32 | G10: 2.3 | H10: 0.93 | I10: 1.41 | J10: 0.97 | K10: 2,89* | L10: 1.09 | M10: 1.04 | N10: 0.96 | O10: 1.29 | P10: 1.39 | Q10: 0.48 | T10: WT C 11(1) | U10: 21.84807964 | V10: 25.84447539 | W10: 0.4211747916 | X10: 2.286725506 | Y10: 5.429397846 | Z10: 1.291689934 | AB10: 0.9 | AC10: 0.7
A11: SynCam1 | B11: 0.76 | C11: 0.82 | D11: 0.5 | E11: 0.74 | F11: 1.31 | G11: 1.3 | H11: 1.33 | I11: 1.24 | J11: 0.68 | K11: 0.78 | L11: 0.63 | M11: 0.74 | N11: 1.14 | O11: 0.86 | P11: 0.94 | Q11: 0.92 | T11: KO C | U11: 22.11998266 | V11: 25.75043024 | W11: 0.3488280532 | X11: 2.44075646 | Y11: 6.997018837 | Z11: 1.664637416 | AB11: 1.29 | AC11: 1.66
A12: Ncam1 | B12: 0.65 | C12: 0.5 | D12: 0.85 | E12: 1.19 | F12: 1.24 | G12: 1.25 | H12: 1.34 | I12: 0.99 | J12: 0.62 | K12: 0.59 | L12: 1.01 | M12: 1.27 | N12: 1.13 | O12: 1.01 | P12: 1.1 | Q12: 0.59 | T12: WT C* | U12: 22.11196034 | V12: 25.91661725 | W12: 0.350773165 | X12: 2.175189876 | Y12: 6.201129656 | Z12: 1.475290075 | AB12: 1.48 | AC12: 1.29
A13: Cox-1 | B13: 1.26 | C13: 1.02 | D13: 0.64 | E13: 0.8 | F13: 1.12 | G13: 1.2 | H13: 1.17 | I13: 0.8 | J13: 0.51 | K13: 0.55 | L13: 0.72 | M13: 0.73 | N13: 1,9* | O13: 1.3 | P13: 0.53 | Q13: 0.4 | T13: KO C | U13: 21.21484681 | V13: 25.21064558 | W13: 0.6532575623 | X13: 3.548263164 | Y13: 5.431644989 | Z13: 1.292224544 | AB13: 1.59 | AC13: 1.06
A14: Cox-2 | B14: 1.31 | C14: 1.24 | D14: 1.38 | E14: 1.05 | F14: 0.85 | G14: 0.79 | H14: 0.82 | I14: 0.57 | J14: 2.12 | K14: 2.54 | L14: 1.36 | M14: 1.65 | N14: 1.08 | O14: 0.58 | P14: 1.71 | Q14: 1.23 | T14: WT C 11(2) | U14: 21.95542091 | V14: 25.65131425 | W14: 0.3909753948 | X14: 2.614335594 | Y14: 6.686701078 | Z14: 1.590810753 | AB14: 1.55 | AC14: 0.84
A15: mPges | B15: 1.08 | C15: 1.24 | D15: 1.14 | E15: 1.38 | F15: 0.83 | G15: 0.83 | H15: 0.82 | I15: 0.69 | J15: 1.73 | K15: 1.7 | L15: 1.68 | M15: 2.12 | N15: 1.01 | O15: 0.75 | P15: 1.55 | Q15: 1.57 | T15: KO C | U15: 21.98772818 | V15: 26.2668092 | W15: 0.382317317 | X15: 1.706392333 | Y15: 4.463288105 | Z15: 1.061845988
A16: Pges-2 | B16: 0.75 | C16: 0.68 | D16: 0.78 | E16: 1.01 | F16: 1.19 | G16: 1.13 | H16: 1.22 | I16: 1.24 | J16: 0.7 | K16: 0.71 | L16: 0.88 | M16: 1.08 | N16: 0.89 | O16: 1 | P16: 0.89 | Q16: 0.92 | T16: WT C* | U16: 22.15181043 | V16: 25.88173038 | W16: 0.3412167081 | X16: 2.228430886 | Y16: 6.530837539 | Z16: 1.553729778
A17: cPges | B17: 0.6 | C17: 0.77 | D17: 0.72 | E17: 0.82 | F17: 1.12 | G17: 1.19 | H17: 1.38 | I17: 1.39 | J17: 0.63 | K17: 0.64 | L17: 0.71 | M17: 0.76 | N17: 1.46 | O17: 0.97 | P17: 1.19 | Q17: 1.15 | T17: KO C | U17: 22.72928721 | V17: 27.3391092 | W17: 0.2286611891 | X17: 0.8114923466 | Y17: =X17/W17 -> 3.548885361 | Z17: 0.8443034805
B20: *outliers
T21: Genotype | U21: Average S11 | V21: Average NANOG | W21: Relative S11 | X21: Relative NANOG | Y21: NANOG/S11 | Z21: Normalization | AB21: Average WT
T22: WT C 11(3) | U22: 20.60057063 | V22: 31.30021595 | W22: =POWER(2,U$22-U22) -> 1 | X22: =POWER(2,V$22-V22) -> 1 | Y22: =X22/W22 -> 1 | Z22: =Y22/AB$22 -> 0.7612885933 | AB22: =AVERAGE(Y22,Y24,Y26,Y28,Y30,Y32,Y34,Y36) -> 1.313562306
T23: KO C | U23: 20.71172921 | V23: 31.81112815 | W23: =POWER(2,U$22-U23) -> 0.925844247 | X23: =POWER(2,V$22-V23) -> 0.701778575 | Y23: =X23/W23 -> 0.7579877256 | Z23: 0.5770474094
T24: WT C* | U24: 20.4729532 | V24: 31.50315897 | W24: 1.092487998 | X24: 0.8687765013 | Y24: =X24/W24 -> 0.7952275016 | Z24: 0.6053976261
T25: KO C | U25: 20.34302388 | V25: 31.44025224 | W25: 1.195444168 | X25: 0.9074963331 | Y25: 0.7591289979 | Z25: 0.577916247 | AB25: NANOG
T26: WT C 11(9) | U26: 20.59265419 | V26: 31.22219569 | W26: 1.005502342 | X26: 1.055568544 | Y26: 1.049792229 | Z26: 0.7991948492 | AB26: Control | AC26: G-KiRKO
T27: KO C | U27: 20.09777048 | V27: 30.45356829 | W27: 1.416961101 | X27: 1.798317383 | Y27: 1.269136733 | Z27: 0.9661793185 | AB27: 0.76 | AC27: 0.58
T28: WT C* | U28: 20.2466054 | V28: 30.37016704 | W28: 1.278068561 | X28: 1.905340598 | Y28: 1.490796861 | Z28: 1.134926645 | AB28: 0.61 | AC28: 0.58
T29: KO C | U29: 20.29146226 | V29: 30.46773245 | W29: 1.238941756 | X29: 1.780748171 | Y29: 1.437313871 | Z29: 1.094210655 | AB29: 0.8 | AC29: 0.97
T30: WT C 11(1) | U30: 21.84807964 | V30: 32.17283308 | W30: 0.4211747916 | X30: 0.5461551976 | Y30: 1.29674237 | Z30: 0.9871951751 | AB30: 1.13 | AC30: 1.09
T31: KO C | U31: 22.11998266 | V31: 32.31081066 | W31: 0.3488280532 | X31: 0.4963416047 | Y31: 1.422883281 | Z31: 1.083224811 | AB31: 0.99 | AC31: 1.08
T32: WT C* | U32: 22.11196034 | V32: 32.10291187 | W32: 0.350773165 | X32: 0.5732769148 | Y32: 1.634323751 | Z32: 1.24419203 | AB32: 1.24 | AC32: 1.26
T33: KO C | U33: 21.21484681 | V33: 31.18808062 | W33: 0.6532575623 | X33: 1.080826786 | Y33: 1.654518598 | Z33: 1.259566136 | AB33: 1.11 | AC33: 0.77
T34: WT C 11(2) | U34: 21.95542091 | V34: 32.11590897 | W34: 0.3909753948 | X34: 0.5681355097 | Y34: 1.453123438 | Z34: 1.106246298 | AB34: 1.36 | AC34: 0.57
T35: KO C | U35: 21.98772818 | V35: 32.66899686 | W35: 0.382317317 | X35: 0.387218315 | Y35: 1.012819189 | Z35: 0.7710476959
T36: WT C* | U36: 22.15181043 | V36: 32.01271186 | W36: 0.3412167081 | X36: 0.6102634533 | Y36: 1.788492295 | Z36: 1.361558783
T37: KO C | U37: 22.72928721 | V37: 33.85492333 | W37: 0.2286611891 | X37: 0.1701987823 | Y37: =X37/W37 -> 0.7443273737 | Z37: 0.5666479393
T40: Genotype | U40: Average S11 | V40: Average KI67 | W40: Relative S11 | X40: Relative KI67 | Y40: KI67/S11 | Z40: Normalization | AB40: Average WT
T41: WT C 11(3) | U41: 20.60057063 | V41: 24.99496984 | W41: 1 | X41: 1 | Y41: 1 | Z41: 0.6020262165 | AB41: 1.661057231
T42: KO C | U42: 20.71172921 | V42: 25.3205194 | W42: 0.925844247 | X42: 0.7979943491 | Y42: 0.8619099289 | Z42: 0.5188923735
T43: WT C* | U43: 20.4729532 | V43: 25.07666731 | W43: 1.092487998 | X43: 0.9449451724 | Y43: 0.864947875 | Z43: 0.5207212966 | AB43: KI67
T44: KO C | U44: 20.34302388 | V44: 24.895849 | W44: 1.195444168 | X44: 1.071120532 | Y44: 0.8960021399 | Z44: 0.5394167783 | AB44: Control | AC44: G-KiRKO
T45: WT C 11(9) | U45: 20.59265419 | V45: 24.59910674 | W45: 1.005502342 | X45: 1.315729665 | Y45: 1.308529688 | Z45: 0.787769177 | AB45: 0.6 | AC45: 0.52
T46: KO C | U46: 20.09777048 | V46: 24.23591576 | W46: 1.416961101 | X46: 1.692380626 | Y46: 1.194373385 | Z46: 0.7190440901 | AB46: 0.52 | AC46: 0.54
T47: WT C* | U47: 20.2466054 | V47: 23.69871136 | W47: 1.278068561 | X47: 2.455911338 | Y47: 1.921580276 | Z47: 1.156841703 | AB47: 0.79 | AC47: 0.72
T48: KO C | U48: 20.29146226 | V48: 24.35439011 | W48: 1.238941756 | X48: 1.558955475 | Y48: 1.258296015 | Z48: 0.7575271891 | AB48: 1.16 | AC48: 0.76
T49: WT C 11(1) | U49: 21.84807964 | V49: 25.19423424 | W49: 0.4211747916 | X49: 0.8709945496 | Y49: 2.068012063 | Z49: 1.244997478 | AB49: 1.24 | AC49: 1.26
T50: KO C | U50: 22.11998266 | V50: 25.44724007 | W50: 0.3488280532 | X50: 0.7308918077 | Y50: 2.095278178 | Z50: 1.261412394 | AB50: 1.23 | AC50: 0.88
T51: WT C* | U51: 22.11196034 | V51: 25.48079999 | W51: 0.350773165 | X51: 0.7140860552 | Y51: 2.035748816 | Z51: 1.225574157 | AB51: 1.31 | AC51: 1.23
T52: KO C | U52: 21.21484681 | V52: 25.06732882 | W52: 0.6532575623 | X52: 0.9510815883 | Y52: 1.455905975 | Z52: 0.8764935659 | AB52: 1.15 | AC52: 1.03
T53: WT C 11(2) | U53: 21.95542091 | V53: 25.22938842 | W53: 0.3909753948 | X53: 0.8500274956 | Y53: 2.17412018 | Z53: 1.308877346
T54: KO C | U54: 21.98772818 | V54: 25.34598072 | W54: 0.382317317 | X54: 0.7840345379 | Y54: 2.050742938 | Z54: 1.234601012
T55: WT C* | U55: 22.15181043 | V55: 25.60847434 | W55: 0.3412167081 | X55: 0.6536070698 | Y55: 1.915518948 | Z55: 1.153192625
T56: KO C | U56: 22.72928721 | V56: 26.35214819 | W56: 0.2286611891 | X56: 0.3903449869 | Y56: 1.70708894 | Z56: 1.027712296
T60: Genotype | U60: Average S11 | V60: Average CDK2 | W60: Relative S11 | X60: Relative CDK2 | Y60: CDK2/S11 | Z60: Normalization | AB60: Average WT
T61: WT C 11(3) | U61: 20.60057063 | V61: 26.30718564 | W61: 1 | X61: 1 | Y61: 1 | Z61: 0.8043713288 | AB61: 1.243206917
T62: KO C | U62: 20.71172921 | V62: 26.55335343 | W62: 0.925844247 | X62: 0.8431330473 | Y62: 0.9106640237 | Z62: 0.7325120308
T63: WT C* | U63: 20.4729532 | V63: 26.25108296 | W63: 1.092487998 | X63: 1.03965343 | Y63: 0.9516383079 | Z63: 0.7654705703
T64: KO C | U64: 20.34302388 | V64: 25.8789256 | W64: 1.195444168 | X64: 1.345609735 | Y64: 1.125614873 | Z64: 0.9054123309 | AB64: CDK2
T65: WT C 11(9) | U65: 20.59265419 | V65: 26.22675862 | W65: 1.005502342 | X65: 1.057330955 | Y65: 1.051544995 | Z65: 0.8458326453 | AB65: Control | AC65: G-KiRKO
T66: KO C | U66: 20.09777048 | V66: 25.47030091 | W66: 1.416961101 | X66: 1.786188985 | Y66: 1.260577291 | Z66: 1.01397223 | AB66: 0.8 | AC66: 0.73
T67: WT C* | U67: 20.2466054 | V67: 25.41754016 | W67: 1.278068561 | X67: 1.852720792 | Y67: 1.449625512 | Z67: 1.1660372 | AB67: 0.77 | AC67: 0.91
T68: KO C | U68: 20.29146226 | V68: 25.7448149 | W68: 1.238941756 | X68: 1.476693841 | Y68: 1.191899323 | Z68: 0.9587296423 | AB68: 0.85 | AC68: 1.01
T69: WT C 11(1) | U69: 21.84807964 | V69: 27.10410204 | W69: 0.4211747916 | X69: 0.5755780994 | Y69: 1.366601494 | Z69: 1.09925506 | AB69: 1.17 | AC69: 0.96
T70: KO C | U70: 22.11998266 | V70: 27.29898339 | W70: 0.3488280532 | X70: 0.5028507797 | Y70: 1.441543405 | Z70: 1.159536184 | AB70: 1.1 | AC70: 1.16
T71: WT C* | U71: 22.11196034 | V71: 27.22906542 | W71: 0.350773165 | X71: 0.5278208415 | Y71: 1.504735522 | Z71: 1.210366111 | AB71: 1.21 | AC71: 1.13
T72: KO C | U72: 21.21484681 | V72: 26.42998326 | W72: 0.6532575623 | X72: 0.9184049907 | Y72: 1.405884974 | Z72: 1.130853564 | AB72: 1.18 | AC72: 1.06
T73: WT C 11(2) | U73: 21.95542091 | V73: 27.10830738 | W73: 0.3909753948 | X73: 0.573902777 | Y73: 1.46787441 | Z73: 1.18071609 | AB73: 0.93 | AC73: 0.68
T74: KO C | U74: 21.98772818 | V74: 27.29958625 | W74: 0.382317317 | X74: 0.5026406983 | Y74: 1.314721243 | Z74: 1.057524073
T75: WT C* | U75: 22.15181043 | V75: 27.65223849 | W75: 0.3412167081 | X75: 0.3936395699 | Y75: 1.153635096 | Z75: 0.9279509954
T76: KO C | U76: 22.72928721 | V76: 28.68808239 | W76: 0.2286611891 | X76: 0.1919900241 | Y76: 0.839626632 | Z76: 0.6753715897
T79: Genotype | U79: Average S11 | V79: Average TSPO | W79: Relative S11 | X79: Relative TSPO | Y79: TSPO/S11 | Z79: Normalization | AB79: Average WT
T80: WT C 11(3) | U80: 20.71457574 | V80: 23.7320378 | W80: 1 | X80: 1 | Y80: 1 | Z80: 1.186345483 | AB80: 0.8429247756
T81: KO C | U81: 21.00808774 | V81: 24.18986227 | W81: 0.815913431 | X81: 0.7280833532 | Y81: 0.8923536806 | Z81: 1.058639758
T82: WT C* | U82: 21.13942135 | V82: 24.38931254 | W82: 0.7449184428 | X82: 0.6340749398 | Y82: 0.851200485 | Z82: 1.00981785
T83: KO C | U83: 20.47241288 | V83: 23.96590794 | W83: 1.182764508 | X83: 0.8503506992 | Y83: 0.718951823 | Z83: 0.8529252476 | AB83: TSPO
T84: WT C 11(9) | U84: 20.43363748 | V84: 24.07499934 | W84: 1.214984792 | X84: 0.7884211915 | Y84: 0.6489144528 | Z84: 0.7698367299 | AB84: Control | AC84: G-KiRKO
T85: KO C | U85: 20.39347135 | V85: 23.53223908 | W85: 1.249286519 | X85: 1.148538108 | Y85: 0.9193552401 | Z85: 1.090672936 | AB85: 1.19 | AC85: 1.06
T86: WT C* | U86: 20.48495916 | V86: 23.72614301 | W86: 1.172523293 | X86: 1.004094319 | Y86: 0.8563534095 | Z86: 1.015930999 | AB86: 1.01 | AC86: 0.85
T87: KO C | U87: 20.64532459 | V87: 23.74085531 | W87: 1.049171957 | X87: 0.9939068052 | Y87: 0.9473249818 | Z87: 1.123854713 | AB87: 0.77 | AC87: 1.09
T88: WT C 11(1) | U88: 22.41722116 | V88: 25.84087469 | W88: 0.3072222439 | X88: 0.2318338467 | Y88: 0.7546128293 | Z88: 0.8952315214 | AB88: 1.02 | AC88: 1.12
T89: KO C | U89: 22.59067372 | V89: 25.60351245 | W89: 0.2724195251 | X89: 0.2732939347 | Y89: 1.003209791 | Z89: 1.190153403 | AB89: 0.9 | AC89: 1.19
T90: WT C* | U90: 22.46495939 | V90: 25.51016468 | W90: 0.2972227296 | X90: 0.2915616998 | Y90: 0.9809535771 | Z90: 1.163749845 | AB90: 1.16 | AC90: 1.07
T91: KO C | U91: 21.43968331 | V91: 24.61059396 | W91: 0.6049519356 | X91: 0.5439115041 | Y91: 0.8990987086 | Z91: 1.066641692 | AB91: 1.06 | AC91: 0.87
T92: WT C 11(2) | U92: 22.17808938 | V92: 25.36222174 | W92: 0.3626089299 | X92: 0.323047018 | Y92: 0.8908964766 | Z92: 1.056911011 | AB92: 0.9 | AC92: 0.66
T93: KO C | U93: 22.4553418 | V93: 25.91982539 | W93: 0.2992107555 | X93: 0.2194877631 | Y93: 0.7335557264 | Z93: 0.8702505225
T94: WT C* | U94: 22.58214735 | V94: 25.99465191 | W94: 0.2740343006 | X94: 0.2083940356 | Y94: 0.7604669747 | Z94: 0.9021765604
T95: KO C | U95: 23.16929733 | V95: 27.04172024 | W95: 0.1824127408 | X95: 0.1008524167 | Y95: 0.5528803322 | Z95: 0.6559070847
T99: Genotype | U99: Average S11 | V99: Average Star | W99: Relative S11 | X99: Relative Star | Y99: Star/S11 | Z99: Normalization | AB99: Average WT
T100: WT C 11(3) | U100: 20.71457574 | V100: 34.10896277 | W100: 1 | X100: 1 | Y100: 1 | Z100: 0.5649362661 | AB100: 1.770111179
T101: KO C | U101: 21.00808774 | V101: 34.36793265 | W101: 0.815913431 | X101: 0.8356844054 | Y101: 1.024231706 | Z101: 0.5786256356
T102: WT C* | U102: 21.13942135 | V102: 35.13795724 | W102: 0.7449184428 | X102: 0.4900515888 | Y102: 0.6578593851 | Z102: 0.3716486246 | AB102: Star
T103: KO C | U103: 20.47241288 | V103: 34.81541905 | W103: 1.182764508 | X103: 0.6128235838 | Y103: 0.5181281478 | Z103: 0.2927093811 | AB103: Control | AC103: G-KiRKO
T104: WT C 11(9) | U104: 20.43363748 | V104: 33.51453675 | W104: 1.214984792 | X104: 1.509871766 | Y104: 1.242708367 | Z104: 0.7020510244 | AB104: 0.56 | AC104: 0.58
T105: KO C | U105: 20.39347135 | V105: 33.10417721 | W105: 1.249286519 | X105: 2.006645215 | Y105: 1.606232984 | Z105: 0.9074192647 | AB105: 0.37 | AC105: 0.29
T106: WT C* | U106: 20.48495916 | V106: 33.64457819 | W106: 1.172523293 | X106: 1.379728675 | Y106: 1.176717498 | Z106: 0.6647703896 | AB106: 0.7 | AC106: 0.91
T107: KO C | U107: 20.64532459 | V107: 33.16120609 | W107: 1.049171957 | X107: 1.928871027 | Y107: 1.838469866 | Z107: 1.038618301 | AB107: 0.66 | AC107: 1.04
T108: WT C 11(1) | U108: 22.41722116 | V108: 35.02670494 | W108: 0.3072222439 | X108: 0.52933679 | Y108: 1.722976772 | Z108: 0.9733720642 | AB108: 0.97 | AC108: 2.04
T109: KO C | U109: 22.59067372 | V109: 34.13287798 | W109: 0.2724195251 | X109: 0.9835598837 | Y109: 3.610460312 | Z109: 2.039679967 | AB109: 1.32 | AC109: 1.23
T110: WT C* | U110: 22.46495939 | V110: 34.63314861 | W110: 0.2972227296 | X110: 0.6953514124 | Y110: 2.339496085 | Z110: 1.321666183 | AB110: 2.14 | AC110: 1.47
T111: KO C | U111: 21.43968331 | V111: 33.70780164 | W111: 0.6049519356 | X111: 1.320570329 | Y111: 2.182934297 | Z111: 1.233218751 | AB111: 1.26 | AC111: 1.03
T112: WT C 11(2) | U112: 22.17808938 | V112: 33.64934273 | W112: 0.3626089299 | X112: 1.375179592 | Y112: 3.792459256 | Z112: 2.142497771
T113: KO C | U113: 22.4553418 | V113: 34.46908614 | W113: 0.2992107555 | X113: 0.7790979544 | Y113: 2.603843412 | Z113: 1.471005574
T114: WT C* | U114: 22.58214735 | V114: 34.82035003 | W114: 0.2740343006 | X114: 0.6107325918 | Y114: 2.228672069 | Z114: 1.259057677
T115: KO C | U115: 23.16929733 | V115: 35.69946325 | W115: 0.1824127408 | X115: 0.3320562416 | Y115: 1.820356628 | Z115: 1.028385476
T118: Genotype | U118: Average S11 | V118: Average Hsd3B1 | W118: Relative S11 | X118: Relative Hsd3B1 | Y118: Hsd3B1/S11 | Z118: Normalization | AB118: Average WT
T119: WT C 11(3) | U119: 20.5268154 | V119: 37.05706337 | W119: 1 | X119: 1 | Y119: 1 | Z119: 0.4682096485 | AB119: 2.135795371
T120: KO C | U120: 20.34092354 | V120: 35.81428692 | W120: 1.137519958 | X120: 2.366535321 | Y120: 2.080434109 | Z120: 0.9740793226
T121: WT C* | U121: 20.6858407 | V121: 37.55328281 | W121: 0.8956299641 | X121: 0.7089621756 | Y121: 0.7915793397 | Z121: 0.3706250844 | AB121: Hsd3B1
T122: KO C | U122: 20.38713601 | V122: 34.28979911 | W122: 1.101660267 | X122: 6.808156802 | Y122: 6.179905915 | Z122: 2.893491576 | AB122: Control | AC122: G-KiRKO
T123: WT C 11(9) | U123: 20.20896713 | V123: 36.45920402 | W123: 1.246470097 | X123: 1.513469244 | Y123: 1.214204214 | Z123: 0.5685021283 | AB123: 0.47 | AC123: 0.97
T124: KO C | U124: 20.29930511 | V124: 35.61396774 | W124: 1.170812691 | X124: 2.719036715 | Y124: 2.322349882 | Z124: 1.087346622 | AB124: 0.37 | AC124: 2,89*
T125: WT C* | U125: 20.36244353 | V125: 36.44515729 | W125: 1.120678043 | X125: 1.528277029 | Y125: 1.363707479 | Z125: 0.6385009992 | AB125: 0.57 | AC125: 1.09
T126: KO C | U126: 20.42201762 | V126: 35.80200857 | W126: 1.075343654 | X126: 2.386762146 | Y126: 2.219534321 | Z126: 1.039207384 | AB126: 0.64 | AC126: 1.04
T127: WT C 11(1) | U127: 22.14957318 | V127: 37.18795938 | W127: 0.3247141643 | X127: 0.9132640761 | Y127: 2.812516905 | Z127: 1.316847551 | AB127: 1.32 | AC127: 0.96
T128: KO C | U128: 22.36190788 | V128: 37.86271342 | W128: 0.2802735523 | X128: 0.5721042456 | Y128: 2.041235218 | Z128: 0.9557260239 | AB128: 2.3 | AC128: 1.29
T129: WT C* | U129: 22.21394272 | V129: 36.44860855 | W129: 0.310544663 | X129: 1.524625406 | Y129: 4.909520553 | Z129: 2.298684892 | AB129: 0.93 | AC129: 1.39
T130: KO C | U130: 21.23111164 | V130: 36.30009795 | W130: 0.6137418048 | X130: 1.689932266 | Y130: 2.75349056 | Z130: 1.289210847 | AB130: 1.41 | AC130: 0.48
T131: WT C 11(2) | U131: 22.0868798 | V131: 37.62972687 | W131: 0.3391359443 | X131: 0.6723743068 | Y131: 1.982609977 | Z131: 0.9282771205
T132: KO C | U132: 22.21696927 | V132: 37.1814468 | W132: 0.3098938709 | X132: 0.9173960339 | Y132: 2.960355529 | Z132: 1.386067021 | AB132: *outlier
T133: WT C* | U133: 22.22090264 | V133: 37.16032131 | W133: 0.309050127 | X133: 0.930928365 | Y133: 3.012224503 | Z133: 1.410352575
T134: KO C | U134: 22.70495936 | V134: 39.18627411 | W134: 0.2209598325 | X134: 0.2285828807 | Y134: 1.034499701 | Z134: 0.4843627413
T137: Genotype | U137: Average S11 | V137: Average SynCam | W137: Relative S11 | X137: Relative SynCam | Y137: SynCam/S11 | Z137: Normalization | AB137: Average WT
T138: WT C 11(3) | U138: 20.5268154 | V138: 24.66125624 | W138: 1 | X138: 1 | Y138: 1 | Z138: 0.7613059678 | AB138: 1.313532328
T139: KO C | U139: 20.34092354 | V139: 24.63793418 | W139: 1.137519958 | X139: 1.01629699 | Y139: 0.8934322274 | Z139: 0.6801752865
T140: WT C* | U140: 20.6858407 | V140: 24.71699534 | W140: 0.8956299641 | X140: 0.962101428 | Y140: 1.074217553 | Z140: 0.8178082335 | AB140: SynCam
T141: KO C | U141: 20.38713601 | V141: 24.47750153 | W141: 1.101660267 | X141: 1.135836127 | Y141: 1.031022141 | Z141: 0.7849233085 | AB141: Control | AC141: G-KiRKO
T142: WT C 11(9) | U142: 20.20896713 | V142: 24.95303918 | W142: 1.246470097 | X142: 0.8168918871 | Y142: 0.6553642075 | Z142: 0.4989326823 | AB142: 0.76 | AC142: 0.68
T143: KO C | U143: 20.29930511 | V143: 24.69876933 | W143: 1.170812691 | X143: 0.9743330465 | Y143: 0.8321852453 | Z143: 0.6335475936 | AB143: 0.82 | AC143: 0.78
T144: WT C* | U144: 20.36244353 | V144: 24.53605321 | W144: 1.120678043 | X144: 1.090661209 | Y144: 0.9732154706 | Z144: 0.7409147457 | AB144: 0.5 | AC144: 0.63
T145: KO C | U145: 20.42201762 | V145: 24.59782578 | W145: 1.075343654 | X145: 1.044947498 | Y145: 0.9717335421 | Z145: 0.7397865447 | AB145: 0.74 | AC145: 0.74
T146: WT C 11(1) | U146: 22.14957318 | V146: 25.49604052 | W146: 0.3247141643 | X146: 0.5606668664 | Y146: 1.726647397 | Z146: 1.314506967 | AB146: 1.31 | AC146: 1.14
T147: KO C | U147: 22.36190788 | V147: 25.90962134 | W147: 0.2802735523 | X147: 0.4209249404 | Y147: 1.501836106 | Z147: 1.14335679 | AB147: 1.3 | AC147: 0.86
T148: WT C* | U148: 22.21394272 | V148: 25.57655378 | W148: 0.310544663 | X148: 0.5302345035 | Y148: 1.70743396 | Z148: 1.299879663 | AB148: 1.33 | AC148: 0.94
T149: KO C | U149: 21.23111164 | V149: 25.18951211 | W149: 0.6137418048 | X149: 0.6933924963 | Y149: 1.129778827 | Z149: 0.8601073634 | AB149: 1.24 | AC149: 0.92
T150: WT C 11(2) | U150: 22.0868798 | V150: 25.42030987 | W150: 0.3391359443 | X150: 0.5908838073 | Y150: 1.742321382 | Z150: 1.326439666
T151: KO C | U151: 22.21696927 | V151: 26.04060226 | W151: 0.3098938709 | X151: 0.3843930021 | Y151: 1.24040208 | Z151: 0.9443255064
T152: WT C* | U152: 22.22090264 | V152: 25.65130493 | W152: 0.309050127 | X152: 0.5034607833 | Y152: 1.629058652 | Z152: 1.240212074
T153: KO C | U153: 22.70495936 | V153: 26.56729687 | W153: 0.2209598325 | X153: 0.2668238198 | Y153: 1.20756708 | Z153: 0.9193280245
T156: Genotype | U156: Average S11 | V156: Average NCAM | W156: Relative S11 | X156: Relative NCAM | Y156: NCAM/S11 | Z156: Normalization | AB156: Average WT
T157: WT C 11(3) | U157: 20.71457574 | V157: 23.72727197 | W157: 1 | X157: 1 | Y157: 1 | Z157: 0.6474870092 | AB157: 1.54443253
T158: KO C | U158: 21.00808774 | V158: 24.09290423 | W158: 0.815913431 | X158: 0.7761286591 | Y158: 0.951238979 | Z158: 0.6159148816
T159: WT C* | U159: 21.13942135 | V159: 24.51186518 | W159: 0.7449184428 | X159: 0.580515616 | Y159: 0.7793009042 | Z159: 0.5045872117 | AB159: NCAM
T160: KO C | U160: 20.47241288 | V160: 23.62224218 | W160: 1.182764508 | X160: 1.075516593 | Y160: 0.9093243713 | Z160: 0.5887757176 | AB160: Control | AC160: G-KiRKO
T161: WT C 11(9) | U161: 20.43363748 | V161: 23.05725087 | W161: 1.214984792 | X161: 1.591096233 | Y161: 1.309560617 | Z161: 0.847923487 | AB161: 0.65 | AC161: 0.62
T162: KO C | U162: 20.39347135 | V162: 22.76300813 | W162: 1.249286519 | X162: 1.95106769 | Y162: 1.561745572 | Z162: 1.01120997 | AB162: 0.5 | AC162: 0.59
T163: WT C* | U163: 20.48495916 | V163: 22.62512361 | W163: 1.172523293 | X163: 2.146741311 | Y163: 1.830873062 | Z163: 1.185466523 | AB163: 0.85 | AC163: 1.01
T164: KO C | U164: 20.64532459 | V164: 22.69127535 | W164: 1.049171957 | X164: 2.050529667 | Y164: 1.954426682 | Z164: 1.265465887 | AB164: 1.19 | AC164: 1.27
T165: WT C 11(1) | U165: 22.41722116 | V165: 24.48705096 | W165: 0.3072222439 | X165: 0.5905867937 | Y165: 1.922343859 | Z165: 1.244692676 | AB165: 1.24 | AC165: 1.13
T166: KO C | U166: 22.59067372 | V166: 24.79404918 | W166: 0.2724195251 | X166: 0.4773842202 | Y166: 1.752386214 | Z166: 1.134647308 | AB166: 1.25 | AC166: 1.01
T167: WT C* | U167: 22.46495939 | V167: 24.53255735 | W167: 0.2972227296 | X167: 0.5722488716 | Y167: 1.925320019 | Z167: 1.246619701 | AB167: 1.34 | AC167: 1.1
T168: KO C | U168: 21.43968331 | V168: 23.81316673 | W168: 0.6049519356 | X168: 0.9421999997 | Y168: 1.557479106 | Z168: 1.008447488 | AB168: 0.99 | AC168: 0.59
T169: WT C 11(2) | U169: 22.17808938 | V169: 24.14685764 | W169: 0.3626089299 | X169: 0.7476393061 | Y169: 2.061833685 | Z169: 1.335010526
T170: KO C | U170: 22.4553418 | V170: 24.69983487 | W170: 0.2992107555 | X170: 0.5095999709 | Y170: 1.703147235 | Z170: 1.10276571
T171: WT C* | U171: 22.58214735 | V171: 24.98487298 | W171: 0.2740343006 | X171: 0.4182388489 | Y171: 1.526228096 | Z171: 0.9882128655
T172: KO C | U172: 23.16929733 | V172: 26.30915118 | W172: 0.1824127408 | X172: 0.1670232431 | Y172: 0.9156336469 | Z172: 0.5928608916
T175: Genotype | U175: Average S11 | V175: Average COX-1 | W175: Relative S11 | X175: Relative COX-1 | Y175: COX-1/S11 | Z175: Normalization | AB175: Average WT
T176: WT C 11(3) | U176: 20.41748258 | V176: 25.50439887 | W176: 1 | X176: 1 | Y176: 1 | Z176: 1.25528685 | AB176: 0.7966306664
T177: KO C | U177: 20.27367083 | V177: 26.67348799 | W177: 1.104820307 | X177: 0.4447020256 | Y177: 0.4025107277 | Z177: 0.5052664235
T178: WT C* | U178: 20.57288921 | V178: 25.95751174 | W178: 0.8978792653 | X178: 0.7304650394 | Y178: 0.8135448358 | Z178: 1.021232134 | AB178: COX-1
T179: KO C | U179: 20.19104683 | V179: 26.47767811 | W179: 1.169940978 | X179: 0.509347003 | Y179: 0.435361281 | Z179: 0.5465032911 | AB179: Control | AC179: G-KiRKO
T180: WT C 11(9) | U180: 20.15168845 | V180: 26.20930304 | W180: 1.202297665 | X180: 0.6134832384 | Y180: 0.5102590284 | Z180: 0.6405214486 | AB180: 1.26 | AC180: 0.51
T181: KO C | U181: 20.1797688 | V181: 26.07353774 | W181: 1.179122636 | X181: 0.6740189845 | Y181: 0.5716275509 | Z181: 0.7175565478 | AB181: 1.02 | AC181: 0.55
T182: WT C* | U182: 20.35961576 | V182: 26.10425976 | W182: 1.040925499 | X182: 0.659817574 | Y182: 0.6338758872 | Z182: 0.7956960658 | AB182: 0.64 | AC182: 0.72
T183: KO C | U183: 20.26279714 | V183: 26.13871975 | W183: 1.113178871 | X183: 0.6442440053 | Y183: 0.5787425739 | Z183: 0.7264879427 | AB183: 0.8 | AC183: 0.73
T184: WT C 11(1) | U184: 21.85674753 | V184: 27.10955897 | W184: 0.3687551355 | X184: 0.3286992096 | Y184: 0.8913752732 | Z184: 1.118931659 | AB184: 1.12 | AC184: 1,9*
T185: KO C | U185: 22.10784171 | V185: 26.59692503 | W185: 0.3098497845 | X185: 0.4689395396 | Y185: 1.513441555 | Z185: 1.899803282 | AB185: 1.2 | AC185: 1.3
T186: WT C* | U186: 22.2104829 | V186: 27.35864799 | W186: 0.28857129 | X186: 0.2765765749 | Y186: 0.9584341357 | Z186: 1.203109767 | AB186: 1.17 | AC186: 0.53
T187: KO C | U187: 21.05386919 | V187: 26.09499443 | W187: 0.6433222037 | X187: 0.6640687162 | Y187: 1.032249023 | Z187: 1.295768625 | AB187: 0.8 | AC187: 0.4
T188: WT C 11(2) | U188: 21.95619606 | V188: 27.14932705 | W188: 0.3441922501 | X188: 0.3197623118 | Y188: 0.9290224045 | Z188: 1.166189608
T189: KO C | U189: 22.08411866 | V189: 28.41955692 | W189: 0.3149869388 | X189: 0.1325714434 | Y189: 0.4208791763 | Z189: 0.5283240956
T190: WT C* | U190: 22.21443444 | V190: 27.95304178 | W190: 0.2877819745 | X190: 0.1831829442 | Y190: 0.6365337666 | Z190: 0.7990324668
T191: KO C | U191: 22.6204402 | V191: 29.35331307 | W191: 0.2171919251 | X191: 0.06940030435 | Y191: 0.3195344593 | Z191: 0.401107405
T194: Genotype | U194: Average S11 | V194: Average COX-2 | W194: Relative S11 | X194: Relative COX-2 | Y194: COX-2/S11 | Z194: Normalization | AB194: Average WT
T195: WT C 11(3) | U195: 20.41748258 | V195: 27.96268362 | W195: 1 | X195: 1 | Y195: 1 | Z195: 1.307332296 | AB195: 0.7649164662
T196: KO C | U196: 20.27367083 | V196: 27.12426787 | W196: 1.104820307 | X196: 1.788085539 | Y196: 1.618440146 | Z196: 2.115839073
T197: WT C* | U197: 20.57288921 | V197: 28.19637509 | W197: 0.8978792653 | X197: 0.8504560203 | Y197: 0.9471830492 | Z197: 1.23828299 | AB197: COX-2
T198: KO C | U198: 20.19104683 | V198: 26.77780585 | W198: 1.169940978 | X198: 2.273441335 | Y198: 1.943210279 | Z198: 2.540421555 | AB198: Control | AC198: G-KiRKO
T199: WT C 11(9) | U199: 20.15168845 | V199: 27.61982083 | W199: 1.202297665 | X199: 1.268270775 | Y199: 1.054872526 | Z199: 1.379068921 | AB199: 1.31 | AC199: 2.12
T200: KO C | U200: 20.1797688 | V200: 27.67085074 | W200: 1.179122636 | X200: 1.22419458 | Y200: 1.038224984 | Z200: 1.357305052 | AB200: 1.24 | AC200: 2.54
T201: WT C* | U201: 20.35961576 | V201: 28.22055601 | W201: 1.040925499 | X201: 0.8363203753 | Y201: 0.8034392244 | Z201: 1.050362046 | AB201: 1.38 | AC201: 1.36
T202: KO C | U202: 20.26279714 | V202: 27.47336962 | W202: 1.113178871 | X202: 1.403777225 | Y202: 1.261052703 | Z202: 1.648614926 | AB202: 1.05 | AC202: 1.65
T203: WT C 11(1) | U203: 21.85674753 | V203: 30.02293078 | W203: 0.3687551355 | X203: 0.2397749499 | Y203: 0.6502280969 | Z203: 0.8500641907 | AB203: 0.85 | AC203: 1.08
T204: KO C | U204: 22.10784171 | V204: 29.93515043 | W204: 0.3098497845 | X204: 0.2548169575 | Y204: 0.8223886873 | Z204: 1.075135291 | AB204: 0.79 | AC204: 0.58
T205: WT C* | U205: 22.2104829 | V205: 30.48678502 | W205: 0.28857129 | X205: 0.1738480279 | Y205: 0.6024439504 | Z205: 0.7875944328 | AB205: 0.82 | AC205: 1.71
T206: KO C | U206: 21.05386919 | V206: 29.77857612 | W206: 0.6433222037 | X206: 0.2840284808 | Y206: 0.4415026858 | Z206: 0.5771907199 | AB206: 0.57 | AC206: 1.23
T207: WT C 11(2) | U207: 21.95619606 | V207: 30.17548181 | W207: 0.3441922501 | X207: 0.2157155093 | Y207: 0.6267297108 | Z207: 0.8193439917
T208: KO C | U208: 22.08411866 | V208: 29.24193304 | W208: 0.3149869388 | X208: 0.4120098066 | Y208: 1.308021876 | Z208: 1.710019242
T209: WT C* | U209: 22.21443444 | V209: 30.96242267 | W209: 0.2877819745 | X209: 0.1250226117 | Y209: 0.4344351723 | Z209: 0.5679511313
T210: KO C | U210: 22.6204402 | V210: 30.25804198 | W210: 0.2171919251 | X210: 0.2037174742 | Y210: 0.9379606271 | Z210: 1.22622622
T214: Genotype | U214: Average S11 | V214: Average mPges | W214: Relative S11 | X214: Relative mPges | Y214: mPges/S11 | Z214: Normalization | AB214: Average WT
T215: WT C 11(3) | U215: 20.5268154 | V215: 26.93035696 | W215: 1 | X215: 1 | Y215: 1 | Z215: 1.081727807 | AB215: 0.9244469761
T216: KO C | U216: 20.34092354 | V216: 26.07067224 | W216: 1.137519958 | X216: 1.814641711 | Y216: 1.595261426 | Z216: 1.725638643
T217: WT C* | U217: 20.6858407 | V217: 26.8947313 | W217: 0.8956299641 | X217: 1.025001242 | Y217: 1.144447241 | Z217: 1.237980404 | AB217: mPges
T218: KO C | U218: 20.38713601 | V218: 26.13522633 | W218: 1.101660267 | X218: 1.735234483 | Y218: 1.575108529 | Z218: 1.703838694 | AB218: Control | AC218: G-KiRKO
T219: WT C 11(9) | U219: 20.20896713 | V219: 26.53998447 | W219: 1.246470097 | X219: 1.310731775 | Y219: 1.05155493 | Z219: 1.137496208 | AB219: 1.08 | AC219: 1.73
T220: KO C | U220: 20.29930511 | V220: 26.06819007 | W220: 1.170812691 | X220: 1.817766496 | Y220: 1.552568152 | Z220: 1.679456142 | AB220: 1.24 | AC220: 1.7
T221: WT C* | U221: 20.36244353 | V221: 26.41676601 | W221: 1.120678043 | X221: 1.427599157 | Y221: 1.273870908 | Z221: 1.377981584 | AB221: 1.14 | AC221: 1.68
T222: KO C | U222: 20.42201762 | V222: 25.85561348 | W222: 1.075343654 | X222: 2.106347517 | Y222: 1.958766864 | Z222: 2.118852584 | AB222: 1.38 | AC222: 2.12
T223: WT C 11(1) | U223: 22.14957318 | V223: 28.9280241 | W223: 0.3247141643 | X223: 0.2504045803 | Y223: 0.7711538573 | Z223: 0.8341785707 | AB223: 0.83 | AC223: 1.01
T224: KO C | U224: 22.36190788 | V224: 28.8643781 | W224: 0.2802735523 | X224: 0.2616987359 | Y224: 0.9337261178 | Z224: 1.010037506 | AB224: 0.83 | AC224: 0.75
T225: WT C* | U225: 22.21394272 | V225: 29.00602799 | W225: 0.310544663 | X225: 0.2372251656 | Y225: 0.7639003142 | Z225: 0.8263322115 | AB225: 0.82 | AC225: 1.55
... 39 more rows

Sheet Suppl. Figure 1-B
A1: qPCR | F1: Data analysis
A2: Astrocyte control | B2: Astrocyte G-KiRKO | C2: HTLA | F2: Genotype | G2: Average S11 | H2: Average Gpr54 | I2: Relative S11 | J2: Relative Kiss1r | K2: Gpr54/S11 | L2: Normalization
A3: 1.55 | B3: 0.03 | C3: 0.25 | F3: Control 1.1 | G3: 23.72098203 | H3: 30.22549151 | I3: 1 | J3: 1 | K3: 1 | L3: 1.553854509
A4: 1.38 | B4: 0.03 | C4: 0.38 | F4: Control 1.2 | G4: 23.81631353 | H4: 30.48856209 | I4: 0.9360571384 | J4: 0.8333124431 | K4: 0.8902367269 | L4: 1.383298352
A5: 0.54 | B5: 0.04 | F5: Control 1.3 | G5: 21.89334636 | H5: 29.92712606 | I5: 3.549548853 | J5: 1.229750342 | K5: 0.3464525754 | L5: 0.5383368965
A6: 1.18 | B6: 0.04 | F6: G-KiRKO 1.1 | G6: 22.94220103 | H6: 35.04747988 | I6: 1.715680606 | J6: 0.03535386194 | K6: 0.02060631905 | L6: 0.03201922177
A7: 0.67 | B7: 0.03 | F7: G-KiRKO 1.2 | G7: 22.41069583 | H7: 34.48425078 | I7: 2.479907305 | J7: 0.05223790071 | K7: 0.02106445696 | L7: 0.03273110144
A8: 0.71 | B8: 0.02 | F8: G-KiRKO 1.3 | G8: 22.96291421 | H8: 34.91381397 | I8: 1.691224069 | J8: 0.03878593897 | K8: 0.02293364888 | L8: 0.03563555372
A9: 1.09 | F9: Control 2.1 | G9: 24.16356769 | H9: 31.06468358 | I9: 0.7358146659 | J9: 0.5589565056 | K9: 0.7596430616 | L9: 1.180374797
A10: 0.88 | F10: Control 2.2 | G10: 22.37753431 | H10: 30.09629531 | I10: 2.537570175 | J10: 1.093684185 | K10: 0.4309966264 | L10: 0.6697060515
A11: 0.99 | F11: Control 2.3 | G11: 21.74520312 | H11: 29.36967479 | I11: 3.933405455 | J11: 1.809782997 | K11: 0.4601058848 | L11: 0.7149376038
F12: G-KiRKO 2.1 | G12: 22.56673243 | H12: 34.49365125 | I12: 2.225685269 | J12: 0.05189862995 | K12: 0.02331804531 | L12: 0.03623284985
F13: G-KiRKO 2.2 | G13: 22.18227543 | H13: 34.24687226 | I13: 2.905339175 | J13: 0.06158057938 | K13: 0.02119565933 | L13: 0.03293497083
F14: G-KiRKO 2.3 | G14: 22.81175294 | H14: 35.35778948 | I14: 1.878041693 | J14: 0.02851178231 | K14: 0.01518165567 | L14: 0.02359008412
F15: Control 3.1 | G15: 21.54090332 | H15: 28.55600851 | I15: 4.531782785 | J15: 3.181005797 | K15: 0.701932539 | L15: 1.090701041
F16: Control 3.2 | G16: 21.27055007 | H16: 28.5946593 | I16: 5.465797305 | J16: 3.096915912 | K16: 0.5665991143 | L16: 0.8804125888
F17: Control 3.3 | G17: 21.52419441 | H17: 28.68142029 | I17: 4.584573782 | J17: 2.916162724 | K17: 0.636081534 | L17: 0.98837816
F18: Hypothalamus | G18: 19.60529913 | H18: 28.75077446 | I18: 17.33580473 | J18: 2.779291307 | K18: 0.1603208707 | L18: 0.2491153078
F19: Hypothalamus | G19: 19.49305536 | H19: 28.01315582 | I19: 18.73841041 | J19: 4.634249405 | K19: 0.2473128352 | L19: 0.3842881642

Sheet Suppl. Figure 1-C
A2: Ratio pAKT/AKT | G2: Ratio pERK/ERK | M2: GFAP | S2: NeuN no detectable
A3: WT Control | B3: 0.9099444878 | C3: 2.236866986 | D3: 1.648116857 | E3: 0.6704872001 | G3: WT Control | H3: 0.8146362255 | I3: *2,63 | J3: 0.8149545116 | K3: 0.6331541799 | M3: WT Control | N3: 100 | O3: 203.1043843 | P3: 251.2520936 | Q3: 179.6537963 | S3: Name gels:
A4: WT 1' Kp10 | B4: 0.6692789907 | C4: 1.108494563 | D4: 1.058981199 | E4: 0.7245102889 | G4: WT 1' Kp10 | H4: 1.153131527 | I4: 1.397007098 | J4: 0.8215310599 | K4: 0.8271136966 | M4: WT 1' Kp10 | N4: 104.5569316 | O4: 141.9659315 | P4: 181.9946068 | Q4: 156.2851746 | S4: bcatenin/NeuN_20201111-1_E9
A5: WT 10' Kp10 | B5: 1.084119361 | C5: 1.287709431 | D5: 1.419329408 | E5: 1.028892732 | G5: WT 10' Kp10 | H5: 1.140731452 | I5: 1.500999922 | J5: 0.9873009866 | K5: 1.046081274 | M5: WT 10' Kp10 | N5: 73.78864303 | O5: 137.6964064 | P5: 144.9732244 | Q5: 155.2153996 | S5: NeuN_20201103 (left)_E14
A6: KO Control | B6: 0.9287051205 | C6: 1.091379638 | D6: 1.116868787 | E6: 1.375364158 | G6: KO Control | H6: 0.8109759092 | I6: *2,01 | J6: 0.9367963352 | K6: 0.9829587074 | M6: KO Control | N6: 131.1065631 | O6: 183.850611 | P6: 103.9285434 | Q6: 66.8829094 | S6: NeuN_20201109 (right)_E14
A7: KO 1' Kp10 | B7: *0,36 | C7: 1.17455711 | D7: 1.146386272 | E7: 1.070398653 | G7: KO 1' Kp10 | H7: 0.7163613055 | I7: 0.9047532513 | J7: 1.056014592 | K7: 0.7828246449 | M7: KO 1' Kp10 | N7: 130.8971829 | O7: 255.4390127 | P7: 134.1145939 | Q7: 86.53354641 | S7: bcatenin/NeuN_20201111-2_E16
A8: KO 10' Kp | B8: 0.9140978012 | C8: 1.322711074 | D8: 1.482870078 | E8: 1.427591672 | G8: KO 10' Kp | H8: 0.8956113313 | I8: 0.9518009698 | J8: 1.375371397 | K8: 1.251824053 | M8: KO 10' Kp | N8: 102.9084203 | O8: 150.5899611 | P8: 170.3044959 | Q8: 59.63893607
A10: *outlier | G10: *outlier
A12: Data analysis
A13: Normalized | G13: Normalizated | H13: 20201111-1 | I13: 20201103 | J13: 20201109 | K13: 20201111-2
B14: 20201111-1 | C14: 20201103 | D14: 20201109 | E14: 20201111-2 | G14: Sample | H14: pERK | I14: pERK | J14: pERK | K14: pERK
A15: Sample | B15: pAKT | C15: pAKT | D15: pAKT | E15: pAKT | G15: WT Control | H15: 0.7620055931 | I15: 1.055644823 | J15: 1.22375938 | K15: 0.6898697525
A16: WT Control | B16: 0.7402681015 | C16: 1.318272188 | D16: 1.618592684 | E16: 0.9485830353 | G16: WT 1' Kp10 | H16: 0.9571459313 | I16: 1.067614099 | J16: 0.9850080602 | K16: 0.8062794149
A17: WT 1' Kp10 | B17: 0.5781789838 | C17: 0.9367263727 | D17: 0.9705407288 | E17: 0.9235770682 | G17: WT 10' Kp10 | H17: 1.09483439 | I17: 1.117308709 | J17: 1.154969827 | K17: 0.9839161054
A18: WT 10' Kp10 | B18: 0.8157213944 | C18: 1.324581734 | D18: 1.186754524 | E18: 1.253365614 | G18: KO Control | H18: 0.7623123656 | I18: 0.9046270213 | J18: 1.025142174 | K18: 0.7307127762
A19: KO Control | B19: 0.7701520325 | C19: 1.656982754 | D19: 1.04991269 | E19: 1.330669176 | G19: KO 1' Kp10 | H19: 0.6344495983 | I19: 0.7123764004 | J19: 1.020732684 | K19: 0.6626702508
A20: KO 1' Kp10 | B20: 0.3415180276 | C20: 2.091417907 | D20: 1.032992169 | E20: 1.01502469 | G20: KO 10' Kp | H20: 0.6865444501 | I20: 1.087927896 | J20: 1.337348897 | K20: 1.147356178
A21: KO 10' Kp | B21: 0.7793836842 | C21: 1.691336761 | D21: 1.34710297 | E21: 1.551706139
H23: 20201111-1 | I23: 20201103 | J23: 20201109 | K23: 20201111-2
B24: 20201111-1 | C24: 20201103 | D24: 20201109 | E24: 20201111-2 | G24: Sample | H24: ERK | I24: ERK | J24: ERK | K24: ERK
A25: Sample | B25: AKT | C25: AKT | D25: AKT | E25: AKT | G25: WT Control | H25: 0.9353937 | I25: 0.4002921694 | J25: 1.501629063 | K25: 1.089576243
A26: WT Control | B26: 0.8135310576 | C26: 0.5893386581 | D26: 0.9820861164 | E26: 1.414766807 | G26: WT 1' Kp10 | H26: 0.8300405541 | I26: 0.7642152288 | J26: 1.198990651 | K26: 0.9748108613
A27: WT 1' Kp10 | B27: 0.8638833608 | C27: 0.8450437234 | D27: 0.9164853258 | E27: 1.274760459 | G27: WT 10' Kp10 | H27: 0.9597652343 | I27: 0.7443762605 | J27: 1.169825457 | K27: 0.9405732896
A28: WT 10' Kp10 | B28: 0.7524276605 | C28: 1.028634024 | D28: 0.8361374865 | E28: 1.218169372 | G28: KO Control | H28: 0.9399938482 | I28: 0.4496005609 | J28: 1.094306345 | K28: 0.7433809484
A29: KO Control | B29: 0.8292751009 | C29: 1.518245985 | D29: 0.9400501676 | E29: 0.967503165 | G29: KO 1' Kp10 | H29: 0.8856558742 | I29: 0.7873709207 | J29: 0.9665895642 | K29: 0.8465117381
A30: KO 1' Kp10 | B30: 0.9484206138 | C30: 1.780601292 | D30: 0.9010856062 | E30: 0.9482679071 | G30: KO 10' Kp | H30: 0.7665651673 | I30: 1.143020369 | J30: 0.9723547397 | K30: 0.916547477
A31: KO 10' Kp | B31: 0.8526261449 | C31: 1.278689499 | D31: 0.908443019 | E31: 1.086939753
A34: Name gel: bcatenin_20201111-1_E6
A35: Name gels: pAKT_20201111-1_E6; pERK_20201111-1_E6 | J35: Name gel: bcatenin_20201111-1_E7
A36: 20201111-1 | J36: Name gels: AKT_20201111-1_E7; ERK_20201111-1_E7 | T36: Name: bcatenin_20201111-1_E8/GFAP_E8
A37: Intensity | F37: Signal/housekeeping | J37: Intensity | O37: Signal/housekeeping | T37: Intensity | X37: Signal/housekeeping
A38: Sample | B38: pAKT | C38: pERK | D38: B-catenin | F38: Sample | G38: pAKT | H38: pERK | J38: Sample | K38: AKT | L38: ERK | M38: B-catenin | O38: Sample | P38: AKT | Q38: ERK | T38: Sample | U38: GFAP | V38: B-catenin | X38: Sample | Y38: GFAP
A39: WT Control | B39: 18059075 | C39: 18589368 | D39: 24395317 | F39: WT Control | G39: 0.7402681015 | H39: 0.7620055931 | J39: WT Control | K39: 17804368 | L39: 20471368 | M39: 21885296 | O39: WT Control | P39: 0.8135310576 | Q39: 0.9353937 | T39: WT Control | U39: 16849560 | V39: 24112953 | X39: WT Control | Y39: 0.6987762967
A40: WT 1' Kp10 | B40: 16346489 | C40: 27060782 | D40: 28272368 | F40: WT 1' Kp10 | G40: 0.5781789838 | H40: 0.9571459313 | J40: WT 1' Kp10 | K40: 23155489 | L40: 22248368 | M40: 26803953 | O40: WT 1' Kp10 | P40: 0.8638833608 | Q40: 0.8300405541 | T40: WT 1' Kp10 | U40: 18246660 | V40: 24974246 | X40: WT 1' Kp10 | Y40: 0.7306190545
A41: WT 10' Kp10 | B41: 19899782 | C41: 26708832 | D41: 24395317 | F41: WT 10' Kp10 | G41: 0.8157213944 | H41: 1.09483439 | J41: WT 10' Kp10 | K41: 23154953 | L41: 29535489 | M41: 30773660 | O41: WT 10' Kp10 | P41: 0.7524276605 | Q41: 0.9597652343 | T41: WT 10' Kp10 | U41: 12654225 | V41: 24541882 | X41: WT 10' Kp10 | Y41: 0.5156175472
A42: KO Control | B42: 20531711 | C42: 20322711 | D42: 26659296 | F42: KO Control | G42: 0.7701520325 | H42: 0.7623123656 | J42: KO Control | K42: 26027489 | L42: 29502489 | M42: 31385832 | O42: KO Control | P42: 0.8292751009 | Q42: 0.9399938482 | T42: KO Control | U42: 27567731 | V42: 30091125 | X42: KO Control | Y42: 0.9161415866
A43: KO 1' Kp10 | B43: 9537075 | C43: 17717347 | D43: 27925539 | F43: KO 1' Kp10 | G43: 0.3415180276 | H43: 0.6344495983 | J43: KO 1' Kp10 | K43: 28041075 | L43: 26185368 | M43: 29566075 | O43: KO 1' Kp10 | P43: 0.9484206138 | Q43: 0.8856558742 | T43: KO 1' Kp10 | U43: 28161660 | V43: 30788589 | X43: KO 1' Kp10 | Y43: 0.9146784869
A44: KO 10' Kp | B44: 21127953 | C44: 18611217 | D44: 27108539 | F44: KO 10' Kp | G44: 0.7793836842 | H44: 0.6865444501 | J44: KO 10' Kp | K44: 23038418 | L44: 20713004 | M44: 27020539 | O44: KO 10' Kp | P44: 0.8526261449 | Q44: 0.7665651673 | T44: KO 10' Kp | U44: 21352054 | V44: 29692761 | X44: KO 10' Kp | Y44: 0.7190996486
A47: Name gel: pERK/bcatenin_20201103 (left)_E11
A48: Name gel: pAKT_20201103 (left)_E11 | J48: Name gels: ERK_20201103 (left) E12; AKT_20201103 (left) E12 | T48: Name gel: GFAP_20201103 (left)_E11
A49: 20201103 | J49: Name gel: bcatenin_20201103 (left)_E12 | T49: Name gel: pERK/bcatenin_20201103 (left)_E11
A50: Intensity | F50: Signal/housekeeping | J50: Intensity | O50: Signal/housekeeping | T50: Intensity | X50: Signal/housekeeping
A51: Sample | B51: pAKT | C51: pERK | D51: B-catenin | F51: Sample | G51: pAKT | H51: pERK | J51: Sample | K51: AKT | L51: ERK | M51: B-catenin | O51: Sample | P51: AKT | Q51: ERK | T51: Sample | U51: GFAP | V51: B-catenin | X51: Sample | Y51: GFAP
A52: WT Control | B52: 20832368 | C52: 16682125 | D52: 15802782 | F52: WT Control | G52: 1.318272188 | H52: 1.055644823 | J52: WT Control | K52: 17983368 | L52: 12214711 | M52: 30514489 | O52: WT Control | P52: 0.5893386581 | Q52: 0.4002921694 | T52: WT Control | U52: 22428024 | V52: 15802782 | X52: WT Control | Y52: 1.419245295
A53: WT 1' Kp10 | B53: 20539054 | C53: 23408953 | D53: 21926418 | F53: WT 1' Kp10 | G53: 0.9367263727 | H53: 1.067614099 | J53: WT 1' Kp10 | K53: 22595832 | L53: 20434539 | M53: 26739246 | O53: WT 1' Kp10 | P53: 0.8450437234 | Q53: 0.7642152288 | T53: WT 1' Kp10 | U53: 21751539 | V53: 21926418 | X53: WT 1' Kp10 | Y53: 0.9920242787
A54: WT 10' Kp10 | B54: 24667075 | C54: 20807125 | D54: 18622539 | F54: WT 10' Kp10 | G54: 1.324581734 | H54: 1.117308709 | J54: WT 10' Kp10 | K54: 17635882 | L54: 12762296 | M54: 17144953 | O54: WT 10' Kp10 | P54: 1.028634024 | Q54: 0.7443762605 | T54: WT 10' Kp10 | U54: 17918418 | V54: 18622539 | X54: WT 10' Kp10 | Y54: 0.9621898496
A55: KO Control | B55: 19453468 | C55: 10620589 | D55: 11740296 | F55: KO Control | G55: 1.656982754 | H55: 0.9046270213 | J55: KO Control | K55: 24397882 | L55: 7224983 | M55: 16069782 | O55: KO Control | P55: 1.518245985 | Q55: 0.4496005609 | T55: KO Control | U55: 15082811 | V55: 11740296 | X55: KO Control | Y55: 1.284704491
A56: KO 1' Kp10 | B56: 20997589 | C56: 7152175 | D56: 10039882 | F56: KO 1' Kp10 | G56: 2.091417907 | H56: 0.7123764004 | J56: KO 1' Kp10 | K56: 30126953 | L56: 13321953 | M56: 16919539 | O56: KO 1' Kp10 | P56: 1.780601292 | Q56: 0.7873709207 | T56: KO 1' Kp10 | U56: 17920660 | V56: 10039882 | X56: KO 1' Kp10 | Y56: 1.784947273
A57: KO 10' Kp | B57: 27651296 | C57: 17786296 | D57: 16348782 | F57: KO 10' Kp | G57: 1.691336761 | H57: 1.087927896 | J57: KO 10' Kp | K57: 26926054 | L57: 24069196 | M57: 21057539 | O57: KO 10' Kp | P57: 1.278689499 | Q57: 1.143020369 | T57: KO 10' Kp | U57: 17203610 | V57: 16348782 | X57: KO 10' Kp | Y57: 1.052286953
A61: Name gel:bcatenin_20201109 (right)_E11
A62: Name gels: pAKT_20201109 (right)_E11; pERK_20201109 (right)_E11 | J62: Name gel: bcatenin/ERK_20201109 (right)_E12 | T62: Name gel: GFAP_20201109 (right)_E11
A63: 20201109 | J63: Name gel: AKT_20201109 (right)_E12 | T63: Name gel: bcatenin_20201109 (right)_E11
A64: Intensity | F64: Signal/housekeeping | J64: Intensity | O64: Signal/housekeeping | T64: Intensity | X64: Signal/housekeeping
A65: Sample | B65: pAKT | C65: pERK | D65: B-catenin | F65: Sample | G65: pAKT | H65: pERK | J65: Sample | K65: AKT | L65: ERK | M65: B-catenin | O65: Sample | P65: AKT | Q65: ERK | T65: Sample | U65: GFAP | V65: B-catenin | X65: Sample | Y65: GFAP
A66: WT Control | B66: 22493589 | C66: 17006589 | D66: 13897004 | F66: WT Control | G66: 1.618592684 | H66: 1.22375938 | J66: WT Control | K66: 10302761 | L66: 15753125 | M66: 10490690 | O66: WT Control | P66: 0.9820861164 | Q66: 1.501629063 | T66: WT Control | U66: 24398832 | V66: 13897004 | X66: WT Control | Y66: 1.755690075
A67: WT 1' Kp10 | B67: 22015347 | C67: 22343518 | D67: 22683589 | F67: WT 1' Kp10 | G67: 0.9705407288 | H67: 0.9850080602 | J67: WT 1' Kp10 | K67: 16554589 | L67: 21657518 | M67: 18063125 | O67: WT 1' Kp10 | P67: 0.9164853258 | Q67: 1.198990651 | T67: WT 1' Kp10 | U67: 28847518 | V67: 22683589 | X67: WT 1' Kp10 | Y67: 1.271735174
A68: WT 10' Kp10 | B68: 26406539 | C68: 25699296 | D68: 22251054 | F68: WT 10' Kp10 | G68: 1.186754524 | H68: 1.154969827 | J68: WT 10' Kp10 | K68: 14121225 | L68: 19756761 | M68: 16888640 | O68: WT 10' Kp10 | P68: 0.8361374865 | Q68: 1.169825457 | T68: WT 10' Kp10 | U68: 22541175 | V68: 22251054 | X68: WT 10' Kp10 | Y68: 1.013038528
A69: KO Control | B69: 29560296 | C69: 28862882 | D69: 28155004 | F69: KO Control | G69: 1.04991269 | H69: 1.025142174 | J69: KO Control | K69: 26989347 | L69: 31418125 | M69: 28710539 | O69: KO Control | P69: 0.9400501676 | Q69: 1.094306345 | T69: KO Control | U69: 20446953 | V69: 28155004 | X69: KO Control | Y69: 0.7262280268
A70: KO 1' Kp10 | B70: 24727468 | C70: 24434004 | D70: 23937711 | F70: KO 1' Kp10 | G70: 1.032992169 | H70: 1.020732684 | J70: KO 1' Kp10 | K70: 25918347 | L70: 27802468 | M70: 28763468 | O70: KO 1' Kp10 | P70: 0.9010856062 | Q70: 0.9665895642 | T70: KO 1' Kp10 | U70: 22433489 | V70: 23937711 | X70: KO 1' Kp10 | Y70: 0.9371609925
A71: KO 10' Kp | B71: 27668711 | C71: 27468368 | D71: 20539418 | F71: KO 10' Kp | G71: 1.34710297 | H71: 1.337348897 | J71: KO 10' Kp | K71: 23899368 | L71: 25580761 | M71: 26308054 | O71: KO 10' Kp | P71: 0.908443019 | Q71: 0.9723547397 | T71: KO 10' Kp | U71: 24442882 | V71: 20539418 | X71: KO 10' Kp | Y71: 1.190047449
A74: Name gels: pAKT_20201111-2 (left)_E15; pERK_20201111-2 (left)_E15
A75: Name gel: bcatenin_20201111-2 (left)_E15 | J75: Name gel: ERK/bcatenin_20201111-2 (right)_E15 | U75: Name gel: bcatenin_20201111-2 (left)_E15
A76: 20201101-2 | J76: Name gel: AKT_20201111-2 (right)_E15 | U76: Name gel: GFAP_20201111-2 (right)_E15
A77: Intensity | F77: Signal/housekeeping | J77: Intensity | O77: Signal/housekeeping | T77: Intensity | U77: Intensity | X77: Signal/housekeeping
A78: Sample | B78: pAKT | C78: pERK | D78: B-catenin | F78: Sample | G78: pAKT | H78: pERK | J78: Sample | K78: AKT | L78: ERK | M78: B-catenin | O78: Sample | P78: AKT | Q78: ERK | T78: Sample | U78: GFAP | V78: B-catenin | X78: Sample | Y78: GFAP
A79: WT Control | B79: 24652125 | C79: 17928589 | D79: 25988368 | F79: WT Control | G79: 0.9485830353 | H79: 0.6898697525 | J79: WT Control | K79: 23646660 | L79: 18211368 | M79: 16714175 | O79: WT Control | P79: 1.414766807 | Q79: 1.089576243 | T79: WT Control | U79: 20982610 | V79: 16714175 | X79: WT Control | Y79: 1.255378145
A80: WT 1' Kp10 | B80: 29474296 | C80: 25730953 | D80: 31913196 | F80: WT 1' Kp10 | G80: 0.9235770682 | H80: 0.8062794149 | J80: WT 1' Kp10 | K80: 30031276 | L80: 22964953 | M80: 23558368 | O80: WT 1' Kp10 | P80: 1.274760459 | Q80: 0.9748108613 | T80: WT 1' Kp10 | U80: 25727711 | V80: 23558368 | X80: WT 1' Kp10 | Y80: 1.092083756
A81: WT 10' Kp10 | B81: 25945711 | C81: 20367882 | D81: 20700832 | F81: WT 10' Kp10 | G81: 1.253365614 | H81: 0.9839161054 | J81: WT 10' Kp10 | K81: 25464347 | L81: 19661539 | M81: 20903782 | O81: WT 10' Kp10 | P81: 1.218169372 | Q81: 0.9405732896 | T81: WT 10' Kp10 | U81: 22672418 | V81: 20903782 | X81: WT 10' Kp10 | Y81: 1.084608422
A82: KO Control | B82: 25404589 | C82: 13950468 | D82: 19091589 | F82: KO Control | G82: 1.330669176 | H82: 0.7307127762 | J82: KO Control | K82: 26898761 | L82: 20667660 | M82: 27802246 | O82: KO Control | P82: 0.967503165 | Q82: 0.7433809484 | T82: KO Control | U82: 12993711 | V82: 27802246 | X82: KO Control | Y82: 0.4673619175
A83: KO 1' Kp10 | B83: 27944054 | C83: 18243589 | D83: 27530418 | F83: KO 1' Kp10 | G83: 1.01502469 | H83: 0.6626702508 | J83: KO 1' Kp10 | K83: 28730347 | L83: 25647368 | M83: 30297711 | O83: KO 1' Kp10 | P83: 0.9482679071 | Q83: 0.8465117381 | T83: KO 1' Kp10 | U83: 18320296 | V83: 30297711 | X83: KO 1' Kp10 | Y83: 0.604675911
A84: KO 10' Kp | B84: 27685468 | C84: 20471075 | D84: 17841953 | F84: KO 10' Kp | G84: 1.551706139 | H84: 1.147356178 | J84: KO 10' Kp | K84: 22357004 | L84: 18852246 | M84: 20568761 | O84: KO 10' Kp | P84: 1.086939753 | Q84: 0.916547477 | T84: KO 10' Kp | U84: 8571882 | V84: 20568761 | X84: KO 10' Kp | Y84: 0.4167427489

Sheet Suppl. Figure 2-C
A1: ARC | B1: AVPV | C1: OVLT
A2: 93.75 | B2: 82.3 | C2: 100
A3: 93.26666667 | B3: 87.5 | C3: 80
A4: 91.65 | B4: 94.45 | C4: 100
A5: 89.45 | B5: 93.33333333 | C5: 100
A7: Individual quantification
A8: ID: 6855 | B8: 250x250 mm | F8: ID: 6866 | G8: 250x250 mm | K8: ID: 6864 | L8: 250x250 mm | P8: ID: 6868 | Q8: 250x250 mm
A9: ARC | B9: Total astrocytes | C9: GFP | D9: % | F9: ARC | G9: Total astrocytes | H9: GFP | I9: % | K9: ARC | L9: Total astrocytes | M9: GFP | N9: % | P9: ARC | Q9: Total astrocytes | R9: GFP | S9: %
A10: TRIPLEA ARC_01.czi | B10: 8 | C10: 8 | D10: =(C10/B10)*100 -> 100 | F10: 6866 ARC_02.czi | G10: 9 | H10: 9 | I10: =(H10/G10)*100 -> 100 | K10: 6864 ARC_02.czi | L10: 8 | M10: 8 | N10: =(M10/L10)*100 -> 100 | P10: 6868 ARC_01.czi | Q10: 10 | R10: 9 | S10: =(R10/Q10)*100 -> 90
A11: TRIPLEA ARC_04.czi | B11: 8 | C11: 7 | D11: =(C11/B11)*100 -> 87.5 | F11: 6866 ARC_03.czi | G11: 6 | H11: 5 | I11: =(H11/G11)*100 -> 83.33333333 | K11: 6864 ARC_01.czi | L11: 11 | M11: 10 | N11: =(M11/L11)*100 -> 90.90909091 | P11: 6868 ARC_02.czi | Q11: 9 | R11: 8 | S11: =(R11/Q11)*100 -> 88.88888889
K12: 6864 ARC_03.czi | L12: 9 | M12: 8 | N12: =(M12/L12)*100 -> 88.88888889
A13: AVPV | F13: AVPV | P13: AVPV
A14: TRIPLEA AVPV_02.czi | B14: 10 | C14: 8 | D14: =(C14/B14)*100 -> 80 | F14: 6866 VOLT_01.czi left | G14: 9 | H14: 8 | I14: =(H14/G14)*100 -> 88.88888889 | K14: AVPV | P14: 6868 AVPV_02.czi left | Q14: 10 | R14: 8 | S14: =(R14/Q14)*100 -> 80
A15: TRIPLEA AVPV_03.czi | B15: 13 | C15: 11 | D15: =(C15/B15)*100 -> 84.61538462 | F15: 6866 VOLT_01.czi right | G15: 6 | H15: 6 | I15: =(H15/G15)*100 -> 100 | K15: 6864 AVPV_01.2.czi | L15: 8 | M15: 7 | N15: =(M15/L15)*100 -> 87.5 | P15: 6868 AVPV_02.czi right | Q15: 11 | R15: 11 | S15: =(R15/Q15)*100 -> 100
K16: 6864 AVPV_01.czi | L16: 8 | M16: 7 | N16: =(M16/L16)*100 -> 87.5 | P16: 6868 AVPV_03.1.czi | Q16: 6 | R16: 6 | S16: =(R16/Q16)*100 -> 100
A17: VOLT | F17: VOLT
A18: TRIPLEA VOLT_01.czi | B18: 7 | C18: 7 | D18: =(C18/B18)*100 -> 100 | F18: 6866 VOLT_01.czi | G18: 8 | H18: 8 | I18: =(H18/G18)*100 -> 100 | K18: VOLT | P18: VOLT
K19: 6864 VOLT_01.czi | L19: 5 | M19: 4 | N19: =(M19/L19)*100 -> 80 | P19: 6868 VOLT_01.czi | Q19: 7 | R19: 7 | S19: =(R19/Q19)*100 -> 100

Sheet Suppl. Figure 2-D
A2: ARC | B2: AVPV | C2: OVLT
A3: 29.86666667 | B3: 21.55 | C3: 37.85
A4: 41.32 | B4: 22.5 | C4: 23.15
A5: 35.575 | B5: 32.05 | C5: 38.35
A6: 22.32 | B6: 14.1 | C6: 22.6357
A9: Individual quantification
A10: ID: 6865 | B10: 250x250 mm | F10: ID: 6864 | G10: 250x250 mm | K10: ID: 6866 | L10: 250x250 mm | P10: ID: 6868 | Q10: 250x250 mm
A11: ARC | B11: Total NeuN | C11: GFP&NeuN | D11: % | F11: ARC | G11: Total NeuN | H11: GFP&NeuN | I11: % | K11: ARC | L11: Total NeuN | M11: GFP&NeuN | N11: % | P11: ARC | Q11: Total NeuN | R11: GFP&NeuN | S11: %
A12: 6865 ARC_01.czi | B12: 16 | C12: 4 | D12: =(C12/B12)*100 -> 25 | F12: 6864 ARC 07.czi | G12: 13 | H12: 7 | I12: =(H12/G12)*100 -> 53.84615385 | K12: 6866 ARC_01.czi left | L12: 17 | M12: 5 | N12: =(M12/L12)*100 -> 29.41176471 | P12: 6868 ARC_01.czi left | Q12: 15 | R12: 2 | S12: =(R12/Q12)*100 -> 13.33333333
A13: 6865 ARC_02.czi right | B13: 12 | C13: 4 | D13: =(C13/B13)*100 -> 33.33333333 | F13: 6864 ARC 08.czi | G13: 15 | H13: 3 | I13: =(H13/G13)*100 -> 20 | K13: 6866 ARC_01.czi right | L13: 14 | M13: 6 | N13: =(M13/L13)*100 -> 42.85714286 | P13: 6868 ARC_01.czi right | Q13: 16 | R13: 5 | S13: =(R13/Q13)*100 -> 31.25
A14: 6865 ARC_02.czi left | B14: 16 | C14: 5 | D14: =(C14/B14)*100 -> 31.25 | F14: 6864 ARC_02.czi new | G14: 8 | H14: 3 | I14: =(H14/G14)*100 -> 37.5 | K14: 6866 ARC_01.czi new | L14: 20 | M14: 8 | N14: =(M14/L14)*100 -> 40 | P14: 6868 ARC_02.czi | Q14: 15 | R14: 1 | S14: =(R14/Q14)*100 -> 6.666666667
A15: VOLT | F15: 6864 ARC_06.czi new | G15: 17 | H15: 6 | I15: =(H15/G15)*100 -> 35.29411765 | K15: 6866 ARC_02.czi new | L15: 20 | M15: 6 | N15: =(M15/L15)*100 -> 30 | P15: 6868 ARC_03.czi | Q15: 17 | R15: 6 | S15: =(R15/Q15)*100 -> 35.29411765
A16: 6865 VOLT_01.czi | B16: 5 | C16: 2 | D16: =(C16/B16)*100 -> 40 | F16: 6864 ARC_07.czi | G16: 10 | H16: 6 | I16: =(H16/G16)*100 -> 60 | K16: VOLT | P16: 6868 ARC_04.czi | Q16: 20 | R16: 5 | S16: =(R16/Q16)*100 -> 25
A17: 6855 AVPV_01.czi new | B17: 14 | C17: 5 | D17: =(C17/B17)*100 -> 35.71428571 | F17: VOLT | K17: 6866 AVPV_01_VOLT.czi | L17: 15 | M17: 4 | N17: =(M17/L17)*100 -> 26.66666667 | P17: VOLT
A18: AVPV | F18: 6864 VOLT_01.czi new | G18: 19 | H18: 5 | I18: =(H18/G18)*100 -> 26.31578947 | K18: 6866 VOLT_01.czi | L18: 8 | M18: 4 | N18: =(M18/L18)*100 -> 50 | P18: 6868 AVPV&VOLT_01.czi | Q18: 6 | R18: 1 | S18: =(R18/Q18)*100 -> 16.66666667
A19: 6855 AVPV_01.czi new left | B19: 13 | C19: 3 | D19: =(C19/B19)*100 -> 23.07692308 | F19: 6864 AVPV_01.czi new | G19: 10 | H19: 2 | I19: =(H19/G19)*100 -> 20 | K19: AVPV | P19: 6868 AVPV_01.czi new | Q19: 7 | R19: 2 | S19: =(R19/Q19)*100 -> 28.57142857
A20: 6855 AVPV_01.czi new right | B20: 10 | C20: 2 | D20: =(C20/B20)*100 -> 20 | F20: AVPV | K20: 6866 AVPV_01_VOLT.czi left | L20: 13 | M20: 4 | N20: =(M20/L20)*100 -> 30.76923077 | P20: AVPV
F21: 6864 VOLT_01.czi left (new photos) | G21: 15 | H21: 3 | I21: =(H21/G21)*100 -> 20 | K21: 6866 AVPV_01_VOLT.czi right | L21: 15 | M21: 5 | N21: =(M21/L21)*100 -> 33.33333333 | P21: 6868 AVPV&VOLT_01.czi left | Q21: 11 | R21: 2 | S21: =(R21/Q21)*100 -> 18.18181818
F22: 6864 VOLT_01.czi right (new photos) | G22: 12 | H22: 3 | I22: =(H22/G22)*100 -> 25 | P22: 6868 AVPV&VOLT_01.czi right | Q22: 10 | R22: 1 | S22: =(R22/Q22)*100 -> 10

Sheet Suppl. Figure 3-A
B1: BW Chow females
A2: Age (PND) | B2: Control | J2: G-KiRKO
A3: 23 | B3: 7.3 | C3: 7.8 | D3: 8.5 | E3: 8.9 | F3: 7.5 | G3: 9.7 | H3: 9.6 | I3: 9.1 | J3: 6.5 | K3: 7.2 | L3: 8.3 | M3: 7 | N3: 9.3
A4: 28 | B4: 11.4 | C4: 11.7 | D4: 11.6 | E4: 11.9 | F4: 10.4 | G4: 13.5 | H4: 13.1 | I4: 13 | J4: 10.3 | K4: 11.3 | L4: 10.8 | M4: 9.4 | N4: 13.5
A5: 33 | B5: 12.5 | C5: 14.1 | D5: 13.5 | E5: 14.6 | F5: 12.4 | G5: 15.3 | H5: 14.9 | I5: 14.9 | J5: 13.9 | K5: 13.7 | L5: 12.7 | M5: 11.9 | N5: 15.1
A6: 38 | B6: 14.4 | C6: 16.1 | D6: 15.9 | E6: 16.5 | F6: 15 | G6: 17.2 | H6: 16.6 | I6: 16.7 | J6: 16.4 | K6: 16.6 | L6: 14.6 | M6: 14.1 | N6: 16.5
A7: 43 | B7: 15.8 | C7: 17.6 | D7: 17 | E7: 18.5 | F7: 16.7 | G7: 18.2 | H7: 17.9 | I7: 18.1 | J7: 17.3 | K7: 18 | L7: 15.9 | M7: 15.2 | N7: 17.7

Sheet Suppl. Figure 3-B
B2: BW HFD females
A3: Age (PND) | B3: Control HFD | U3: G-KiRKO HFD
A4: 23 | B4: 8 | C4: 9.3 | D4: 9.9 | E4: 10.2 | F4: 10.3 | G4: 10.4 | H4: 10.9 | I4: 8 | J4: 10 | K4: 8.9 | L4: 6.5 | M4: 8.5 | N4: 8.9 | O4: 7.4 | P4: 7.7 | Q4: 8.4 | R4: 7.8 | S4: 10.1 | T4: 10 | U4: 6.9 | V4: 9.2 | W4: 5.8 | X4: 5.8 | Y4: 8.8 | Z4: 8.8 | AA4: 7.4 | AB4: 9.8 | AC4: 9.2
A5: 28 | B5: 10.4 | C5: 12.9 | D5: 12.8 | E5: 13 | F5: 13.3 | G5: 12.4 | H5: 13.5 | I5: 11.1 | J5: 13.9 | K5: 11.9 | L5: 9.3 | M5: 12 | N5: 12 | O5: 10.2 | P5: 10.9 | Q5: 12.1 | R5: 11.7 | S5: 14 | T5: 13.2 | U5: 9.2 | V5: 12 | W5: 8.5 | X5: 8 | Y5: 11.5 | Z5: 12 | AA5: 11 | AB5: 13.8 | AC5: 12.3
A6: 33 | B6: 13 | C6: 16.1 | D6: 15.1 | E6: 15.2 | F6: 14.7 | G6: 14.1 | H6: 15.4 | I6: 13.2 | J6: 15.1 | K6: 13.3 | L6: 13.3 | M6: 14.7 | N6: 15.5 | O6: 12.6 | P6: 14 | Q6: 15.1 | R6: 15.3 | S6: 16.5 | T6: 15.3 | U6: 12.4 | V6: 14.1 | W6: 12.7 | X6: 12.5 | Y6: 14.9 | Z6: 15 | AA6: 15.2 | AB6: 15.6 | AC6: 14.8
A7: 38 | B7: 16.1 | C7: 16.7 | D7: 16.9 | E7: 17.1 | F7: 16.2 | G7: 16.4 | H7: 17.1 | I7: 15.3 | J7: 17 | K7: 15.5 | L7: 15.9 | M7: 17.6 | N7: 18.9 | O7: 15 | P7: 16.1 | Q7: 16.8 | R7: 17.4 | S7: 17.6 | T7: 17.8 | U7: 14.7 | V7: 16.1 | W7: 15.2 | X7: 15.2 | Y7: 18 | Z7: 17.8 | AA7: 17.4 | AB7: 17.4 | AC7: 16
A8: 43 | B8: 16.5 | C8: 16.9 | D8: 17.4 | E8: 17.8 | F8: 16.6 | G8: 17.8 | H8: 18.4 | I8: 16.3 | J8: 17.8 | K8: 16.7 | L8: 17.4 | M8: 18.4 | N8: 19.6 | O8: 15.3 | P8: 16.8 | Q8: 17.5 | R8: 17.9 | S8: 18.3 | T8: 17.8 | U8: 16 | V8: 17.4 | W8: 15.9 | X8: 16 | Y8: 18.5 | Z8: 18.3 | AA8: 18.1 | AB8: 17.6 | AC8: 16.5

Sheet Suppl. Figure 3-C
A2: Female first estrus
A3: PND | B3: Control | C3: G-KiRKO
A4: 30 | B4: 0 | C4: 0
A5: 31 | B5: 0 | C5: 0
A6: 32 | B6: 0 | C6: 0
A7: 33 | B7: 0 | C7: 0
A8: 34 | B8: 6.25 | C8: 0
A9: 35 | B9: 6.25 | C9: 0
A10: 36 | B10: 6.25 | C10: 6.25
A11: 37 | B11: 6.25 | C11: 18.75
A12: 38 | B12: 12.5 | C12: 18.75
A13: 39 | B13: 25 | C13: 18.75
A14: 40 | B14: 43.75 | C14: 25
A15: 41 | B15: 50 | C15: 37.5
A16: 42 | B16: 62.5 | C16: 43.75
A17: 43 | B17: 62.5 | C17: 62.5
A18: 44 | B18: 68.75 | C18: 75
A19: 45 | B19: 75 | C19: 81.25
A20: 46 | B20: 87.5 | C20: 81.25
A21: 47 | B21: 93.75 | C21: 87.5
A22: 48 | B22: 93.75 | C22: 87.5
A23: 49 | B23: 93.75 | C23: 93.75
A24: 50 | B24: 100 | C24: 93.75
A25: 51 | B25: 100 | C25: 93.75
A26: 52 | B26: 100 | C26: 93.75
A27: 53 | B27: 100 | C27: 93.75
A28: 54 | B28: 100 | C28: 100
A29: 55 | B29: 100 | C29: 100

Sheet Suppl. Figure 3-D
A2: Female first estrus
A3: PND | B3: Control HFD | C3: G-KiRKO HFD
A4: 30 | B4: 0 | C4: 0
A5: 31 | B5: 0 | C5: 0
A6: 32 | B6: 5.3 | C6: 0
A7: 33 | B7: 15.8 | C7: 11.1
A8: 34 | B8: 31.6 | C8: 22.2
A9: 35 | B9: 47.4 | C9: 33.3
A10: 36 | B10: 57.9 | C10: 55.6
A11: 37 | B11: 63.2 | C11: 55.6
A12: 38 | B12: 68.4 | C12: 66.7
A13: 39 | B13: 78.9 | C13: 66.7
A14: 40 | B14: 78.9 | C14: 66.7
A15: 41 | B15: 84.2 | C15: 77.8
A16: 42 | B16: 89.5 | C16: 77.8
A17: 43 | B17: 94.7 | C17: 77.8
A18: 44 | B18: 94.7 | C18: 88.9
A19: 45 | B19: 94.7 | C19: 88.9
A20: 46 | B20: 100 | C20: 88.9
A21: 47 | B21: 100 | C21: 88.9
A22: 48 | B22: 100 | C22: 88.9
A23: 49 | B23: 100 | C23: 88.9
A24: 50 | B24: 100 | C24: 88.9
A25: 51 | B25: 100 | C25: 100
A26: 52 | B26: 100 | C26: 100
A27: 53 | B27: 100 | C27: 100
A28: 54 | B28: 100 | C28: 100
A29: 55 | B29: 100 | C29: 100

Sheet Suppl. Fig 3-E
A1: Preovulatory LH surge
A3: Profile | K3: AUC LH preovulatory peak
A4: LH (ng/ml) | B4: Control | C4: Control | D4: Control | E4: Control | F4: Control | G4: G-KiRKO | H4: G-KiRKO | I4: G-KiRKO | K4: Control | L4: G-KiRKO
A5: 10.00 am | B5: 0.7485056098 | C5: 0.949714766 | D5: 0.6015282167 | E5: 0.6238012228 | F5: 0.6754405824 | G5: 0.7193710894 | H5: 0.71837054 | I5: 1.399634822 | K5: 5.055 | L5: 6.433
A6: 8.00 pm | B6: 1.69692215 | C6: 2.070720665 | D6: 0.7775283453 | E6: 1.336231405 | F6: 0.7120689995 | G6: 1.959876316 | H6: 1.412622291 | I6: 1.705071233 | K6: 5.956 | L6: 3.98
A7: 8.20 pm | B7: 1.69692215 | C7: 2.001427351 | D7: 1.800705626 | E7: 2.320798523 | F7: 1.620783239 | G7: 1.105335429 | H7: 2.156678614 | I7: 2.28878897 | K7: 1.191 | L7: 1.775
A8: 8.35 pm | B8: 1.048941709 | C8: 1.280464534 | D8: 1.056002117 | E8: 1.724600363 | F8: 0.9568279518 | G8: 0.9069432893 | H8: 1.451584138 | I8: 1.594496284 | K8: 4.151
A9: 8.50 pm | B9: 0.8424604349 | C9: 1.020665829 | D9: 0.8064471597 | E9: 1.364075978 | F9: 0.7992267948 | G9: 0.8640011942 | H9: 1.7506586 | I9: 1.82890448 | K9: 0.4037

Sheet Suppl. Figure 3-F
A1: %Fertility rate | D1: Breeding interval | G1: Litter size
A2: Control | B2: G-KiRKO | D2: Control | E2: G-KiRKO | G2: Control | H2: G-KiRKO
A3: 100 | B3: 100 | D3: 3 | E3: 12 | G3: 5 | H3: 8
A4: 100 | B4: 80 | D4: 3 | E4: 1 | G4: 6 | H4: 7
A5: 75 | B5: 60 | D5: 2 | E5: 1 | G5: 6 | H5: 6
D6: 39 | E6: 48 | G6: 4 | H6: 7
D7: 0 | E7: 7 | G7: 7 | H7: 7
D8: 4 | E8: 32 | G8: 6 | H8: 9
D9: 17 | E9: 0 | G9: 8 | H9: 9
D10: 22 | E10: 0 | G10: 8 | H10: 7
D11: 0 | E11: 0 | G11: 5 | H11: 9
D12: 0 | E12: 0 | G12: 7 | H12: 7
D13: 13 | E13: 3 | H13: 5
E14: 0
A16: Data analysis
A17: Fertility study
A18: First breeding | B18: Time breeding (21-x) | C18: Number pups | D18: Labor | E18: Fertility rate | F18: % fertility rate
A19: Control | B19: 3 | C19: 5 | D19: yes | E19: 4/4 | F19: 100
A20: Control | B20: 3 | C20: 6 | D20: yes
A21: Control | B21: 2 | C21: 6 | D21: yes
A22: Control | B22: 39 | C22: 4 | D22: yes
A23: G-KiRKO | B23: 12 | C23: 8 | D23: yes
A24: G-KiRKO | B24: 1 | C24: 7 | D24: yes | E24: 5/5 | F24: =5/5*100 -> 100
A25: G-KiRKO | B25: 1 | C25: 6 | D25: yes
A26: G-KiRKO | B26: 48 | C26: 7 | D26: yes
A27: G-KiRKO | B27: 7 | C27: dead | D27: yes
A31: Second breeding | B31: Time breeding (21-x) | C31: Number pups | D31: Labor | E31: Fertility rate | F31: % fertility rate
A32: Control | B32: 0 | C32: 8 | D32: yes | E32: 4/4 | F32: =4/4*100 -> 100
A33: Control | B33: 4 | C33: 6 | D33: yes
A34: Control | B34: 17 | C34: 8 | D34: yes
A35: Control | B35: 22 | C35: dead | D35: yes
A36: G-KiRKO | B36: 32 | C36: 7 | D36: yes | E36: 4/5 | F36: =4/5*100 -> 80
A37: G-KiRKO | B37: 0 | C37: 7 | D37: yes
A38: G-KiRKO | B38: 0 | C38: 9 | D38: yes
A39: G-KiRKO | B39: 0 | C39: 9 | D39: yes
A40: G-KiRKO | D40: no
A43: Third breeding | B43: Time breeding (21-x) | C43: Number pups | D43: Labor | E43: Fertility rate | F43: % fertility rate
A44: Control | B44: 0 | C44: 8 | D44: yes | E44: 3/4 | F44: =3/4*100 -> 75
A45: Control | B45: 0 | C45: 5 | D45: yes
A46: Control | B46: 13 | C46: 7 | D46: yes
A47: Control | D47: no | E47: 3/5 | F47: =3/5*100 -> 60
A48: G-KiRKO | B48: 0 | C48: 9 | D48: yes
A49: G-KiRKO | B49: 3 | C49: 7 | D49: yes
A50: G-KiRKO | B50: 0 | C50: 5 | D50: yes
A51: G-KiRKO | D51: no
A52: G-KiRKO | D52: no

Sheet Suppl. Figure 4-A
A1: BW | B1: Chow males
A2: Age (PND) | B2: Control | AB2: G-KiRKO
A3: 23 | B3: 10.1 | C3: 10.1 | D3: 9.4 | E3: 9.6 | F3: 10.2 | G3: 10.6 | H3: 9.9 | I3: 9.8 | J3: 9.4 | K3: 9.5 | L3: 11.8 | M3: 11.9 | N3: 7.4 | O3: 7.3 | P3: 8.5 | Q3: 8.2 | R3: 7 | S3: 6.5 | T3: 7.1 | U3: 6.9 | V3: 8.1 | W3: 8.6 | X3: 8.3 | Y3: 7.7 | Z3: 6.7 | AA3: 7.9 | AB3: 9.2 | AC3: 9.9 | AD3: 10.6 | AE3: 8.3 | AF3: 9 | AG3: 11.1 | AH3: 10.3 | AI3: 6.3 | AJ3: 9 | AK3: 8.6 | AL3: 7.9 | AM3: 8.5
A4: 28 | B4: 13.8 | C4: 14.2 | D4: 13.2 | E4: 13.5 | F4: 15.1 | G4: 15.5 | H4: 14.7 | I4: 13.1 | J4: 13.6 | K4: 13.2 | L4: 15.8 | M4: 16.2 | N4: 10.9 | O4: 10.8 | P4: 12.3 | Q4: 12.7 | R4: 10.9 | S4: 10.2 | T4: 10.8 | U4: 10.6 | V4: 11.3 | W4: 12.6 | X4: 11.9 | Y4: 11.2 | Z4: 9.6 | AA4: 11.4 | AB4: 13.9 | AC4: 13.9 | AD4: 14.2 | AE4: 12.8 | AF4: 12.6 | AG4: 15.1 | AH4: 14.8 | AI4: 9.9 | AJ4: 13.3 | AK4: 13.5 | AL4: 11.2 | AM4: 12.2
A5: 33 | B5: 16.9 | C5: 17.7 | D5: 17.2 | E5: 17.2 | F5: 18.5 | G5: 19.9 | H5: 18.6 | I5: 17.6 | J5: 17.6 | K5: 17.5 | L5: 19.3 | M5: 20 | N5: 15.5 | O5: 15.1 | P5: 14.5 | Q5: 16.5 | R5: 14.9 | S5: 13.6 | T5: 14.7 | U5: 14.2 | V5: 14.4 | W5: 17.1 | X5: 17.1 | Y5: 15.5 | Z5: 13.2 | AA5: 16.4 | AB5: 17.6 | AC5: 17.2 | AD5: 17.5 | AE5: 17 | AF5: 16.4 | AG5: 18.4 | AH5: 18.1 | AI5: 13.5 | AJ5: 16.4 | AK5: 17.4 | AL5: 15.5 | AM5: 16
A6: 38 | B6: 18.4 | C6: 19.7 | D6: 18.8 | E6: 18.8 | F6: 21.2 | G6: 22.2 | H6: 20.3 | I6: 20.1 | J6: 20.4 | K6: 21 | L6: 22.1 | M6: 23 | N6: 18 | O6: 18.4 | P6: 18.1 | Q6: 19.6 | R6: 17.5 | S6: 16.1 | T6: 17.7 | U6: 16.3 | V6: 17.2 | W6: 20.7 | X6: 19.8 | Y6: 18.4 | Z6: 15.8 | AA6: 19.1 | AB6: 19.4 | AC6: 19 | AD6: 18.8 | AE6: 19.7 | AF6: 19.4 | AG6: 20.7 | AH6: 20.3 | AI6: 16.4 | AJ6: 18.2 | AK6: 19.8 | AL6: 18.7 | AM6: 19
A7: 43 | B7: 20.7 | C7: 20.9 | D7: 21.1 | E7: 20.9 | F7: 22.3 | G7: 23.5 | H7: 22.1 | I7: 20.9 | J7: 21.5 | K7: 22.5 | L7: 23.4 | M7: 24.7 | N7: 19.8 | O7: 20.8 | P7: 19.7 | Q7: 21.4 | R7: 19.1 | S7: 18 | T7: 20 | U7: 18.8 | V7: 19.1 | W7: 22.2 | X7: 21.7 | Y7: 20.1 | Z7: 17.9 | AA7: 20.1 | AB7: 21.3 | AC7: 21 | AD7: 20.8 | AE7: 21 | AF7: 20.7 | AG7: 21.5 | AH7: 21.4 | AI7: 19 | AJ7: 19.7 | AK7: 20.9 | AL7: 21 | AM7: 21.7

Sheet Suppl. Figure 4-B
A1: BW | B1: HFD males
A2: Age (PND) | B2: Control HFD | W2: G-KiRKO HFD
A3: 23 | B3: 7.2 | C3: 7.3 | D3: 9 | E3: 6.6 | F3: 6.6 | G3: 6.2 | H3: 6.7 | I3: 6.9 | J3: 6.8 | K3: 7.8 | L3: 8.2 | M3: 7.3 | N3: 8.1 | O3: 6.7 | P3: 7 | Q3: 8.1 | R3: 7.7 | S3: 6.8 | T3: 7.3 | U3: 6.9 | V3: 7.9 | W3: 8.6 | X3: 8.9 | Y3: 6.8 | Z3: 6.4 | AA3: 7.2 | AB3: 7.7 | AC3: 6.6 | AD3: 7.2 | AE3: 6.2 | AF3: 8.1 | AG3: 7.5
A4: 28 | B4: 10.4 | C4: 10.6 | D4: 12.9 | E4: 9.5 | F4: 10.3 | G4: 9.5 | H4: 9.9 | I4: 9.7 | J4: 10.3 | K4: 10.3 | L4: 10.5 | M4: 9.3 | N4: 10 | O4: 8.9 | P4: 10.4 | Q4: 11.3 | R4: 11.4 | S4: 11.1 | T4: 11.7 | U4: 10.3 | V4: 10.7 | W4: 12.9 | X4: 12 | Y4: 10.8 | Z4: 9.3 | AA4: 9.9 | AB4: 9.3 | AC4: 8.8 | AD4: 10.1 | AE4: 9.9 | AF4: 12.2 | AG4: 10.8
A5: 33 | B5: 15.6 | C5: 15.6 | D5: 17.1 | E5: 13.2 | F5: 15.7 | G5: 14.4 | H5: 15 | I5: 14.5 | J5: 15.4 | K5: 15.5 | L5: 16.5 | M5: 14.3 | N5: 14.7 | O5: 13.5 | P5: 15.3 | Q5: 16.1 | R5: 14.8 | S5: 16.3 | T5: 16.5 | U5: 15.7 | V5: 13.4 | W5: 17 | X5: 16.9 | Y5: 15.7 | Z5: 13.9 | AA5: 14.5 | AB5: 14.5 | AC5: 14 | AD5: 15.6 | AE5: 13.6 | AF5: 17.4 | AG5: 13.3
A6: 38 | B6: 18.6 | C6: 18.5 | D6: 19.5 | E6: 16.8 | F6: 18.4 | G6: 17.5 | H6: 18.2 | I6: 17.3 | J6: 18.4 | K6: 19.2 | L6: 20.2 | M6: 17.5 | N6: 18.5 | O6: 17.5 | P6: 17.7 | Q6: 19.2 | R6: 18.3 | S6: 18.7 | T6: 20 | U6: 17.6 | V6: 20 | W6: 19.3 | X6: 20.1 | Y6: 18.3 | Z6: 16.7 | AA6: 18.4 | AB6: 18.3 | AC6: 18 | AD6: 19.3 | AE6: 17.2 | AF6: 18.8 | AG6: 19.3
A7: 43 | B7: 20.5 | C7: 20.8 | D7: 22.8 | E7: 19.8 | F7: 20.7 | G7: 18.8 | H7: 21.1 | I7: 20.3 | J7: 20.8 | K7: 20.8 | L7: 22.2 | M7: 19.1 | N7: 20 | O7: 19.5 | P7: 19.7 | Q7: 21.1 | R7: 20 | S7: 20.3 | T7: 21.4 | U7: 19.5 | V7: 21.2 | W7: 20.4 | X7: 21.6 | Y7: 21.1 | Z7: 19.5 | AA7: 20.4 | AB7: 20.1 | AC7: 20.4 | AD7: 21 | AE7: 18.9 | AF7: 19.8 | AG7: 20.4

Sheet Suppl. Figure 4-C
A2: Male BPS
A3: PND | B3: Control | C3: G-KiRKO
A4: 25 | B4: 0 | C4: 0
A5: 26 | B5: 0 | C5: 0
A6: 27 | B6: 10 | C6: 0
A7: 28 | B7: 45 | C7: 27.3
A8: 29 | B8: 65 | C8: 45.5
A9: 30 | B9: 65 | C9: 81.8
A10: 31 | B10: 75 | C10: 90.9
A11: 32 | B11: 85 | C11: 90.9
A12: 33 | B12: 85 | C12: 90.9
A13: 34 | B13: 95 | C13: 100
A14: 35 | B14: 95 | C14: 100
A15: 36 | B15: 95 | C15: 100
A16: 37 | B16: 95 | C16: 100
A17: 38 | B17: 100 | C17: 100
A18: 39 | B18: 100 | C18: 100
A19: 40 | B19: 100 | C19: 100

Sheet Suppl. Figure 4-D
A2: Male BPS
A3: PND | B3: Control HFD | C3: G-KiRKO HFD
A4: 25 | B4: 0 | C4: 0
A5: 26 | B5: 0 | C5: 0
A6: 27 | B6: 0 | C6: 0
A7: 28 | B7: 0 | C7: 0
A8: 29 | B8: 0 | C8: 0
A9: 30 | B9: 5.714286 | C9: 11.76471
A10: 31 | B10: 20 | C10: 17.64706
A11: 32 | B11: 37.14286 | C11: 41.17647
A12: 33 | B12: 54.28571 | C12: 41.17647
A13: 34 | B13: 74.28571 | C13: 70.58823
A14: 35 | B14: 82.85714 | C14: 76.47059
A15: 36 | B15: 100 | C15: 100
A16: 37 | B16: 100 | C16: 100
A17: 38 | B17: 100 | C17: 100
A18: 39 | B18: 100 | C18: 100
A19: 40 | B19: 100 | C19: 100

Sheet Suppl. Figure 4-E
A2: icv Kp-10
A3: CHOW | B3: Time | C3: Control | G3: G-KiRKO
B4: 0 | C4: 0.2493 | D4: 0.6722 | E4: 0.1577 | F4: 0.2757 | G4: 0.1811 | H4: 0.326 | I4: 0.1912 | J4: 0.3234 | K4: 0.7873 | L4: 0.1271 | M4: 0.4628 | N4: 0.8661
B5: 15 | C5: 1.898852 | D5: 2.294075 | E5: 1.790914 | F5: 3.058564 | G5: 3.244614 | H5: 2.023853 | I5: 3.125339 | J5: 3.335829 | K5: 3.712711 | L5: 2.898772 | M5: 2.346529 | N5: 2.650718
B6: 30 | C6: 0.9293858 | D6: 1.192022 | E6: 0.633146 | F6: 1.186261 | G6: 1.180503 | H6: 1.05047 | I6: 1.017499 | J6: 0.9353707 | K6: 1.138721 | L6: 0.8591046 | M6: 1.445703 | N6: 0.913542
B7: 60 | C7: 0.4363451 | D7: 0.7552359 | E7: 0.2703726 | F7: 0.3770392 | G7: 0.4580134 | H7: 0.3834942 | I7: 0.367763 | J7: 0.4836141 | K7: 0.3992471 | L7: 0.3468225 | M7: 0.659386 | N7: 0.5100965
A12: icv Kp-10
A13: HFD | B13: Time | C13: Control HFD | L13: G-KiRKO
B14: 0 | C14: 0.1186 | D14: 0.443 | E14: 0.2093 | F14: 0.1295 | G14: 0.05622 | H14: 0.05626 | I14: 0.4831 | J14: 0.2843 | K14: 0.2766 | L14: 0.08768 | M14: 0.1492 | N14: 0.1708 | O14: 0.2075 | P14: 0.1657 | Q14: 0.1074 | R14: 0.2635 | S14: 0.2715 | T14: 0.2669 | U14: 0.1069 | V14: 0.2881 | W14: 0.2133 | X14: 0.324 | Y14: 0.2631
B15: 15 | C15: 2.188884 | D15: 1.898663 | E15: 1.664222 | F15: 1.556528 | G15: 1.977398 | H15: 1.440776 | I15: 2.39431 | J15: 1.282087 | K15: 2.372064 | L15: 2.034453 | M15: 2.434093 | N15: 1.994935 | O15: 1.929246 | P15: 2.043245 | Q15: 1.616774 | R15: 2.367618 | S15: 2.349845 | T15: 1.95459 | U15: 2.496997 | V15: 2.102868 | W15: 2.011135 | X15: 1.066769 | Y15: 1.244605
B16: 30 | C16: 0.7767262 | D16: 1.4194 | E16: 1.193888 | F16: 1.28727 | G16: 0.8733033 | H16: 0.9658349 | I16: 1.551203 | J16: 1.021611 | K16: 1.743112 | L16: 1.126157 | M16: 1.526464 | N16: 1.181177 | O16: 1.436499 | P16: 1.436499 | Q16: 1.46645 | R16: 1.282087 | S16: 2.767627 | T16: 0.9561719 | U16: 1.35732 | V16: 1.399271 | W16: 1.265417 | X16: 0.6334769 | Y16: 1.602163
B17: 60 | C17: 0.3819074 | D17: 0.6508894 | E17: 0.4998066 | F17: 0.3861288 | G17: 0.3311628 | H17: 0.5963622 | I17: 0.8423643 | J17: 0.5066072 | K17: 0.6893917 | L17: 0.5166114 | M17: 0.5669913 | N17: 0.4829946 | O17: 0.3776849 | P17: 0.6341133 | Q17: 0.8228986 | R17: 0.6095884 | S17: 0.8950904 | T17: 0.5619493 | U17: 0.5976612 | V17: 0.5778083 | W17: 0.5066072 | X17: 0.4790348 | Y17: 0.6494277
A22: ∆AUC | C22: ∆AUC
A23: Control | B23: G-KiRKO | C23: Control HFD | D23: G-KiRKO HFD
A24: 42.85 | B24: 72.59 | C24: 49.81 | D24: 59
A25: 37.27 | B25: 42.63 | C25: 46.92 | D25: 71.53
A26: 36.89 | B26: 65.25 | C26: 48.33 | D26: 54.78
A27: 63.75 | B27: 61.36 | C27: 51.3 | D27: 56.03
B28: 52.08 | C28: 51.33 | D28: 63.78
B29: 61.34 | C29: 49.33 | D29: 63.95
B30: 53.32 | C30: 58.09 | D30: 59.67
B31: 31.92 | C31: 34.89 | D31: 96.69
C32: 70.62 | D32: 45.25
D33: 71.35
D34: 56.57
D35: 55.04
D36: 20.43
D37: 50.65

Sheet Suppl. Figure 5-A
B2: Individual LH secretion profile
A3: CHOW
A4: Time | B4: Control | C4: Control | D4: Control | E4: Control | F4: Control | G4: Control | H4: Control | I4: Control | J4: Control | K4: G-KiRKO | L4: G-KiRKO | M4: G-KiRKO | N4: G-KiRKO | O4: G-KiRKO | P4: G-KiRKO
A5: 0 | B5: 0.751 | C5: 0.736 | D5: 0.44452128 | E5: 0.48993 | F5: 0.27702882 | G5: 0.25112 | H5: 0.2976649 | I5: 0.95024 | J5: 0.115230941 | K5: 0.512 | L5: 0.13915834 | M5: 0.10555026 | N5: 0.23 | O5: 0.163001841 | P5: 0.123881679
A6: 5 | B6: 0.53 | C6: 0.244 | D6: 0.32648397 | E6: 0.35044403 | F6: 0.26186852 | G6: 0.47814 | H6: 0.3775741 | I6: 0.64843 | J6: 0.4689126 | K6: 0.653 | L6: 0.13915834 | M6: 0.06300559 | N6: 0.04815 | O6: 0.163001841 | P6: 0.146996558
A7: 10 | B7: 0.551 | C7: 0.253 | D7: 0.19266908 | E7: 0.324540086 | F7: 0.20100262 | G7: 0.33398 | H7: 0.3895817 | I7: 0.52511 | J7: 0.207947065 | K7: 0.459 | L7: 0.16515657 | M7: 0.13144978 | N7: 0.08848 | O7: 0.123523668 | P7: 0.061436642
A8: 15 | B8: 0.594 | C8: 0.235 | D8: 0.50869827 | E8: 0.315925329 | F8: 0.20863391 | G8: 0.27367 | H8: 0.3855786 | I8: 0.48016 | J8: 0.196446027 | K8: 0.47 | L8: 0.12193673 | M8: 0.20148961 | N8: 0.04815 | O8: 0.539127258 | P8: 0.238537983
A9: 20 | B9: 0.498 | C9: 0.209 | D9: 0.38984236 | E9: 0.290143924 | F9: 0.22387493 | G9: 0.2286 | H9: 0.3775741 | I9: 0.43513 | K9: 0.664 | L9: 0.14780347 | M9: 0.12279063 | N9: 0.10485 | O9: 0.442294203 | P9: 0.092839828
A10: 25 | B10: 0.36 | C10: 0.191 | D10: 0.29051496 | E10: 0.146225525 | F10: 0.21625788 | G10: 0.2136 | H10: 0.4256386 | I10: 0.3787 | J10: 0.196446027 | K10: 0.459 | L10: 0.12193673 | M10: 0.13144978 | N10: 0.12133 | O10: 0.210527207 | P10: 0.100628457
A11: 30 | B11: 0.36 | C11: 0.262 | D11: 1.02388632 | E11: 0.146225525 | F11: 0.20100262 | G11: 0.17619 | H11: 0.3575739 | I11: 0.28798 | J11: 0.150212791 | K11: 0.795 | L11: 0.15646989 | M11: 0.18386568 | N11: 0.09665 | O11: 0.14719619 | P11: 0.146996558
A12: 35 | B12: 0.35 | C12: 0.165 | D12: 0.2103266 | E12: 0.196532847 | F12: 0.20863391 | G12: 0.13887 | H12: 0.3335941 | I12: 0.4464 | J12: 0.242338618 | K12: 0.248 | L12: 0.20886396 | M12: 0.13144978 | N12: 0.10485 | O12: 0.1077672 | P12: 0.04553245
A13: 40 | B13: 0.402 | C13: 0.183 | D13: 0.33550422 | E13: 0.255925285 | F13: 0.20100262 | G13: 0.14633 | H13: 0.3655721 | I13: 0.48016 | J13: 0.27658758 | K13: 0.206 | L13: 0.14780347 | M13: 0.14883851 | N13: 0.1713 | O13: 0.08417327 | P13: 0.085029153
A14: 45 | B14: 0.605 | C14: 0.165 | D14: 0.31747466 | E14: 0.121330514 | F14: 0.20100262 | G14: 0.13887 | H14: 0.2697527 | I14: 2.04109 | J14: 0.079870799 | K14: 0.165 | L14: 0.20008842 | M14: 0.15756562 | N14: 0.18811 | O14: 0.1077672 | P14: 0.053505932
A15: 50 | B15: 0.184 | C15: 0.253 | D15: 0.26366385 | E15: 0.162923918 | F15: 0.18571626 | G15: 0.16872 | H15: 0.1981033 | I15: 0.01932 | J15: 0.067968411 | K15: 0.237 | L15: 0.17386258 | M15: 0.08842644 | N15: 0.15457 | O15: 0.139300461 | P15: 0.021242302
A16: 55 | B16: 0.143 | C16: 0.253 | D16: 0.31747466 | E16: 0.154565217 | F16: 0.17806022 | G16: 0.14633 | H16: 0.2219673 | I16: 0.20795 | J16: 0.115230941 | K16: 0.134 | L16: 0.09629832 | M16: 0.10555026 | N16: 0.09665 | O16: 0.099896939 | P16: 0.037507334
A17: 60 | B17: 0.854 | C17: 0.2 | D17: 0.14013284 | E17: 0.129607057 | F17: 0.24668813 | G17: 0.14633 | H17: 0.2697527 | I17: 0.03171 | K17: 0.751 | L17: 0.13915834 | M17: 0.14013284 | N17: 0.10485 | O17: 0.163001841 | P17: 0.053505932
A18: 65 | B18: 1.262 | C18: 0.191 | D18: 0.29051496 | E18: 0.154565217 | F18: 0.20863391 | G18: 0.16125 | H18: 0.3295994 | I18: 0.23089 | J18: 0.253769405 | K18: 1.06 | L18: 0.11336304 | M18: 0.15756562 | N18: 0.1713 | O18: 0.1077672 | P18: 0.146996558
A19: 70 | B19: 0.865 | C19: 0.235 | D19: 0.25473917 | E19: 0.129607057 | F19: 0.22387493 | G19: 0.2812 | H19: 0.3575739 | I19: 0.11523 | J19: 0.126926981 | K19: 1.082 | L19: 0.15646989 | M19: 0.14013284 | N19: 0.11308 | O19: 0.1077672 | P19: 0.208152461
A20: 75 | B20: 0.811 | C20: 0.191 | D20: 0.40803269 | E20: 0.171300774 | F20: 0.21625788 | G20: 0.26615 | H20: 0.305645 | I20: 0.16181 | K20: 0.762 | L20: 0.11336304 | M20: 0.07991424 | N20: 0.12133 | O20: 0.1077672 | P20: 0.177649318
A21: 80 | B21: 0.909 | C21: 0.28 | D21: 0.30847653 | E21: 0.162923918 | F21: 0.22387493 | G21: 0.16872 | H21: 0.3295994 | I21: 0.17338 | K21: 0.696 | L21: 0.12193673 | M21: 0.1141569 | N21: 0.04022 | O21: 0.266167473 | P21: 0.146996558
A22: 85 | B22: 0.648 | C22: 0.262 | D22: 0.16631314 | E22: 0.104849492 | F22: 0.23908972 | G22: 0.17619 | H22: 0.2577989 | I22: 0.34475 | J22: 0.150212791 | K22: 0.416 | L22: 0.06256744 | M22: 0.03800928 | O22: 0.234348176 | P22: 0.100628457
A23: 90 | B23: 0.724 | C23: 0.288 | D23: 0.24582797 | E23: 0.129607057 | F23: 0.22387493 | G23: 0.15379 | H23: 0.3176196 | I23: 1.28572 | J23: 0.287976711 | K23: 0.185 | L23: 0.13053566 | M23: 0.08842644 | O23: 0.194667832 | P23: 0.077193904
A24: 95 | B24: 0.594 | C24: 0.174 | D24: 0.25473917 | E24: 0.113077488 | F24: 0.20863391 | G24: 0.1091 | H24: 0.2856991 | I24: 1.08433 | J24: 0.219428617 | K24: 0.165 | L24: 0.09629832 | M24: 0.06300559 | N24: 0.1713 | O24: 0.1077672 | P24: 0.123881679
A25: 100 | B25: 0.551 | C25: 0.226 | D25: 0.20148961 | E25: 0.056128743 | F25: 0.22387493 | G25: 0.13142 | H25: 0.305645 | I25: 0.72675 | J25: 0.031709375 | K25: 0.185 | L25: 0.10481625 | M25: 0.09697268 | N25: 0.05613 | O25: 0.08417327 | P25: 0.200538773
A26: 105 | B26: 0.402 | C26: 0.2 | D26: 0.21917947 | E26: 0.221904063 | F26: 0.24668813 | G26: 0.2211 | H26: 0.2140106 | I26: 0.52511 | J26: 0.031709375 | K26: 0.185 | L26: 0.0793585 | M26: 0.09697268 | N26: 0.11308 | O26: 0.092032226 | P26: 0.061436642
A27: 110 | B27: 0.256 | C27: 0.209 | D27: 0.2103266 | E27: 0.437380059 | F27: 0.23148542 | G27: 0.13142 | H27: 0.2179887 | I27: 0.54756 | K27: 0.227 | L27: 0.17386258 | M27: 0.07991424 | N27: 0.08033 | O27: 0.115642828 | P27: 0.162344106
A28: 115 | B28: 0.164 | C28: 0.183 | D28: 0.2103266 | E28: 0.315925329 | F28: 0.17806022 | G28: 0.09425 | H28: 0.2418684 | I28: 0.33342 | J28: 0.367393105 | K28: 0.175 | L28: 0.09629832 | M28: 0.03800928 | N28: 0.10485 | O28: 0.08417327 | P28: 0.139304997
A29: 120 | B29: 0.53 | C29: 0.226 | D29: 0.26366385 | E29: 0.196532847 | F29: 0.27702882 | G29: 0.14633 | H29: 0.3216122 | I29: 0.33342 | J29: 0.031709375 | K29: 0.155 | L29: 0.0793585 | M29: 0.06300559 | N29: 0.07223 | O29: 0.052800919 | P29: 0.004411582
A30: 125 | B30: 1.531 | C30: 0.2 | D30: 0.17508011 | E30: 0.204975208 | F30: 0.23908972 | G30: 0.16125 | H30: 0.3295994 | I30: 0.31072 | K30: 0.124 | L30: 0.13053566 | M30: 0.01371473 | N30: 0.09665 | O30: 0.076320321 | P30: 0.100628457
A31: 130 | B31: 1.599 | C31: 0.262 | D31: 0.20148961 | E31: 0.213432449 | F31: 0.21625788 | G31: 0.13887 | H31: 0.2817116 | I31: 0.25377 | J31: 0.006585375 | K31: 0.114 | L31: 0.11336304 | M31: 0.02980871 | N31: 0.01688 | O31: 0.068473683 | P31: 0.077193904
A32: 135 | B32: 1.107 | C32: 0.218 | D32: 0.22804765 | E32: 0.179695008 | F32: 0.23148542 | G32: 0.28873 | H32: 0.3575739 | I32: 0.24234 | J32: 0.079870799 | K32: 0.155 | L32: 0.08781151 | M32: 0.0714393 | N32: 0.12133 | O32: 0.178825897 | P32: 0.223358306
A33: 140 | B33: 1.019 | C33: 0.191 | D33: 0.19266908 | E33: 0.204975208 | F33: 0.25428097 | G33: 0.19862 | H33: 0.3256055 | I33: 0.24234 | J33: 0.031709375 | K33: 0.134 | L33: 0.11336304 | M33: 0.07991424 | N33: 0.00207 | O33: 0.115642828 | P33: 0.012942106
A34: 145 | B34: 1.019 | C34: 0.183 | D34: 0.14883851 | E34: 0.171300774 | F34: 0.22387493 | G34: 0.19862 | H34: 0.2458501 | I34: 0.34475 | J34: 0.067968411 | K34: 0.084 | N34: 0.09665 | O34: 0.099896939 | P34: 0.029417588
A35: 150 | B35: 0.392 | C35: 0.218 | D35: 0.23693064 | E35: 0.146225525 | F35: 0.26186852 | G35: 0.14633 | H35: 0.2697527 | I35: 0.39 | K35: 0.155 | L35: 0.08781151 | M35: 0.03800928 | N35: 0.14623 | O35: 0.092032226 | P35: 0.069331008
A36: 155 | B36: 0.277 | C36: 0.209 | D36: 0.14883851 | E36: 0.171300774 | F36: 0.23148542 | G36: 0.13142 | H36: 0.2418684 | I36: 0.25377 | J36: 0.173379112 | K36: 0.104 | L36: 0.09629832 | M36: 0.05461806 | N36: 0.11308 | O36: 0.076320321
A37: 160 | B37: 0.648 | C37: 0.2 | D37: 0.2103266 | E37: 0.179695008 | F37: 0.22387493 | G37: 0.13887 | H37: 0.2737384 | I37: 0.26519 | K37: 0.084 | L37: 0.09629832 | M37: 0.0462831 | N37: 0.09665 | O37: 0.08417327 | P37: 0.021242302
A38: 165 | B38: 0.287 | C38: 0.174 | D38: 0.2103266 | E38: 0.230389578 | F38: 0.21625788 | H38: 0.305645 | I38: 0.34475 | J38: 0.067968411 | K38: 0.084 | L38: 0.0793585 | N38: 0.04815 | O38: 0.08417327 | P38: 0.100628457
A39: 170 | B39: 0.659 | C39: 0.165 | D39: 0.15756562 | E39: 0.196532847 | F39: 0.22387493 | G39: 0.12398 | H39: 0.2060559 | I39: 0.10349 | K39: 0.175 | L39: 0.0793585 | M39: 0.01371473 | N39: 0.08848 | O39: 0.099896939
A40: 175 | B40: 1.296 | C40: 0.174 | D40: 0.228 | E40: 0.129607057 | F40: 0.20100262 | G40: 0.12398 | H40: 0.2378871 | I40: 0.16181 | K40: 0.074 | L40: 0.03774496 | M40: 0.0714393 | N40: 0.06416 | O40: 0.08417327 | P40: 0.04553245

Sheet Suppl. Figure 5-B
A2: HFD
A3: Time | B3: Control HFD | C3: Control HFD | D3: Control HFD | E3: Control HFD | F3: Control HFD | G3: Control HFD | H3: G-KiRKO HFD | I3: G-KiRKO HFD | J3: G-KiRKO HFD | K3: G-KiRKO HFD | L3: G-KiRKO HFD | M3: G-KiRKO HFD | N3: G-KiRKO HFD | O3: G-KiRKO HFD
A4: 0 | B4: 0.316 | C4: 0.324 | D4: 0.134 | E4: 0.202 | F4: 0.104 | G4: 0.537 | H4: 0.273 | I4: 0.074 | J4: 0.094 | K4: 0.12 | L4: 0.222 | M4: 0.07 | N4: 0.088 | O4: 0.019
A5: 5 | B5: 0.284 | C5: 0.271 | D5: 0.103 | E5: 0.088 | F5: 0.114 | G5: 0.553 | H5: 0.202 | I5: 0.037 | J5: 0.053 | K5: 0.129 | L5: 0.299 | M5: 0.101 | N5: 0.108 | O5: 0.006
A6: 10 | B6: 0.289 | C6: 0.174 | D6: 0.134 | E6: 0.145 | F6: 0.114 | G6: 0.405 | H6: 0.267 | I6: 0.037 | J6: 0.058 | K6: 0.099 | L6: 0.18 | M6: 0.266 | N6: 0.099 | O6: 0.037
A7: 15 | B7: 0.108 | C7: 0.134 | D7: 0.05 | E7: 0.112 | F7: 0.058 | G7: 0.337 | H7: 0.13 | I7: 0.037 | J7: 0.079 | K7: 0.12 | L7: 0.175 | M7: 0.062 | N7: 0.099 | O7: 0.006
A8: 20 | B8: 0.141 | C8: 0.227 | D8: 0.258 | E8: 0.164 | F8: 0.134 | G8: 0.288 | H8: 0.229 | I8: 0.056 | J8: 0.074 | K8: 0.168 | L8: 0.121 | M8: 0.08 | N8: 0.103 | O8: 0.025
A9: 25 | B9: 0.141 | C9: 0.16 | D9: 0.103 | E9: 0.183 | F9: 0.114 | G9: 0.269 | H9: 0.13 | I9: 0.032 | J9: 0.053 | K9: 0.116 | L9: 0.132 | M9: 0.08 | N9: 0.072 | O9: 0.006
A10: 30 | B10: 0.164 | C10: 0.2 | D10: 0.085 | E10: 0.369 | F10: 0.124 | G10: 0.284 | H10: 0.153 | I10: 0.103 | J10: 0.063 | K10: 0.116 | L10: 0.148 | M10: 0.104 | N10: 0.136 | O10: 0.006
A11: 35 | B11: 0.343 | C11: 0.121 | D11: 0.099 | E11: 0.292 | G11: 0.246 | H11: 0.164 | I11: 0.154 | J11: 0.058 | K11: 0.09 | L11: 0.127 | M11: 0.075 | N11: 0.49 | O11: 0.006
A12: 40 | B12: 0.778 | C12: 0.103 | D12: 0.081 | E12: 0.254 | F12: 0.537 | G12: 0.186 | H12: 0.119 | I12: 0.032 | J12: 0.033 | K12: 0.074 | L12: 0.094 | M12: 0.104 | N12: 0.452 | O12: 0.006
A13: 45 | B13: 0.667 | C13: 0.116 | D13: 0.081 | E13: 0.178 | F13: 0.702 | G13: 0.15 | H13: 0.125 | I13: 0.028 | J13: 0.012 | K13: 0.082 | L13: 0.094 | M13: 0.125 | N13: 0.368 | O13: 0.006
A14: 50 | B14: 0.439 | C14: 0.13 | D14: 0.077 | E14: 0.173 | F14: 0.517 | G14: 0.133 | H14: 0.08 | I14: 0.019 | J14: 0.149 | K14: 0.058 | L14: 0.741 | M14: 0.125 | N14: 0.298 | O14: 0.025
A15: 55 | B15: 0.353 | C15: 0.121 | D15: 0.068 | E15: 0.169 | F15: 0.438 | G15: 0.209 | H15: 0.125 | I15: 0.051 | J15: 0.048 | K15: 0.099 | L15: 0.587 | M15: 0.091 | N15: 0.257 | O15: 0.006
A16: 60 | B16: 0.235 | C16: 0.293 | D16: 0.085 | E16: 0.183 | F16: 0.418 | G16: 0.164 | H16: 0.114 | I16: 0.046 | J16: 0.058 | K16: 0.107 | L16: 0.401 | M16: 0.114 | N16: 0.2 | O16: 0.006
A17: 65 | B17: 0.224 | C17: 0.61 | D17: 0.072 | E17: 0.207 | F17: 0.328 | G17: 0.182 | H17: 0.008 | I17: 0.065 | J17: 0.058 | K17: 0.086 | L17: 0.294 | M17: 0.125 | N17: 0.192 | O17: 0.006
A18: 70 | B18: 0.141 | C18: 0.476 | D18: 0.072 | E18: 0.103 | F18: 0.249 | G18: 0.168 | H18: 0.015 | I18: 0.06 | J18: 0.027 | K18: 0.07 | L18: 0.253 | M18: 0.109 | N18: 0.177 | O18: 0.006
A19: 75 | B19: 0.577 | C19: 0.391 | D19: 0.046 | E19: 0.121 | F19: 0.234 | G19: 0.124 | H19: 0.125 | I19: 0.032 | J19: 0.114 | K19: 0.086 | L19: 0.196 | M19: 0.075 | N19: 0.131 | O19: 0.055
A20: 80 | B20: 0.815 | C20: 0.271 | D20: 0.068 | E20: 0.36 | F20: 0.279 | G20: 0.159 | H20: 0.141 | I20: 0.019 | J20: 0.069 | K20: 0.09 | L20: 0.159 | M20: 0.083 | N20: 0.131 | O20: 0.006
A21: 85 | B21: 0.641 | C21: 0.271 | D21: 0.046 | E21: 0.374 | F21: 0.134 | G21: 0.133 | I21: 0.088 | J21: 0.038 | K21: 0.082 | L21: 0.232 | M21: 0.068 | N21: 0.118 | O21: 0.013
A22: 90 | B22: 0.693 | C22: 0.209 | D22: 0.081 | E22: 0.321 | F22: 0.119 | G22: 0.133 | H22: 0.147 | I22: 0.06 | J22: 0.027 | K22: 0.09 | L22: 0.796 | M22: 0.101 | N22: 0.14 | O22: 0.006
A23: 95 | B23: 0.386 | C23: 0.178 | D23: 0.072 | E23: 0.249 | F23: 0.124 | G23: 0.146 | H23: 0.074 | I23: 0.065 | J23: 0.053 | K23: 0.054 | L23: 0.507 | M23: 0.112 | N23: 0.127 | O23: 0.006
A24: 100 | B24: 0.31 | C24: 0.792 | D24: 0.055 | E24: 0.264 | F24: 0.104 | G24: 0.142 | H24: 0.114 | I24: 0.07 | J24: 0.069 | K24: 0.07 | L24: 0.386 | M24: 0.119 | N24: 0.127 | O24: 0.006
A25: 105 | B25: 0.31 | C25: 0.61 | D25: 0.072 | E25: 0.235 | F25: 0.074 | G25: 0.095 | H25: 0.119 | I25: 0.056 | J25: 0.006 | K25: 0.074 | L25: 0.294 | M25: 0.127 | N25: 0.161 | O25: 0.006
A26: 110 | B26: 0.251 | C26: 0.476 | D26: 0.077 | E26: 0.159 | F26: 0.022 | G26: 0.15 | H26: 0.08 | I26: 0.009 | J26: 0.033 | K26: 0.107 | L26: 0.35 | M26: 0.101 | N26: 0.14 | O26: 0.006
A27: 115 | B27: 0.894 | C27: 0.315 | D27: 0.099 | E27: 0.216 | F27: 0.119 | G27: 0.137 | H27: 0.074 | I27: 0.046 | J27: 0.012 | K27: 0.111 | L27: 0.232 | M27: 0.117 | N27: 0.211 | O27: 0.006
A28: 120 | B28: 0.63 | C28: 0.355 | D28: 0.085 | E28: 0.183 | F28: 0.114 | G28: 0.133 | H28: 0.153 | J28: 0.043 | K28: 0.099 | L28: 0.088 | M28: 0.13 | N28: 0.157 | O28: 0.006
A29: 125 | B29: 0.55 | C29: 0.32 | D29: 0.09 | E29: 0.235 | F29: 0.099 | G29: 0.15 | H29: 0.136 | I29: 0.098 | J29: 0.022 | K29: 0.099 | L29: 0.227 | M29: 0.122 | N29: 0.14 | O29: 0.006
A30: 130 | B30: 0.386 | C30: 0.244 | D30: 0.068 | E30: 0.126 | F30: 0.159 | G30: 0.12 | H30: 0.13 | I30: 0.074 | J30: 0.022 | K30: 0.095 | L30: 0.137 | M30: 0.096 | N30: 0.127 | O30: 0.006
A31: 135 | B31: 0.375 | C31: 0.187 | D31: 0.059 | E31: 0.192 | F31: 0.119 | G31: 0.107 | H31: 0.147 | I31: 0.051 | J31: 0.053 | K31: 0.111 | L31: 0.791 | M31: 0.096 | N31: 0.136 | O31: 0.013
A32: 140 | B32: 0.332 | C32: 0.315 | D32: 0.09 | E32: 0.197 | F32: 0.119 | G32: 0.124 | H32: 0.18 | I32: 0.019 | J32: 0.063 | K32: 0.099 | L32: 0.587 | M32: 0.078 | N32: 0.103 | O32: 0.006
A33: 145 | B33: 0.794 | C33: 0.76 | D33: 0.055 | E33: 0.169 | F33: 0.084 | G33: 0.129 | I33: 0.065 | J33: 0.033 | K33: 0.095 | L33: 0.466 | M33: 0.065 | N33: 0.099 | O33: 0.006
A34: 150 | B34: 0.921 | C34: 0.705 | D34: 0.068 | E34: 0.159 | F34: 0.063 | G34: 0.133 | H34: 0.136 | J34: 0.012 | K34: 0.111 | L34: 0.391 | M34: 0.099 | N34: 0.103 | O34: 0.006
A35: 155 | B35: 0.667 | C35: 0.561 | D35: 0.063 | E35: 0.183 | F35: 0.074 | G35: 0.133 | H35: 0.102 | I35: 0.074 | J35: 0.058 | K35: 0.074 | L35: 0.258 | M35: 0.137 | N35: 0.113 | O35: 0.006
A36: 160 | B36: 0.561 | C36: 0.444 | D36: 0.05 | E36: 0.135 | F36: 0.074 | G36: 0.133 | H36: 0.191 | I36: 0.07 | J36: 0.027 | K36: 0.107 | L36: 0.248 | M36: 0.112 | N36: 0.136 | O36: 0.006
A37: 165 | B37: 0.439 | C37: 0.391 | D37: 0.041 | E37: 0.154 | F37: 0.069 | G37: 0.451 | H37: 0.13 | I37: 0.112 | J37: 0.012 | K37: 0.099 | L37: 0.227 | M37: 0.145 | N37: 0.131 | O37: 0.006
A38: 170 | B38: 0.332 | C38: 0.324 | D38: 0.055 | E38: 0.037 | F38: 0.139 | G38: 0.415 | H38: 0.119 | I38: 0.046 | J38: 0.012 | K38: 0.062 | L38: 0.132 | M38: 0.114 | N38: 0.161 | O38: 0.006
A39: 175 | B39: 0.375 | C39: 0.284 | D39: 0.059 | E39: 0.169 | F39: 0.099 | G39: 0.346 | H39: 0.13 | J39: 0.017 | K39: 0.103 | L39: 0.206 | M39: 0.135 | N39: 0.161 | O39: 0.043

Sheet Suppl. Figure 6-A
A2: BW | E2: % Fat mass | I2: % Lean mass
A3: Female | C3: Male | E3: Female | G3: Male | I3: Female | K3: Male
A4: Control | B4: G-KiRKO | C4: Control | D4: G-KiRKO | E4: Control | F4: G-KiRKO | G4: Control | H4: G-KiRKO | I4: Control | J4: G-KiRKO | K4: Control | L4: G-KiRKO
A5: 22 | B5: 22.5 | C5: 26.9 | D5: 28.1 | E5: 2.14 | F5: 2.16 | G5: 4.27 | H5: 3.96 | I5: 17.74 | J5: 17.38 | K5: 24.83 | L5: 23.45
A6: 21.5 | B6: 22.6 | C6: 27.1 | D6: 29.5 | E6: 1.99 | F6: 2.26 | G6: 2.43 | H6: 4.58 | I6: 16.53 | J6: 17.01 | K6: 23.47 | L6: 22.69
A7: 24 | B7: 23 | C7: 25.2 | D7: 28.8 | E7: 1.98 | F7: 1.73 | G7: 3.7 | H7: 3.51 | I7: 16.93 | J7: 17.47 | K7: 22.14 | L7: 22.81
A8: 22 | B8: 21.3 | C8: 32.8 | D8: 28.8 | E8: 2.095 | F8: 1.95 | G8: 2.1 | H8: 3.12 | I8: 16.7 | J8: 15.82 | K8: 22.21 | L8: 24.26
A9: 21.6 | B9: 22.1 | C9: 29.9 | D9: 29 | E9: 1.08 | F9: 1.605 | G9: 2.04 | H9: 3.59 | I9: 18.04 | J9: 17.74 | K9: 25.2 | L9: 24.84
A10: 24.3 | B10: 21.9 | C10: 29.1 | D10: 26.3 | E10: 1.08 | F10: 1.95 | G10: 7.84 | H10: 1.48 | I10: 17.45 | J10: 17.41 | K10: 23.4 | L10: 26.62
A11: 22.8 | B11: 20.9 | C11: 31 | D11: 27.3 | E11: 1.1 | F11: 2.245 | G11: 5.19 | H11: 3.17 | I11: 15.71 | J11: 16.65 | K11: 22.05 | L11: 23.34
A12: 22.9 | B12: 19.8 | C12: 28.6 | D12: 26.8 | F12: 2.595 | G12: 0.91 | H12: 1.3 | J12: 17.22 | K12: 24.45 | L12: 23.2
A13: 20 | B13: 21.2 | C13: 26.6 | D13: 28.5 | F13: 1.11 | G13: 2.74 | J13: 18.21 | K13: 23.61
A14: 21.8 | B14: 21 | C14: 31.4 | D14: 25.1 | F14: 1.705 | G14: 2.03 | J14: 14.81 | K14: 20.51
A15: 20 | B15: 19.1 | C15: 24.9 | D15: 26.6 | F15: 1.44 | G15: 3.49 | J15: 17.72 | K15: 22.6
A16: 22.2 | B16: 20.7 | C16: 27.4 | D16: 27.9 | F16: 1.27 | G16: 3.17 | J16: 17.06 | K16: 20.79
A17: 20.3 | B17: 20.3 | C17: 27
A18: 18.4 | B18: 20.8 | C18: 24.8
A19: 20.9 | B19: 17.8 | C19: 25.1
A20: 20 | B20: 20 | C20: 26.7
C21: 25.5
C22: 27.7
C23: 27.6
C24: 25.2
C25: 28.5
C26: 31.2
C27: 30.6
C28: 28.7
C29: 28.9

Sheet Suppl. Figure 6-B
A1: HFD
A2: BW | E2: % Fat mass | I2: % Lean mass
A3: Female | C3: Male | E3: Female | G3: Male | I3: Female | K3: Male
A4: Control HFD | B4: G-KiRKO HFD | C4: Control HFD | D4: G-KiRKO HFD | E4: Control HFD | F4: G-KiRKO HFD | G4: Control HFD | H4: G-KiRKO HFD | I4: Control HFD | J4: G-KiRKO HFD | K4: Control HFD | L4: G-KiRKO HFD
A5: 22 | B5: 23.3 | C5: 33.4 | D5: 32.1 | E5: 3.25 | F5: 7.46 | G5: 2.73 | H5: 2.84 | I5: 18.865 | J5: 18.87 | K5: 24.9 | L5: 23.3
A6: 24.8 | B6: 22.8 | C6: 33.4 | D6: 28.1 | E6: 8.11 | F6: 6.84 | G6: 5.12 | H6: 3.19 | I6: 19.145 | J6: 18.62 | K6: 26.97 | L6: 24.87
A7: 25.9 | B7: 20.8 | C7: 31.8 | D7: 31.3 | E7: 4.06 | F7: 4.425 | G7: 4.62 | H7: 7.87 | I7: 17.38 | J7: 19.57 | K7: 25.96 | L7: 26.08
A8: 27 | B8: 20.5 | C8: 30.2 | D8: 29.4 | E8: 1.9 | F8: 6.39 | G8: 3.71 | H8: 2.34 | I8: 16.82 | J8: 17.97 | K8: 27.57 | L8: 25.54
A9: 23.3 | B9: 24.5 | C9: 31 | D9: 32.3 | E9: 9.26 | F9: 4.41 | G9: 3.02 | H9: 4.65 | I9: 19.68 | J9: 17.545 | K9: 26.04 | L9: 26.99
A10: 25 | B10: 24.2 | C10: 29.7 | D10: 29.1 | E10: 4.92 | F10: 0,74* | G10: 1.57 | H10: 3.73 | I10: 16.89 | J10: 17.29 | K10: 25.895 | L10: 22.52
A11: 27.2 | B11: 24.1 | C11: 30.2 | D11: 29.8 | E11: 5.22 | F11: 3.61 | G11: 2.09 | H11: 1.85 | I11: 18.43 | J11: 17.61 | K11: 24.94 | L11: 24.68
A12: 23.2 | B12: 25.1 | C12: 28 | D12: 30.9 | E12: 5.34 | G12: 2.19 | H12: 5.13 | I12: 17.39 | K12: 24.26 | L12: 27.35
A13: 29.7 | B13: 25.6 | C13: 31.9 | D13: 31.1 | E13: 5.48 | G13: 2.44 | H13: 4.17 | I13: 17.04 | K13: 26.76 | L13: 25.86
A14: 21.5 | B14: 24.3 | C14: 30.2 | D14: 30.9 | E14: 3.02 | G14: 1.61 | H14: 2.24 | I14: 18.91 | K14: 25.54 | L14: 27.18
A15: 22 | B15: 21.2 | C15: 27.4 | D15: 31.4 | G15: 1.57 | H15: 4.49 | K15: 29.38 | L15: 26.98
A16: 25.1 | C16: 31.3 | D16: 30.2 | G16: 2.16 | H16: 2.09 | K16: 27.16 | L16: 27.24
A17: 23.8 | C17: 32.9 | D17: 32.3 | G17: 2.44 | H17: 3.55 | K17: 26.18 | L17: 26.11
A18: 25.8 | C18: 33.2 | D18: 31.2 | G18: 3.36 | K18: 23.42
A19: 23.2 | C19: 30 | D19: 28 | G19: 4.09 | K19: 23.18
A20: 22.1 | C20: 31 | D20: 28.1 | G20: 3.89 | K20: 24.21
A21: 24.8 | C21: 28.1 | D21: 29.1 | G21: 6.25 | K21: 27.29
A22: 25.4 | C22: 32.1 | D22: 30.2 | G22: 3.85 | K22: 27.32
A23: 24.3 | C23: 32 | D23: 31.9 | G23: 6.44 | K23: 24.89
C24: 31.1 | G24: 4.19 | K24: 25.7
C25: 32.1
C26: 33.1
C27: 30
C28: 29.3
C29: 31.8
C30: 28
C31: 31.1
C32: 29.2
C33: 29.4
C34: 30
C35: 28.3
C36: 31.7
C37: 30.4
E39: *outlier

Sheet Suppl. Figure 7-A
B1: Female GTT
A2: Time | B2: Control | I2: G-KiRKO
A3: 0 | B3: 126 | C3: 135 | D3: 139 | E3: 130 | F3: 153 | G3: 156 | H3: 115 | I3: 120 | J3: 135 | K3: 151 | L3: 139 | M3: 140 | N3: 138 | O3: 190 | P3: 164 | Q3: 130 | R3: 150 | S3: 144 | T3: 137
A4: 20 | B4: 326 | C4: 459 | D4: 424 | E4: 478 | F4: 442 | G4: 433 | H4: 429 | I4: 390 | J4: 361 | K4: 504 | L4: 473 | M4: 573 | N4: 378 | O4: 460 | P4: 351 | Q4: 491 | R4: 384 | S4: 364 | T4: 212
A5: 60 | B5: 179 | C5: 340 | D5: 240 | E5: 190 | F5: 356 | G5: 198 | H5: 242 | I5: 215 | J5: 231 | K5: 208 | L5: 212 | M5: 226 | N5: 162 | O5: 196 | P5: 181 | Q5: 209 | R5: 164 | S5: 190 | T5: 301
A6: 120 | B6: 191 | C6: 206 | D6: 148 | E6: 177 | F6: 211 | G6: 137 | H6: 201 | I6: 123 | J6: 130 | K6: 188 | L6: 138 | M6: 183 | N6: 156 | O6: 116 | P6: 155 | Q6: 168 | R6: 134 | S6: 181 | T6: 213
B10: Female GTT HFD
A11: Time | B11: Control HFD | L11: G-KiRKO HFD
A12: 0 | B12: 159 | C12: 169 | D12: 166 | E12: 167 | F12: 201 | G12: 202 | H12: 183 | I12: 144 | J12: 197 | K12: 199 | L12: 162 | M12: 170 | N12: 172 | O12: 157 | P12: 155 | Q12: 172 | R12: 172 | S12: 144 | T12: 182
A13: 20 | B13: 419 | C13: 451 | D13: 593 | E13: 473 | F13: 507 | G13: 424 | H13: 585 | I13: 553 | J13: 403 | K13: 383 | L13: 516 | M13: 458 | N13: 400 | O13: 510 | P13: 556 | Q13: 448 | R13: 370 | S13: 480 | T13: 508
A14: 60 | B14: 202 | C14: 253 | D14: 321 | E14: 491 | F14: 382 | G14: 556 | H14: 505 | I14: 424 | J14: 360 | K14: 250 | L14: 577 | M14: 314 | N14: 231 | O14: 344 | P14: 353 | Q14: 163 | R14: 219 | S14: 341 | T14: 429
A15: 120 | B15: 190 | C15: 189 | D15: 233 | E15: 307 | F15: 223 | G15: 265 | H15: 207 | I15: 198 | J15: 194 | K15: 188 | L15: 310 | M15: 213 | N15: 191 | O15: 208 | P15: 188 | Q15: 142 | R15: 193 | S15: 129 | T15: 130
A19: ∆AUC GTT Female | D19: ∆AUC GTT Female HFD
A20: Control | B20: G-KiRKO | D20: Control HFD | E20: G-KiRKO HFD
A21: 10600 | B21: 12940 | D21: 10880 | E21: 35810
A22: 22100 | B22: 11525 | D22: 13260 | E22: 17130
A23: 13870 | B23: 14550 | D23: 22570 | E23: 10360
A24: 14850 | B24: 13641 | D24: 29580 | E24: 21470
A25: 20560 | B25: 18580 | D25: 18890 | E25: 22920
A26: 10195 | B26: 8940 | D26: 26250 | E26: 9281
A27: 18350 | B27: 10287 | D27: 28880 | E27: 8920
B28: 6377 | D28: 27890 | E28: 19544
B29: 15920 | D29: 14243 | E29: 21113
B30: 7752 | D30: 7857
B31: 10010
B32: 12730

Sheet Suppl. Figure 7-B
B1: Male GTT
A2: Time | B2: Control | I2: G-KiRKO
A3: 0 | B3: 188 | C3: 208 | D3: 190 | E3: 174 | F3: 203 | G3: 184 | H3: 194 | I3: 198 | J3: 162 | K3: 193 | L3: 192 | M3: 167 | N3: 145 | O3: 200 | P3: 180 | Q3: 165 | R3: 205
A4: 20 | B4: 345 | C4: 405 | D4: 270 | E4: 438 | F4: 422 | G4: 370 | H4: 489 | I4: 395 | J4: 374 | K4: 268 | L4: 365 | M4: 269 | N4: 292 | O4: 359 | P4: 309 | Q4: 268 | R4: 385
A5: 60 | B5: 345 | C5: 228 | D5: 226 | E5: 271 | F5: 310 | G5: 232 | H5: 531.5 | I5: 236 | J5: 201 | K5: 196 | L5: 254 | M5: 334.5 | N5: 169 | O5: 214 | P5: 254 | Q5: 208 | R5: 250
A6: 120 | B6: 513,5* | C6: 210 | D6: 191 | E6: 186 | F6: 231 | G6: 206 | H6: 265 | I6: 197 | J6: 165 | K6: 189 | L6: 200 | M6: 158 | N6: 175 | O6: 166 | P6: 182 | Q6: 173 | R6: 212
B8: *outlier
B11: Male GTT HFD
A12: Time | B12: Control HFD | L12: G-KiRKO
A13: 0 | B13: 237 | C13: 311 | D13: 191 | E13: 242 | F13: 252 | G13: 232 | H13: 193 | I13: 182 | J13: 226 | K13: 277 | L13: 218 | M13: 188 | N13: 266 | O13: 192 | P13: 230 | Q13: 233 | R13: 242 | S13: 298 | T13: 210 | U13: 287
A14: 20 | B14: 600 | C14: 553 | D14: 342 | E14: 430 | F14: 600 | G14: 537 | H14: 490 | I14: 476 | J14: 399 | K14: 486 | L14: 358 | M14: 463 | N14: 457 | O14: 534 | P14: 417 | Q14: 477 | R14: 600 | S14: 577 | T14: 409 | U14: 322
A15: 60 | B15: 472 | C15: 595 | D15: 283 | E15: 453 | F15: 543 | G15: 465 | H15: 486 | I15: 305 | J15: 450 | K15: 481 | L15: 466 | M15: 458 | N15: 384 | O15: 383 | P15: 334 | Q15: 236 | R15: 398 | S15: 396 | T15: 334 | U15: 332
A16: 120 | B16: 247 | C16: 276 | D16: 165 | E16: 354 | F16: 274 | G16: 247 | H16: 209 | I16: 174 | J16: 162 | K16: 220 | L16: 192 | M16: 257 | N16: 275 | O16: 179 | P16: 240 | Q16: 164 | R16: 214 | S16: 202 | T16: 222 | U16: 202
A22: ∆AUC GTT Male | D22: ∆AUC GTT Male HFD
A23: Control | B23: G-KiRKO | D23: Control HFD | E23: G-KiRKO HFD
A24: 22340 | B24: 7782 | D24: 22940 | E24: 15968
A25: 6970 | B25: 8400 | D25: 20640 | E25: 23820
A26: 4230 | B26: 2417 | D26: 8694 | E26: 11900
A27: 13130 | B27: 8530 | D27: 19550 | E27: 19470
A28: 12760 | B28: 11217 | D28: 25650 | E28: 11110
A29: 8640 | B29: 6510 | D29: 21250 | E29: 9368
A30: 27880 | B30: 5895 | D30: 24040 | E30: 17956
B31: 7630 | D31: 14759 | E31: 13240
B32: 5480 | D32: 15323 | E32: 12530
B33: 7860 | D33: 15507 | E33: 4085

Sheet Suppl. Figure 7-C
A1: Female ITT
A2: Time | B2: Control | J2: G-KIRKO
A3: 0 | B3: 106 | C3: 129 | D3: 162 | E3: 139 | F3: 152 | G3: 146 | H3: 122 | I3: 159 | J3: 127 | K3: 156 | L3: 148 | M3: 156 | N3: 170 | O3: 162 | P3: 190 | Q3: 179 | R3: 121 | S3: 166 | T3: 151 | U3: 158
A4: 20 | B4: 63 | C4: 79 | D4: 94 | E4: 34 | F4: 76 | G4: 61 | H4: 81 | I4: 51 | J4: 57 | K4: 55 | L4: 75 | M4: 68 | N4: 94 | O4: 64 | P4: 109 | Q4: 57 | R4: 47 | S4: 58 | T4: 44 | U4: 68
A5: 60 | B5: 82 | C5: 74 | D5: 78 | E5: 44 | F5: 55 | G5: 34 | H5: 80 | I5: 38 | J5: 53 | K5: 80 | L5: 70 | M5: 80 | N5: 52 | O5: 32 | P5: 62 | Q5: 54 | R5: 60 | S5: 60 | T5: 24 | U5: 51
A6: 120 | B6: 115 | C6: 155 | D6: 191 | E6: 50 | F6: 114 | G6: 96 | H6: 127 | I6: 97 | J6: 150 | K6: 162 | L6: 146 | M6: 99 | N6: 75 | O6: 35 | P6: 160 | Q6: 151 | R6: 156 | S6: 155 | T6: 40 | U6: 32
A10: Female ITT HFD
A11: Time | B11: Control HFD | L11: G-KiRKO HFD
A12: 0 | B12: 155 | C12: 199 | D12: 144 | E12: 213 | F12: 193 | G12: 170 | H12: 140 | I12: 128 | J12: 136 | K12: 128 | L12: 141 | M12: 176 | N12: 197 | O12: 167 | P12: 169 | Q12: 143 | R12: 217 | S12: 140 | T12: 142 | U12: 122
A13: 20 | B13: 104 | C13: 87 | D13: 84 | E13: 74 | F13: 88 | G13: 100 | H13: 67 | I13: 57 | J13: 88 | K13: 93 | L13: 99 | M13: 107 | N13: 83 | O13: 85 | P13: 90 | Q13: 92 | R13: 65 | S13: 75 | T13: 95 | U13: 37
A14: 60 | B14: 105 | C14: 111 | D14: 75 | E14: 84 | F14: 139 | G14: 117 | H14: 69 | I14: 122 | J14: 81 | K14: 80 | L14: 60 | M14: 112 | N14: 84 | O14: 97 | P14: 73 | Q14: 66 | R14: 74 | S14: 92 | T14: 97 | U14: 60
A15: 120 | B15: 180 | C15: 155 | D15: 101 | E15: 128 | F15: 185 | G15: 220 | H15: 90 | I15: 157 | J15: 195 | K15: 122 | L15: 87 | M15: 170 | N15: 133 | O15: 130 | P15: 87 | Q15: 58 | R15: 130 | S15: 130 | T15: 116 | U15: 94
A20: ∆AUC ITT Female | D20: ∆AUC ITT Female HFD
A21: Control | B21: G-KiRKO | D21: Control HFD | E21: G-KiRKO HFD
A22: 10500 | B22: 10130 | D22: 15320 | E22: 9990
A23: 12010 | B23: 12070 | D23: 14800 | E23: 15670
A24: 14070 | B24: 11610 | D24: 10740 | E24: 12650
A25: 6110 | B25: 10570 | D25: 12390 | E25: 12970
A26: 9970 | B26: 9370 | D26: 17070 | E26: 10650
A27: 7870 | B27: 6190 | D27: 17150 | E27: 9230
A28: 11460 | B28: 13070 | D28: 9560 | E28: 11720
A29: 7930 | B29: 10730 | D29: 13800 | E29: 12150
B30: 10300 | D30: 13900 | E30: 12600
B31: 11050 | D31: 11730 | E31: 8150
B32: 5230
B33: 7130

Sheet Suppl. Figure 7-D
A1: Male ITT
A2: Time | B2: Control | H2: G-KiRKO
A3: 0 | B3: 209 | C3: 245 | D3: 215 | E3: 202 | F3: 252 | G3: 260 | H3: 259 | I3: 278 | J3: 172 | K3: 206 | L3: 174 | M3: 204 | N3: 233 | O3: 181 | P3: 201
A4: 20 | B4: 87 | C4: 70 | D4: 90 | E4: 88 | F4: 109 | G4: 100 | H4: 76 | I4: 103 | J4: 61 | K4: 68 | L4: 84 | M4: 90 | N4: 69 | O4: 92 | P4: 96
A5: 60 | B5: 81 | C5: 78 | D5: 69 | E5: 80 | F5: 86 | G5: 69 | H5: 138 | I5: 67 | J5: 55 | K5: 65 | L5: 85 | M5: 58 | N5: 82 | O5: 85 | P5: 65
A6: 120 | B6: 86 | C6: 214.5 | D6: 134 | E6: 162 | F6: 184 | G6: 122 | H6: 164 | I6: 199 | J6: 15 | K6: 40 | L6: 76 | M6: 194 | N6: 71 | O6: 208 | P6: 115
A10: Male ITT HFD
A11: Time | B11: Control HFD | L11: G-KiRKO HFD
A12: 0 | B12: 131 | C12: 147 | D12: 158 | E12: 167 | F12: 131 | G12: 160 | H12: 138 | I12: 172 | J12: 167 | K12: 163 | L12: 173 | M12: 178 | N12: 140 | O12: 172 | P12: 166 | Q12: 190 | R12: 140 | S12: 132 | T12: 203 | U12: 188
A13: 20 | B13: 89 | C13: 95 | D13: 103 | E13: 98 | F13: 90 | G13: 91 | H13: 77 | I13: 81 | J13: 130 | K13: 115 | L13: 102 | M13: 71 | N13: 65 | O13: 98 | P13: 99 | Q13: 81 | R13: 97 | S13: 91 | T13: 109 | U13: 100
A14: 60 | B14: 120 | C14: 75 | D14: 85 | E14: 88 | F14: 92 | G14: 105 | H14: 66 | I14: 83 | J14: 62 | K14: 55 | L14: 41 | M14: 55 | N14: 59 | O14: 82 | P14: 70 | Q14: 89 | R14: 82 | S14: 70 | T14: 91 | U14: 71
A15: 120 | B15: 91 | C15: 128 | D15: 120 | E15: 115 | F15: 143 | G15: 155 | H15: 138 | I15: 81 | J15: 45 | K15: 83 | L15: 42 | M15: 94 | N15: 82 | O15: 110 | P15: 115 | Q15: 120 | R15: 117 | S15: 91 | T15: 155 | U15: 160
A19: ∆AUC ITT Male | D19: ∆AUC ITT Male HFD
A20: Control | B20: G-KiRKO | D20: Control HFD | E20: G-KiRKO HFD
A21: 11330 | B21: 16690 | D21: 12710 | E21: 8100
A22: 14885 | B22: 15190 | D22: 11910 | E22: 9480
A23: 12320 | B23: 6750 | D23: 12520 | E23: 8760
A24: 13520 | B24: 8550 | D24: 12460 | E24: 12060
A25: 15610 | B25: 10790 | D25: 12900 | E25: 11580
A26: 12710 | B26: 13460 | D26: 14230 | E26: 12380
B27: 10630 | D27: 11130 | E27: 11920
B28: 15060 | D28: 10730 | E28: 10280
B29: 11590 | D29: 10020 | E29: 14500
D30: 10320 | E30: 13230

Sheet Suppl. Figure 8-C
B2: LH (ng/ml)
B4: Control | C4: G-KiRKO
B5: 3.859 | C5: 4.544
B6: 4.173 | C6: 3.408
B7: 3.327 | C7: 3.379
B8: 2.606 | C8: 6.538
B9: 0,507* | C9: 3.676
B10: 3.614 | C10: 3.91
B11: 3.689 | C11: 3.743
B12: 3.538 | C12: 3.356
B13: 4.064 | C13: 4.836
B16: *outlier

Sheet Suppl. Figure 8-D
D2: Double ICC for cFos and GnRH after 90 min of Kp-54 ip
A4: ID | B4: Genotype | C4: Name pic | D4: Number GnRH neurons | E4: Co-location | F4: Total GnRH neurons/mouse | G4: Total co-location | H4: % Co-location | J4: % GnRH-neuron co-expressing cFos
A5: 3120 | B5: control | C5: GKiRKO project 2--001_3120 control 1.1.1 20X cfos | D5: 3 | E5: 1 | F5: =SUM(D5:D10) -> 35 | G5: =SUM(E5:E10) -> 1 | H5: =(G5/F5)*100 -> 2.857142857 | K5: Control | L5: G-KiRKO
A6: 3120 | B6: control | C6: GKiRKO project 2--001_3120 control 1.1.4 20X cfos | D6: 5 | E6: 0 | K6: 2.86 | L6: 8.16
A7: 3120 | B7: control | C7: GKiRKO project 2--001_3120 control 1.1.5 20X cfos | D7: 5 | E7: 0 | K7: 3.33 | L7: 0
A8: 3120 | B8: control | C8: GKiRKO project 2--001_3120 control 1.2.2 20X cfos | D8: 9 | E8: 0 | K8: 0 | L8: 5.71
A9: 3120 | B9: control | C9: GKiRKO project 2--001_3120 control 1.2.3 20X cfos | D9: 7 | E9: 0 | K9: 7.69 | L9: 18.75
A10: 3120 | B10: control | C10: GKiRKO project 2--001_3120 control 1.2.4 20X cfos | D10: 6 | E10: 0 | K10: 16.67 | L10: 11.11
A11: 3125 | B11: GKiRKO | C11: GKiRKO project 2--001_3125 KO 1.1.2 20X cfos | D11: 7 | E11: 0 | F11: =SUM(D11:D18) -> 49 | G11: =SUM(E11:E18) -> 4 | H11: =(G11/F11)*100 -> 8.163265306
A12: 3125 | B12: GKiRKO | C12: GKiRKO project 2--001_3125 KO 1.1.4 20X cfos | D12: 4 | E12: 0
A13: 3125 | B13: GKiRKO | C13: GKiRKO project 2--001_3125 KO 1.1.5 20X cfos | D13: 2 | E13: 0
A14: 3125 | B14: GKiRKO | C14: GKiRKO project 2--001_3125 KO 1.2.1 20X cfos | D14: 8 | E14: 0
A15: 3125 | B15: GKiRKO | C15: GKiRKO project 2--001_3125 KO 1.2.4 20X cfos | D15: 9 | E15: 0
A16: 3125 | B16: GKiRKO | C16: GKiRKO project 2--001_3125 KO 1.2.5 20X cfos | D16: 7 | E16: 1
A17: 3125 | B17: GKiRKO | C17: GKiRKO project 2--001_3125 KO 1.3.1 20X cfos | D17: 3 | E17: 0
A18: 3125 | B18: GKiRKO | C18: GKiRKO project 2--001_3125 KO 1.3.2 20X cfos | D18: 9 | E18: 3
A19: 3132 | B19: control | C19: GKiRKO project 2--001_3132 control 1.1.2 20X cfos | D19: 3 | E19: 0 | F19: =SUM(D19:D24) -> 30 | G19: =SUM(E19:E24) -> 1 | H19: =(G19/F19)*100 -> 3.333333333
A20: 3132 | B20: control | C20: GKiRKO project 2--001_3132 control 1.1.3 20X cfos | D20: 5 | E20: 0
A21: 3132 | B21: control | C21: GKiRKO project 2--001_3132 control 1.1.5 20X cfos | D21: 4 | E21: 0
A22: 3132 | B22: control | C22: GKiRKO project 2--001_3132 control 1.2.2 20X cfos | D22: 4 | E22: 0
A23: 3132 | B23: control | C23: GKiRKO project 2--001_3132 control 1.3.1 20X cfos | D23: 6 | E23: 0
A24: 3132 | B24: control | C24: GKiRKO project 2--001_3132 control 1.3.2 20X cfos | D24: 8 | E24: 1
A26: 3134 | B26: control | C26: GKiRKO project 2--001_3134 control 1.1.2 20X cfos | D26: 5 | E26: 0 | F26: =SUM(D26:D30) -> 25 | G26: =SUM(E26:E30) -> 0 | H26: =(G26/F26)*100 -> 0
A27: 3134 | B27: control | C27: GKiRKO project 2--001_3134 control 1.1.4 20X cfos | D27: 2 | E27: 0
A28: 3134 | B28: control | C28: GKiRKO project 2--001_3134 control 1.1.5 20X cfos | D28: 5 | E28: 0
A29: 3134 | B29: control | C29: GKiRKO project 2--001_3134 control 1.2.2 20X cfos | D29: 5 | E29: 0
A30: 3134 | B30: control | C30: GKiRKO project 2--001_3134 control 1.2.4 20X cfos | D30: 8 | E30: 0
A31: 9424 | B31: GKiRKO | C31: GKiRKO project 2--001_9424 KO 1.1.1 20X cfos | D31: 3 | E31: 0 | F31: =SUM(D31:D36) -> 29 | G31: =SUM(E31:E36) -> 0 | H31: =(G31/F31)*100 -> 0
A32: 9424 | B32: GKiRKO | C32: GKiRKO project 2--001_9424 KO 1.1.3 20X cfos | D32: 7 | E32: 0
A33: 9424 | B33: GKiRKO | C33: GKiRKO project 2--001_9424 KO 1.1.4 20X cfos | D33: 4 | E33: 0
A34: 9424 | B34: GKiRKO | C34: GKiRKO project 2--001_9424 KO 1.2.2 20X cfos | D34: 3 | E34: 0
A35: 9424 | B35: GKiRKO | C35: GKiRKO project 2--001_9424 KO 1.2.3 20X cfos | D35: 7 | E35: 0
A36: 9424 | B36: GKiRKO | C36: GKiRKO project 2--001_9424 KO 1.2.5 20X cfos | D36: 5 | E36: 0
A37: 9407 | B37: control | C37: GKiRKO project_9407 control 1.1.2 20X cfos | D37: 7 | E37: 0 | F37: =SUM(D37:D42) -> 39 | G37: =SUM(E37:E42) -> 3 | H37: =(G37/F37)*100 -> 7.692307692
A38: 9407 | B38: control | C38: GKiRKO project_9407 control 1.1.3 20X cfos | D38: 7 | E38: 0
A39: 9407 | B39: control | C39: GKiRKO project_9407 control 1.1.5 20X cfos | D39: 6 | E39: 0
A40: 9407 | B40: control | C40: GKiRKO project_9407 control 1.2.2 20X cfos | D40: 4 | E40: 0
A41: 9407 | B41: control | C41: GKiRKO project_9407 control 1.2.4 20X cfos | D41: 9 | E41: 2
A42: 9407 | B42: control | C42: GKiRKO project_9407 control 1.2.5 20X cfos | D42: 6 | E42: 1
A44: 9408 | B44: control | C44: GKiRKO project_9408 control 1.1.3 20X cFos | D44: 4 | E44: 0 | F44: =SUM(D44:D50) -> 36 | G44: =SUM(E44:E50) -> 6 | H44: =(G44/F44)*100 -> 16.66666667
A45: 9408 | B45: control | C45: GKiRKO project_9408 control 1.1.4 20X cFos | D45: 2 | E45: 0
A46: 9408 | B46: control | C46: GKiRKO project_9408 control 1.2.1 20X cfos | D46: 3 | E46: 0
A47: 9408 | B47: control | C47: GKiRKO project_9408 control 1.2.2 20X cfos | D47: 4 | E47: 0
A48: 9408 | B48: control | C48: GKiRKO project_9408 control 1.2.3 20X cfos | D48: 9 | E48: 1
A49: 9408 | B49: control | C49: GKiRKO project_9408 control 1.2.4 20X cfos | D49: 7 | E49: 3
A50: 9408 | B50: control | C50: GKiRKO project_9408 control 1.2.5 20X cfos | D50: 7 | E50: 2
A51: 9417 | B51: GKiRKO | C51: GKiRKO project_9417 KO 1.1.1 20X cfos | D51: 4 | E51: 1 | F51: =SUM(D51:D57) -> 35 | G51: =SUM(E51:E57) -> 2 | H51: =(G51/F51)*100 -> 5.714285714
A52: 9417 | B52: GKiRKO | C52: GKiRKO project_9417 KO 1.1.3 20X cfos | D52: 5 | E52: 0
A53: 9417 | B53: GKiRKO | C53: GKiRKO project_9417 KO 1.2.1 20X cfos | D53: 4 | E53: 0
A54: 9417 | B54: GKiRKO | C54: GKiRKO project_9417 KO 1.2.2 20X cfos | D54: 5 | E54: 0
A55: 9417 | B55: GKiRKO | C55: GKiRKO project_9417 KO 1.2.4 20X cfos | D55: 3 | E55: 1
A56: 9417 | B56: GKiRKO | C56: GKiRKO project_9417 KO 1.2.5 20X cfos | D56: 10 | E56: 0
A57: 9417 | B57: GKiRKO | C57: GKiRKO project_9417 KO 1.3.1 20X cfos | D57: 4 | E57: 0
A59: 9418 | B59: GKiRKO | C59: GKiRKO project_9418 KO 1.1.2 20X cFos | D59: 3 | E59: 0 | F59: =SUM(D59:D64) -> 32 | G59: =SUM(E59:E64) -> 6 | H59: =(G59/F59)*100 -> 18.75
A60: 9418 | B60: GKiRKO | C60: GKiRKO project_9418 KO 1.1.3 20X cfos | D60: 5 | E60: 0
A61: 9418 | B61: GKiRKO | C61: GKiRKO project_9418 KO 1.2.1 20X cfos | D61: 5 | E61: 0
A62: 9418 | B62: GKiRKO | C62: GKiRKO project_9418 KO 1.2.2 20X cfos | D62: 7 | E62: 1
A63: 9418 | B63: GKiRKO | C63: GKiRKO project_9418 KO 1.2.3 20X cfos | D63: 5 | E63: 1
A64: 9418 | B64: GKiRKO | C64: GKiRKO project_9418 KO 1.2.4 20X cfos | D64: 7 | E64: 4
A66: 9422 | B66: GKiRKO | C66: GKiRKO project_9422 KO 1.1.2 20X cfos | D66: 6 | E66: 0 | F66: =SUM(D66:D72) -> 36 | G66: =SUM(E66:E72) -> 4 | H66: =(G66/F66)*100 -> 11.11111111
A67: 9422 | B67: GKiRKO | C67: GKiRKO project_9422 KO 1.1.3 20X cfos | D67: 3 | E67: 0
A68: 9422 | B68: GKiRKO | C68: GKiRKO project_9422 KO 1.1.4 20X cfos | D68: 3 | E68: 0
A69: 9422 | B69: GKiRKO | C69: GKiRKO project_9422 KO 1.2.1 20X cfos | D69: 7 | E69: 0
A70: 9422 | B70: GKiRKO | C70: GKiRKO project_9422 KO 1.2.2 20X cfos | D70: 10 | E70: 2
A71: 9422 | B71: GKiRKO | C71: GKiRKO project_9422 KO 1.2.3 20X cfos | D71: 2 | E71: 1
A72: 9422 | B72: GKiRKO | C72: GKiRKO project_9422 KO 1.2.4 20X cfos | D72: 5 | E72: 1

Sheet Suppl. Figure 8-E
A1: Double ICC for GFAP and GnRH 90 min after Kp-54 ip
B3: ID | C3: Genotype | D3: Name pic | E3: Number GnRH neurons | F3: Soma Close interaction | G3: Total GnRH neurons/mouse | H3: Total co-location | I3: % Co-location | L3: % Close interaction (soma)
B4: 3120 | C4: control | D4: GKiRKO ICC_3120 control 1.1.3 20X Gfap_ch00 | E4: 1 | F4: 0 | G4: =SUM(E4:E9) -> 16 | H4: =SUM(F4:F9) -> 4 | I4: =(H4/G4)*100 -> 25 | L4: Control | M4: G-KiRKO
B5: 3120 | C5: control | D5: GKiRKO ICC_3120 control 1.1.5 20X Gfap_ch00 | E5: 2 | F5: 0 | L5: 25 | M5: 24
B6: 3120 | C6: control | D6: GKiRKO ICC_3120 control 1.1.6 20X Gfap_ch00 | E6: 2 | F6: 1 | L6: 13.33 | M6: 33.33
B7: 3120 | C7: control | D7: GKiRKO ICC_3120 control 1.2.1 20X Gfap_ch00 | E7: 6 | F7: 2 | L7: 10.53 | M7: 43.33
B8: 3120 | C8: control | D8: GKiRKO ICC_3120 control 1.2.2 20X Gfap_ch00 | E8: 4 | F8: 1 | L8: 23.81 | M8: 25
B9: 3120 | C9: control | D9: GKiRKO ICC_3120 control 1.2.3 20X Gfap_ch00 | E9: 1 | F9: 0 | L9: 6.25 | M9: 20
B10: 3125 | C10: GKiRKO | D10: GKiRKO ICC_3125 KO 1.1.3 20X Gfap_ch00 | E10: 1 | F10: 0 | G10: =SUM(E10:E16) -> 25 | H10: =SUM(F10:F16) -> 6 | I10: =(H10/G10)*100 -> 24
B11: 3125 | C11: GKiRKO | D11: GKiRKO ICC_3125 KO 1.1.5 20X Gfap_ch00 | E11: 3 | F11: 0
B12: 3125 | C12: GKiRKO | D12: GKiRKO ICC_3125 KO 1.1.6 20X Gfap_ch00 | E12: 3 | F12: 0
B13: 3125 | C13: GKiRKO | D13: GKiRKO ICC_3125 KO 1.2.1 20X Gfap_ch00 | E13: 4 | F13: 0
B14: 3125 | C14: GKiRKO | D14: GKiRKO ICC_3125 KO 1.2.3 20X Gfap_ch00 | E14: 4 | F14: 0
B15: 3125 | C15: GKiRKO | D15: GKiRKO ICC_3125 KO 1.2.4 20X Gfap_ch00 | E15: 7 | F15: 4
B16: 3125 | C16: GKiRKO | D16: GKiRKO ICC_3125 KO 1.3.1 20X Gfap_ch00 | E16: 3 | F16: 2
B17: 3132 | C17: control | D17: GKiRKO ICC_3132 control 1.1.2 20X Gfap_ch00 | E17: 3 | F17: 0 | G17: =SUM(E17:E21) -> 15 | H17: =SUM(F17:F21) -> 2 | I17: =(H17/G17)*100 -> 13.33333333
B18: 3132 | C18: control | D18: GKiRKO ICC_3132 control 1.1.5 20X Gfap_ch00 | E18: 2 | F18: 0
B19: 3132 | C19: control | D19: GKiRKO ICC_3132 control 1.2.2 20X Gfap_ch00 | E19: 5 | F19: 2
B20: 3132 | C20: control | D20: GKiRKO ICC_3132 control 1.2.3 20X Gfap_ch00 | E20: 4 | F20: 0
B21: 3132 | C21: control | D21: GKiRKO ICC_3132 control 1.2.4 20X Gfap_ch00 | E21: 1 | F21: 0
B23: 3134 | C23: control | D23: GKiRKO ICC_3134 control 1.1.2 20X Gfap_ch00 | E23: 3 | F23: 0 | G23: =SUM(E23:E27) -> 19 | H23: =SUM(F23:F27) -> 2 | I23: =(H23/G23)*100 -> 10.52631579
B24: 3134 | C24: control | D24: GKiRKO ICC_3134 control 1.1.4 20X Gfap_ch00 | E24: 1 | F24: 0
B25: 3134 | C25: control | D25: GKiRKO ICC_3134 control 1.1.5 20X Gfap_ch00 | E25: 5 | F25: 2
B26: 3134 | C26: control | D26: GKiRKO ICC_3134 control 1.2.2 20X Gfap_ch00 | E26: 6 | F26: 0
B27: 3134 | C27: control | D27: GKiRKO ICC_3134 control 1.2.3 20X Gfap_ch00 | E27: 4 | F27: 0
B28: 3134 | C28: control | D28: GKiRKO ICC_3134 control 1.2.4 20X Gfap_ch00 | E28: 2 | F28: 0
B29: 9424 | C29: GKiRKO | D29: GKiRKO ICC_9424 KO 1.1.2 20X Gfap_ch00 | E29: 3 | F29: 2 | G29: =SUM(E29:E35) -> 18 | H29: =SUM(F29:F35) -> 6 | I29: =(H29/G29)*100 -> 33.33333333
B30: 9424 | C30: GKiRKO | D30: GKiRKO ICC_9424 KO 1.1.3 20X Gfap_ch00 | E30: 2 | F30: 0
B31: 9424 | C31: GKiRKO | D31: GKiRKO ICC_9424 KO 1.1.4 20X Gfap_ch00 | E31: 3 | F31: 0
B32: 9424 | C32: GKiRKO | D32: GKiRKO ICC_9424 KO 1.1.5 20X Gfap_ch00 | E32: 3 | F32: 0
B33: 9424 | C33: GKiRKO | D33: GKiRKO ICC_9424 KO 1.2.1 20X Gfap_ch00 | E33: 2 | F33: 2
B34: 9424 | C34: GKiRKO | D34: GKiRKO ICC_9424 KO 1.2.3 20X Gfap_ch00 | E34: 4 | F34: 1
B35: 9424 | C35: GKiRKO | D35: GKiRKO ICC_9424 KO 1.2.4 20X Gfap_ch00 | E35: 1 | F35: 1
B36: 9407 | C36: control | D36: GKiRKO ICC_9407 control 1.1.3 20X Gfap_ch00 | E36: 5 | F36: 1 | G36: =SUM(E36:E41) -> 21 | H36: =SUM(F36:F41) -> 5 | I36: =(H36/G36)*100 -> 23.80952381
B37: 9407 | C37: control | D37: GKiRKO ICC_9407 control 1.1.4 20X Gfap_ch00 | E37: 1 | F37: 0
B38: 9407 | C38: control | D38: GKiRKO ICC_9407 control 1.1.5 20X Gfap_ch00 | E38: 3 | F38: 1
B39: 9407 | C39: control | D39: GKiRKO ICC_9407 control 1.2.2 20X Gfap_ch00 | E39: 3 | F39: 0
B40: 9407 | C40: control | D40: GKiRKO ICC_9407 control 1.2.4 20X Gfap_ch00 | E40: 6 | F40: 2
B41: 9407 | C41: control | D41: GKiRKO ICC_9407 control 1.2.6 20X Gfap_ch00 | E41: 3 | F41: 1
B43: 9408 | C43: control | D43: GKiRKO ICC_9408 control 1.1.2 20X Gfap_ch00 | E43: 3 | F43: 1 | G43: =SUM(E43:E48) -> 16 | H43: =SUM(F43:F48) -> 1 | I43: =(H43/G43)*100 -> 6.25
B44: 9408 | C44: control | D44: GKiRKO ICC_9408 control 1.1.4 20X Gfap_ch00 | E44: 2 | F44: 0
B45: 9408 | C45: control | D45: GKiRKO ICC_9408 control 1.1.5 20X Gfap_ch00 | E45: 3 | F45: 0
B46: 9408 | C46: control | D46: GKiRKO ICC_9408 control 1.2.1 20X Gfap_ch00 | E46: 1 | F46: 0
B47: 9408 | C47: control | D47: GKiRKO ICC_9408 control 1.2.2 20X Gfap_ch00 | E47: 5 | F47: 0
B48: 9408 | C48: control | D48: GKiRKO ICC_9408 control 1.2.5 20X Gfap_ch00 | E48: 2 | F48: 0
B49: 9417 | C49: GKiRKO | D49: GKiRKO ICC_9417 KO 1.1.3 20X Gfap_ch00 | E49: 2 | F49: 0 | G49: =SUM(E49:E54) -> 30 | H49: =SUM(F49:F54) -> 13 | I49: =(H49/G49)*100 -> 43.33333333
B50: 9417 | C50: GKiRKO | D50: GKiRKO ICC_9417 KO 1.1.4 20X Gfap_ch00 | E50: 2 | F50: 1
B51: 9417 | C51: GKiRKO | D51: GKiRKO ICC_9417 KO 1.2.1 20X gfap_ch00 | E51: 4 | F51: 0
B52: 9417 | C52: GKiRKO | D52: GKiRKO ICC_9417 KO 1.2.3 20X gfap_ch00 | E52: 9 | F52: 4
B53: 9417 | C53: GKiRKO | D53: GKiRKO ICC_9417 KO 1.2.4 20X Gfap_ch00 | E53: 5 | F53: 3
B54: 9417 | C54: GKiRKO | D54: GKiRKO ICC_9417 KO 1.2.5 20X Gfap_ch00 | E54: 8 | F54: 5
B56: 9418 | C56: GKiRKO | D56: GKiRKO ICC_9418 KO 1.1.2 20X gfap_ch00 | E56: 4 | F56: 0 | G56: =SUM(E56:E61) -> 20 | H56: =SUM(F56:F61) -> 5 | I56: =(H56/G56)*100 -> 25
B57: 9418 | C57: GKiRKO | D57: GKiRKO ICC_9418 KO 1.1.4 20X Gfap_ch00 | E57: 3 | F57: 0
B58: 9418 | C58: GKiRKO | D58: GKiRKO ICC_9418 KO 1.2.1 20X Gfap_ch00 | E58: 3 | F58: 0
B59: 9418 | C59: GKiRKO | D59: GKiRKO ICC_9418 KO 1.2.2 20X Gfap_ch00 | E59: 2 | F59: 0
B60: 9418 | C60: GKiRKO | D60: GKiRKO ICC_9418 KO 1.2.4 20X Gfap_ch00 | E60: 5 | F60: 3
B61: 9418 | C61: GKiRKO | D61: GKiRKO ICC_9418 KO 1.2.5 20X Gfap_ch00 | E61: 3 | F61: 2
B62: 9418 | C62: GKiRKO | D62: GKiRKO ICC_9418 KO 1.3.1 20X Gfap_ch00 | E62: 4 | F62: 2
B64: 9422 | C64: GKiRKO | D64: GKiRKO ICC_9422 KO 1.1.1 20X Gfap_ch00 | E64: 3 | F64: 0 | G64: =SUM(E64:E70) -> 30 | H64: =SUM(F64:F70) -> 6 | I64: =(H64/G64)*100 -> 20
B65: 9422 | C65: GKiRKO | D65: GKiRKO ICC_9422 KO 1.1.2 20X Gfap_ch00 | E65: 2 | F65: 0
B66: 9422 | C66: GKiRKO | D66: GKiRKO ICC_9422 KO 1.1.4 20X Gfap_ch00 | E66: 3 | F66: 0
B67: 9422 | C67: GKiRKO | D67: GKiRKO ICC_9422 KO 1.1.5 20X Gfap_ch00 | E67: 3 | F67: 0
B68: 9422 | C68: GKiRKO | D68: GKiRKO ICC_9422 KO 1.1.6 20X Gfap_ch00 | E68: 3 | F68: 0
B69: 9422 | C69: GKiRKO | D69: GKiRKO ICC_9422 KO 1.2.1 20X Gfap_ch00 | E69: 7 | F69: 3
B70: 9422 | C70: GKiRKO | D70: GKiRKO ICC_9422 KO 1.2.2 20X Gfap down_ch00 | E70: 9 | F70: 3
B71: 9422 | C71: GKiRKO | D71: GKiRKO ICC_9422 KO 1.2.2 20X Gfap_ch00 | E71: 10 | F71: 2
B72: 9422 | C72: GKiRKO | D72: GKiRKO ICC_9422 KO 1.2.3 20X Gfap_ch00 | E72: 1 | F72: 0

Sheet Suppl. Figure 8-F
A3: ID | B3: Genotype | C3: Name pic | D3: Number GnRH neurons | E3: Fiber close interaction | F3: Total GnRH neurons/mouse | G3: Total co-location | H3: % Co-location | K3: % Close interaction (axon)
A4: 3120 | B4: control | C4: GKiRKO ICC_3120 control 1.1.3 20X Gfap_ch00 | D4: 1 | E4: 0 | F4: =SUM(D4:D9) -> 16 | G4: =SUM(E4:E9) -> 3 | H4: =(G4/F4)*100 -> 18.75 | K4: Control | L4: G-KiRKO
A5: 3120 | B5: control | C5: GKiRKO ICC_3120 control 1.1.5 20X Gfap_ch00 | D5: 2 | E5: 0 | K5: 18.75 | L5: 14.29
A6: 3120 | B6: control | C6: GKiRKO ICC_3120 control 1.1.6 20X Gfap_ch00 | D6: 2 | E6: 1 | K6: 0 | L6: 33.33
A7: 3120 | B7: control | C7: GKiRKO ICC_3120 control 1.2.1 20X Gfap_ch00 | D7: 6 | E7: 1 | K7: 15.79 | L7: 42.86
A8: 3120 | B8: control | C8: GKiRKO ICC_3120 control 1.2.2 20X Gfap_ch00 | D8: 4 | E8: 1 | K8: 35.29 | L8: 41.67
A9: 3120 | B9: control | C9: GKiRKO ICC_3120 control 1.2.3 20X Gfap_ch00 | D9: 1 | E9: 0 | K9: 35.71 | L9: 29.63
A10: 3125 | B10: GKiRKO | C10: GKiRKO ICC_3125 KO 1.1.3 20X Gfap_ch00 | D10: 1 | E10: 0 | F10: =SUM(D10:D16) -> 21 | G10: =SUM(E10:E16) -> 3 | H10: =(G10/F10)*100 -> 14.28571429
A11: 3125 | B11: GKiRKO | C11: GKiRKO ICC_3125 KO 1.1.5 20X Gfap_ch00 | D11: 3 | E11: 0
A12: 3125 | B12: GKiRKO | C12: GKiRKO ICC_3125 KO 1.1.6 20X Gfap_ch00 | D12: 2 | E12: 0
A13: 3125 | B13: GKiRKO | C13: GKiRKO ICC_3125 KO 1.2.1 20X Gfap_ch00 | D13: 1 | E13: 0
A14: 3125 | B14: GKiRKO | C14: GKiRKO ICC_3125 KO 1.2.3 20X Gfap_ch00 | D14: 4 | E14: 0
A15: 3125 | B15: GKiRKO | C15: GKiRKO ICC_3125 KO 1.2.4 20X Gfap_ch00 | D15: 7 | E15: 1
A16: 3125 | B16: GKiRKO | C16: GKiRKO ICC_3125 KO 1.3.1 20X Gfap_ch00 | D16: 3 | E16: 2
A17: 3132 | B17: control | C17: GKiRKO ICC_3132 control 1.1.2 20X Gfap_ch00 | D17: 3 | E17: 0 | F17: =SUM(D17:D21) -> 12 | G17: =SUM(E17:E21) -> 0 | H17: =(G17/F17)*100 -> 0
A18: 3132 | B18: control | C18: GKiRKO ICC_3132 control 1.1.5 20X Gfap_ch00 | D18: 2 | E18: 0
A19: 3132 | B19: control | C19: GKiRKO ICC_3132 control 1.2.2 20X Gfap_ch00 | D19: 2 | E19: 0
A20: 3132 | B20: control | C20: GKiRKO ICC_3132 control 1.2.3 20X Gfap_ch00 | D20: 4 | E20: 0
A21: 3132 | B21: control | C21: GKiRKO ICC_3132 control 1.2.4 20X Gfap_ch00 | D21: 1 | E21: 0
A23: 3134 | B23: control | C23: GKiRKO ICC_3134 control 1.1.2 20X Gfap_ch00 | D23: 3 | E23: 0 | F23: =SUM(D23:D27) -> 19 | G23: =SUM(E23:E27) -> 3 | H23: =(G23/F23)*100 -> 15.78947368
A24: 3134 | B24: control | C24: GKiRKO ICC_3134 control 1.1.4 20X Gfap_ch00 | D24: 1 | E24: 0
A25: 3134 | B25: control | C25: GKiRKO ICC_3134 control 1.1.5 20X Gfap_ch00 | D25: 5 | E25: 2
A26: 3134 | B26: control | C26: GKiRKO ICC_3134 control 1.2.2 20X Gfap_ch00 | D26: 6 | E26: 1
A27: 3134 | B27: control | C27: GKiRKO ICC_3134 control 1.2.3 20X Gfap_ch00 | D27: 4 | E27: 0
A28: 3134 | B28: control | C28: GKiRKO ICC_3134 control 1.2.4 20X Gfap_ch00 | D28: 2 | E28: 1
A29: 9424 | B29: GKiRKO | C29: GKiRKO ICC_9424 KO 1.1.2 20X Gfap_ch00 | D29: 0 | E29: 0 | F29: =SUM(D29:D35) -> 12 | G29: =SUM(E29:E35) -> 4 | H29: =(G29/F29)*100 -> 33.33333333
A30: 9424 | B30: GKiRKO | C30: GKiRKO ICC_9424 KO 1.1.3 20X Gfap_ch00 | D30: 1 | E30: 1
A31: 9424 | B31: GKiRKO | C31: GKiRKO ICC_9424 KO 1.1.4 20X Gfap_ch00 | D31: 3 | E31: 1
A32: 9424 | B32: GKiRKO | C32: GKiRKO ICC_9424 KO 1.1.5 20X Gfap_ch00 | D32: 3 | E32: 0
A33: 9424 | B33: GKiRKO | C33: GKiRKO ICC_9424 KO 1.2.1 20X Gfap_ch00 | D33: 1 | E33: 1
A34: 9424 | B34: GKiRKO | C34: GKiRKO ICC_9424 KO 1.2.3 20X Gfap_ch00 | D34: 4 | E34: 1
A35: 9424 | B35: GKiRKO | C35: GKiRKO ICC_9424 KO 1.2.4 20X Gfap_ch00 | D35: 0 | E35: 0
A36: 9407 | B36: control | C36: GKiRKO ICC_9407 control 1.1.3 20X Gfap_ch00 | D36: 2 | E36: 0 | F36: =SUM(D36:D41) -> 17 | G36: =SUM(E36:E41) -> 6 | H36: =(G36/F36)*100 -> 35.29411765
A37: 9407 | B37: control | C37: GKiRKO ICC_9407 control 1.1.4 20X Gfap_ch00 | D37: 1 | E37: 0
A38: 9407 | B38: control | C38: GKiRKO ICC_9407 control 1.1.5 20X Gfap_ch00 | D38: 3 | E38: 2
A39: 9407 | B39: control | C39: GKiRKO ICC_9407 control 1.2.2 20X Gfap_ch00 | D39: 2 | E39: 0
A40: 9407 | B40: control | C40: GKiRKO ICC_9407 control 1.2.4 20X Gfap_ch00 | D40: 6 | E40: 4
A41: 9407 | B41: control | C41: GKiRKO ICC_9407 control 1.2.6 20X Gfap_ch00 | D41: 3 | E41: 0
A43: 9408 | B43: control | C43: GKiRKO ICC_9408 control 1.1.2 20X Gfap_ch00 | D43: 3 | E43: 1 | F43: =SUM(D43:D48) -> 14 | G43: =SUM(E43:E48) -> 5 | H43: =(G43/F43)*100 -> 35.71428571
A44: 9408 | B44: control | C44: GKiRKO ICC_9408 control 1.1.4 20X Gfap_ch00 | D44: 0 | E44: 0
A45: 9408 | B45: control | C45: GKiRKO ICC_9408 control 1.1.5 20X Gfap_ch00 | D45: 3 | E45: 1
A46: 9408 | B46: control | C46: GKiRKO ICC_9408 control 1.2.1 20X Gfap_ch00 | D46: 1 | E46: 1
A47: 9408 | B47: control | C47: GKiRKO ICC_9408 control 1.2.2 20X Gfap_ch00 | D47: 5 | E47: 2
A48: 9408 | B48: control | C48: GKiRKO ICC_9408 control 1.2.5 20X Gfap_ch00 | D48: 2 | E48: 0
A49: 9417 | B49: GKiRKO | C49: GKiRKO ICC_9417 KO 1.1.3 20X Gfap_ch00 | D49: 0 | E49: 0 | F49: =SUM(D49:D54) -> 21 | G49: =SUM(E49:E54) -> 9 | H49: =(G49/F49)*100 -> 42.85714286
A50: 9417 | B50: GKiRKO | C50: GKiRKO ICC_9417 KO 1.1.4 20X Gfap_ch00 | D50: 2 | E50: 1
A51: 9417 | B51: GKiRKO | C51: GKiRKO ICC_9417 KO 1.2.1 20X gfap_ch00 | D51: 3 | E51: 1
A52: 9417 | B52: GKiRKO | C52: GKiRKO ICC_9417 KO 1.2.3 20X gfap_ch00 | D52: 8 | E52: 3
A53: 9417 | B53: GKiRKO | C53: GKiRKO ICC_9417 KO 1.2.4 20X Gfap_ch00 | D53: 4 | E53: 2
A54: 9417 | B54: GKiRKO | C54: GKiRKO ICC_9417 KO 1.2.5 20X Gfap_ch00 | D54: 4 | E54: 2
A56: 9418 | B56: GKiRKO | C56: GKiRKO ICC_9418 KO 1.1.2 20X gfap_ch00 | D56: 0 | E56: 0 | F56: =SUM(D56:D61) -> 12 | G56: =SUM(E56:E61) -> 5 | H56: =(G56/F56)*100 -> 41.66666667
A57: 9418 | B57: GKiRKO | C57: GKiRKO ICC_9418 KO 1.1.4 20X Gfap_ch00 | D57: 2 | E57: 0
A58: 9418 | B58: GKiRKO | C58: GKiRKO ICC_9418 KO 1.2.1 20X Gfap_ch00 | D58: 3 | E58: 1
A59: 9418 | B59: GKiRKO | C59: GKiRKO ICC_9418 KO 1.2.2 20X Gfap_ch00 | D59: 2 | E59: 0
A60: 9418 | B60: GKiRKO | C60: GKiRKO ICC_9418 KO 1.2.4 20X Gfap_ch00 | D60: 5 | E60: 4
A61: 9418 | B61: GKiRKO | C61: GKiRKO ICC_9418 KO 1.2.5 20X Gfap_ch00 | D61: 0 | E61: 0
A62: 9418 | B62: GKiRKO | C62: GKiRKO ICC_9418 KO 1.3.1 20X Gfap_ch00 | D62: 3 | E62: 2
A64: 9422 | B64: GKiRKO | C64: GKiRKO ICC_9422 KO 1.1.1 20X Gfap_ch00 | D64: 3 | E64: 0 | F64: =SUM(D64:D70) -> 27 | G64: =SUM(E64:E70) -> 8 | H64: =(G64/F64)*100 -> 29.62962963
A65: 9422 | B65: GKiRKO | C65: GKiRKO ICC_9422 KO 1.1.2 20X Gfap_ch00 | D65: 1 | E65: 0
A66: 9422 | B66: GKiRKO | C66: GKiRKO ICC_9422 KO 1.1.4 20X Gfap_ch00 | D66: 3 | E66: 0
A67: 9422 | B67: GKiRKO | C67: GKiRKO ICC_9422 KO 1.1.5 20X Gfap_ch00 | D67: 3 | E67: 1
A68: 9422 | B68: GKiRKO | C68: GKiRKO ICC_9422 KO 1.1.6 20X Gfap_ch00 | D68: 1 | E68: 0
A69: 9422 | B69: GKiRKO | C69: GKiRKO ICC_9422 KO 1.2.1 20X Gfap_ch00 | D69: 7 | E69: 3
A70: 9422 | B70: GKiRKO | C70: GKiRKO ICC_9422 KO 1.2.2 20X Gfap down_ch00 | D70: 9 | E70: 4
A71: 9422 | B71: GKiRKO | C71: GKiRKO ICC_9422 KO 1.2.2 20X Gfap_ch00 | D71: 10 | E71: 2
A72: 9422 | B72: GKiRKO | C72: GKiRKO ICC_9422 KO 1.2.3 20X Gfap_ch00 | D72: 1 | E72: 0
